Workbook

Sheet Anleitung
A1: Stand vom: | B1: 2018-05-30T15:45:13
A3: Blatt | B3: Spalte | C3: Erläuterung | M3: Ausführung des Makros zur Erstellung des Bodenfiles
A4: Standorte | B4: - | C4: enthält allgemeine Informationen zum Standort | M4: - | N4: Im Blatt Standorte in Spalte A die gewünschte ID mit dem Cursor markieren
B5: ID | C5: gibt den Namen an, unter dem die Daten zum Standort in der Datenbank aufzufinden sind | M5: - | N5: Das Makro 'Bodenfiles_4C' starten
C6: und wird als Name für die 4C-input-files vorgeschlagen (darf aber bei der Ausgabe geändert werden) | M6: - | N6: Die ID wird für den Namen des sop-Files benutzt,
C7: keine Leerzeichen, nur alpha-numerische Zeichen | N7: kann aber ebenso wie das Ziel-Verzeichnis im Dialog geändert werden
B8: geogr. Breite/Länge | C8: kann wahlweise in Grad/Minuten angegeben werden oder dezimal
C9: Die Umrechnung erfolgt mit Hilfe des Makros 'Umrechnung_Dezimal_in_Grad' bzw. 'Umrechnung_Grad_in_Dezimal'
C10: Die Angabe erfolgt entweder mit Dezimalpunkt oder in der Form xx°yy', jeweils in der richtigen Spalte.
C11: Achtung: keine Leerzeichen zwischen den Zifferngruppen!
B12: Humusform | C12: hierfür wird ein Kürzel verwendet, das im Blatt 'Humusformen' erkärt wird | M12: Umrechnungsfaktoren
B13: Lufttemperatur | C13: dient nur zur Information über die klimatischen Verhältnisse, wird nicht weiterverarbeitet
B14: Niederschlag | C14: dient nur zur Information über die klimatischen Verhältnisse, wird nicht weiterverarbeitet | N14: g/m² | O14: kg/m² | P14: kg/ ha | Q14: t/ha
B15: Deposition | C15: dient nur zur Information über die Deposition, wird nicht weiterverarbeitet | N15: 1 | O15: 0.001 | P15: 10 | Q15: 0.01
B16: Durchwurzelungstiefe | C16: wird im 4C-input-file verarbeitet | N16: 1000 | O16: 1 | P16: 10000 | Q16: 10
B17: Grundwasserabstand | C17: wird im 4C-input-file verarbeitet | N17: 0.1 | O17: 0.0001 | P17: 1 | Q17: 1000
B18: C/N-Verhältnis | C18: C/N-Verhältnis des Bodenprofils, zur Information | N18: 100 | O18: 0.1 | P18: 1000 | Q18: 1
C19: verknüpft mit dem Blatt 'Bodendaten'
N20: 1 | O20: 0.001 | P20: 10 | Q20: 0.01
N21: 1000 | O21: 1 | P21: 10000 | Q21: 10
A22: Bodendaten | B22: - | C22: enthält Informationen zu den Schichten des Bodenprofils; | N22: 0.1 | O22: 0.0001 | P22: 1 | Q22: 1000
C23: Angaben beziehen sich entweder auf die Horizontabfolge oder auf die Erhebungstiefen (je nach Datenlage) | N23: 100 | O23: 0.1 | P23: 1000 | Q23: 1
B24: - | C24: Werte aus Datenlieferungen werden fett blau markiert, abgeleitete oder geschätzte Werte sind schwarz
B25: - | C25: für verschiedene Werte kann man eine Konsistenzprüfung durchführen (nicht automatisiert):
C26: Porenvolumen > Feldkapazität > Welkepunkt
B27: - | C27: Verknüpfungen und Berechnungen nachvollziehbar machen
B28: - | C28: angestrebt wird ein Bodenprofil, das bis unter die Wurzelzone reicht (ca. 3m)
C29: meistens sind diese Informationen nicht vorhanden, deshalb wird die letzte Schicht (meistensC-Horizont) fortgeschrieben
B30: - | C30: blaue Werte sind Origanldaten (Messwerte)
B31: - | C31: grüne Werte sind aus anderen Informationen berechnet
B33: ID | C33: Bezug zu den Daten im Blatt 'Standorte'
B34: Tiefe obere/untere Grenze | C34: alle Werte werden positiv angegeben;
C35: für die Auflage gilt: obere Grenze > untere Grenze, Mineralboden umgekehrt
B36: Bodenart | C36: kann aus den Werten von Ton, Schluff und Sand mit Hilfe der Tabelle 'Bodenarten' bestimmt werden
B37: Ton / Schluff / Sand | C37: hier ist nur die Eingabe von zwei Werten erforderlich;
C38: der dritte wird aus der Differenz zu 100 brerechnet, z.B. Ton = 100 - Schluff - Sand
C39: dadurch wird auch die Konsistenz gewahrt
B40: Porenvolumen Vol% | C40: Berechnungsmöglichkeit:
C41: aus Lagerungsdichte und spezifischer Dichte der organischen Subsutanz OS (Ann.:1.3 g/cm³, s. Element AO1)
C42: (1 -Lagerungsdichte / spezif.Dichte OS) * 100
B43: Feldkapazität | C43: kann berechnet werden als Summe aus Welkepunkt und nutzbarer Feldkapazität
B44: Welkepunkt | C44: kann berechnet werden als Differenz aus Feldkapazität und nutzbarer Feldkapazität
B45: l-Parameter | C45: wird über die Bodenart aus der Tabelle 'Bodenarten' bestimmt
B46: C/N-Verhältnis | C46: Quotient aus C- und N-Gehalt
B47: C-Gehalt % | C47: wenn nicht angegeben, kann dieser Wert auf verschiedene Weise berechnet werden:
C48: 100 * C-Gehalt / Trockenmasse
C49: Humusgehalt% * C-Gehalt des Humus / 100 | G49: (Annahme C-Gehalt des Humus: 50%)
B50: N-Gehalt % | C50: wenn nicht angegeben, kann dieser Wert auf verschiedene Weise berechnet werden:
C51: C-Gehalt / C/N-Verhältnis
C52: 100 * N-Gehalt / Trockenmasse
B53: C-Gehalt g/m² | C53: Berechnungsmöglichkeiten:
C54: C-Gehalt% * Trockenmasse / 100
B55: N-Gehalt g/m² | C55: Berechnungsmöglichkeiten:
C56: N-Gehalt% * Trockenmasse / 100
B57: Humusgehalt% | C57: Angabe in %
C58: Berechnungsmöglichkeiten:
C59: qualitative Angabe nach KA4/KA5 in % umrechnen
C60: 100 * C-Gehalt / (Trockenmasse * 0.5) | G60: (Annahme C-Gehalt des Humus: 50%)
B61: Trockenmasse g/m² | C61: Berechnungsmöglichkeiten:
C62: ABS(Tiefe_obere_Grenze - Tiefe_untere_Grenze) * Lagerungsdichte * 10000
B63: Humusmenge g/m² | C63: Berechnungsmöglichkeiten:
C64: Trockenmasse * Humusgehalt / 100
B65: nutzbare Feldkapazität | C65: kann zur Berechnung von Feldkapazität oder Welkepunkt genutzt werden
C66: Berechnungsmöglichkeiten:
C67: Feldkapazität - Welkepunkt
A811: BufaP1 | B811: Oh | C811: 1 | D811: 4.5 | E811: 0 | F811: mu | G811: 0 | H811: 0 | I811: 0 | J811: 0 | K811: =(1-N811/$AO$3)*100 ->  | L811: -99 | M811: -99 | N811: =10000/(ABS(E811-D811)*X811) -> 1.381978994 | O811: -99 | P811: 5.4 | Q811: 3 | R811: =S811/T811 -> 27.42647059 | S811: 37.3 | T811: 1.36 | U811: =X811*S811/100 -> 599.784 | V811: =X811*T811/100 -> 21.8688 | W811: =100*2*U811/X811 -> 74.6 | X811: 1608 | Y811: =(L811-M811)*D811/10 -> 0 | Z811: =U811/100 -> 5.99784 | AA811: =V811/100 -> 0.218688 | AC811: =Z811/Z818*100 -> 2.919844599 | AD811: =AA811/AA818*100 -> 1.108552025 | AE811: =(W811/100)*X811 -> 1199.568 | AM811: Horizonte geben nur die Reihenfolge an, nicht die Mächtigkeit
A812: BufaP1 | B812: Ah | C812: 2 | D812: 0 | E812: 10 | F812: Tu2 | G812: 45.6 | H812: 51.7 | I812: =100-G812-H812 -> 2.7 | J812: 5 | K812: 60 | L812: =M812+AJ812 -> 49.2 | M812: 31.7 | N812: 1.000588492 | O812: -99 | P812: 6.7 | Q812: 0.15 | R812: 13.53333333 | S812: 4.06 | T812: 0.3 | U812: 7511 | V812: 555 | W812: 8.12 | X812: 185000 | Y812: =(L812-M812)*(E812-D812)/10 -> 17.5 | Z812: =Z818-Z811 -> 199.4185716 | AA812: =AA818-AA811 -> 19.5086676 | AC812: =(U812/(Z812*100))*100 -> 37.66449604 | AD812: =(V812/(AA812*100))*100 -> 28.44889315 | AE812: 15022 | AJ812: 17.5 | AM812: Beprobung folgte fest vorgegebenen Tiefenstufe
A813: BufaP1 | B813: Bv | C813: 3 | D813: 10 | E813: 20 | F813: Tu2 | G813: 52 | H813: 45.4 | I813: 2.6 | J813: 17.5 | K813: 55.9 | L813: 42.8 | M813: 28.9 | N813: 1.147757474 | O813: -99 | P813: 7 | Q813: 0.15 | R813: 12.5625 | S813: 2.01 | T813: 0.16 | U813: 4729.64256 | V813: 376.48896 | W813: 4.02 | X813: 235305.6 | Y813: =Y812+(L813-M813)*(E813-D813)/10 -> 31.4 | AC813: =(U813/(Z$812*100))*100 -> 23.71716196 | AD813: 19.2985481 | AE813: 9459.28512 | AJ813: 13.9
A814: BufaP1 | B814: Al | C814: 4 | D814: 20 | E814: 30 | F814: Tu3 | G814: 31.2 | H814: 58.3 | I814: 10.5 | J814: 30 | K814: 56 | L814: 32.2 | M814: 18.9 | N814: 1.166673834 | O814: -99 | P814: 7.5 | Q814: 0.26 | R814: 5.6 | S814: 0.56 | T814: 0.1 | U814: 255.4608 | V814: 45.618 | W814: 1.12 | X814: 45618 | Y814: 44.7 | AC814: 1.281028131 | AD814: 2.338345239 | AE814: 510.9216 | AJ814: 13.3
A815: BufaP1 | B815: Bv+Bt | C815: 5 | D815: 30 | E815: 50 | F815: Lu | G815: 21.4 | H815: 63 | I815: 15.6 | J815: 20 | K815: 50.6 | L815: 22.2 | M815: 17 | N815: 1.33248201 | O815: -99 | P815: 7.6 | Q815: 0.27 | R815: 8 | S815: 0.4 | T815: 0.05 | U815: 3074.824 | V815: 384.353 | W815: 0.8 | X815: 768706 | Y815: 55.1 | AC815: 15.41894506 | AD815: 19.70165302 | AE815: 6149.648 | AJ815: 5.2
A816: BufaP1 | B816: Cv | C816: 6 | D816: 50 | E816: 70 | F816: Lu | G816: 25.1 | H816: 57.1 | I816: 17.8 | J816: 20 | K816: 51.8 | L816: 44.5 | M816: 19.4 | N816: 1.306637669 | O816: -99 | P816: 7.7 | Q816: 0.27 | R816: 6.666666667 | S816: 0.2 | T816: 0.03 | U816: 1656.396 | V816: 248.4594 | W816: 0.4 | X816: 828198 | Y816: 105.3 | AC816: 8.306127091 | AD816: 12.73584671 | AE816: 3312.792 | AJ816: 25.1
A817: BufaP1 | B817: Cv | C817: 7 | D817: 70 | E817: 100 | F817: Tu3 | G817: 34.8 | H817: 51.4 | I817: 13.8 | J817: 20 | K817: 51.8 | L817: 44.5 | M817: 19.4 | N817: 1.390793881 | O817: -99 | P817: 7.6 | Q817: 0.26 | R817: 3.666666667 | S817: 0.11 | T817: 0.03 | U817: 911.0178 | V817: 248.4594 | W817: 0.22 | X817: 828198 | Y817: 180.6 | AC817: 4.5683699 | AD817: 12.73584671 | AE817: 1822.0356 | AJ817: 25.1
A818: BufaP1 | B818: C | C818: 8 | D818: 100 | E818: 110 | F818: Ut3 | G818: 14.4 | H818: 77.1 | I818: 8.5 | J818: 15 | K818: 48.6 | L818: 37.8 | M818: 24.3 | N818: 1.43478 | O818: -99 | P818: 7.6 | Q818: 0.25 | R818: 19.5 | S818: 0.39 | T818: 0.02 | U818: 1803.516 | V818: 92.488 | W818: 0.78 | X818: 462440 | Y818: 194.1 | Z818: =SUM(U811:U818)*10/1000 -> 205.4164116 | AA818: =SUM(V811:V818)*10/1000 -> 19.7273556 | AB818: =Z818/AA818 -> 10.41276975 | AC818: 9.04387182 | AD818: 4.74086708 | AE818: =(W819/100)*X819 -> 939.1926 | AJ818: 13.5
A819: BufaP2 | B819: Oh | C819: 1 | D819: 6 | E819: 0 | F819: mu | G819: 0 | H819: 0 | I819: 0 | J819: 0 | K819: =(1-N819/$AO$3)*100 ->  | L819: -99 | M819: -99 | N819: =10000/(ABS(E819-D819)*X819) -> 1.359323601 | O819: -99 | P819: 5.3 | Q819: 3 | R819: 26.72155166 | S819: 38.3 | T819: 1.4333 | U819: 469.5963 | V819: 17.5736913 | W819: 76.6 | X819: 1226.1 | Y819: =(L819-M819)*D819/10 -> 0 | Z819: =U819/100 -> 4.695963 | AA819: =V819/100 -> 0.175736913 | AC819: =Z819/Z826*100 -> 3.157652496 | AD819: =AA819/AA826*100 -> 1.560657199 | AE819: =(W819/100)*X819 -> 939.1926 | AM819: Horizonte geben nur die Reihenfolge an, nicht die Mächtigkeit
A820: BufaP2 | B820: Ah | C820: 2 | D820: 0 | E820: 10 | F820: Tu4 | G820: 28 | H820: 69.8 | I820: =100-G820-H820 -> 2.2 | J820: 5 | K820: 54.3 | L820: =M820+AJ820 -> 41.3 | M820: 20.3 | N820: 1.170326667 | O820: -99 | P820: 4.5 | Q820: 0.3 | R820: 17.84615385 | S820: 2.32 | T820: 0.13 | U820: 6828.8736 | V820: 382.6524 | W820: 4.64 | X820: 294348 | Y820: =(L820-M820)*(E820-D820)/10 -> 21 | Z820: =Z826-Z819 -> 144.02094 | AA820: =AA826-AA819 -> 11.084706 | AC820: =(U820/(Z820*100))*100 -> 47.41583828 | AD820: =(V820/(AA820*100))*100 -> 34.52075319 | AE820: 13657.7472 | AJ820: 21 | AM820: Beprobung folgte fest vorgegebenen Tiefenstufe
A821: BufaP2 | B821: Bv | C821: 3 | D821: 10 | E821: 20 | F821: Tu3 | G821: 44.9 | H821: 53.3 | I821: 1.8 | J821: 5 | K821: 54.8 | L821: 38 | M821: 25.9 | N821: 1.194366667 | O821: -99 | P821: 4.2 | Q821: 0.26 | R821: 15.16666667 | S821: 0.91 | T821: 0.06 | U821: 2096.8038 | V821: 138.2508 | W821: 1.82 | X821: 230418 | Y821: =Y820+(L821-M821)*(E821-D821)/10 -> 33.1 | AC821: =(U821/(Z$820*100))*100 -> 14.55902038 | AD821: 12.47221171 | AE821: 4193.6076 | AJ821: 12.1
A822: BufaP2 | B822: Al | C822: 4 | D822: 20 | E822: 30 | F822: Tu2 | G822: 51.9 | H822: 46.5 | I822: 1.6 | J822: 5 | K822: 53.2 | L822: 41.9 | M822: 27.8 | N822: 1.241849333 | O822: -99 | P822: 5.7 | Q822: 0.15 | R822: 11.5 | S822: 0.69 | T822: 0.06 | U822: 177.3576 | V822: 15.4224 | W822: 1.38 | X822: 25704 | Y822: 47.2 | AC822: 1.231470924 | AD822: 1.391322422 | AE822: 354.7152 | AJ822: 14.1
A823: BufaP2 | B823: Bv+Bt | C823: 5 | D823: 30 | E823: 50 | F823: Tu2 | G823: 49.8 | H823: 47.6 | I823: 2.6 | J823: 7 | K823: 51.4 | L823: 42.2 | M823: 26.9 | N823: 1.293106667 | O823: -99 | P823: 6.5 | Q823: 0.15 | R823: 11.8 | S823: 0.59 | T823: 0.05 | U823: 2639.955 | V823: 223.725 | W823: 1.18 | X823: 447450 | Y823: 77.8 | AC823: 18.33035529 | AD823: 20.1832146 | AE823: 5279.91 | AJ823: 15.3
A824: BufaP2 | B824: Cv | C824: 6 | D824: 50 | E824: 70 | F824: Tu2 | G824: 50.9 | H824: 45.1 | I824: 4 | J824: 10 | K824: 52.9 | L824: 40.2 | M824: 26.5 | N824: 1.252333333 | O824: -99 | P824: 7.2 | Q824: 0.15 | R824: 10.5 | S824: 0.63 | T824: 0.06 | U824: 1994.328 | V824: 189.936 | W824: 1.26 | X824: 316560 | Y824: 105.2 | AC824: 13.84748634 | AD824: 17.13496055 | AE824: 3988.656 | AJ824: 13.7
A825: BufaP2 | B825: C | C825: 7 | D825: 70 | E825: 100 | F825: Ut3 | G825: 14.6 | H825: 72 | I825: 13.4 | J825: 10 | K825: 52.9 | L825: 40.2 | M825: 26.5 | N825: 1.351633333 | O825: -99 | P825: 7.6 | Q825: 0.25 | R825: 10.5 | S825: 0.21 | T825: 0.02 | U825: 664.776 | V825: 63.312 | W825: 0.42 | X825: 316560 | Y825: 146.3 | AC825: 4.615828782 | AD825: 5.711653516 | AE825: 1329.552 | AJ825: 13.7
A826: BufaP2 | B826: C | C826: 8 | D826: 100 | E826: 110 | F826: Ul2 | G826: 10.4 | H826: 82.4 | I826: 7.2 | J826: 10 | K826: 53.3 | L826: 25.35 | M826: 7.5 | N826: 1.256606667 | O826: -99 | P826: 7.7 | Q826: 0.27 | R826: 0 | S826: 0 | T826: 0.01 | U826: 0 | V826: 95.172 | W826: 0 | X826: 951720 | Y826: 164.15 | Z826: =SUM(U819:U826)*10/1000 -> 148.716903 | AA826: =SUM(V819:V826)*10/1000 -> 11.26044291 | AB826: =Z826/AA826 -> 13.20702073 | AC826: 0 | AD826: 8.58588401 | AE826: =(W827/100)*X827 -> 1224.83906 | AJ826: 17.85
A827: BufaP3 | B827: Oh | C827: 1 | D827: 7.5 | E827: 0 | F827: mu | G827: 0 | H827: 0 | I827: 0 | J827: 0 | K827: =(1-N827/$AO$3)*100 ->  | L827: -99 | M827: -99 | N827: =10000/(ABS(E827-D827)*X827) -> 0.8540986057 | O827: -99 | P827: 5.5 | Q827: 3 | R827: 29.42323558 | S827: 39.23 | T827: 1.3333 | U827: 612.41953 | V827: 20.8141463 | W827: 78.46 | X827: 1561.1 | Y827: =(L827-M827)*D827/10 -> 0 | Z827: =U827/100 -> 6.1241953 | AA827: =V827/100 -> 0.208141463 | AC827: =Z827/Z834*100 -> 2.061164802 | AD827: =AA827/AA834*100 -> 0.9894894858 | AE827: =(W827/100)*X827 -> 1224.83906 | AM827: Horizonte geben nur die Reihenfolge an, nicht die Mächtigkeit
A828: BufaP3 | B828: Ah | C828: 2 | D828: 0 | E828: 10 | F828: Tu3 | G828: 43.5 | H828: 53.7 | I828: =100-G828-H828 -> 2.8 | J828: 10 | K828: 67.6 | L828: =M828+AJ828 -> 45.2 | M828: 37.7 | N828: 1.056266667 | O828: -99 | P828: 6.4 | Q828: 0.26 | R828: 13.02941176 | S828: 4.43 | T828: 0.34 | U828: 5498.8704 | V828: 422.0352 | W828: 8.86 | X828: 124128 | Y828: =(L828-M828)*(E828-D828)/10 -> 7.5 | Z828: =Z834-Z827 -> 290.998834 | AA828: =AA834-AA827 -> 20.827096 | AC828: =(U828/(Z828*100))*100 -> 18.89653757 | AD828: =(V828/(AA828*100))*100 -> 20.26375641 | AE828: 10997.7408 | AJ828: 7.5 | AM828: Beprobung folgte fest vorgegebenen Tiefenstufe
A829: BufaP3 | B829: Bv | C829: 3 | D829: 10 | E829: 20 | F829: Tu2 | G829: 45.9 | H829: 50.7 | I829: 3.4 | J829: 22.5 | K829: 52.1 | L829: 39.4 | M829: 30.2 | N829: 1.247234286 | O829: -99 | P829: 6.5 | Q829: 0.15 | R829: 13.85714286 | S829: 1.94 | T829: 0.14 | U829: 6233.22 | V829: 449.82 | W829: 3.88 | X829: 321300 | Y829: =Y828+(L829-M829)*(E829-D829)/10 -> 16.7 | AC829: =(U829/(Z$828*100))*100 -> 21.42008583 | AD829: 21.59782622 | AE829: 12466.44 | AJ829: 9.2
A830: BufaP3 | B830: Al | C830: 4 | D830: 20 | E830: 30 | F830: Tu2 | G830: 54.2 | H830: 41.6 | I830: 4.2 | J830: 30 | K830: 58.1 | L830: 34.8 | M830: 29.9 | N830: 1.112925714 | O830: -99 | P830: 7.3 | Q830: 0.15 | R830: 10.09090909 | S830: 1.11 | T830: 0.11 | U830: 686.091 | V830: 67.991 | W830: 2.22 | X830: 61810 | Y830: 21.6 | AC830: 2.357710478 | AD830: 3.264545379 | AE830: 1372.182 | AJ830: 4.9
A831: BufaP3 | B831: Bv+Bt | C831: 5 | D831: 30 | E831: 50 | F831: Ut4 | G831: 20.4 | H831: 68.6 | I831: 11 | J831: 40 | K831: 56.3 | L831: 21.8 | M831: 21 | N831: 1.193006158 | O831: -99 | P831: 7.5 | Q831: 0.25 | R831: 13.42857143 | S831: 0.94 | T831: 0.07 | U831: 2117.9892 | V831: 157.7226 | W831: 1.88 | X831: 225318 | Y831: 23.2 | AC831: 7.278342565 | AD831: 7.572952081 | AE831: 4235.9784 | AJ831: 0.8
A832: BufaP3 | B832: Cv | C832: 6 | D832: 50 | E832: 70 | F832: Ut4 | G832: 17.2 | H832: 68.7 | I832: 14.1 | J832: 40 | K832: 53.8 | L832: 25.4 | M832: 20.5 | N832: 1.253968862 | O832: -99 | P832: 7.6 | Q832: 0.25 | R832: 16.42857143 | S832: 1.15 | T832: 0.07 | U832: 8212.288 | V832: 499.8784 | W832: 2.3 | X832: 714112 | Y832: 33 | AC832: 28.22103404 | AD832: 24.00134901 | AE832: 16424.576 | AJ832: 4.9
A833: BufaP3 | B833: C | C833: 7 | D833: 70 | E833: 100 | F833: Ul2 | G833: 10.9 | H833: 76.8 | I833: 12.3 | J833: 40 | K833: 53.8 | L833: 25.4 | M833: 20.5 | N833: 1.305085248 | O833: -99 | P833: 7.6 | Q833: 0.27 | R833: 13.5 | S833: 0.54 | T833: 0.04 | U833: 3856.2048 | V833: 285.6448 | W833: 1.08 | X833: 714112 | Y833: 47.7 | AC833: 13.25161598 | AD833: 13.71505658 | AE833: 7712.4096 | AJ833: 4.9
A834: BufaP3 | B834: C | C834: 8 | D834: 100 | E834: 110 | F834: Uls | G834: 9.4 | H834: 69.1 | I834: 21.5 | J834: 45 | K834: 50.2 | L834: 24.3 | M834: 9.7 | N834: 1.467630789 | O834: -99 | P834: 7.7 | Q834: 0.29 | R834: 12.5 | S834: 0.25 | T834: 0.02 | U834: 2495.22 | V834: 199.6176 | W834: 0.5 | X834: 998088 | Y834: 62.3 | Z834: =SUM(U827:U834)*10/1000 -> 297.1230293 | AA834: =SUM(V827:V834)*10/1000 -> 21.03523746 | AB834: =Z834/AA834 -> 14.12501427 | AC834: 8.574673533 | AD834: 9.584514327 | AE834: =(W835/100)*X835 -> 1153.94904 | AJ834: 14.6
A835: BufaP4 | B835: Oh | C835: 1 | D835: 7 | E835: 0 | F835: mu | G835: 0 | H835: 0 | I835: 0 | J835: 0 | K835: =(1-N835/$AO$3)*100 ->  | L835: -99 | M835: -99 | N835: =10000/(ABS(E835-D835)*X835) -> 0.9351737553 | O835: -99 | P835: 5.3 | Q835: 3 | R835: 29.05384615 | S835: 37.77 | T835: 1.3 | U835: 576.97452 | V835: 19.8588 | W835: 75.54 | X835: 1527.6 | Y835: =(L835-M835)*D835/10 -> 0 | Z835: =U835/100 -> 5.7697452 | AA835: =V835/100 -> 0.198588 | AC835: =Z835/Z842*100 -> 2.538554322 | AD835: =AA835/AA842*100 -> 1.063027759 | AE835: =(W835/100)*X835 -> 1153.94904 | AM835: Horizonte geben nur die Reihenfolge an, nicht die Mächtigkeit
A836: BufaP4 | B836: Ah | C836: 2 | D836: 0 | E836: 10 | F836: Tu3 | G836: 35.9 | H836: 61.7 | I836: =100-G836-H836 -> 2.4 | J836: 30 | K836: 59 | L836: =M836+AJ836 -> 46.6 | M836: 35.4 | N836: 1.002006667 | O836: -99 | P836: 5.8 | Q836: 0.26 | R836: 15.47058824 | S836: 5.26 | T836: 0.34 | U836: 8302.1736 | V836: 536.6424 | W836: 10.52 | X836: 157836 | Y836: =(L836-M836)*(E836-D836)/10 -> 11.2 | Z836: =Z842-Z835 -> 221.51494 | AA836: =AA842-AA835 -> 18.482768 | AC836: =(U836/(Z836*100))*100 -> 37.47906845 | AD836: =(V836/(AA836*100))*100 -> 29.03474198 | AE836: 16604.3472 | AJ836: 11.2 | AM836: Beprobung folgte fest vorgegebenen Tiefenstufe
A837: Bufa P4 | B837: Bv | C837: 3 | D837: 10 | E837: 20 | F837: Tu3 | G837: 41.6 | H837: 56.5 | I837: 1.9 | J837: 30 | K837: 55 | L837: 36.8 | M837: 26.2 | N837: 1.177906667 | O837: -99 | P837: 4.8 | Q837: 0.26 | R837: 16.11111111 | S837: 1.45 | T837: 0.09 | U837: 3461.875 | V837: 214.875 | W837: 2.9 | X837: 238750 | Y837: =Y836+(L837-M837)*(E837-D837)/10 -> 21.8 | AC837: =(U837/(Z$836*100))*100 -> 15.6281784 | AD837: 11.62569373 | AE837: 6923.75 | AJ837: 10.6
A838: Bufa P4 | B838: Al | C838: 4 | D838: 20 | E838: 30 | F838: Tu2 | G838: 50 | H838: 47.9 | I838: 2.1 | J838: 30 | K838: 55.5 | L838: 39.9 | M838: 29.1 | N838: 1.173426667 | O838: -99 | P838: 6.7 | Q838: 0.15 | R838: 12.3 | S838: 1.23 | T838: 0.1 | U838: 352.395 | V838: 28.65 | W838: 2.46 | X838: 28650 | Y838: 32.6 | AC838: 1.59084078 | AD838: 1.550092497 | AE838: 704.79 | AJ838: 10.8
A839: Bufa P4 | B839: Bv+Bt | C839: 5 | D839: 30 | E839: 50 | F839: Tu2 | G839: 47.8 | H839: 47.8 | I839: 4.4 | J839: 30 | K839: 55.5 | L839: 39.9 | M839: 29.1 | N839: 1.212486667 | O839: -99 | P839: 7.1 | Q839: 0.15 | R839: 13.09090909 | S839: 1.44 | T839: 0.11 | U839: 2062.8 | V839: 157.575 | W839: 2.88 | X839: 143250 | Y839: 54.2 | AC839: 9.312238714 | AD839: 8.525508733 | AE839: 4125.6 | AJ839: 10.8
A840: Bufa P4 | B840: Cv | C840: 6 | D840: 50 | E840: 70 | F840: Lu | G840: 28 | H840: 60.9 | I840: 11.1 | J840: 45 | K840: 53.7 | L840: 33.3 | M840: 28.5 | N840: 1.388315556 | O840: -99 | P840: 7.6 | Q840: 0.27 | R840: 10.6 | S840: 0.53 | T840: 0.05 | U840: 3594.036 | V840: 339.06 | W840: 1.06 | X840: 678120 | Y840: 63.8 | AC840: 16.22480181 | AD840: 18.34465487 | AE840: 7188.072 | AJ840: 4.8
A841: Bufa P4 | B841: C | C841: 7 | D841: 70 | E841: 100 | F841: Tu3 | G841: 31.2 | H841: 55.4 | I841: 13.4 | J841: 45 | K841: 53.7 | L841: 33.3 | M841: 28.5 | N841: 1.41948 | O841: -99 | P841: 7.6 | Q841: 0.26 | R841: 10.66666667 | S841: 0.32 | T841: 0.03 | U841: 2169.984 | V841: 203.436 | W841: 0.64 | X841: 678120 | Y841: 78.2 | AC841: 9.796106755 | AD841: 11.00679292 | AE841: 4339.968 | AJ841: 4.8
A842: Bufa P4 | B842: C | C842: 8 | D842: 100 | E842: 110 | F842: Ut4 | G842: 19.2 | H842: 69.9 | I842: 10.9 | J842: 31.67 | K842: 48.6 | L842: 31.75 | M842: 20 | N842: 1.410889817 | O842: -99 | P842: 7.6 | Q842: 0.25 | R842: 6 | S842: 0.12 | T842: 0.02 | U842: 2208.2304 | V842: 368.0384 | W842: 0.24 | X842: 1840192 | Y842: 89.95 | Z842: =SUM(U835:U842)*10/1000 -> 227.2846852 | AA842: =SUM(V835:V842)*10/1000 -> 18.681356 | AB842: =Z842/AA842 -> 12.1663912 | AC842: 9.968765086 | AD842: 19.91251527 | AE842: =(W843/100)*X843 -> 0 | AJ842: 11.75

Sheet Analysen
A1: =Standorte!A1 -> ID | B1: =Standorte!U1 -> C-Vorrat t/ha | C1: =Standorte!V1 -> C/N-Verhältnis
A2: =Standorte!A2 -> Natte | B2: =Standorte!U2 -> 135.8 | C2: =Standorte!V2 -> 23.73792643
A3: =Standorte!A3 -> Beerbu | B3: =Standorte!U3 -> 101.213 | C3: =Standorte!V3 -> 21.95571618
A4: =Standorte!A4 -> Kienh | B4: =Standorte!U4 -> 120.48 | C4: =Standorte!V4 -> 22.27097179
A5: =Standorte!A5 -> Luette | B5: =Standorte!U5 -> 98.05 | C5: =Standorte!V5 -> 25.03991913
A6: =Standorte!A6 -> Neusgf | B6: =Standorte!U6 -> 115.623 | C6: =Standorte!V6 -> 25.62569497
A7: =Standorte!A7 -> Schwenow | B7: =Standorte!U7 -> 82.398 | C7: =Standorte!V7 -> 21.34508745
A8: =Standorte!A8 -> Bornh | B8: =Standorte!U8 -> 0 | C8: =Standorte!V8 -> 0
A9: =Standorte!A9 -> Klithal | B9: =Standorte!U9 -> 0 | C9: =Standorte!V9 -> 0
A10: =Standorte!A10 -> Olb | B10: =Standorte!U10 -> 0 | C10: =Standorte!V10 -> 0
A11: =Standorte!A11 -> Lau | B11: =Standorte!U11 -> 139.4 | C11: =Standorte!V11 -> 18.64
A12: =Standorte!A12 -> ausb1 | B12: =Standorte!U12 -> 132.9823231 | C12: =Standorte!V12 -> 17.92343162
A13: =Standorte!A13 -> ausb2 | B13: =Standorte!U13 -> 123.738695 | C13: =Standorte!V13 -> 16.47528649
A14: =Standorte!A14 -> ausb3 | B14: =Standorte!U14 -> 129.6442524 | C14: =Standorte!V14 -> 22.00683885
A15: =Standorte!A15 -> ausb4 | B15: =Standorte!U15 -> 112.9464048 | C15: =Standorte!V15 -> 15.85276094
A16: =Standorte!A16 -> ausb5 | B16: =Standorte!U16 -> 126.1246629 | C16: =Standorte!V16 -> 17.51750166
A17: =Standorte!A17 -> ausb6 | B17: =Standorte!U17 -> 112.5949831 | C17: =Standorte!V17 -> 15.80872038
A18: =Standorte!A18 -> ausb7 | B18: =Standorte!U18 -> 111.0531314 | C18: =Standorte!V18 -> 15.57679713
A19: =Standorte!A19 -> ausb8 | B19: =Standorte!U19 -> 112.4866397 | C19: =Standorte!V19 -> 15.79186316
A20: =Standorte!A20 -> ausb9 | B20: =Standorte!U20 -> 135.649884 | C20: =Standorte!V20 -> 18.04239877
A21: =Standorte!A21 -> ausb10 | B21: =Standorte!U21 -> 114.0915465 | C21: =Standorte!V21 -> 15.94134355
A22: =Standorte!A22 -> ausb11 | B22: =Standorte!U22 -> 126.2831618 | C22: =Standorte!V22 -> 17.54744258
A23: =Standorte!A23 -> ausb12 | B23: =Standorte!U23 -> 126.0542685 | C23: =Standorte!V23 -> 17.50237906
A24: =Standorte!A24 -> ausb13 | B24: =Standorte!U24 -> 108.9461052 | C24: =Standorte!V24 -> 15.36949569
A25: =Standorte!A25 -> ausb14 | B25: =Standorte!U25 -> 130.6614669 | C25: =Standorte!V25 -> 17.81729663
A26: =Standorte!A26 -> ausb15 | B26: =Standorte!U26 -> 107.507894 | C26: =Standorte!V26 -> 15.24176866
A27: =Standorte!A27 -> ausb16 | B27: =Standorte!U27 -> 125.4753594 | C27: =Standorte!V27 -> 17.4027195
A28: =Standorte!A28 -> ausb17 | B28: =Standorte!U28 -> 124.069619 | C28: =Standorte!V28 -> 17.24900588
A29: =Standorte!A29 -> ausb18 | B29: =Standorte!U29 -> 126.0046618 | C29: =Standorte!V29 -> 17.49175164
A30: =Standorte!A30 -> ausb19 | B30: =Standorte!U30 -> 112.5292914 | C30: =Standorte!V30 -> 15.79954409
A31: =Standorte!A31 -> ausb20 | B31: =Standorte!U31 -> 127.0908025 | C31: =Standorte!V31 -> 17.62765584
A32: =Standorte!A32 -> ausb21 | B32: =Standorte!U32 -> 108.1100978 | C32: =Standorte!V32 -> 15.29453824
A33: =Standorte!A33 -> ausb22 | B33: =Standorte!U33 -> 104.6469302 | C33: =Standorte!V33 -> 20.25675593
A34: =Standorte!A34 -> ausb23 | B34: =Standorte!U34 -> 112.9646064 | C34: =Standorte!V34 -> 15.85454918
A35: =Standorte!A35 -> ausb24 | B35: =Standorte!U35 -> 126.0046618 | C35: =Standorte!V35 -> 17.49175164
A36: =Standorte!A36 -> ausb25 | B36: =Standorte!U36 -> 106.3744983 | C36: =Standorte!V36 -> 21.47758743
A37: =Standorte!A37 -> Heidbg | B37: =Standorte!U37 -> 163.74 | C37: =Standorte!V37 -> 0
A38: =Standorte!A38 -> Muellh | B38: =Standorte!U38 -> 0 | C38: =Standorte!V38 -> 0
A39: =Standorte!A39 -> Buchen | B39: =Standorte!U39 -> 141.24 | C39: =Standorte!V39 -> 0
A40: =Standorte!A40 -> Lhee | B40: =Standorte!U40 -> 0 | C40: =Standorte!V40 -> 0
A41: =Standorte!A41 -> Galg | B41: =Standorte!U41 -> 0 | C41: =Standorte!V41 -> 0
A42: =Standorte!A42 -> Tong | B42: =Standorte!U42 -> 0 | C42: =Standorte!V42 -> 0
A43: =Standorte!A44 -> Loob2 | B43: =Standorte!U44 -> 0 | C43: =Standorte!V44 -> 0
A44: =Standorte!A45 -> Hyyti | B44: =Standorte!U45 -> 116.17706 | C44: =Standorte!V45 -> 29.93976332
A45: =Standorte!A46 -> Steiger | B45: =Standorte!U46 -> 0 | C45: =Standorte!V46 -> 0
A46: =Standorte!A47 -> Holzland | B46: =Standorte!U47 -> 0 | C46: =Standorte!V47 -> 0
A47: =Standorte!A48 -> Possen | B47: =Standorte!U48 -> 6.6645 | C47: =Standorte!V48 -> 14.19186542
A48: =Standorte!A49 -> Bralitz | B48: =Standorte!U49 -> 134.928 | C48: =Standorte!V49 -> 18.54335512
A49: =Standorte!A50 -> Bra1 | B49: =Standorte!U50 -> 51.28 | C49: =Standorte!V50 -> 10.9972121
A50: =Standorte!A51 -> Bra2 | B50: =Standorte!U51 -> 278.8928 | C50: =Standorte!V51 -> 17.17489408
A51: =Standorte!A52 -> Hesse | B51: =Standorte!U52 -> 63.751 | C51: =Standorte!V52 -> 11.30897332
A52: =Standorte!A53 -> Augsbg | B52: =Standorte!U53 -> 21.81593764 | C52: =Standorte!V53 -> 21.81593764
A53: =Standorte!A54 -> Schwalb1 | B53: =Standorte!U54 -> 83.7 | C53: =Standorte!V54 -> 4.782857143
A54: =Standorte!A55 -> Schwalb2 | B54: =Standorte!U55 -> 0 | C54: =Standorte!V55 -> 0
A55: =Standorte!A56 -> wb55 | B55: =Standorte!U56 -> 83.7 | C55: =Standorte!V56 -> 4.782857143
A56: =Standorte!A57 -> wb18 | B56: =Standorte!U57 -> 187.4919753 | C56: =Standorte!V57 -> 21.96599555
A57: =Standorte!A58 -> Chorin | B57: =Standorte!U58 -> 112.044 | C57: =Standorte!V58 -> 22.72329034
A58: =Standorte!A59 -> Chorin_EFI | B58: =Standorte!U59 -> 0 | C58: =Standorte!V59 -> 0
A59: =Standorte!A60 -> rss_fin | B59: =Standorte!U60 -> 0 | C59: =Standorte!V60 -> 0
A60: =Standorte!A61 -> sps_fin | B60: =Standorte!U61 -> 39.561949 | C60: =Standorte!V61 -> 20.14040623
A61: =Standorte!A62 -> mss_fin | B61: =Standorte!U62 -> 0 | C61: =Standorte!V62 -> 0
A62: =Standorte!A63 -> mps_fin | B62: =Standorte!U63 -> 41.65505 | C62: =Standorte!V63 -> 25.5776109
A63: =Standorte!A64 -> rss2_fin | B63: =Standorte!U64 -> 0 | C63: =Standorte!V64 -> 0
A64: =Standorte!#REF! ->  | B64: =Standorte!#REF! ->  | C64: =Standorte!#REF! -> 
A65: =Standorte!A66 -> LBraS302 | B65: =Standorte!U66 -> 116.365 | C65: =Standorte!V66 -> 15.59075936
A66: =Standorte!A67 -> LBraK303 | B66: =Standorte!U67 -> 131.89 | C66: =Standorte!V67 -> 16.0915357
A67: =Standorte!A69 -> Soll304_neu | B67: =Standorte!U69 -> 181.155427 | C67: =Standorte!V69 -> 16.33156917
A68: =Standorte!A72 -> Soll305_neu | B68: =Standorte!U72 -> 150.3821686 | C68: =Standorte!V72 -> 16.06872328
A69: =Standorte!A74 -> Goett306 | B69: =Standorte!U74 -> 928.1 | C69: =Standorte!V74 -> 22.96642304
A70: =Standorte!A76 -> Aug307_neu | B70: =Standorte!#REF! ->  | C70: =Standorte!#REF! -> 
A71: =Standorte!A77 -> Erh308 | B71: =Standorte!U77 -> 0 | C71: =Standorte!V77 -> 0
A72: =Standorte!A78 -> LBraN | B72: =Standorte!U78 -> 0 | C72: =Standorte!V78 -> 0
A73: =Standorte!A79 -> Altd901 | B73: =Standorte!U79 -> 62.76056963 | C73: =Standorte!V79 -> 37.18222957
A74: =Standorte!A80 -> Ebers906 | B74: =Standorte!U80 -> 62.28259375 | C74: =Standorte!V80 -> 30.9157216
A75: =Standorte!A81 -> Floss908 | B75: =Standorte!U81 -> 123.9388058 | C75: =Standorte!V81 -> 21.2419198
A76: =Standorte!A82 -> Ried913 | B76: =Standorte!U82 -> 43.29221917 | C76: =Standorte!V82 -> 14.36079269
A77: =Standorte!A83 -> Freis919 | B77: =Standorte!U83 -> 55.03541969 | C77: =Standorte!V83 -> 14.91362633
A78: =Standorte!A84 -> Mitter911 | B78: =Standorte!U84 -> 295.9408392 | C78: =Standorte!V84 -> 16.89779
A79: =Standorte!A85 -> Mitterf | B79: =Standorte!U85 -> 0 | C79: =Standorte!V85 -> 0
A80: =Standorte!A86 -> ForelleF1 | B80: =Standorte!U86 -> 0 | C80: =Standorte!V86 -> 0
A81: =Standorte!A87 -> ForelleB1 | B81: =Standorte!U87 -> 0 | C81: =Standorte!V87 -> 0
A82: =Standorte!A88 -> MarkungF1 | B82: =Standorte!U88 -> 0 | C82: =Standorte!V88 -> 0
A83: =Standorte!A89 -> MarkungB | B83: =Standorte!U89 -> 0 | C83: =Standorte!V89 -> 0
A84: =Standorte!A90 -> MarkungF2 | B84: =Standorte!U90 -> 0 | C84: =Standorte!V90 -> 0
A85: =Standorte!A91 -> Beerbu_Bu | B85: =Standorte!U91 -> 149.971 | C85: =Standorte!V91 -> 19.69689628
A86: =Standorte!A92 -> Neugl | B86: =Standorte!U92 -> 104.9364165 | C86: =Standorte!V92 -> 15.52340446
A87: =Standorte!A93 -> Skaes | B87: =Standorte!U93 -> 87.83 | C87: =Standorte!V93 -> 11.66865949
A88: =Standorte!A94 -> Noch | B88: =Standorte!U94 -> 408.94 | C88: =Standorte!V94 -> 45.21671827
A89: =Standorte!A95 -> Methau | B89: =Standorte!U95 -> 148.975 | C89: =Standorte!V95 -> 9.802599112
A90: =Standorte!A96 -> Thamm | B90: =Standorte!U96 -> 100.42 | C90: =Standorte!V96 -> 10.99288451
A91: =Standorte!A97 -> Arns | B91: =Standorte!U97 -> 212.34 | C91: =Standorte!V97 -> 11.8242566
A92: =Standorte!A98 -> K74Mi | B92: =Standorte!U98 -> 103.6049134 | C92: =Standorte!V98 -> 22.58825885
A93: =Standorte!A99 -> K75Mi | B93: =Standorte!U99 -> 88.23268843 | C93: =Standorte!V99 -> 20.56512753
A94: =Standorte!A100 -> K75R | B94: =Standorte!U100 -> 195.7562819 | C94: =Standorte!V100 -> 25.71406541
A95: =Standorte!A101 -> K86R_Bu | B95: =Standorte!U101 -> 74.60178 | C95: =Standorte!V101 -> 20.78810392
A96: =Standorte!A102 -> Murcia1 | B96: =Standorte!U102 -> 298.425 | C96: =Standorte!V102 -> 20.75639019
A97: =Standorte!A103 -> Murcia2 | B97: =Standorte!U103 -> 102.564 | C97: =Standorte!V103 -> 10.25906736
A98: =Standorte!A104 -> Murcia3 | B98: =Standorte!U104 -> 102.564 | C98: =Standorte!V104 -> 10.25906736
A99: =Standorte!A105 -> Murcia4 | B99: =Standorte!U105 -> 102.564 | C99: =Standorte!V105 -> 10.25906736
A100: =Standorte!A106 -> Murcia5 | B100: =Standorte!U106 -> 102.564 | C100: =Standorte!V106 -> 10.25906736
A101: =Standorte!A107 -> Murcia6 | B101: =Standorte!U107 -> 102.564 | C101: =Standorte!V107 -> 10.25906736
A102: =Standorte!A108 -> Murcia7 | B102: =Standorte!U108 -> 102.564 | C102: =Standorte!V108 -> 10.25906736
A103: =Standorte!A109 -> Murcia8 | B103: =Standorte!U109 -> 102.564 | C103: =Standorte!V109 -> 10.25906736
A104: =Standorte!A110 -> OakchK1 | B104: =Standorte!U110 -> 94.68857869 | C104: =Standorte!V110 -> 20.23857309
A105: =Standorte!A111 -> OakchK2 | B105: =Standorte!U111 -> 100.677752 | C105: =Standorte!V111 -> 21.01547905
A106: =Standorte!A112 -> OakchK3 | B106: =Standorte!U112 -> 67.16614424 | C106: =Standorte!V112 -> 17.72502298
A107: =Standorte!A113 -> OakchK4 | B107: =Standorte!U113 -> 53.76608637 | C107: =Standorte!V113 -> 17.16335294
A108: =Standorte!A114 -> OakchK5 | B108: =Standorte!U114 -> 54.76792686 | C108: =Standorte!V114 -> 16.88971588
A109: =Standorte!A115 -> OakchA0 | B109: =Standorte!U115 -> 104.1474498 | C109: =Standorte!V115 -> 27.36594182
A110: =Standorte!A116 -> OakchA1 | B110: =Standorte!U116 -> 91.5000844 | C110: =Standorte!V116 -> 23.6856369
A111: =Standorte!A117 -> OakchA2 | B111: =Standorte!U117 -> 105.7730973 | C111: =Standorte!V117 -> 22.46338962
A112: =Standorte!A118 -> OakchA3 | B112: =Standorte!U118 -> 0 | C112: =Standorte!V118 -> 0
A113: =Standorte!A119 -> OakchA4 | B113: =Standorte!U119 -> 134.3006886 | C113: =Standorte!V119 -> 26.85761241
A114: =Standorte!A120 -> OakchA3Z | B114: =Standorte!U120 -> 0 | C114: =Standorte!V120 -> 0
A115: =Standorte!A121 -> Frei171 | B115: =Standorte!U121 -> 77.028 | C115: =Standorte!V121 -> 13.23596123
A116: =Standorte!A122 -> buek26 | B116: =Standorte!U122 -> 28.665 | C116: =Standorte!V122 -> 9
A117: =Standorte!A123 -> buek6 | B117: =Standorte!U123 -> 4846.24 | C117: =Standorte!V123 -> 15.4950761
A118: =Standorte!A124 -> buek7 | B118: =Standorte!U124 -> 4456.8 | C118: =Standorte!V124 -> 43.43859649
A119: =Standorte!A125 -> NRW501 | B119: =Standorte!U125 -> 0 | C119: =Standorte!V125 -> 0
A120: =Standorte!A126 -> NRW502 | B120: =Standorte!U126 -> 165.568025 | C120: =Standorte!V126 -> 15.01549906
A121: =Standorte!A128 -> NRW503 | B121: =Standorte!U128 -> 142.379207 | C121: =Standorte!V128 -> 21.35269731
A122: =Standorte!A129 -> NRW504 | B122: =Standorte!U129 -> 267.8405 | C122: =Standorte!V129 -> 23.65709117
A123: =Standorte!A130 -> NRW505 | B123: =Standorte!U130 -> 207.4845 | C123: =Standorte!V130 -> 13.03188182
A124: =Standorte!A131 -> NRW506 | B124: =Standorte!U131 -> 140.97685 | C124: =Standorte!V131 -> 14.75957829
A125: =Standorte!A132 -> NRW507 | B125: =Standorte!U132 -> 0 | C125: =Standorte!V132 -> 0
A126: =Standorte!A133 -> NRW508 | B126: =Standorte!U133 -> 156.89166 | C126: =Standorte!V133 -> 12.02970368
A127: =Standorte!A134 -> Jann | B127: =Standorte!U134 -> 0 | C127: =Standorte!V134 -> 0
A128: =Standorte!A135 -> Sedl | B128: =Standorte!U135 -> 0 | C128: =Standorte!V135 -> 0
A129: =Standorte!A136 -> Jwalde | B129: =Standorte!U136 -> 0 | C129: =Standorte!V136 -> 0
A130: =Standorte!A137 -> Dannb1 | B130: =Standorte!U137 -> 22.969736 | C130: =Standorte!V137 -> 11
A131: =Standorte!A138 -> Dannb2 | B131: =Standorte!U138 -> 15.455088 | C131: =Standorte!V138 -> 11
A132: =Standorte!A139 -> Dannb3 | B132: =Standorte!U139 -> 24.8921184 | C132: =Standorte!V139 -> 11
A133: =Standorte!A140 -> Dannb4 | B133: =Standorte!U140 -> 81.69832 | C133: =Standorte!V140 -> 11
A134: =Standorte!A141 -> FIB3 | B134: =Standorte!U141 -> 71.8523675 | C134: =Standorte!V141 -> 11
A135: =Standorte!A142 -> aspUSA | B135: =Standorte!U142 -> 255.075 | C135: =Standorte!V142 -> 13.76923077
A136: =Standorte!A143 -> St1501 | B136: =Standorte!U143 -> 137.1544494 | C136: =Standorte!V143 -> 19.3456914
A137: =Standorte!A144 -> St1502 | B137: =Standorte!U144 -> 143.8833275 | C137: =Standorte!V144 -> 20.86374444
A138: =Standorte!A145 -> Speu | B138: =Standorte!U145 -> 158.7555 | C138: =Standorte!V145 -> 27.46035111
A139: =Standorte!A146 -> Cele | B139: =Standorte!U146 -> 0 | C139: =Standorte!V146 -> 0
A140: =Standorte!A147 -> BrassA | B140: =Standorte!U147 -> 187.95933 | C140: =Standorte!V147 -> 21.62650931
A141: =Standorte!A148 -> BrassB | B141: =Standorte!U148 -> 328.7751333 | C141: =Standorte!V148 -> 22.64748162
A142: =Standorte!A149 -> BufaP1 | B142: =Standorte!U149 -> 89.30386482 | C142: =Standorte!V149 -> 10.70861055
A143: =Standorte!A150 -> BufaP2 | B143: =Standorte!U150 -> 84.98799551 | C143: =Standorte!V150 -> 13.26497982
A144: =Standorte!A151 -> BufaP3 | B144: =Standorte!U151 -> 121.0719666 | C144: =Standorte!V151 -> 13.74873628
A145: =Standorte!A152 -> BufaP4 | B145: =Standorte!U152 -> 105.8832202 | C145: =Standorte!V152 -> 13.80104966
A146: =Standorte!A153 -> BufaPr1 | B146: =Standorte!U153 -> 214.052 | C146: =Standorte!V153 -> 14.68295271
A147: =Standorte!A154 -> BufaPr2 | B147: =Standorte!U154 -> 87.808 | C147: =Standorte!V154 -> 19.5912539
A148: =Standorte!A155 -> BufaPr3 | B148: =Standorte!U155 -> 181.26 | C148: =Standorte!V155 -> 21.8490839
A149: =Standorte!A156 -> BufaPr4 | B149: =Standorte!U156 -> 459.1408 | C149: =Standorte!V156 -> 24.73872282
A150: =Standorte!A157 -> BufaPr5 | B150: =Standorte!U157 -> 123.632 | C150: =Standorte!V157 -> 16.22893148
A151: =Standorte!A158 -> BufaPr6 | B151: =Standorte!U158 -> 256.4083316 | C151: =Standorte!V158 -> 20.22868002
A152: =Standorte!A159 -> BufaPr7 | B152: =Standorte!U159 -> 215.3616 | C152: =Standorte!V159 -> 16.00234252
A153: =Standorte!A160 -> BufaPr8 | B153: =Standorte!U160 -> 368.2347357 | C153: =Standorte!V160 -> 14.66364574
A154: =Standorte!A161 -> SF11 | B154: =Standorte!U161 -> 35.220141 | C154: =Standorte!V161 -> 19.49319069
A155: =Standorte!A162 -> SKI34 | B155: =Standorte!U162 -> 49.008736 | C155: =Standorte!V162 -> 12.84725875
A156: =Standorte!A163 -> Zotino | B156: =Standorte!U163 -> 40.425 | C156: =Standorte!V163 -> 33.9998398
A157: =Standorte!A164 -> ZotinoEast | B157: =Standorte!U164 -> 0 | C157: =Standorte!V164 -> 0
A158: =Standorte!A166 -> Zotino200_1 | B158: =Standorte!U166 -> 37.556 | C158: =Standorte!V166 -> 20.36894913
A159: =Standorte!A167 -> Zotino95 | B159: =Standorte!U167 -> 47.796 | C159: =Standorte!V167 -> 15.20387362
A160: =Standorte!A168 -> Zotino138 | B160: =Standorte!U168 -> 27.432 | C160: =Standorte!V168 -> 10.42505637
A161: =Standorte!A169 -> Moor1 | B161: =Standorte!U169 -> 0 | C161: =Standorte!V169 -> 0
A162: =Standorte!A170 -> Monteruf | B162: =Standorte!U170 -> 0 | C162: =Standorte!V170 -> 0
A163: =Standorte!A171 -> Colle | B163: =Standorte!U171 -> 260.562 | C163: =Standorte!V171 -> 12.22939802
A164: =Standorte!A172 -> Snezna | B164: =Standorte!U172 -> 0 | C164: =Standorte!V172 -> 0
A165: =Standorte!A173 -> ATP1 | B165: =Standorte!U173 -> 0 | C165: =Standorte!V173 -> 0
A166: =Standorte!A174 -> ATP2 | B166: =Standorte!U174 -> 0 | C166: =Standorte!V174 -> 0
A167: =Standorte!A175 -> ATPSP | B167: =Standorte!U175 -> 0 | C167: =Standorte!V175 -> 0
A168: =Standorte!A176 -> Hechtel | B168: =Standorte!U176 -> 0 | C168: =Standorte!V176 -> 0
A169: =Standorte!A177 -> Pijnven | B169: =Standorte!U177 -> 0 | C169: =Standorte!V177 -> 0
A170: =Standorte!A178 -> EST1 | B170: =Standorte!U178 -> 0 | C170: =Standorte!V178 -> 0
A171: =Standorte!A179 -> EST2 | B171: =Standorte!U179 -> 0 | C171: =Standorte!V179 -> 0
A172: =Standorte!A180 -> EST3 | B172: =Standorte!U180 -> 0 | C172: =Standorte!V180 -> 0
A173: =Standorte!A181 -> BGoak | B173: =Standorte!U181 -> 0 | C173: =Standorte!V181 -> 0
A174: =Standorte!A182 -> BGmix | B174: =Standorte!U182 -> 0 | C174: =Standorte!V182 -> 0
A175: =Standorte!A183 -> BGbeech | B175: =Standorte!U183 -> 0 | C175: =Standorte!V183 -> 0
A176: =Standorte!A184 -> Rehe18 | B176: =Standorte!U184 -> 0 | C176: =Standorte!V184 -> 0
A177: =Standorte!A185 -> Rehe33 | B177: =Standorte!U185 -> 0 | C177: =Standorte!V185 -> 0
A178: =Standorte!A186 -> Rehe04 | B178: =Standorte!U186 -> 0 | C178: =Standorte!V186 -> 0
A179: =Standorte!A187 -> OBB | B179: =Standorte!U187 -> 0 | C179: =Standorte!V187 -> 0
A180: =Standorte!A188 -> SR122a | B180: =Standorte!U188 -> 0 | C180: =Standorte!V188 -> 0
A181: =Standorte!A189 -> SR33a | B181: =Standorte!U189 -> 0 | C181: =Standorte!V189 -> 0
A182: =Standorte!A190 -> SR42a | B182: =Standorte!U190 -> 0 | C182: =Standorte!V190 -> 0
A183: =Standorte!A191 -> SR27a | B183: =Standorte!U191 -> 0 | C183: =Standorte!V191 -> 0
A184: =Standorte!A192 -> SR31a | B184: =Standorte!U192 -> 0 | C184: =Standorte!V192 -> 0
A185: =Standorte!A193 -> SR46a | B185: =Standorte!U193 -> 0 | C185: =Standorte!V193 -> 0
A186: =Standorte!A194 -> SR8ab | B186: =Standorte!U194 -> 0 | C186: =Standorte!V194 -> 0
A187: =Standorte!A195 -> SR44a | B187: =Standorte!U195 -> 0 | C187: =Standorte!V195 -> 0
A188: =Standorte!A196 -> SR116a | B188: =Standorte!U196 -> 0 | C188: =Standorte!V196 -> 0
A189: =Standorte!A197 -> EU19 | B189: =Standorte!U197 -> 0 | C189: =Standorte!V197 -> 0
A190: =Standorte!A198 -> EU23 | B190: =Standorte!U198 -> 0 | C190: =Standorte!V198 -> 0
A191: =Standorte!A199 -> EU26 | B191: =Standorte!U199 -> 0 | C191: =Standorte!V199 -> 0
A192: =Standorte!A200 -> EU32 | B192: =Standorte!U200 -> 0 | C192: =Standorte!V200 -> 0
A193: =Standorte!A201 -> EU47 | B193: =Standorte!U201 -> 0 | C193: =Standorte!V201 -> 0
A194: =Standorte!A202 -> EU63 | B194: =Standorte!U202 -> 0 | C194: =Standorte!V202 -> 0
A195: =Standorte!A203 -> EU87 | B195: =Standorte!U203 -> 0 | C195: =Standorte!V203 -> 0
A196: =Standorte!A204 -> EU104 | B196: =Standorte!U204 -> 0 | C196: =Standorte!V204 -> 0
A197: =Standorte!A205 -> EU114 | B197: =Standorte!U205 -> 0 | C197: =Standorte!V205 -> 0
A198: =Standorte!A206 -> EU168 | B198: =Standorte!U206 -> 0 | C198: =Standorte!V206 -> 0
A199: =Standorte!A207 -> EU251 | B199: =Standorte!U207 -> 0 | C199: =Standorte!V207 -> 0
A200: =Standorte!A208 -> EU252 | B200: =Standorte!U208 -> 0 | C200: =Standorte!V208 -> 0
... 26 more rows

Sheet Standorte
A1: ID | B1: Standort | C1: Land | D1: Region | E1: Baumarten | F1: Höhe ü. NN | G1: geogr. Breite | H1: geogr. Breite dezimal | I1: geogr. Länge | J1: geogr. Länge dezimal | K1: Bodentyp | L1: Humus- form | M1: Lufttempera- tur Jahres- mittel | N1: Niederschlag Jahres- summe | O1: Deposition kg N /ha /yr | P1: Versuchs-anlage | Q1: zugeordnete Klimastation | R1: Durchwur-zelungstiefe/ Gründigkeit cm | S1: Grundwasser-abstand cm | T1: nutzbare Feldkapazität (mm) bis 1m | U1: C-Vorrat t/ha | V1: C/N-Verhältnis | W1: ID in sod | X1: Gelände-neigung ° | Y1: Exposition | Z1: Datum der Aufnahme in DB | AA1: Quelle | AB1: Bemerkungen
A2: Natte | B2: Natteheide | C2: Deutschland | D2: Brandenburg | E2: Kiefer | F2: 50 | G2: 53°06' | H2: 53.10277778 | I2: 12°25' | J2: 12.42777778 | K2: Sand-Braunerde | L2: ro | M2: 8.3 | N2: 570 | O2: 8.8 | P2: Level2 - 1201 | Q2: 17130 (Kyritz) | R2: 110 | S2: 190 | T2: =Bodendaten!Y$12 -> 80.7 | U2: =Bodendaten!Z$15 -> 135.8 | V2: =Bodendaten!AB$15 -> 23.73792643 | W2: DL1201 | AA2: Dauerbeobachtungsflächen zur Umweltkontrolle - Level II (Erste Ergebnisse); …/Daten/Level2/Brandenburg/Excel/Parameter.xls | AB2: Kyritz; Blaubeer-Drahtschmielenform mit beginnender Laubholzverjüngung in der Krautschicht
A3: Beerbu | B3: Beerenbusch | C3: Deutschland | D3: Brandenburg | E3: Kiefer | F3: 75 | G3: 53°08' | H3: 53.13611111 | I3: 12°58' | J3: 12.96666667 | K3: Braunerde | L3: ro | M3: 8.1 | N3: 600 | O3: 9.7 | P3: Level2 - 1202 | Q3: 17005 | R3: 200 | S3: 700 | T3: =Bodendaten!Y$47 -> 24.325 | U3: =Bodendaten!Z$51 -> 101.213 | V3: =Bodendaten!AB$51 -> 21.95571618 | W3: DL1202 | AA3: Dauerbeobachtungsflächen zur Umweltkontrolle - Level II (Erste Ergebnisse) | AB3: Fuerstenberg
A4: Kienh | B4: Kienhorst | C4: Deutschland | D4: Brandenburg | E4: Kiefer | F4: 75 | G4: 52°58' | H4: 52.975 | I4: 13°38' | J4: 13.64444444 | K4: Podsol | L4: mor | M4: 8.3 | N4: 585 | O4: 9.5 | P4: Level2 - 1203 | Q4: 17102 | R4: 140 | S4: 390 | T4: =Bodendaten!Y$59 -> 72.425 | U4: =Bodendaten!Z$63 -> 120.48 | V4: =Bodendaten!AB$63 -> 22.27097179 | W4: DL1203 | AA4: Dauerbeobachtungsflächen zur Umweltkontrolle - Level II (Erste Ergebnisse) | AB4: Gross Schoenebeck, Schorfheide
A5: Luette | B5: Luette (Weitzgrund) | C5: Deutschland | D5: Brandenburg | E5: Kiefer | F5: 125 | G5: 52°11' | H5: 52.19444444 | I5: 12°33' | J5: 12.56111111 | K5: Braunerde | L5: mor | M5: 8.7 | N5: 570 | O5: 9.1 | P5: Level2 - 1204 | Q5: 17121 | R5: 250 | S5: 700 | T5: =Bodendaten!Y$73+(Bodendaten!Y74-Bodendaten!Y73)/3 -> 56.1 | U5: =Bodendaten!Z$77 -> 98.05 | V5: =Bodendaten!AB$77 -> 25.03991913 | W5: DL1204 | AA5: Dauerbeobachtungsflächen zur Umweltkontrolle - Level II (Erste Ergebnisse) | AB5: Belzig
A6: Neusgf | B6: Neusorgefeld | C6: Deutschland | D6: Brandenburg | E6: Kiefer | F6: 75 | G6: 51°47' | H6: 51.79722222 | I6: 13°34' | J6: 13.56666667 | K6: Braunerde | L6: mor | M6: 8.3 | N6: 570 | P6: Level2 - 1205 | Q6: 22181 | R6: 100 | S6: 290 | T6: =Bodendaten!Y$84+(100-Bodendaten!E84)*(Bodendaten!Y85-Bodendaten!Y84)/(Bodendaten!E85-Bodendaten!E84) -> 55.725 | U6: =Bodendaten!Z$88 -> 115.623 | V6: =Bodendaten!AB$88 -> 25.62569497 | W6: DL1205 | AA6: Dauerbeobachtungsflächen zur Umweltkontrolle - Level II (Erste Ergebnisse) | AB6: Lübben
A7: Schwenow | B7: Schwenow | C7: Deutschland | D7: Brandenburg | E7: Kiefer | F7: 75 | G7: 52°09' | H7: 52.15972222 | I7: 14°1' | J7: 14.01805556 | K7: Braunerde | L7: mor | M7: 8.5 | N7: 550 | O7: 9.5 | P7: Level2 - 1206 | Q7: 18002 | R7: 80 | S7: 700 | T7: =Bodendaten!Y$95+(100-Bodendaten!E95)*(Bodendaten!Y96-Bodendaten!Y95)/(Bodendaten!E96-Bodendaten!E95) -> 80.625 | U7: =Bodendaten!Z$100 -> 82.398 | V7: =Bodendaten!AB$100 -> 21.34508745 | W7: DL1206 | AA7: Dauerbeobachtungsflächen zur Umweltkontrolle - Level II (Erste Ergebnisse) | AB7: Hangelsberg
A8: Bornh | B8: Bornhöved | C8: Deutschland | D8: Schleswig-Holstein | E8: Buche | G8: 54°00' | H8: 54 | I8: 10°00' | J8: 10 | K8: sandige Braunerde | L8: mor | W8: Bornh | AB8: Bornhoeveder Seenkette, 30 km suedlich von Kiel
A9: Klithal | B9: Klingenthal | C9: Deutschland | D9: Erzgebirge | E9: Fichte | F9: 800 | G9: 50°22' | H9: 50.38 | I9: 12°28' | J9: 12.47 | K9: Podsol-Braunerde | L9: mor | M9: 4.5 | N9: 1050 | O9: 23.2 | P9: Level2 - 1401 | R9: 90 | T9: 191 | W9: Klithal | AA9: Bericht Scherzer; Dauerbeobachtungsflächen zur Umweltkontrolle - Level II (Erste Ergebnisse) | AB9: Wurzeltiefe wegen fehlender Angabe wie Olbernhau
A10: Olb | B10: Olbernhau | C10: Deutschland | D10: Erzgebirge | E10: Fichte | F10: 700 | G10: 50°38' | H10: 50.65 | I10: 13°21' | J10: 13.35 | K10: stark podsolige Braunerde | L10: mor | M10: 5.5 | N10: 920 | O10: 30.7 | P10: Level2 - 1402 | R10: 90 | T10: 170 | W10: Olb | AA10: Bericht Scherzer; Dauerbeobachtungsflächen zur Umweltkontrolle - Level II (Erste Ergebnisse)
A11: Lau | B11: Laußnitz | C11: Deutschland | D11: Sachsen | E11: Kiefer | F11: 150 | G11: 51°15' | H11: 51.25 | I11: 13°52' | J11: 13.88 | K11: stark podsolige Braunerde | L11: ro | M11: 8.7 | N11: 650 | O11: 18.1 | P11: Level2 - 1405 | Q11: Langebrück | R11: 98 | T11: 140 | U11: =Bodendaten!$Z$305 -> 139.4 | V11: 18.64 | W11: Lau | AA11: Bericht Scherzer; Dauerbeobachtungsflächen zur Umweltkontrolle - Level II (Erste Ergebnisse); BZE Sachsen(1992-1997), Laußnitz, Punkt 89 | AB11: C nd N nach BZE Sachsen(1992-1997), Laußnitz, Punkt 89
A12: ausb1 | B12: STO2/B1 | C12: Österreich | D12: Kärnten | E12: Kiefer - Fichte | F12: 550 | G12: 46°46' | H12: 46.78 | I12: 14°22' | J12: 14.37 | K12: Braunerde (Cambisol) | M12: 7.7 | N12: 1022 | R12: 80 | T12: 120 | U12: =SUM(Bodendaten!$U119:$U121)*10/1000 -> 132.9823231 | V12: =SUM(Bodendaten!$U119:$U121)/SUM(Bodendaten!$V119:$V121) -> 17.92343162 | W12: ausb1 | AA12: STO_IFORCAM.xls, repstand_Auflage_IFORCAM.xls, readme_input.xls | AB12: Site2: mittlerer Standort, etwas magerer als Site1 (geringere Wasserspeicherkapazität, etwas niedrigerer pH-Wert, N-Gehalte im mineralischen Oberboden etwa wie Site1)
A13: ausb2 | B13: STO1/B2 | C13: Österreich | D13: Kärnten | E13: Fichte - Eiche | F13: 550 | H13: 46.78 | J13: 14.37 | K13: Braunerde (Cambisol) | M13: 7.7 | N13: 1022 | R13: 80 | T13: 161 | U13: =SUM(Bodendaten!$U123:$U126)*10/1000 -> 123.738695 | V13: =SUM(Bodendaten!$U123:$U126)/SUM(Bodendaten!$V123:$V126) -> 16.47528649 | W13: ausb2 | AA13: STO_IFORCAM.xls, repstand_Auflage_IFORCAM.xls, readme_input.xls | AB13: Site1: relativ bester Standort, höchste Wasserspeicherkapazität und geringfügig günstigere pH-Werte und N-Gehalte
A14: ausb3 | B14: STO2/B3 | C14: Österreich | D14: Kärnten | E14: Fichte | F14: 550 | H14: 46.78 | J14: 14.37 | K14: Braunerde (Cambisol) | M14: 7.7 | N14: 1022 | R14: 80 | T14: 120 | U14: =SUM(Bodendaten!$U127:$U130)*10/1000 -> 129.6442524 | V14: =SUM(Bodendaten!$U127:$U131)/SUM(Bodendaten!$V127:$V130) -> 22.00683885 | W14: ausb3 | AA14: STO_IFORCAM.xls, repstand_Auflage_IFORCAM.xls, readme_input.xls | AB14: Site2: mittlerer Standort, etwas magerer als Site1 (geringere Wasserspeicherkapazität, etwas niedrigerer pH-Wert, N-Gehalte im mineralischen Oberboden etwa wie Site1)
A15: ausb4 | B15: STO1/B4 | C15: Österreich | D15: Kärnten | E15: Fichte - Kiefer | F15: 550 | H15: 46.78 | J15: 14.37 | K15: Braunerde (Cambisol) | M15: 7.7 | N15: 1022 | R15: 80 | T15: 161 | U15: =SUM(Bodendaten!$U131:$U134)*10/1000 -> 112.9464048 | V15: =SUM(Bodendaten!$U131:$U134)/SUM(Bodendaten!$V131:$V134) -> 15.85276094 | W15: ausb4 | AA15: STO_IFORCAM.xls, repstand_Auflage_IFORCAM.xls, readme_input.xls | AB15: Site1: relativ bester Standort, höchste Wasserspeicherkapazität und geringfügig günstigere pH-Werte und N-Gehalte
A16: ausb5 | B16: STO2/B5 | C16: Österreich | D16: Kärnten | E16: Fichte - Kiefer | F16: 550 | H16: 46.78 | J16: 14.37 | K16: Braunerde (Cambisol) | M16: 7.7 | N16: 1022 | R16: 80 | T16: 120 | U16: =SUM(Bodendaten!$U135:$U138)*10/1000 -> 126.1246629 | V16: =SUM(Bodendaten!$U135:$U138)/SUM(Bodendaten!$V135:$V138) -> 17.51750166 | W16: ausb5 | AA16: STO_IFORCAM.xls, repstand_Auflage_IFORCAM.xls, readme_input.xls | AB16: Site2: mittlerer Standort, etwas magerer als Site1 (geringere Wasserspeicherkapazität, etwas niedrigerer pH-Wert, N-Gehalte im mineralischen Oberboden etwa wie Site1)
A17: ausb6 | B17: STO1/B6 | C17: Österreich | D17: Kärnten | E17: Fichte | F17: 550 | H17: 46.78 | J17: 14.37 | K17: Braunerde (Cambisol) | M17: 7.7 | N17: 1022 | R17: 80 | T17: 161 | U17: =SUM(Bodendaten!$U139:$U142)*10/1000 -> 112.5949831 | V17: =SUM(Bodendaten!$U139:$U142)/SUM(Bodendaten!$V139:$V142) -> 15.80872038 | W17: ausb6 | AA17: STO_IFORCAM.xls, repstand_Auflage_IFORCAM.xls, readme_input.xls | AB17: Site1: relativ bester Standort, höchste Wasserspeicherkapazität und geringfügig günstigere pH-Werte und N-Gehalte
A18: ausb7 | B18: STO1/B7 | C18: Österreich | D18: Kärnten | E18: Fichte - Eiche | F18: 550 | H18: 46.78 | J18: 14.37 | K18: Braunerde (Cambisol) | M18: 7.7 | N18: 1022 | R18: 80 | T18: 161 | U18: =SUM(Bodendaten!$U143:$U146)*10/1000 -> 111.0531314 | V18: =SUM(Bodendaten!$U143:$U146)/SUM(Bodendaten!$V143:$V146) -> 15.57679713 | W18: ausb7 | AA18: STO_IFORCAM.xls, repstand_Auflage_IFORCAM.xls, readme_input.xls | AB18: Site1: relativ bester Standort, höchste Wasserspeicherkapazität und geringfügig günstigere pH-Werte und N-Gehalte
A19: ausb8 | B19: STO1/B8 | C19: Österreich | D19: Kärnten | E19: Fichte - Kiefer | F19: 550 | H19: 46.78 | J19: 14.37 | K19: Braunerde (Cambisol) | M19: 7.7 | N19: 1022 | R19: 80 | T19: 161 | U19: =SUM(Bodendaten!$U147:$U150)*10/1000 -> 112.4866397 | V19: =SUM(Bodendaten!$U147:$U150)/SUM(Bodendaten!$V147:$V150) -> 15.79186316 | W19: ausb8 | AA19: STO_IFORCAM.xls, repstand_Auflage_IFORCAM.xls, readme_input.xls | AB19: Site1: relativ bester Standort, höchste Wasserspeicherkapazität und geringfügig günstigere pH-Werte und N-Gehalte
A20: ausb9 | B20: STO2/B9 | C20: Österreich | D20: Kärnten | E20: Fichte - Kiefer | F20: 550 | H20: 46.78 | J20: 14.37 | K20: Braunerde (Cambisol) | M20: 7.7 | N20: 1022 | R20: 80 | T20: 120 | U20: =SUM(Bodendaten!$U151:$U154)*10/1000 -> 135.649884 | V20: =SUM(Bodendaten!$U151:$U154)/SUM(Bodendaten!$V151:$V154) -> 18.04239877 | W20: ausb9 | AA20: STO_IFORCAM.xls, repstand_Auflage_IFORCAM.xls, readme_input.xls | AB20: Site2: mittlerer Standort, etwas magerer als Site1 (geringere Wasserspeicherkapazität, etwas niedrigerer pH-Wert, N-Gehalte im mineralischen Oberboden etwa wie Site1)
A21: ausb10 | B21: STO1/B10 | C21: Österreich | D21: Kärnten | E21: Fichte | F21: 550 | H21: 46.78 | J21: 14.37 | K21: Braunerde (Cambisol) | M21: 7.7 | N21: 1022 | R21: 80 | T21: 161 | U21: =SUM(Bodendaten!$U155:$U158)*10/1000 -> 114.0915465 | V21: =SUM(Bodendaten!$U155:$U158)/SUM(Bodendaten!$V155:$V158) -> 15.94134355 | W21: ausb10 | AA21: STO_IFORCAM.xls, repstand_Auflage_IFORCAM.xls, readme_input.xls | AB21: Site1: relativ bester Standort, höchste Wasserspeicherkapazität und geringfügig günstigere pH-Werte und N-Gehalte
A22: ausb11 | B22: STO2/B11 | C22: Österreich | D22: Kärnten | E22: Fichte - Kiefer | F22: 550 | H22: 46.78 | J22: 14.37 | K22: Braunerde (Cambisol) | M22: 7.7 | N22: 1022 | R22: 80 | T22: 120 | U22: =SUM(Bodendaten!$U159:$U162)*10/1000 -> 126.2831618 | V22: =SUM(Bodendaten!$U159:$U162)/SUM(Bodendaten!$V159:$V162) -> 17.54744258 | W22: ausb11 | AA22: STO_IFORCAM.xls, repstand_Auflage_IFORCAM.xls, readme_input.xls | AB22: Site2: mittlerer Standort, etwas magerer als Site1 (geringere Wasserspeicherkapazität, etwas niedrigerer pH-Wert, N-Gehalte im mineralischen Oberboden etwa wie Site1)
A23: ausb12 | B23: STO2/B12 | C23: Österreich | D23: Kärnten | E23: Fichte - Kiefer | F23: 550 | H23: 46.78 | J23: 14.37 | K23: Braunerde (Cambisol) | M23: 7.7 | N23: 1022 | R23: 80 | T23: 120 | U23: =SUM(Bodendaten!$U163:$U166)*10/1000 -> 126.0542685 | V23: =SUM(Bodendaten!$U163:$U166)/SUM(Bodendaten!$V163:$V166) -> 17.50237906 | W23: ausb12 | AA23: STO_IFORCAM.xls, repstand_Auflage_IFORCAM.xls, readme_input.xls | AB23: Site2: mittlerer Standort, etwas magerer als Site1 (geringere Wasserspeicherkapazität, etwas niedrigerer pH-Wert, N-Gehalte im mineralischen Oberboden etwa wie Site1)
A24: ausb13 | B24: STO1/B13 | C24: Österreich | D24: Kärnten | E24: Fichte - Kiefer - Eiche | F24: 550 | H24: 46.78 | J24: 14.37 | K24: Braunerde (Cambisol) | M24: 7.7 | N24: 1022 | R24: 80 | T24: 161 | U24: =SUM(Bodendaten!$U167:$U170)*10/1000 -> 108.9461052 | V24: =SUM(Bodendaten!$U167:$U170)/SUM(Bodendaten!$V167:$V170) -> 15.36949569 | W24: ausb13 | AA24: STO_IFORCAM.xls, repstand_Auflage_IFORCAM.xls, readme_input.xls | AB24: Site1: relativ bester Standort, höchste Wasserspeicherkapazität und geringfügig günstigere pH-Werte und N-Gehalte
A25: ausb14 | B25: STO2/B14 | C25: Österreich | D25: Kärnten | E25: Fichte - Kiefer | F25: 550 | H25: 46.78 | J25: 14.37 | K25: Braunerde (Cambisol) | M25: 7.7 | N25: 1022 | R25: 80 | T25: 120 | U25: =SUM(Bodendaten!$U171:$U174)*10/1000 -> 130.6614669 | V25: =SUM(Bodendaten!$U171:$U174)/SUM(Bodendaten!$V171:$V174) -> 17.81729663 | W25: ausb14 | AA25: STO_IFORCAM.xls, repstand_Auflage_IFORCAM.xls, readme_input.xls | AB25: Site2: mittlerer Standort, etwas magerer als Site1 (geringere Wasserspeicherkapazität, etwas niedrigerer pH-Wert, N-Gehalte im mineralischen Oberboden etwa wie Site1)
A26: ausb15 | B26: STO1/B15 | C26: Österreich | D26: Kärnten | E26: Fichte - Kiefer | F26: 550 | H26: 46.78 | J26: 14.37 | K26: Braunerde (Cambisol) | M26: 7.7 | N26: 1022 | R26: 80 | T26: 161 | U26: =SUM(Bodendaten!$U175:$U178)*10/1000 -> 107.507894 | V26: =SUM(Bodendaten!$U175:$U178)/SUM(Bodendaten!$V175:$V178) -> 15.24176866 | W26: ausb15 | AA26: STO_IFORCAM.xls, repstand_Auflage_IFORCAM.xls, readme_input.xls | AB26: Site1: relativ bester Standort, höchste Wasserspeicherkapazität und geringfügig günstigere pH-Werte und N-Gehalte
A27: ausb16 | B27: STO2/B16 | C27: Österreich | D27: Kärnten | E27: Fichte - Kiefer | F27: 550 | H27: 46.78 | J27: 14.37 | K27: Braunerde (Cambisol) | M27: 7.7 | N27: 1022 | R27: 80 | T27: 120 | U27: =SUM(Bodendaten!$U179:$U182)*10/1000 -> 125.4753594 | V27: =SUM(Bodendaten!$U179:$U182)/SUM(Bodendaten!$V179:$V182) -> 17.4027195 | W27: ausb16 | AA27: STO_IFORCAM.xls, repstand_Auflage_IFORCAM.xls, readme_input.xls | AB27: Site2: mittlerer Standort, etwas magerer als Site1 (geringere Wasserspeicherkapazität, etwas niedrigerer pH-Wert, N-Gehalte im mineralischen Oberboden etwa wie Site1)
A28: ausb17 | B28: STO2/B17 | C28: Österreich | D28: Kärnten | E28: Fichte - Kiefer | F28: 550 | H28: 46.78 | J28: 14.37 | K28: Braunerde (Cambisol) | M28: 7.7 | N28: 1022 | R28: 80 | T28: 120 | U28: =SUM(Bodendaten!$U183:$U186)*10/1000 -> 124.069619 | V28: =SUM(Bodendaten!$U183:$U186)/SUM(Bodendaten!$V183:$V186) -> 17.24900588 | W28: ausb17 | AA28: STO_IFORCAM.xls, repstand_Auflage_IFORCAM.xls, readme_input.xls | AB28: Site2: mittlerer Standort, etwas magerer als Site1 (geringere Wasserspeicherkapazität, etwas niedrigerer pH-Wert, N-Gehalte im mineralischen Oberboden etwa wie Site1)
A29: ausb18 | B29: STO2/B18 | C29: Österreich | D29: Kärnten | E29: Fichte | F29: 550 | H29: 46.78 | J29: 14.37 | K29: Braunerde (Cambisol) | M29: 7.7 | N29: 1022 | R29: 80 | T29: 120 | U29: =SUM(Bodendaten!$U187:$U190)*10/1000 -> 126.0046618 | V29: =SUM(Bodendaten!$U187:$U190)/SUM(Bodendaten!$V187:$V190) -> 17.49175164 | W29: ausb18 | AA29: STO_IFORCAM.xls, repstand_Auflage_IFORCAM.xls, readme_input.xls | AB29: Site2: mittlerer Standort, etwas magerer als Site1 (geringere Wasserspeicherkapazität, etwas niedrigerer pH-Wert, N-Gehalte im mineralischen Oberboden etwa wie Site1)
A30: ausb19 | B30: STO1/B19 | C30: Österreich | D30: Kärnten | E30: Fichte | F30: 550 | H30: 46.78 | J30: 14.37 | K30: Braunerde (Cambisol) | M30: 7.7 | N30: 1022 | R30: 80 | T30: 161 | U30: =SUM(Bodendaten!$U191:$U194)*10/1000 -> 112.5292914 | V30: =SUM(Bodendaten!$U191:$U194)/SUM(Bodendaten!$V191:$V194) -> 15.79954409 | W30: ausb19 | AA30: STO_IFORCAM.xls, repstand_Auflage_IFORCAM.xls, readme_input.xls | AB30: Site1: relativ bester Standort, höchste Wasserspeicherkapazität und geringfügig günstigere pH-Werte und N-Gehalte
A31: ausb20 | B31: STO2/B20 | C31: Österreich | D31: Kärnten | E31: Fichte - Kiefer - Eiche | F31: 550 | H31: 46.78 | J31: 14.37 | K31: Braunerde (Cambisol) | M31: 7.7 | N31: 1022 | R31: 80 | T31: 120 | U31: =SUM(Bodendaten!$U195:$U198)*10/1000 -> 127.0908025 | V31: =SUM(Bodendaten!$U195:$U198)/SUM(Bodendaten!$V195:$V198) -> 17.62765584 | W31: ausb20 | AA31: STO_IFORCAM.xls, repstand_Auflage_IFORCAM.xls, readme_input.xls | AB31: Site2: mittlerer Standort, etwas magerer als Site1 (geringere Wasserspeicherkapazität, etwas niedrigerer pH-Wert, N-Gehalte im mineralischen Oberboden etwa wie Site1)
A32: ausb21 | B32: STO1/B21 | C32: Österreich | D32: Kärnten | E32: Fichte | F32: 550 | H32: 46.78 | J32: 14.37 | K32: Braunerde (Cambisol) | M32: 7.7 | N32: 1022 | R32: 80 | T32: 161 | U32: =SUM(Bodendaten!$U199:$U202)*10/1000 -> 108.1100978 | V32: =SUM(Bodendaten!$U199:$U202)/SUM(Bodendaten!$V199:$V202) -> 15.29453824 | W32: ausb21 | AA32: STO_IFORCAM.xls, repstand_Auflage_IFORCAM.xls, readme_input.xls | AB32: Site1: relativ bester Standort, höchste Wasserspeicherkapazität und geringfügig günstigere pH-Werte und N-Gehalte
A33: ausb22 | B33: STO3/B22 | C33: Österreich | D33: Kärnten | E33: Fichte - Kiefer | F33: 550 | H33: 46.78 | J33: 14.37 | K33: Rendsina | M33: 7.7 | N33: 1022 | R33: 40 | T33: 60 | U33: =SUM(Bodendaten!$U203:$U206)*10/1000 -> 104.6469302 | V33: =SUM(Bodendaten!$U203:$U206)/SUM(Bodendaten!$V203:$V206) -> 20.25675593 | W33: ausb22 | AA33: STO_IFORCAM.xls, repstand_Auflage_IFORCAM.xls, readme_input.xls | AB33: Site3: dolomitischer Sonderstandort: pH im basischen Bereich, seichtgründig, geringe Wasserspeicherkapazitäten
A34: ausb23 | B34: STO1/B23 | C34: Österreich | D34: Kärnten | E34: Fichte - Kiefer | F34: 550 | H34: 46.78 | J34: 14.37 | K34: Braunerde (Cambisol) | M34: 7.7 | N34: 1022 | R34: 80 | T34: 161 | U34: =Bodendaten!$Z$210 -> 112.9646064 | V34: =SUM(Bodendaten!$U207:$U210)/SUM(Bodendaten!$V207:$V210) -> 15.85454918 | W34: ausb23 | AA34: STO_IFORCAM.xls, repstand_Auflage_IFORCAM.xls, readme_input.xls | AB34: Site1: relativ bester Standort, höchste Wasserspeicherkapazität und geringfügig günstigere pH-Werte und N-Gehalte
A35: ausb24 | B35: STO2/B24 | C35: Österreich | D35: Kärnten | E35: Fichte - Kiefer | F35: 550 | H35: 46.78 | J35: 14.37 | K35: Braunerde (Cambisol) | M35: 7.7 | N35: 1022 | R35: 80 | T35: 120 | U35: =Bodendaten!$Z$214 -> 126.0046618 | V35: =SUM(Bodendaten!$U211:$U214)/SUM(Bodendaten!$V211:$V214) -> 17.49175164 | W35: ausb24 | AA35: STO_IFORCAM.xls, repstand_Auflage_IFORCAM.xls, readme_input.xls | AB35: Site2: mittlerer Standort, etwas magerer als Site1 (geringere Wasserspeicherkapazität, etwas niedrigerer pH-Wert, N-Gehalte im mineralischen Oberboden etwa wie Site1)
A36: ausb25 | B36: STO3/B25 | C36: Österreich | D36: Kärnten | E36: Fichte - Kiefer - Eiche | F36: 550 | H36: 46.78 | J36: 14.37 | K36: Rendsina | M36: 7.7 | N36: 1022 | R36: 40 | T36: 60 | U36: =Bodendaten!$Z$218 -> 106.3744983 | V36: =SUM(Bodendaten!$U215:$U218)/SUM(Bodendaten!$V215:$V218) -> 21.47758743 | W36: ausb25 | AA36: STO_IFORCAM.xls, repstand_Auflage_IFORCAM.xls, readme_input.xls | AB36: Site3: dolomitischer Sonderstandort: pH im basischen Bereich, seichtgründig, geringe Wasserspeicherkapazitäten
A37: Heidbg | B37: Heidelberg | C37: Deutschland | D37: Baden-Würtemberg | E37: Fichte | F37: 505 | H37: 49.46 | J37: 8.75 | K37: Podsol - Braunerde | L37: mot | M37: 8 | N37: 1050 | P37: Level2 - 802 | Q37: 25277 (Wilhelmsfeld) | S37: 300 | U37: 163.74 | AA37: /data/safe/daten/level2/baden_wuerttemberg: standorte.xls, heid_l2_802-prn
A38: Muellh | B38: Müllheim | C38: Deutschland | D38: Baden-Würtemberg | E38: Fichte | F38: 1000 | H38: 47.78 | J38: 7.7 | L38: mot | M38: 6 | N38: 1850 | P38: Level2 - 805 | Q38: 28112 (Oberried) | S38: 300 | AA38: /data/safe/daten/level2/baden_wuerttemberg: standorte.xls, mul_l2_805.prn
A39: Buchen | B39: Walldürn/Buchen | C39: Deutschland | D39: Baden-Würtemberg | E39: Fichte | F39: 515 | H39: 49.53 | J39: 9.17 | L39: mot | M39: 8.1 | N39: 984 | P39: Level2 - 811 | Q39: 25266 (Mudau-Schlossau) | S39: 300 | U39: 141.24 | AA39: /data/safe/daten/level2/baden_wuerttemberg: standorte.xls, wall_l2_811-prn
A40: Lhee | B40: Lheebroek | C40: Niederlande | E40: Kiefer - Eiche - Birke | F40: 11 | H40: 52.5 | J40: 6.6 | K40: Podsol; drifting sand | M40: 8.6 | N40: 841 | R40: 100 | S40: 180 | W40: Lhee | AA40: /data/safe\daten\v_kint\Lheebroek99_131204.xls
A41: Galg | B41: Galgenberg | C41: Niederlande | E41: Eiche - Kiefer - Birke - Buche | H41: 52 | J41: 5.3 | K41: Podsol | M41: 9.1 | N41: 804 | R41: 100 | W41: Galg | AA41: /data/safe\daten\v_kint\Galgenberg95.xls
A42: Tong | B42: Tongerense Hei | C42: Niederlande | E42: Kiefer | F42: 30 | H42: 52 | J42: 6 | K42: Podsol; drifting sand | M42: 9.1 | N42: 808 | R42: 80 - 150 | S42: 180 | T42: 138 | W42: Tong | AA42: /data/safe\daten\v_kint\TongerenseHei96.xls | AB42: Koordinaten nur näherungsweise
A43: Loob | B43: Loobos | C43: Niederlande | E43: Kiefer | F43: 25 | H43: 52.1 | J43: 5.44 | K43: Podsol | M43: 10 | N43: 966 | O43: 40 | P43: Euroflux | R43: 50 | S43: 500 | T43: 214 | W43: Loob | Z43: 2002 | AA43: /data/safe\daten\loobos\applied_parameter_values loobos.xls, parameter loobos.txt; neu: http://www.alterra-research.nl/pls/portal30/docs/FOLDER/CARBOEUROPE_LOOBOS/CARBOLOO/LOOBOS.HTM
A44: Loob2 | B44: Loobos | C44: Niederlande | E44: Kiefer | F44: 25 | H44: 52.1 | J44: 5.44 | K44: Sandy soil (humuspodzol), Orthidystric rubic Arenosol | M44: 10 | N44: 966 | O44: 40 | P44: Euroflux | R44: 50 | S44: 500 | T44: 214 | Z44: 2018-03-07 | AA44: /data/safe\daten\loobos\applied_parameter_values loobos.xls, parameter loobos.txt; neu:http://www.climatexchange.nl/sites/loobos/; Dolman et al. 2002
A45: Hyyti | B45: Hyytiälä, Juupajoki S | C45: Finnland | E45: Kiefer | F45: 170 | G45: 61°51' | H45: 61.85 | I45: 24°17' | J45: 24.28 | K45: Haplic Podzol | M45: 3.5 | N45: 640 | O45: 4 | P45: Euroflux, Level2 - SF11, Fluxnet, Profound | Q45: Jokkionen | R45: 40 | S45: 700 | T45: =Bodendaten!$Y$249 -> 137.5265 | U45: =Bodendaten!$Z$250 -> 116.17706 | V45: =Bodendaten!$AB$250 -> 29.93976332 | W45: Hyyti | AA45: Hyyti_Param.xls, http://www.unitus.it/dipartimenti/disafri/progetti/eflux/sito14.html, http://www.bgc-jena.mpg.de/public/carboeur/sites/hyyti.html
A46: Steiger | B46: Steiger | C46: Deutschland | D46: Thüringen | E46: Eiche | F46: 330 | H46: 50.93 | J46: 11.03 | P46: Level2 - 1608 | Q46: Erfurt
A47: Holzland | B47: Holzland | C47: Deutschland | D47: Thüringen | E47: Kiefer - Fichte | F47: 350 | H47: 50.78 | J47: 11.66 | K47: Podsol | L47: ro | P47: Level2 - 1607 | Q47: Ziegenrück
A48: Possen | B48: Possen | C48: Deutschland | D48: Thüringen | E48: Buche | F48: 420 | G48: 51°20' | H48: 51.33 | I48: 10°52' | J48: 10.86 | K48: Braunerde-Fahlerde | L48: mut | P48: Level2 - 1606, Hauptmessstation | Q48: Oberspier | R48: 100 | S48: 1500 | T48: =Bodendaten!$Y$258 -> 503.5 | U48: =Bodendaten!$Z$258 -> 6.6645 | V48: =Bodendaten!$AB$258 -> 14.19186542 | W48: DL1606 | AB48: Aufnahme 1995/1996
A49: Bralitz | B49: Bralitz | C49: Deutschland | D49: Brandenburg (Eberswalde / Freienwalde) | E49: Kiefer: P. sylv. - P. contorta | H49: 52.49 | J49: 14 | K49: podsolige Braunerde aus Sandersand mit Moder (Bodenseichener Sand-Braunerde) | L49: mo | M49: 8.5 | N49: 540 | P49: Versuchsfläche 'Pinus contorta' | S49: 300 | T49: 171 | U49: =SUM(Bodendaten!U259:U265)*10/1000 -> 134.928 | V49: =AVERAGE(Bodendaten!R259:R264) -> 18.54335512 | W49: Bralitz | AA49: Riek, W. and F. Stähr (2004). Eigenschaften typischer Waldböden im Nordostdeutschen Tiefland unter besonderer Berücksichtigung des Landes Brandenburg. Eberswalde, S. 64-66 | AB49: Versuchsflächen zu Fremdländern (Pinus ponderosa und Pinus sylvestris)
A50: Bra1 | B50: Bralitz | C50: Deutschland | D50: Brandenburg (Eberswalde / Freienwalde) | E50: Kiefer: P. sylv. - P. contorta | H50: 52.49 | J50: 14 | K50: vorherrschend Braunerden und gering verbreitet Braunerde-Regosole und Fahlerden im engraeumigen Wechsel aus sandigen bis lehmigen Bildungen der Endmoraenen; selten Gleye | L50: mo | M50: 8.5 | N50: 540 | P50: Versuchsfläche 'Pinus contorta' | S50: 300 | T50: 183 | U50: =SUM(Bodendaten!U266:U275)*10/1000 -> 51.28 | V50: =SUM(Bodendaten!$U266:$U275)/SUM(Bodendaten!$V266:$V275) -> 10.9972121 | W50: Bra1 | AA50: Wald_BÜK, KG_BOD_NUTZ_ID=352731 | AB50: Versuchsflächen zu Fremdländern (Pinus ponderosa und Pinus sylvestris)
A51: Bra2 | B51: Bralitz | C51: Deutschland | D51: Brandenburg (Eberswalde / Freienwalde) | E51: Kiefer: P. sylv. - P. contorta | H51: 52.49 | J51: 14 | K51: ueberwiegend Braunerden, gering verbreitet Braunerde-Regosole und Podsole sowie gering verbreitet Gley-Braunerden und Gleye | L51: roa | M51: 8.5 | N51: 540 | P51: Versuchsfläche 'Pinus contorta' | S51: 300 | T51: 195 | U51: =SUM(Bodendaten!U276:U282)*10/1000 -> 278.8928 | V51: =SUM(Bodendaten!$U276:$U282)/SUM(Bodendaten!$V276:$V282) -> 17.17489408 | W51: Bra2 | AA51: Wald_BÜK, KG_BOD_NUTZ_ID=353131 | AB51: Versuchsflächen zu Fremdländern (Pinus ponderosa und Pinus sylvestris)
A52: Hesse | B52: Hesse | C52: Frankreich | D52: 60 km East of Nancy | E52: Buche | F52: 300 | G52: 48°40.453' | H52: 48.674217 | I52: 7° 03.877' | J52: 7.064617 | K52: Gleyic (or stagnic) Luvisol | L52: mu - Mull | M52: 8.8 | N52: 885 | O52: 14.9 | P52: Euroflux | Q52: Sarrebourg | R52: 120 | S52: 700 | T52: 186 | U52: =SUM(Bodendaten!$U283:$U290)*10/1000 -> 63.751 | V52: =Bodendaten!$AB$290 -> 11.30897332 | W52: Hesse | AA52: /data/safe/daten/flux_sites/hesse/Hesse_ref.xls; http://www-carbonsweden.slu.se/database/pdf/ECOCRAFT-chapter2.pdf; Diss. Volker Hahn
A53: Augsbg | B53: Augsburg | C53: Deutschland | D53: Bayern | E53: Fichte (hypothetisch) | G53: 48°26' | H53: 48.43 | I53: 10°58' | J53: 10.97 | K53: Braunerde | L53: mrr | O53: 25 | Q53: Augsburg | T53: =Bodendaten!$Y$324 -> 126.3875 | U53: =Bodendaten!$AB$324 -> 21.81593764 | V53: =Bodendaten!$AB$324 -> 21.81593764 | W53: Augsbg | AB53: Zusammenstellung für Modellvergleich EFI (2005): Klimaszenario CRU-Daten (3943), hypothetischer Fichtenbestand 80 Jahre, Boden aus Wald-BÜK ( 341831)
A54: Schwalb1 | B54: Schwäbische Alb | C54: Deutschland | D54: Schwäbische Alb (Baden-Württemberg) | E54: Fichte (hypothetisch) | G54: 48°21' | H54: 48.36 | I54: 9°42' | J54: 9.7 | K54: Terra fusca | L54: muo | O54: 25 | T54: =Bodendaten!$Y$314 -> 111.875 | U54: =Bodendaten!$Z$314 -> 83.7 | V54: =Bodendaten!$AB$314 -> 4.782857143 | W54: Schwalb1 | AA54: Deposition aus Level II: Luftqualität und Stoffeinträge an Level II-Dauerbeobahtungsflächen in Deutschland, S.73 | AB54: Zusammenstellung für Modellvergleich EFI (2005): Klimaszenario CRU-Daten (2575), hypothetischer Fichtenbestand 80 Jahre, Boden aus Wald-BÜK (345031)
A55: Schwalb2 | B55: Schwäbische Alb | C55: Deutschland | D55: Schwäbische Alb (Baden-Württemberg) | E55: Fichte (hypothetisch) | G55: 48°38' | H55: 48.64 | I55: 9°52' | J55: 9.87 | K55: Terra fusca | L55: muo | O55: 25 | W55: Schwalb2 | AA55: Deposition aus Level II: Luftqualität und Stoffeinträge an Level II-Dauerbeobahtungsflächen in Deutschland, S.74 | AB55: Zusammenstellung für Modellvergleich EFI (2005): Klimaszenario CRU-Daten (2726), hypothetischer Fichtenbestand 80 Jahre, Boden aus Wald-BÜK (345031)
A56: wb55 | B56: Wald-BÜK | C56: Deutschland | K56: Terra fusca | L56: muo | U56: =Bodendaten!$Z$314 -> 83.7 | V56: =Bodendaten!$AB$314 -> 4.782857143 | W56: wb55 | AB56: Boden der Wald-Bük, Nr. 345531; typischer Boden für Baden-Württemberg
A57: wb18 | B57: Wald-BÜK | C57: Deutschland | K57: Braunerde | L57: mrr | U57: =Bodendaten!$Z$334 -> 187.4919753 | V57: =Bodendaten!$AB$334 -> 21.96599555 | W57: wb18 | AB57: Boden der Wald-Bük, Nr. 341831; typischer Boden für Baden-Württemberg
A58: Chorin | B58: Chorin | C58: Deutschland | D58: Brandenburg (Revier Kahlenberg) | E58: Kiefer | F58: 60 | G58: 52°52' | H58: 52.86 | I58: 13°52' | J58: 13.9 | K58: podsolige Braunerde | L58: mot | M58: 8.2 | N58: 572 | P58: Langfristiger Kieferndurchforstungsversuch Chorin 97 | R58: 150 | S58: 700 | U58: =Bodendaten!$Z$345 -> 112.044 | V58: =Bodendaten!AB345 -> 22.72329034 | W58: Chorin | Z58: 1999 | AA58: Exkursionsführer LFE/BFH | AB58: Liegt in der Nähe von K75R; Bodenprofil kann genutzt werden (4.2.15)
A59: Chorin_EFI | B59: Chorin | C59: Deutschland | D59: Brandenburg (Revier Kahlenberg) | E59: Kiefer | F59: 60 | G59: 52°57' | H59: 52.95 | I59: 13°24' | J59: 13.4 | K59: podsolige Braunerde
A60: rss_fin | B60: Rich spruce south | C60: Finnland | E60: Fichte | F60: 10 | G60: 61°38' | H60: 61.63 | I60: 23°06' | J60: 23.1 | K60: Eutric Cambisol | L60: mor | Q60: TAMPERE-PIRKKALAN LENTOASEMA | R60: 60 | S60: 250 | W60: rss_fin | AA60: Rich_spruce_south_soil_input_data_4C_FIN.xls
A61: sps_fin | B61: Subxeric pine south | C61: Finnland | E61: Kiefer | F61: 3 | G61: 60°40' | H61: 60.66 | I61: 27°54' | J61: 27.9 | K61: Haplic Podzol | L61: mor | Q61: VIROLAHTI KOIVUNIEMI | R61: 60 | S61: 250 | T61: =Bodendaten!Y356+3*Bodendaten!Y357/8 -> 220.9375 | U61: =Bodendaten!Z357 -> 39.561949 | V61: =Bodendaten!AB357 -> 20.14040623 | W61: sps_fin | AA61: Subxeric_pine_south_soil_input_data_4C_FIN.xls
A62: mss_fin | B62: Mesic spruce south | C62: Finnland | E62: Fichte | F62: 13 | G62: 62°41' | H62: 62.68 | I62: 26°05' | J62: 26.08 | K62: Haplic Podzol | L62: mor | Q62: JYVÄSKYLÄ LENTOASEMA/JYVÄSKYLÄN MLK | R62: 60 | S62: 250 | W62: mss_fin | AA62: Mesic_spruce_south_soil_input_data_4C_FIN.xls
A63: mps_fin | B63: Mesic pine south | C63: Finnland | E63: Kiefer | F63: 11 | G63: 63°07' | H63: 63.11 | I63: 28°17' | J63: 28.28 | K63: Haplic Podzol | L63: mor | Q63: MAANINKA HALOLA | R63: 60 | S63: 250 | T63: =Bodendaten!Y370+3*Bodendaten!Y371/8 -> 220.9375 | U63: =Bodendaten!Z371 -> 41.65505 | V63: =Bodendaten!AB371 -> 25.5776109 | W63: msp_fin | AA63: Mesic_pine_south_soil_input_data_4C_FIN.xls
A64: rss2_fin | B64: Rich spruce south | C64: Finnland | E64: Fichte | F64: 10 | G64: 61°38' | H64: 61.63 | I64: 23°06' | J64: 23.1 | K64: Eutric Cambisol | L64: mor | Q64: TAMPERE-PIRKKALAN LENTOASEMA | S64: 250 | W64: rss2_fin | AA64: Soil_profile_description_4C_FIN.xls
A65: Luess301 | B65: Lüss 301 | C65: Deutschland | D65: Niedersachsen | E65: Buche - Eiche | F65: 125 | G65: 52°50' | H65: 52.84111111 | I65: 10°16' | J65: 10.27583333 | K65: Podsol-Braunerde | L65: mra | M65: 8 | N65: 779 | P65: Level2 - 301 | Q65: 16015 | R65: 100 | S65: 300 | T65: =Bodendaten!$Y$379 -> 150.932 | U65: =Bodendaten!Z379 -> 0 | V65: =Bodendaten!AB379 -> 0 | W65: DL301 | AA65: Daten Niedersachsen LII Trockenstudie.xls, Profile_BFH_sort_231002.xls | AB65: Flachland: Gesamtwasserhaushalt mäßig frisch; Nährstoffversorgung mäßig / schwach mesotroph; Substrate: schwächer / besser verlehmte Geschiebesande mit Sandunterlagerung;
A66: LBraS302 | B66: Lange Bramke Südhang 302 | C66: Deutschland | D66: Niedersachsen | E66: Fichte | F66: 575 | G66: 51°51' | H66: 51.85805556 | I66: 10°24' | J66: 10.41527778 | K66: Podsol-Braunerde | L66: ror | M66: 6 | N66: 1275 | P66: Level2 - 302 | Q66: 21206 | R66: 100 | S66: 200 | T66: =Bodendaten!$Y$386 -> 197.225 | U66: =Bodendaten!Z386 -> 116.365 | V66: =Bodendaten!AB386 -> 15.59075936 | W66: DL302 | AA66: Daten Niedersachsen LII Trockenstudie.xls, Profile_BFH_sort_231002.xls | AB66: Bergland: Gesamtwasserhaushalt (vorrats-/stau-) frischer Schatthang; Nährstoffversorgung mäßig (besser als Grundtyp) / mesotroph; Substrate: basenärmeres Silikatgestein mit mächtigeren schluffig-lehmigen Decken;
A67: LBraK303 | B67: Lange Bramke Kamm 303 | C67: Deutschland | D67: Niedersachsen | E67: Fichte | F67: 675 | G67: 51°51' | H67: 51.86166667 | I67: 10°25' | J67: 10.41833333 | K67: Podsol-Braunerde | L67: ror | M67: 6 | N67: 1275 | P67: Level2 - 303 | Q67: 21004 | R67: 100 | S67: 200 | T67: =Bodendaten!$Y$391 -> 150.975 | U67: =Bodendaten!Z392 -> 131.89 | V67: =Bodendaten!AB392 -> 16.0915357 | W67: DL303 | AA67: Daten Niedersachsen LII Trockenstudie.xls, Profile_BFH_sort_231002.xls | AB67: Bergland: Gesamtwasserhaushalt (vorrats-/stau-) frischer Schatthang; Nährstoffversorgung mäßig (besser als Grundtyp) / mesotroph; Substrate: basenärmeres Silikatgestein mit mächtigeren schluffig-lehmigen Decken;
A68: Soll304 | B68: Solling 304 | C68: Deutschland | D68: Niedersachsen | E68: Buche | F68: 525 | G68: 51°45' | H68: 51.75 | I68: 9°34' | J68: 9.579166667 | K68: Podsolige Braunerde | L68: mota | M68: 7 | N68: 1077 | P68: Level2 - 304, SollingB1 | Q68: 21206 | R68: 140 | S68: 350 | T68: 211.6620026 | U68: =Bodendaten!Z400 -> 181.155427 | V68: =Bodendaten!AB400 -> 16.33156917 | W68: DL304 | X68: flach | AA68: Daten Niedersachsen LII Trockenstudie.xls, Profile_BFH_sort_231002.xls | AB68: Bergland: Gesamtwasserhaushalt (nachhaltig / vorrats-) frische Ebene / Plateau; Nährstoffversorgung ziemlich gut (schwächer als Grundtyp) / mesotroph; Substrate: Löss- / Feinlehm über / mit basenarmem Substrat;
A69: Soll304_neu | B69: Solling 304 | C69: Deutschland | D69: Niedersachsen | E69: Buche | F69: 525 | G69: 51°46' | H69: 51.76166667 | I69: 9°34' | J69: 9.579166667 | K69: Podsolige Braunerde | L69: mota | M69: 7 | N69: 1077 | P69: Level2 - 304, SollingB1, Profound | Q69: 21206 | R69: 140 | S69: 350 | T69: 211.6620026 | U69: =Bodendaten!Z400 -> 181.155427 | V69: =Bodendaten!AB400 -> 16.33156917 | X69: flach | Z69: 2016-07-22 | AA69: \isimip\SollingB1_site_data_file5_4e_new.xls | AB69: Bergland: Gesamtwasserhaushalt (nachhaltig / vorrats-) frische Ebene / Plateau; Nährstoffversorgung ziemlich gut (schwächer als Grundtyp) / mesotroph; Substrate: Löss- / Feinlehm über / mit basenarmem Substrat;
A70: Soll304_isimip | B70: Solling 304 | C70: Deutschland | D70: Niedersachsen | E70: Buche | F70: 504 | G70: 51°46' | H70: 51.76166667 | I70: 9°34' | J70: 9.579166667 | K70: Cambisol (haplic) | L70: mota | M70: 6.745 | N70: 1113 | P70: Level2 - 304, SollingB1, Profound | Q70: 21206 | R70: 100 | S70: 350 | T70: =Bodendaten!Y438 -> 211.85 | U70: =Bodendaten!Z438 -> 185.1278707 | V70: =Bodendaten!AB4^38 -> 0 | X70: 1 % | Y70: SW | Z70: 2017-01-12 | AA70: D:\All_fs\Daten\Level2\Niedersachsen\isimip\Solling_304_final_hm.docx, SOIL_master_20_25.xlsx | AB70: ID für PROFOUND: 20
A71: Soll305 | B71: Solling 305 | C71: Deutschland | D71: Niedersachsen | E71: Fichte | F71: 525 | G71: 51°45' | H71: 51.75 | I71: 9°34' | J71: 9.579444444 | K71: Podsolige Braunerde | L71: mrr | M71: 7 | N71: 1076 | P71: Level2 - 305, SollingF1 | Q71: 21206 | R71: 135 | S71: 400 | T71: 162.7200012 | U71: =Bodendaten!Z411 -> 150.3821686 | V71: =Bodendaten!AB411 -> 16.06872328 | W71: DL305 | AA71: Daten Niedersachsen LII Trockenstudie.xls, Profile_BFH_sort_231002.xls | AB71: Bergland: Gesamtwasserhaushalt (nachhaltig / vorrats-) frische Ebene / Plateau, deutlicher Stauwassereinfluß im Ober- / Unterboden; Nährstoffversorgung ziemlich gut (schwächer als Grundtyp) / mesotroph; Substrate: Löss- / Feinlehm über / mit basenarmem Substrat;
A72: Soll305_neu | B72: Solling 305 | C72: Deutschland | D72: Niedersachsen | E72: Fichte | F72: 504 | G72: 51°46' | H72: 51.76 | I72: 9°34' | J72: 9.579444444 | K72: Podsolige Braunerde | L72: mrr | M72: 7 | N72: 1076 | P72: Level2 - 305, SollingF1, Profound | Q72: 21206 | R72: 100 | S72: 400 | T72: 162.7200012 | U72: =Bodendaten!Z411 -> 150.3821686 | V72: =Bodendaten!AB411 -> 16.06872328 | X72: 0-3 % | Z72: 2016-07-19 | AA72: \isimip\SollingF1_site_data_file5e_new.xls | AB72: Bergland: Gesamtwasserhaushalt (nachhaltig / vorrats-) frische Ebene / Plateau, deutlicher Stauwassereinfluß im Ober- / Unterboden; Nährstoffversorgung ziemlich gut (schwächer als Grundtyp) / mesotroph; Substrate: Löss- / Feinlehm über / mit basenarmem Substrat;
A73: Soll305_isimip | B73: Solling 305 | C73: Deutschland | D73: Niedersachsen | E73: Fichte | F73: 508 | G73: 51°45' | H73: 51.75 | I73: 9°34' | J73: 9.579444444 | K73: Cambisol (haplic, dystric, densic) | L73: mrr | M73: 6.745 | N73: 1113 | P73: Level2 - 305, SollingF1 | Q73: 21206 | R73: 100 | S73: 400 | T73: =Bodendaten!Y446 -> 249.9880241 | U73: =Bodendaten!Z446 -> 146.7404172 | V73: =Bodendaten!AB446 -> 13.60292178 | X73: 1 % | Z73: 2017-01-12 | AA73: D:\All_fs\Daten\Level2\Niedersachsen\isimip\Solling_305_final_hm.docx, SOIL_master_20_25.xlsx | AB73: ID für PROFOUND: 25
A74: Goett306 | B74: Göttinger Wald 306 | C74: Deutschland | D74: Niedersachsen | E74: Buche | F74: 425 | G74: 51°31' | H74: 51.52916667 | I74: 10°02' | J74: 10.04777778 | K74: Terra fusca-Rendzina | L74: mut | M74: 7 | N74: 841 | P74: Level2 - 306 | Q74: 21023 | R74: 100 | S74: 500 | T74: =Bodendaten!$Y$452 -> 106.69 | U74: =Bodendaten!Z452 -> 928.1 | V74: =Bodendaten!AB452 -> 22.96642304 | W74: DL306 | AA74: Daten Niedersachsen LII Trockenstudie.xls, Profile_BFH_sort_231002.xls | AB74: Bergland: Gesamtwasserhaushalt (nachhaltig / vorrats-) frische Ebene /Plateau; Nährstoffversorgung gut / eutroph; Substrate: Kalksteinverwitterungsboden, steinig, mit geringer Lößdecke;
A75: Aug307 | B75: Augustendorf 307 | C75: Deutschland | D75: Niedersachsen | E75: Kiefer | F75: 25 | G75: 52°54' | H75: 52.90888889 | I75: 7°51' | J75: 7.859722222 | K75: Podsol | L75: motr | M75: 9 | N75: 822 | P75: Level2 - 307 | Q75: 14115 | R75: 80 | S75: 80 | T75: =Bodendaten!$Y$468 -> 212.8 | U75: =Bodendaten!$Z$469 -> 230.578 | V75: =Bodendaten!$AB$469 -> 30.69096359 | W75: DL307 | AA75: Daten Niedersachsen LII Trockenstudie.xls, Profile_BFH_sort_231002.xls | AB75: Flachland: Gesamtwasserhaushalt mäßig frisch trockener als Grundtyp; Nährstoffversorgung mäßig (schwächer als Grundtyp); Substrate: (mehr o. weniger) unverlehmte Sande mit Flugsandüberlagerung;
A76: Aug307_neu | B76: Augustendorf 307 | C76: Deutschland | D76: Niedersachsen | E76: Kiefer | F76: 25 | G76: 52°54' | H76: 52.90888889 | I76: 7°51' | J76: 7.859722222 | K76: Podsol | L76: motr | M76: 9 | N76: 822 | P76: Level2 - 307 | Q76: 14115 | R76: 80 | S76: 80 | T76: =Bodendaten!$Y$1620 -> 108 | U76: =Bodendaten!$Z$1621 -> 229.90791 | V76: =Bodendaten!$AB$1621 -> 27.98116114 | W76: DL307 | Z76: 2018-04-24 | AA76: d:\All_fs\Daten\Level2\Level2_Datenbank\boden_level2_dendroklima.xlsx, D:\All_fs\Daten\Level2\Level_2_flaechen.xlsx | AB76: Flachland: Gesamtwasserhaushalt mäßig frisch trockener als Grundtyp; Nährstoffversorgung mäßig (schwächer als Grundtyp); Substrate: (mehr o. weniger) unverlehmte Sande mit Flugsandüberlagerung;
A77: Erh308 | B77: Erhorn 308 | C77: Deutschland | D77: Niedersachsen | E77: Eiche | F77: 125 | G77: 53°10' | H77: 53.1825 | I77: 9°54' | J77: 9.905 | K77: Podsolige Braunerde | L77: shgm | M77: 8 | N77: 826 | P77: Level2 - 308 | Q77: 15104 | R77: 75 | S77: 190 | T77: 178.6499939 | W77: DL308 | AA77: Daten Niedersachsen LII Trockenstudie.xls, Profile_BFH_sort_231002.xls | AB77: Flachland: Gesamtwasserhaushalt (vorrats-) frisch; Nährstoffversorgung mäßig (besser als Grundtyp) / mesotroph; Substrate: schwächer / besser verlehmte Geschiebesande mit lehmiger Sandunter- / einlagerung; Pflughorizont aus reliktischer landwirtschaftlicher Bearbeitung
A78: LBraN | B78: Lange Bramke Nordhang | C78: Deutschland | D78: Niedersachsen | E78: Fichte | P78: keine level II fLäche
A79: Altd901 | B79: Altdorf 901 | C79: Deutschland | D79: Bayern, Frankenalbvorland | E79: Kiefer | F79: 406 | G79: 49°24' | H79: 49.41361111 | I79: 11°19' | J79: 11.32166667 | K79: Podsol | L79: ro | M79: 8.5 | N79: 819 | P79: Level2 - 901 | Q79: 26152 | R79: 120 | S79: 300 | T79: =Bodendaten!$Y$481 -> 143.6900089 | U79: =Bodendaten!$Z$483 -> 62.76056963 | V79: =Bodendaten!$AB$483 -> 37.18222957 | W79: DL901 | X79: flach | Y79: flach | AA79: ./LevelII/Bayern/Eingangsdaten_Modellierung
A80: Ebers906 | B80: Ebersberg 906 | C80: Deutschland | D80: Bayern | E80: Fichte | F80: 540 | G80: 48°07' | H80: 48.1225 | I80: 11°55' | J80: 11.91722222 | K80: Parabraunerde | L80: mo | M80: 7.7 | N80: 1004 | P80: Level2 - 906 | Q80: 26160 | R80: 80 | S80: 300 | T80: =Bodendaten!Y489+2*Bodendaten!Y490/4.5 -> 247.1222222 | U80: =Bodendaten!$Z$490 -> 62.28259375 | V80: =Bodendaten!$AB$490 -> 30.9157216 | W80: DL906 | X80: flach | Y80: flach | AA80: ./LevelII/Bayern/Eingangsdaten_Modellierung
A81: Floss908 | B81: Flossenbürg 908 | C81: Deutschland | D81: Bayern, Oberpfälzer Wald | E81: Fichte | F81: 840 | G81: 49°45' | H81: 49.76305556 | I81: 12°23' | J81: 12.39666667 | K81: Braunerde-Podsol | L81: mo | M81: 6 | N81: 887 | P81: Level2 - 908 | Q81: 22131 | R81: 120 | S81: 300 | T81: =Bodendaten!$Y$498 -> 134.35 | U81: =Bodendaten!$Z$499 -> 123.9388058 | V81: =Bodendaten!$AB$499 -> 21.2419198 | W81: DL908 | Y81: Nord | AA81: ./LevelII/Bayern/Eingangsdaten_Modellierung
A82: Ried913 | B82: Riedenburg 913 | C82: Deutschland | D82: Bayern, Oberpfälzer Jura, Frankenalb | E82: Eiche - Buche | F82: 475 | G82: 48°55' | H82: 48.92916667 | I82: 11°45' | J82: 11.76111111 | K82: Parabraunerde-Terra fusca | L82: mu | M82: 7.9 | N82: 688 | P82: Level2 - 913 | Q82: 26154 | R82: 100 | S82: 300 | T82: =Bodendaten!$Y$506 -> 86.306295 | U82: =Bodendaten!Z$507 -> 43.29221917 | V82: =Bodendaten!$AB$507 -> 14.36079269 | W82: DL913 | Y82: Süd | AA82: ./LevelII/Bayern/Eingangsdaten_Modellierung
A83: Freis919 | B83: Freising 919 | C83: Deutschland | D83: Bayern | E83: Buche | F83: 508 | G83: 48°24' | H83: 48.40805556 | I83: 11°39' | J83: 11.65611111 | K83: Parabraunerde-Braunerde | L83: mu | M83: 8.1 | N83: 846 | P83: Level2 - 919 | Q83: 26206 | R83: 150 | S83: 300 | T83: =Bodendaten!$Y$514 -> 185.125 | U83: =Bodendaten!Z$516 -> 55.03541969 | V83: =Bodendaten!$AB$516 -> 14.91362633 | W83: DL919 | Y83: Süd | AA83: ./LevelII/Bayern/Eingangsdaten_Modellierung
A84: Mitter911 | B84: Mitterfels 911 | C84: Deutschland | D84: Bayern, Bayrischer Wald | E84: Buche | F84: 1025 | G84: 48°58' | H84: 48.97611111 | I84: 12°52' | J84: 12.88111111 | K84: Braunerde-Podsol | L84: mo | M84: 5.5 | N84: 1551 | P84: Level2 - 911 | Q84: 27119 | R84: 120 | S84: 300 | T84: =Bodendaten!$Y$524 -> 179.4375666 | U84: =Bodendaten!$Z$525 -> 295.9408392 | V84: =Bodendaten!$AB$525 -> 16.89779 | W84: DL911 | Y84: Nordwest | AA84: ./LevelII/Bayern/Eingangsdaten_Modellierung
A85: Mitterf | B85: Mitterfels, WKS 14(?) | C85: Deutschland | D85: Bayrischer Wald | E85: Buche - vereinzelt Fichte | F85: 1025 | G85: 48°59' | H85: 48.98 | I85: 12°53' | J85: 12.88 | K85: podsolige Braunerde | L85: mor | M85: 4 - 5 | N85: 1300 - 1400 | P85: Waldklimastation | R85: 120 | S85: 300 | W85: Mitterf | AA85: Bodentyp_B1_F1.xls, wks_beschreibung.doc
A86: ForelleF1 | B86: Forellenbach F1 (Profil 617) | D86: Bayrischer Wald, Einzugsgebiet Große Ohe | E86: Fichte | F86: 894 | G86: 48°59' | H86: 49.98 | I86: 12°53' | J86: 13.88 | K86: Braunerde | M86: 6.2 | N86: 1630 | R86: 120 | S86: 500 | X86: 8.4 | AA86: Bodentyp_B1_F1.xls | AB86: Koordinaten von Mitterfels übernommen
A87: ForelleB1 | B87: Forellenbach B1 (Profil 616) | D87: Bayrischer Wald, Einzugsgebiet Große Ohe | E87: Buche | F87: 894 | G87: 48°59' | H87: 50.98 | I87: 12°53' | J87: 14.88 | K87: Braunerde | M87: 5.3 | N87: 1630 | R87: 120 | S87: 500 | X87: 8.4 | AA87: Bodentyp_B1_F1.xls | AB87: Koordinaten von Mitterfels übernommen
A88: MarkungF1 | B88: Markungsgraben LfW_201 | D88: Bayrischer Wald, Einzugsgebiet Große Ohe | E88: Fichte | F88: 1128 | G88: 48°59' | H88: 51.98 | I88: 12°53' | J88: 15.88 | K88: Locker-Braunerde | M88: 5.5 | N88: 1800 | R88: 120 | S88: 500 | X88: 16.05 | AA88: Bodentyp_B1_F1.xls | AB88: Koordinaten von Mitterfels übernommen
A89: MarkungB | B89: Markungsgraben LfW_202 | D89: Bayrischer Wald, Einzugsgebiet Große Ohe | E89: Buche | F89: 1128 | G89: 48°59' | H89: 52.98 | I89: 12°53' | J89: 16.88 | K89: Locker-Braunerde | M89: 7.5 | N89: 1801 | R89: 120 | S89: 500 | X89: 16.05 | AA89: Bodentyp_B1_F1.xls | AB89: Koordinaten von Mitterfels übernommen
A90: MarkungF2 | B90: Markungsgraben LfW_204 | D90: Bayrischer Wald, Einzugsgebiet Große Ohe | E90: Fichte | F90: 1355 | G90: 48°59' | H90: 53.98 | I90: 12°53' | J90: 17.88 | K90: Hochlagen-Braunerde | M90: 6.4 | N90: 1802 | R90: 120 | S90: 500 | X90: 16.05 | AA90: Bodentyp_B1_F1.xls | AB90: Koordinaten von Mitterfels übernommen
A91: Beerbu_Bu | B91: Beerenbusch Buche | C91: Deutschland | D91: Brandenburg | E91: Buche | F91: 78 | G91: 53°08' | H91: 53.13611111 | I91: 12°58' | J91: 12.96666667 | K91: schwach podsolige Braunerde | L91: mo | M91: 8.3 | N91: 570 | O91: 6.84 | P91: Level2 - 1207, ZALF-Fläche, Umbau von Kiefern- zu Buchenbestand (abgeschlossen) | Q91: 17005 (Neuglobsow, 3km) | R91: 200 | S91: 700 | T91: =Bodendaten!Y$530 -> 102.25 | U91: =Bodendaten!Z$535 -> 149.971 | V91: =Bodendaten!AB$535 -> 19.69689628 | AA91: /data/forevas/level2/Daten_BRB/Beerenbusch_Buche/2006_12_14_BuchenPublikation_AFL.doc
A92: Neugl | B92: Neuglobsow | C92: Deutschland | D92: Brandenburg | E92: Buche - Kiefer | F92: 65 | G92: 53°08' | H92: 53.14 | I92: 13°01' | J92: 13.03 | P92: Integrated monitoring (UBA) | Q92: 17006 (Neuglobsow) | T92: 70.1 | U92: =Bodendaten!Z$548 -> 104.9364165 | V92: =Bodendaten!AB$548 -> 15.52340446 | AA92: /data/forevas/level_II/Neuglobsow/Neuglobsow_Daten.xls
A93: Skaes | B93: Skaesschen | C93: Deutschland | D93: Düben-Niederlausitzer Altmoränenland | E93: Pappel | F93: 120 | G93: 51°21 | H93: 51.35 | I93: 13°34' | J93: 13.56 | K93: Braunerde / Humusbraunerde | M93: 8.5 | N93: 575 | P93: Aufforstung Pappel | S93: 700 | T93: =Bodendaten!Y$553 -> 168 | U93: =Bodendaten!Z$553 -> 87.83 | V93: =Bodendaten!AB$553 -> 11.66865949 | AA93: Pappeln_soils_SN.xls; Abschlussbericht zum Pappelanbau, Wolf & Böhnisch, Graupa, 2003 | AB93: Vornutzung Acker/Agrarflugplatz; nur Bodentyp geg.
A94: Noch | B94: Nochten | C94: Deutschland | D94: Düben-Niederlausitzer Altmoränenland | E94: Pappel | F94: 140 | G94: 51°28' | H94: 51.46 | I94: 14°39' | J94: 14.65 | K94: Regosol aus flachem Sandlehm | M94: 8.5 | N94: 640 | P94: Aufforstung Pappel | S94: 700 | T94: =Bodendaten!Y$561 -> 127.5 | U94: =Bodendaten!Z$561 -> 408.94 | V94: =Bodendaten!AB$561 -> 45.21671827 | AA94: Pappeln_soils_SN.xls; Abschlussbericht zum Pappelanbau, Wolf & Böhnisch, Graupa, 2004 | AB94: Vornutzung Wildwiese, Kippeenfläche; nur Bodentyp geg.
A95: Methau | B95: Methau II | C95: Deutschland | D95: Sächsisch-thüringisches Löß-Hügelland | E95: Pappel | F95: 200 | G95: 51°05' | H95: 51.08 | I95: 12°49' | J95: 12.81 | K95: Braunerde / Pseudogley-Braunerde / Braunerde - Pseudogley | M95: 8.1 | N95: 690 | P95: Aufforstung Pappel | S95: 700 | T95: =Bodendaten!Y$569 -> 331.55 | U95: =Bodendaten!Z$569 -> 148.975 | V95: =Bodendaten!AB$569 -> 9.802599112 | AA95: Pappeln_soils_SN.xls; Abschlussbericht zum Pappelanbau, Wolf & Böhnisch, Graupa, 2005 | AB95: Vornutzung Acker; nur Bodentyp geg.
A96: Thamm | B96: Thammenhain | C96: Deutschland | D96: Sächsisch-thüringisches Löß-Hügelland | E96: Pappel | F96: 130 | G96: 51°26' | H96: 51.43 | I96: 12°51' | J96: 12.85 | K96: Pseudogley - Braunderde / Braunerde - Pseudogley | M96: 8.5 | N96: 575 | P96: Aufforstung Pappel | S96: 700 | T96: =Bodendaten!Y$575 -> 182.5 | U96: =Bodendaten!Z$575 -> 100.42 | V96: =Bodendaten!AB$575 -> 10.99288451 | AA96: Pappeln_soils_SN.xls; Abschlussbericht zum Pappelanbau, Wolf & Böhnisch, Graupa, 2006 | AB96: Vornutzung Acker/Brache; nur Bodentyp geg.
A97: Arns | B97: Arnsfeld | C97: Deutschland | D97: Erzgebirge | E97: Pappel | F97: 600 | G97: 50°34' | H97: 50.56 | I97: 13°00' | J97: 13 | K97: Braunerde | M97: 6.9 | N97: 930 | P97: Aufforstung Pappel | S97: 700 | T97: =Bodendaten!Y$580 -> 183 | U97: =Bodendaten!Z$580 -> 212.34 | V97: =Bodendaten!AB$580 -> 11.8242566 | AA97: Pappeln_soils_SN.xls; Abschlussbericht zum Pappelanbau, Wolf & Böhnisch, Graupa, 2007 | AB97: Vornutzung Acker; nur Bodentyp geg.
A98: K74Mi | B98: Kahlenberg | C98: Brandenburg | D98: Chorin | E98: Kiefer, Rotbuche | F98: 35 | G98: 52°52' | H98: 52.871072 | I98: 13°53' | J98: 13.886044 | K98: podsolige Braunerde | L98: mr | M98: 9 | N98: 557 | P98: Kiefer 76 J. Buche 34 J. | Q98: 17101 Eberswalde (Entf.7.5 km) | T98: =Bodendaten!Y$586 -> 122.8 | U98: =Bodendaten!Z$586 -> 103.6049134 | V98: =Bodendaten!AB$586 -> 22.58825885 | Z98: 2006 | AA98: /data/forevas/projekte/oakchain/btu/daten_bu_ki_chorin
A99: K75Mi | B99: Kahlenberg | C99: Brandenburg | D99: Chorin | E99: Kiefer, Rotbuche | F99: 35 | G99: 52°52' | H99: 52.871072 | I99: 13°53' | J99: 13.886044 | K99: humose Braunerde | L99: mr | M99: 9 | N99: 557 | P99: Kiefer 114 J., Buche 73 J. | Q99: 17102 Eberswalde (Entf.7.5 km) | T99: =Bodendaten!Y$595 -> 145.28 | U99: =Bodendaten!Z$595 -> 88.23268843 | V99: =Bodendaten!AB$595 -> 20.56512753 | Z99: 2006 | AA99: /data/forevas/projekte/oakchain/btu/daten_bu_ki_chorin
A100: K75R | B100: Kahlenberg | C100: Brandenburg | D100: Chorin | E100: Kiefer | F100: 35 | G100: 52°52' | H100: 52.871072 | I100: 13°53' | J100: 13.886044 | K100: schwach podsolige Braunerde | L100: rot | M100: 9 | N100: 557 | P100: Rev. Kahlenberg, Abt. 75 | Q100: 17103 Eberswalde (Entf.7.5 km) | R100: 105 | S100: 700 | T100: =Bodendaten!Y$603 -> 117.214 | U100: =Bodendaten!Z$603 -> 195.7562819 | V100: =Bodendaten!AB$603 -> 25.71406541 | X100: N1 | Y100: NW | Z100: 2006 | AA100: /data/forevas/projekte/oakchain/btu/daten_bu_ki_chorin
A101: K86R_Bu | B101: Kahlenberg | C101: Brandenburg | D101: Chorin | E101: Rotbuche | F101: 35 | G101: 52°52' | H101: 52.86865 | I101: 13°52' | J101: 13.867541 | K101: schwach podsolige Braunerde | L101: mot | M101: 9 | N101: 557 | Q101: 17104 Eberswalde (Entf.7.5 km) | T101: =Bodendaten!Y$611 -> 195.427 | U101: =Bodendaten!Z$611 -> 74.60178 | V101: =Bodendaten!AB$611 -> 20.78810392 | Z101: 2006 | AA101: /data/forevas/projekte/oakchain/btu/daten_bu_ki_chorin
A102: Murcia1 | B102: El Aguilucho | C102: Spanien | D102: Provinz Murcia | E102: Aleppo-Kiefer (Pinus halepensis) | F102: 180 | G102: 37°53' | H102: 37.88 | I102: 01°15' | J102: 1.25 | K102: Hapocalcid / Petrocalcid (sandy loam) | M102: 17.6 | N102: 306 | S102: 500 | T102: =Bodendaten!Y$615 -> 201.6 | U102: =Bodendaten!Z$615 -> 298.425 | V102: =Bodendaten!AB$615 -> 20.75639019 | AA102: Quereta et al. (2000): Soil physical properties ...
A103: Murcia2 | B103: Rogativa catchment | C103: Spanien | D103: Provinz Murcia | E103: Aleppo-Kiefer (Pinus halepensis) | F103: 1200 | G103: 38°08′ | H103: 38.13 | I103: 02°13′ | J103: 2.21 | M103: 13.3 | N103: 583 | O103: 3.67 | R103: 70 | S103: 1000 | T103: =Bodendaten!Y$622 -> 115.6 | U103: =Bodendaten!Z$623 -> 102.564 | V103: =Bodendaten!AB$623 -> 10.25906736 | AA103: /data/forevas/projekte/interreg/bodendaten_GB; soilDATAphys.doc, soilDATAchem.doc; Sanz et al. 2002
A104: Murcia3 | B104: Murcia hypothetisch, Boden-ID 889-IV | C104: Spanien | D104: Provinz Murcia | E104: Aleppo-Kiefer (Pinus halepensis) | F104: 1200 | G104: 38°08′ | H104: 38.13 | I104: 02°13′ | J104: 2.21 | M104: 13.3 | N104: 583 | O104: 3.67 | R104: 70 | S104: 1000 | T104: =Bodendaten!Y$622 -> 115.6 | U104: =Bodendaten!Z$623 -> 102.564 | V104: =Bodendaten!AB$623 -> 10.25906736 | AA104: /data/forevas/projekte/interreg/bodendaten_GB/selected_soils_from_db.xls, Boden-ID 889-IV
A105: Murcia4 | B105: Murcia hypothetisch, Boden-ID 890-I | C105: Spanien | D105: Provinz Murcia | E105: Aleppo-Kiefer (Pinus halepensis) | F105: 1200 | G105: 38°08′ | H105: 38.13 | I105: 02°13′ | J105: 2.21 | M105: 13.3 | N105: 583 | O105: 3.67 | R105: 70 | S105: 1000 | T105: =Bodendaten!Y$622 -> 115.6 | U105: =Bodendaten!Z$623 -> 102.564 | V105: =Bodendaten!AB$623 -> 10.25906736 | AA105: /data/forevas/projekte/interreg/bodendaten_GB/selected_soils_from_db.xls, Boden-ID 890-I
A106: Murcia5 | B106: Murcia hypothetisch, Boden-ID 890-VII | C106: Spanien | D106: Provinz Murcia | E106: Aleppo-Kiefer (Pinus halepensis) | F106: 1200 | G106: 38°08′ | H106: 38.13 | I106: 02°13′ | J106: 2.21 | M106: 13.3 | N106: 583 | O106: 3.67 | R106: 70 | S106: 1000 | T106: =Bodendaten!Y$622 -> 115.6 | U106: =Bodendaten!Z$623 -> 102.564 | V106: =Bodendaten!AB$623 -> 10.25906736 | AA106: /data/forevas/projekte/interreg/bodendaten_GB/selected_soils_from_db.xls, Boden-ID 890-VII
A107: Murcia6 | B107: Murcia hypothetisch, Boden-ID 910-XIV | C107: Spanien | D107: Provinz Murcia | E107: Aleppo-Kiefer (Pinus halepensis) | F107: 1200 | G107: 38°08′ | H107: 38.13 | I107: 02°13′ | J107: 2.21 | M107: 13.3 | N107: 583 | O107: 3.67 | R107: 70 | S107: 1000 | T107: =Bodendaten!Y$622 -> 115.6 | U107: =Bodendaten!Z$623 -> 102.564 | V107: =Bodendaten!AB$623 -> 10.25906736 | AA107: /data/forevas/projekte/interreg/bodendaten_GB/selected_soils_from_db.xls, Boden-ID 910-XIV
A108: Murcia7 | B108: Murcia hypothetisch, Boden-ID 911-VII | C108: Spanien | D108: Provinz Murcia | E108: Aleppo-Kiefer (Pinus halepensis) | F108: 1200 | G108: 38°08′ | H108: 38.13 | I108: 02°13′ | J108: 2.21 | M108: 13.3 | N108: 583 | O108: 3.67 | R108: 70 | S108: 1000 | T108: =Bodendaten!Y$622 -> 115.6 | U108: =Bodendaten!Z$623 -> 102.564 | V108: =Bodendaten!AB$623 -> 10.25906736 | AA108: /data/forevas/projekte/interreg/bodendaten_GB/selected_soils_from_db.xls, Boden-ID 911-VII
A109: Murcia8 | B109: Murcia hypothetisch, Boden-ID 911-VIII | C109: Spanien | D109: Provinz Murcia | E109: Aleppo-Kiefer (Pinus halepensis) | F109: 1200 | G109: 38°08′ | H109: 38.13 | I109: 02°13′ | J109: 2.21 | M109: 13.3 | N109: 583 | O109: 3.67 | R109: 70 | S109: 1000 | T109: =Bodendaten!Y$622 -> 115.6 | U109: =Bodendaten!Z$623 -> 102.564 | V109: =Bodendaten!AB$623 -> 10.25906736 | AA109: /data/forevas/projekte/interreg/bodendaten_GB/selected_soils_from_db.xls, Boden-ID 911-VIII
A110: OakchK1 | B110: K1 Kümmernitz | C110: Deutschland | D110: Sachsen-Anhalt | E110: Kiefer - Eiche | F110: 48 | G110: 52°51' | H110: 52.85 | I110: 12°10' | J110: 12.18 | K110: podsolige Braunerde | L110: ror, mrr, mor | M110: 9.6 | N110: 542.2 | Q110: Werben/ Elbe | R110: 130 | S110: 1000 | T110: =Bodendaten!Y$670 -> 128 | U110: =Bodendaten!Z$673 -> 94.68857869 | V110: =Bodendaten!AB$673 -> 20.23857309 | X110: schwach geneigt, wellige Oberfläche | AA110: profildatenblatt_k1.pdf, Oakchain_Boden.xls
A111: OakchK2 | B111: K2 Rochau | C111: Deutschland | D111: Brandenburg | E111: Kiefer - Eiche | F111: 128 | G111: 51°47' | H111: 51.79 | I111: 13°33' | J111: 13.55 | K111: stark podsolige Pseudogley-Braunerde | L111: mrr, mor | M111: 9.8 | N111: 585.6 | Q111: Hohenbucko | R111: 130 | S111: 1000 | T111: =Bodendaten!Y$680 -> 143.2 | U111: =Bodendaten!Z$683 -> 100.677752 | V111: =Bodendaten!AB$683 -> 21.01547905 | X111: horizontal gestreckter Hang, vertikal konvex, schwach geneigt | AA111: profildatenblatt_k2.pdf, Oakchain_Boden.xls
A112: OakchK3 | B112: K3 Schernsdorf | C112: Deutschland | D112: Brandenburg | E112: Kiefer - Eiche | F112: 122 | G112: 52°12' | H112: 52.21 | I112: 14°28' | J112: 14.48 | K112: Pseudogley-Braunerde | L112: mom - Mullartiger Moder bis F-Mull | M112: 9.3 | N112: 523.3 | P112: gleichzeitig A5 | Q112: Beeskow | R112: 140 | S112: 1000 | T112: =Bodendaten!Y$690 -> 116.75 | U112: =Bodendaten!Z$693 -> 67.16614424 | V112: =Bodendaten!AB$693 -> 17.72502298 | X112: sehr schwach bis kaum geneigt | AA112: profildatenblatt_a5_k3.pdf, Oakchain_Boden.xls
A113: OakchK4 | B113: K4 Smardze | C113: Polen | D113: Poznan | E113: Kiefer - Eiche | F113: 226 | G113: 51°11' | H113: 51.19 | I113: 17°56' | J113: 17.94 | K113: Braunerde | L113: mor - feinhumusreicher Moder | M113: 8.7 | N113: 542.1 | Q113: Wroclav | R113: 105 | S113: 1000 | T113: =Bodendaten!Y$700 -> 104.5 | U113: =Bodendaten!Z$701 -> 53.76608637 | V113: =Bodendaten!AB$701 -> 17.16335294 | X113: eben | AA113: profildatenblatt_k4.pdf, Oakchain_Boden.xls
A114: OakchK5 | B114: K5 Golejow | C114: Polen | D114: Radom | E114: Kiefer - Eiche | F114: 226 | G114: 50°34' | H114: 50.58 | I114: 21°12' | J114: 21.21 | K114: Braunerde | L114: mor, mom | M114: 7.9 | N114: 647.1 | Q114: Lublin | R114: 105 | S114: 1000 | T114: =Bodendaten!Y$707 -> 83 | U114: =Bodendaten!Z$709 -> 54.76792686 | V114: =Bodendaten!AB$709 -> 16.88971588 | X114: Kulminationsbereich | AA114: profildatenblatt_k5.pdf, Oakchain_Boden.xls
A115: OakchA0 | B115: A0 Neusorgefeld | C115: Deutschland | D115: Brandenburg | E115: Kiefer | F115: 112.6 | G115: 51°45' | H115: 51.76 | I115: 13°31' | J115: 13.53 | K115: Podsol-Braunerde (PP-BB) | L115: ror | M115: 9.8 | N115: 585.6 | P115: Kiefer-Reinbestand | Q115: Hohenbucko | R115: 140 | S115: 1000 | T115: =Bodendaten!Y$715 -> 97.5 | U115: =Bodendaten!Z$717 -> 104.1474498 | V115: =Bodendaten!AB$717 -> 27.36594182 | X115: sehr schwach bis kaum geneigt | AA115: profildatenblatt_a0.pdf, Oakchain_Boden.xls
A116: OakchA1 | B116: A1 Rochau | C116: Deutschland | D116: Brandenburg | E116: Kiefer - Eiche | F116: 122.4 | G116: 51°47' | H116: 51.79 | I116: 13°31' | J116: 13.52 | K116: schwach podsolige Braunerde (p2BB) | L116: ror | M116: 9.8 | N116: 585.6 | P116: Waldumbauversuchsfläche | Q116: Hohenbucko | R116: 120 | S116: 1000 | T116: =Bodendaten!Y$724 -> 112.7 | U116: =Bodendaten!Z$726 -> 91.5000844 | V116: =Bodendaten!AB$726 -> 23.6856369 | X116: eben | AA116: profildatenblatt_a1.pdf, Oakchain_Boden.xls
A117: OakchA2 | B117: A2 Rochau | C117: Deutschland | D117: Brandenburg | E117: Eiche - Kiefer | F117: 123 | G117: 51°47' | H117: 51.79 | I117: 13°32' | J117: 13.54 | K117: schwach podsolige Braunerde (p2BB) | L117: ror, mrr, mor | M117: 9.8 | N117: 585.6 | Q117: Hohenbucko | R117: 120 | S117: 1000 | T117: =Bodendaten!Y$732 -> 116.5 | U117: =Bodendaten!Z$733 -> 105.7730973 | V117: =Bodendaten!AB$733 -> 22.46338962 | X117: eben | AA117: profildatenblatt_a2.pdf, Oakchain_Boden.xls
A118: OakchA3 | B118: A3 Fünfeichen | C118: Deutschland | D118: Brandenburg | E118: Eiche | F118: 102.6 | G118: 52°10' | H118: 52.17 | I118: 14°28' | J118: 14.48 | K118: - | L118: - | N118: 523.3 | P118: Level-II-Fläche | Q118: Beeskow
A119: OakchA4 | B119: A4 Neusorgefeld | C119: Deutschland | D119: Brandenburg | E119: Kiefer - Eiche | F119: 121.8 | G119: 51°47' | H119: 51.79 | I119: 13°32' | J119: 13.54 | K119: schwach podsolige Braunerde (p2BB) | L119: mrr bis mor | M119: 9.8 | N119: 585.6 | P119: einschl. Naturwaldzelle 0711 | Q119: Hohenbucko | R119: 120 | S119: 1000 | T119: =Bodendaten!Y$732 -> 116.5 | U119: =Bodendaten!Z$741 -> 134.3006886 | V119: =Bodendaten!AB$741 -> 26.85761241
A120: OakchA3Z | B120: A3_Z Fünfeichen | C120: Deutschland | D120: Brandenburg | E120: Eiche - Kiefer | P120: Zusatzfläche, nicht weiter bearbeitet
A121: Frei171 | B121: Freiwalde, Rev. Maienpfuhl, Abt. 171 | C121: Deutschland | D121: Brandenburg | E121: Douglasie | F121: 65 | G121: 52°31' | H121: 52.52 | I121: 14°00' | J121: 14 | K121: Braunerde-Fahlerde aus Geschiebelehm | L121: mom | M121: 9 | N121: 583 | O121: 6 | Q121: Schiffmühle-Neutornow | S121: 1000 | T121: =Bodendaten!Y$748 -> 198.5 | U121: =Bodendaten!Z$750 -> 77.028 | V121: =Bodendaten!AB$750 -> 13.23596123 | X121: eben | AB121: Douglasienversuch; keine Bodenprofile
A122: buek26 | B122: BÜK1000, Landwirtschaft | C122: Deutschland | G122: 52°31' | H122: 53.52 | I122: 14°00' | J122: 14 | K122: Fahlerde und Bänderparabraunerde | P122: Bük 1000, Landwirtschaft | R122: 100 | S122: 1000 | T122: =Bodendaten!$Y$754 -> 122.5975 | U122: =Bodendaten!Z$755 -> 28.665 | V122: =Bodendaten!AB$755 -> 9 | AA122: buek.sod, ../daten/boden/buek/BUEK1000.xls
A123: buek6 | B123: BÜK1000, Landwirtschaft | C123: Deutschland | G123: 52°31' | H123: 53.52 | I123: 14°00' | J123: 14 | K123: Niedermoor | P123: Bük 1000, Landwirtschaft | R123: 100 | S123: 50 | T123: =Bodendaten!$Y$758 -> 500 | U123: =Bodendaten!Z$759 -> 4846.24 | V123: =Bodendaten!AB$759 -> 15.4950761 | AA123: buek.sod, ../daten/boden/buek/BUEK1000.xls
A124: buek7 | B124: BÜK1000, Landwirtschaft | C124: Deutschland | G124: 52°31' | H124: 53.52 | I124: 14°00' | J124: 14 | K124: Hochmoor | P124: Bük 1000, Landwirtschaft | R124: 100 | S124: 100 | T124: =Bodendaten!$Y$761 -> 495 | U124: =Bodendaten!Z$762 -> 4456.8 | V124: =Bodendaten!AB$762 -> 43.43859649 | AA124: buek.sod, ../daten/boden/buek/BUEK1000.xls
A125: NRW501 | C125: Deutschland | D125: Nordrhein-Westphalen
A126: NRW502 | B126: Tannenbusch 502 | C126: Deutschland | D126: Nordrhein-Westphalen | E126: Eiche - Buche | F126: 30 | G126: 51°43' | H126: 51.72972222 | I126: 6°10' | J126: 6.171111111 | K126: Pseudogley-Braunerde | L126: mota - feinhumusarmer Moder | M126: 9.2 | N126: 775 | O126: 16.8 | P126: Level2 - 502 | Q126: Kleve | R126: 140 | S126: 700 | T126: =Bodendaten!$Y$770 -> 354.3 | U126: =Bodendaten!$Z$774 -> 165.568025 | V126: =Bodendaten!$AB$774 -> 15.01549906 | W126: DL502 | X126: eben | Y126: eben | AA126: daten/level2/NRW/502-eiche_bodenprofil.pdf
A127: Tann502 | B127: Tannenbusch 502 | C127: Deutschland | D127: Nordrhein-Westphalen | E127: Eiche - Buche | F127: 25 | G127: 51°43' | H127: 51.72972222 | I127: 6°10' | J127: 6.171111111 | M127: 9.2 | N127: 775 | P127: Level2 - 502 | S127: 700 | W127: DL502 | Z127: 2018-04-25 | AA127: d:\All_fs\Daten\Level2\Level2_Datenbank\boden_level2_dendroklima.xlsx, D:\All_fs\Daten\Level2\Level_2_flaechen.xlsx
A128: NRW503 | B128: Haard 503 | C128: Deutschland | D128: Nordrhein-Westphalen | E128: Buche | F128: 75 | G128: 51°41' | H128: 51.68638889 | I128: 7°15' | J128: 7.254444444 | K128: pseudovergleiter Braunerde-Podsol | L128: mr - rohhumusartiger Moder bis Rohhumus | M128: 9.2 | N128: 775 | O128: 25.1 | P128: Level2 - 503 | Q128: Olfen / Münster | R128: 120 | S128: 700 | T128: =Bodendaten!$Y$780 -> 254.07 | U128: =Bodendaten!$Z$784 -> 142.379207 | V128: =Bodendaten!$AB$784 -> 21.35269731 | W128: DL503 | X128: flache Mulde | Y128: flache Mulde | AA128: daten/level2/NRW/503-buche_bodenprofil.pdf
A129: NRW504 | B129: Velmerstot 504 | C129: Deutschland | D129: Nordrhein-Westphalen | E129: Fichte | F129: 415 | G129: 51°50' | H129: 51.83416667 | I129: 8°57' | J129: 8.95 | K129: Braunerde-Podsol | L129: mrr - rohhumsartiger Moder, feinhumusreich | M129: 7.5 | N129: 1200 | O129: 20.6 | P129: Level2 - 504 | Q129: Bad Lippspringe (20231?) | R129: 58 | S129: 700 | T129: =Bodendaten!$Y$790 -> 190.45 | U129: =Bodendaten!$Z$792 -> 267.8405 | V129: =Bodendaten!$AB$792 -> 23.65709117 | W129: DL504 | Y129: West | AA129: daten/level2/NRW/504-fichte_bodenprofile.pdf
A130: NRW505 | B130: Glindfeld 505 | C130: Deutschland | D130: Nordrhein-Westphalen | E130: Buche - Eiche | F130: 550 | G130: 51°13' | H130: 51.22305556 | I130: 8°40' | J130: 8.675 | K130: Braunerde | L130: mota - feinhumusarmer Moder | M130: 6.4 | N130: 790 | O130: 10 | P130: Level2 - 505 | Q130: Willingen-Upland (20269?) | R130: 40 | S130: 700 | T130: =Bodendaten!$Y$797 -> 96 | U130: =Bodendaten!$Z$797 -> 207.4845 | V130: =Bodendaten!$AB$797 -> 13.03188182 | W130: DL505 | X130: stark geneigt (10-15°) | Y130: Südost | AA130: daten/level2/NRW/505-buche_bodenprofile.pdf
A131: NRW506 | B131: Elberndorf 506 | C131: Deutschland | D131: Nordrhein-Westphalen | E131: Fichte | F131: 675 | G131: 51°01' | H131: 51.01861111 | I131: 8°11' | J131: 8.183611111 | K131: schwach podsolige Braunerde | L131: mra - rohhumsartiger Moder, feinhumusarm | M131: 6.4 | N131: 1323 | O131: 30.7 | P131: Level2 - 506 | Q131: Erndtebrück (20116?) | R131: 44 | S131: 700 | T131: =Bodendaten!$Y$803 -> 107.7 | U131: =Bodendaten!$Z$803 -> 140.97685 | V131: =Bodendaten!$AB$803 -> 14.75957829 | W131: DL506 | X131: sehr schwach geneigt (1-2°) | Y131: Süd | AA131: daten/level2/NRW/506-fichte_bodenprofile.pdf
A132: NRW507 | B132: Monschau | C132: Deutschland | D132: Nordrhein-Westphalen | E132: Buche - Tanne | F132: 445 | G132: 50°40' | H132: 50.66777778 | I132: 6°15' | J132: 6.25 | K132: podsoliger Pseudogley | L132: mr - rohhumsartiger Moder | M132: 8 | N132: 1000 | O132: 9.7 | P132: Level2 - 507 | Q132: (19121?) | S132: 700 | Y132: Nord
A133: NRW508 | B133: Altenbeken 508 | C133: Deutschland | D133: Nordrhein-Westphalen | E133: Buche - Eiche | F133: 375 | G133: 51°42' | H133: 51.70722222 | I133: 8°59' | J133: 8.991388889 | K133: Braunerde-Pseudogley | L133: muo - F-Mull (Of-Mull) | M133: 8.1 | N133: 1002 | P133: Level2 - 508 | Q133: Bad Driburg (20225?) | R133: 95 | S133: 700 | T133: =Bodendaten!$Y$809 -> 100.48 | U133: =Bodendaten!$Z$809 -> 156.89166 | V133: =Bodendaten!$AB$809 -> 12.02970368 | W133: DL508 | X133: mittel geneigt (5-10°) | Y133: Südwest | AA133: daten/level2/NRW/508-buche_bodenprofile.pdf
A134: Jann | B134: Klein Loitz | C134: Deutschland | D134: Brandenburg | E134: Robinie | F134: 141 | G134: 51°37' | H134: 51.625 | I134: 14°29' | J134: 14.4917 | P134: Robinienanbau auf stillgelegter Ackerfläche | AB134: Jannsicker Robinie (bei Cottbus)
A135: Sedl | B135: Kippe Sedlitz | C135: Deutschland | D135: Brandenburg | E135: Robinie | F135: 100 | G135: 51°31' | H135: 51.5167 | I135: 14°01' | J135: 14.0167 | P135: Robinienanbau auf stillgelegter Ackerfläche
A136: Jwalde | B136: Tagebau Jänschwalde 1198 | C136: Deutschland | D136: Brandenburg | E136: Robinie | F136: 65 | G136: 51°52' | H136: 51.8667 | I136: 14°30' | J136: 14.5 | O136: 200 | P136: Robinienanbau auf stillgelegter Ackerfläche, Alley-Cropping System | AA136: Diss. Holger Grünewald | AB136: jährliche Düngung
A137: Dannb1 | B137: Dannenberg (Fläche1) | C137: Deutschland | D137: Brandenburg, Barnim-Hochfläche | E137: Robinie | F137: 110 | G137: 52°30' | H137: 52.5 | I137: 14°00' | J137: 14 | K137: Braunerde/Parabraunerde | L137: mut - typischer Mull (L-Mull) | M137: 8.6 | N137: 503 | P137: Robinienanbau seit 1998 auf stillgelegter Ackerfläche | Q137: 18004 Müncheberg (52.51/14.12) | R137: 72 | S137: 700 | T137: =Bodendaten!$Y$823 -> 104.3 | U137: =Bodendaten!$Z$824 -> 22.969736 | V137: =Bodendaten!$AB$824 -> 11 | X137: Kuppe, eben | Y137: West | AA137: Katja Peters, 2006: Untersuchung zur Biommaseproduktion von Robinia pseudoacacia …; Diplomarbeit, FH Eberswalde
A138: Dannb2 | B138: Dannenberg (Fläche2) | C138: Deutschland | D138: Brandenburg, Barnim-Hochfläche | E138: Robinie | F138: 110 | G138: 52°30' | H138: 52.5 | I138: 14°00' | J138: 14 | K138: Braunerde/Parabraunerde | L138: mut - typischer Mull (L-Mull) | M138: 8.6 | N138: 503 | P138: Robinienanbau seit 1998 auf stillgelegter Ackerfläche | Q138: 18005 Müncheberg (52.51/14.12) | R138: 43 | S138: 700 | T138: 192 | U138: =Bodendaten!$Z$831 -> 15.455088 | V138: =Bodendaten!$AB$831 -> 11 | X138: Kuppe, eben | Y138: West | AA138: Katja Peters, 2006: Untersuchung zur Biommaseproduktion von Robinia pseudoacacia …; Diplomarbeit, FH Eberswalde
A139: Dannb3 | B139: Dannenberg (Fläche3) | C139: Deutschland | D139: Brandenburg, Barnim-Hochfläche | E139: Robinie | F139: 110 | G139: 52°30' | H139: 52.5 | I139: 14°00' | J139: 14 | K139: Braunerde/Parabraunerde | L139: mut - typischer Mull (L-Mull) | M139: 8.6 | N139: 503 | P139: Robinienanbau seit 1998 auf stillgelegter Ackerfläche | Q139: 18006 Müncheberg (52.51/14.12) | R139: 45 | S139: 700 | T139: =Bodendaten!$Y$837 -> 140.1 | U139: =Bodendaten!$Z$838 -> 24.8921184 | V139: =Bodendaten!$AB$838 -> 11 | X139: Rücken, eben | Y139: West | AA139: Katja Peters, 2006: Untersuchung zur Biommaseproduktion von Robinia pseudoacacia …; Diplomarbeit, FH Eberswalde
A140: Dannb4 | B140: Dannenberg (Fläche4) | C140: Deutschland | D140: Brandenburg, Barnim-Hochfläche | E140: Robinie | F140: 110 | G140: 52°30' | H140: 52.5 | I140: 14°00' | J140: 14 | K140: Braunerde/Parabraunerde | L140: mut - typischer Mull (L-Mull) | M140: 8.6 | N140: 503 | P140: Robinienanbau seit 1998 auf stillgelegter Ackerfläche | Q140: 18007 Müncheberg (52.51/14.12) | R140: 45 | S140: 700 | T140: =Bodendaten!$Y$842 -> 144.06 | U140: =Bodendaten!$Z$843 -> 81.69832 | V140: =Bodendaten!$AB$843 -> 11 | X140: Unterhang, eben | Y140: Südwest | AA140: Katja Peters, 2006: Untersuchung zur Biommaseproduktion von Robinia pseudoacacia …; Diplomarbeit, FH Eberswalde
A141: FIB3 | B141: Luckau | C141: Deutschland | D141: Brandenburg, Barnim-Hochfläche | E141: Robinie | F141: 65 | G141: 51°51' | H141: 51.85 | I141: 13°45' | J141: 13.75 | K141: Braunerde | P141: Neuanpflanzung Robinie auf lws Nutzfläche im Frühjahr 2004 mit einjährigen Pflanzen | Q141: 22180 Fürstlich Drehna (51.75/13.8) | R141: 200 | S141: 150 | T141: =Bodendaten!$Y$847 -> 165.9 | U141: =Bodendaten!$Z$849 -> 71.8523675 | V141: =Bodendaten!$AB$849 -> 11 | X141: ? | AA141: parameter_bestand.xls; Datanblatt aus der BÜK300
A142: aspUSA | B142: Wisconsin | C142: USA | E142: Aspe | F142: 150 | G142: 45°36' | H142: 45.6 | I142: 89°30' | J142: 89.5 | K142: sandy loam - Alfic Haplorthod | M142: 4.9 | N142: 810 | P142: Ackerfläche mit Aspen-CUP | R142: 100 | S142: 700 | T142: =Bodendaten!$Y$853 -> 218 | U142: =Bodendaten!$Z$854 -> 255.075 | V142: =Bodendaten!$AB$854 -> 13.76923077 | AA142: Projektbericht Dickson et al.: FACTS-II - The ASpen Free-air CO2 and O3 Enrichment (FACE) Project | AB142: nicht alle Angaben vollständig, Ergänzung durch Schätzung
A143: St1501 | B143: Klötze | C143: Deutschland | D143: Sachsen-Anhalt | E143: Kiefer | F143: 75 | G143: 52°58' | H143: 52.96 | I143: 11°17' | J143: 11.28 | K143: Podsolige Braunerde | L143: mor - rohhumsartiger Moder | M143: 8.5 | N143: 575 | P143: Level2 - 1501 | Q143: 16134 Klötze/Altmark | R143: 270 | S143: 700 | T143: 124 | U143: =Bodendaten!$Z$862 -> 137.1544494 | V143: =Bodendaten!$AB$862 -> 19.3456914 | W143: DL1501 | X143: flach | Y143: SSW | AA143: /data/forevas/projekte/st_projekt/daten/level_ii_flächen_deutschland, Bodenbericht 2006 | AB143: Boden aus BDF 05 (BDF ST-005 Klötze_PN 2002_2008-06-04.xls, bdf_klötze.pdf)
A144: St1502 | B144: Nedlitz | C144: Deutschland | D144: Sachsen-Anhalt | E144: Kiefer | F144: 125 | G144: 52°05' | H144: 52.08 | I144: 12°31' | J144: 52.08 | K144: Podsolige Braunerde | L144: mor - rohhumsartiger Moder | M144: 8 | N144: 570 | P144: Level2 - 1502 | Q144: 17107 Lindau | R144: 275 | S144: 700 | T144: 48 | U144: =Bodendaten!$Z$871 -> 143.8833275 | V144: =Bodendaten!$AB$871 -> 20.86374444 | W144: DL1502 | X144: flach | Y144: West | AA144: /data/forevas/projekte/st_projekt/daten/level_ii_flächen_deutschland, Bodenbericht 2007
A145: Speu | B145: Speuld | C145: Niederlande | E145: Douglasie | F145: 40 | G145: 52°15' | H145: 52.25 | I145: 05°41' | J145: 5.68 | K145: Ortic podzol/ ortic luvisol | Q145: De Bilt | S145: 4000 | T145: =Bodendaten!$Y$890 -> 172.15 | U145: =Bodendaten!$Z$892 -> 158.7555 | V145: =Bodendaten!$AB$892 -> 27.46035111 | X145: flach
A146: Cele | B146: Celerina | C146: Schweiz | E146: Pinus cembra, Larix decidua | F146: 1850 | G146: 46°29'37'' | H146: 46.48 | I146: 09°53'23'' | J146: 9.88 | K146: Eisenpodsol | L146: mu | P146: Level2 | R146: 100 | S146: 700 | X146: 45 | AA146: site_data_file_celerina_model.xls
A147: BrassA | B147: BrasschaatA Toren | C147: Belgien | E147: Kiefer | F147: 16 | G147: 51°18'28" | H147: 51.3 | I147: 04°31'11" | J147: 4.51 | L147: mor | M147: 9.8 | N147: 767 | O147: 30-40 | P147: Level2 - 1502 - Belgien, Euroflux | R147: 75 | S147: 700 | T147: =Bodendaten!$Y$908 -> 179.210203 | U147: =Bodendaten!$Z$908 -> 187.95933 | V147: =Bodendaten!$AB$908 -> 21.62650931 | AA147: brasschaat_data_file.xls | AB147: Janssens, I. A., Sampson, D. A., Cermak, J., Meiresonne, L., Riguzzi, F., Overloop, S. and Ceulemans, R. (1999). Above- and belowground phytomass and carbon storage in a Belgian Scots pine stand. Annals of Forest Science 56(2): 81-90.
A148: BrassB | B148: BrasschaatB Hekken | C148: Belgien | E148: Kiefer | F148: 16 | G148: 51°18'28" | H148: 51.3 | I148: 04°31'11" | J148: 4.51 | L148: mor | M148: 9.8 | N148: 767 | O148: 30-40 | R148: 75 | S148: 700 | T148: =Bodendaten!$Y$916 -> 235.863753 | U148: =Bodendaten!$Z$916 -> 328.7751333 | V148: =Bodendaten!$AB$916 -> 22.64748162 | AA148: brasschaat_data_file.xls | AB148: Carrara, A., et al., Net ecosystem CO2 exchange of mixed forest in Belgium over 5 years. Agricultural and Forest Meteorology, 2003. 119(3-4): p. 209-227.
A149: BufaP1 | B149: Buchfart Parzelle 1 | C149: Deutschland | D149: Thueringen | E149: Buche | F149: 390 | G149: 50°54' | H149: 50.91 | I149: 11°21' | J149: 11.35 | L149: mu | Q149: Blankenhain (21121) | R149: 110 | S149: 700 | T149: =Bodendaten!$Y$941 -> 437.1 | U149: =Bodendaten!$Z$941 -> 89.30386482 | V149: =Bodendaten!$AB$941 -> 10.70861055 | AA149: Buchfahrt.xls (Daten von A. Borys)
A150: BufaP2 | B150: Buchfart Parzelle 2 | C150: Deutschland | D150: Thueringen | E150: Buche | F150: 390 | G150: 50°54' | H150: 50.91 | I150: 11°21' | J150: 11.35 | L150: mu | Q150: Blankenhain (21121) | R150: 110 | S150: 700 | T150: =Bodendaten!$Y$950 -> 485.45 | U150: =Bodendaten!$Z$950 -> 84.98799551 | V150: =Bodendaten!$AB$950 -> 13.26497982
A151: BufaP3 | B151: Buchfart Parzelle 3 | C151: Deutschland | D151: Thueringen | E151: Buche | F151: 390 | G151: 50°54' | H151: 50.91 | I151: 11°21' | J151: 11.35 | L151: mu | Q151: Blankenhain (21121) | R151: 110 | S151: 700 | T151: =Bodendaten!$Y$959 -> 325.1 | U151: =Bodendaten!$Z$959 -> 121.0719666 | V151: =Bodendaten!$AB$959 -> 13.74873628
A152: BufaP4 | B152: Buchfart Parzelle 4 | C152: Deutschland | D152: Thueringen | E152: Buche | F152: 390 | G152: 50°54' | H152: 50.91 | I152: 11°21' | J152: 11.35 | L152: mu | Q152: Blankenhain (21121) | R152: 110 | S152: 700 | T152: =Bodendaten!$Y$968 -> 301.45 | U152: =Bodendaten!$Z$968 -> 105.8832202 | V152: =Bodendaten!$AB$968 -> 13.80104966
A153: BufaPr1 | B153: Buchfart Profil 1 | C153: Deutschland | D153: Thueringen | E153: Buche | F153: 435 | G153: 50°54' | H153: 50.91 | I153: 11°21' | J153: 11.35 | K153: Braunerde-Parabraunerde, schwach pseudovergleyt (Orthic Luvisol) | L153: mom - mullartiger Moder | Q153: Blankenhain (21121) | R153: 100 | S153: 700 | T153: =Bodendaten!$Y$975 -> 471.9 | U153: =Bodendaten!$Z$975 -> 214.052 | V153: =Bodendaten!$AB$975 -> 14.68295271 | X153: 4 | Y153: Nord | AA153: D:\All_fs\Daten\Bestand\Thueringen\original\Lieferung_Maerz_2010\Buchfart Profilbeschreibung Kschidock.doc
A154: BufaPr2 | B154: Buchfart Profil 2 | C154: Deutschland | D154: Thueringen | E154: Buche | F154: 471 | G154: 50°54' | H154: 50.91 | I154: 11°21' | J154: 11.35 | K154: Braunerde-Terra fusca (Chromic Cambisol) | L154: mu - Mull bis moderartiger Mull | Q154: Blankenhain (21121) | R154: 30 | S154: 700 | T154: =Bodendaten!$Y$981 -> 326 | U154: =Bodendaten!$Z$981 -> 87.808 | V154: =Bodendaten!$AB$981 -> 19.5912539 | X154: 2 | Y154: NNO | AA154: D:\All_fs\Daten\Bestand\Thueringen\original\Lieferung_Maerz_2010\Buchfart Profilbeschreibung Kschidock.doc
A155: BufaPr3 | B155: Buchfart Profil 3 | C155: Deutschland | D155: Thueringen | E155: Buche | F155: 477 | G155: 50°54' | H155: 50.91 | I155: 11°21' | J155: 11.35 | K155: Braunerde-Terra fusca (Chromic Cambisol) | L155: mu - Mull bis moderartiger Mull | Q155: Blankenhain (21121) | R155: 44 | S155: 700 | T155: =Bodendaten!$Y$987 -> 280.4 | U155: =Bodendaten!$Z$987 -> 181.26 | V155: =Bodendaten!$AB$987 -> 21.8490839 | X155: eben | AA155: D:\All_fs\Daten\Bestand\Thueringen\original\Lieferung_Maerz_2010\Buchfart Profilbeschreibung Kschidock.doc
A156: BufaPr4 | B156: Buchfart Profil 4 | C156: Deutschland | D156: Thueringen | E156: Buche | F156: 472 | G156: 50°54' | H156: 50.91 | I156: 11°21' | J156: 11.35 | K156: Rendzina-Braunerde (Calcic Cambisol) | L156: mu - Mull | Q156: Blankenhain (21121) | R156: 95 | S156: 700 | T156: =Bodendaten!$Y$994 -> 354.5 | U156: =Bodendaten!$Z$994 -> 459.1408 | V156: =Bodendaten!$AB$994 -> 24.73872282 | X156: 17 | Y156: S | AA156: D:\All_fs\Daten\Bestand\Thueringen\original\Lieferung_Maerz_2010\Buchfart Profilbeschreibung Kschidock.doc
A157: BufaPr5 | B157: Buchfart Profil 5 | C157: Deutschland | D157: Thueringen | E157: Buche | F157: 453 | G157: 50°54' | H157: 50.91 | I157: 11°21' | J157: 11.35 | K157: Braunerde-Terra fusca (Chromic Cambisol) | L157: mu - moderartiger Mull | Q157: Blankenhain (21121) | R157: 63 | S157: 700 | T157: =Bodendaten!$Y$1001 -> 463.5 | U157: =Bodendaten!$Z$1001 -> 123.632 | V157: =Bodendaten!$AB$1001 -> 16.22893148 | X157: 4 | Y157: S | AA157: D:\All_fs\Daten\Bestand\Thueringen\original\Lieferung_Maerz_2010\Buchfart Profilbeschreibung Kschidock.doc
A158: BufaPr6 | B158: Buchfart Profil 6 | C158: Deutschland | D158: Thueringen | E158: Buche | F158: 455 | G158: 50°54' | H158: 50.91 | I158: 11°21' | J158: 11.35 | K158: Braunerde-Rendzina (Calcic Cambisol) | L158: mu - Mull | Q158: Blankenhain (21121) | R158: 54 | S158: 700 | T158: =Bodendaten!$Y$1007 -> 375 | U158: =Bodendaten!$Z$1007 -> 256.4083316 | V158: =Bodendaten!$AB$1058 -> 20.22868002 | X158: eben | AA158: D:\All_fs\Daten\Bestand\Thueringen\original\Lieferung_Maerz_2010\Buchfart Profilbeschreibung Kschidock.doc
A159: BufaPr7 | B159: Buchfart Profil 7 | C159: Deutschland | D159: Thueringen | E159: Buche | F159: 420 | G159: 50°54' | H159: 50.91 | I159: 11°21' | J159: 11.35 | K159: Braunerde-Rendzina (Calcic Cambisol) | L159: mu - Mull | Q159: Blankenhain (21121) | R159: 105 | S159: 700 | T159: =Bodendaten!$Y$1013 -> 360.5 | U159: =Bodendaten!$Z$1013 -> 215.3616 | V159: =Bodendaten!$AB$1013 -> 16.00234252 | X159: 18 | Y159: SSO | AA159: D:\All_fs\Daten\Bestand\Thueringen\original\Lieferung_Maerz_2010\Buchfart Profilbeschreibung Kschidock.doc
A160: BufaPr8 | B160: Buchfart Profil 8 | C160: Deutschland | D160: Thueringen | E160: Buche | F160: 405 | G160: 50°54' | H160: 50.91 | I160: 11°21' | J160: 11.35 | K160: Kalkbraunerde; kolluvial überprägt (Eutric Cdmbisol/ Calcic Cambisol) | L160: mu - Mull | Q160: Blankenhain (21121) | R160: 86 | S160: 700 | T160: =Bodendaten!$Y$1020 -> 570 | U160: =Bodendaten!$Z$1020 -> 368.2347357 | V160: =Bodendaten!$AB$1020 -> 14.66364574 | X160: 3 | Y160: SW | AA160: D:\All_fs\Daten\Bestand\Thueringen\original\Lieferung_Maerz_2010\Buchfart Profilbeschreibung Kschidock.doc
A161: SF11 | B161: Juupajoki S, Plot 11 | C161: Finnland | E161: Fichte | F161: 177 | G161: 61°51'05" | H161: 61.85 | I161: 24°18'45" | J161: 24.3 | K161: Geschiebelehm - Cmdy / Distic cambisol - Podzol | N161: 636 | R161: 40 | S161: 700 | T161: =Bodendaten!Y1077+Bodendaten!Y1078/6 -> 329.7059527 | U161: =Bodendaten!$Z$1078 -> 35.220141 | V161: =Bodendaten!$AB$1078 -> 19.49319069 | W161: SF11 | X161: 4 | AA161: D:\All_fs\Daten\Bestand\Finnland\Juupajoki; Lindroos et al. 2008
A162: SKI34 | C162: Deutschland | D162: Südbrandenburg, Kippe | E162: Kiefer | F162: 100 | G162: 51°34'50'' | H162: 51.56 | I162: 13°28'06'' | J162: 13.46 | K162: Kiipreinsand mit Kohle | P162: Kippenstandort | Q162: Doberlug-Kirchhain | R162: 150 | S162: 700 | T162: =Bodendaten!Y1109 -> 169.75 | U162: =Bodendaten!$Z$1084 -> 49.008736 | V162: =Bodendaten!$AB$1084 -> 12.84725875 | AA162: D:\All_fs\Daten\BODEN\Brandenburg_Kippen\Kippenstandort_SKI34.xls | AB162: Kippenstandort mit Kohlebeimengungen
A163: Zotino | B163: Zotino / Bor West | C163: Russland | D163: Sibirien | E163: Kiefer | F163: 100 | G163: 60°43' | H163: 60.71 | I163: 89°08 | J163: 89.13 | K163: Podsol / Sand | M163: -3.7 | N163: 565 | R163: 100 | S163: 700 | T163: =Bodendaten!Y1099 -> 169.75 | U163: =Bodendaten!$Z$1110 -> 40.425 | V163: =Bodendaten!$AB$1110 -> 33.9998398
A164: ZotinoEast | B164: Zotino / Bor Ost | C164: Russland | D164: Sibirien | K164: Braunerde / Lehm | M164: -3.7 | N164: 565 | R164: 100 | S164: 700
A165: Zotino200 | B165: Zotino / Bor | C165: Russland | D165: Sibirien | E165: Kiefer | F165: 100 | G165: 60°43' | H165: 60.71 | I165: 89°08 | J165: 89.13 | K165: Podsol / Sand | M165: -3.7 | N165: 565 | P165: 200 Jahr alter Kiefernbestand mit Flechten; Moderately burned lichen-type; fire return interval of 43 ± 17 years | Q165: Bor (23884) | R165: 100 | S165: 700 | T165: =Bodendaten!Y1128 -> 143.5 | U165: =Bodendaten!$Z$1130 -> 37.556 | V165: =Bodendaten!$AB$1130 -> 20.36894913 | AA165: zotino_daten.xls
A166: Zotino200_1 | B166: Zotino / Bor | C166: Russland | D166: Sibirien | E166: Kiefer | F166: 100 | G166: 60°43' | H166: 60.71 | I166: 89°08 | J166: 89.13 | K166: Podsol / Sand | M166: -3.7 | N166: 565 | P166: 200 Jahr alter Kiefernbestand mit Flechten; Moderately burned lichen-type; fire return interval of 43 ± 17 years | Q166: Bor (23884) | R166: 100 | S166: 700 | T166: =Bodendaten!Y1129 -> 169.75 | U166: =Bodendaten!$Z$1130 -> 37.556 | V166: =Bodendaten!$AB$1130 -> 20.36894913 | AA166: zotino_daten.xls | AB166: Bodendaten noch einmal mit anderen Werten f. N aus Wirth, Schulze, Lühker et al., 2002, Tab.4
A167: Zotino95 | B167: Zotino / Bor | C167: Russland | D167: Sibirien | E167: Kiefer | F167: 100 | G167: 60°43' | H167: 60.71 | I167: 89°08 | J167: 89.13 | K167: Podsol / Sand | M167: -3.7 | N167: 565 | P167: 95 Jahre, Flechten, ungestört | Q167: Bor (23884) | R167: 100 | S167: 700 | T167: =Bodendaten!Y1139 -> 169.75 | U167: =Bodendaten!$Z$1140 -> 47.796 | V167: =Bodendaten!$AB$1140 -> 15.20387362 | AA167: zotino_daten.xls
A168: Zotino138 | B168: Zotino / Bor | C168: Russland | D168: Sibirien | E168: Kiefer | F168: 100 | G168: 60°43' | H168: 60.71 | I168: 89°08 | J168: 89.13 | K168: Podsol / Sand | M168: -3.7 | N168: 565 | P168: 138 Jahre, Moderately burned lichen-type; fire return interval of 43 ± 17 years | Q168: Bor (23884) | R168: 100 | S168: 700 | T168: =Bodendaten!Y1149 -> 169.75 | U168: =Bodendaten!$Z$1150 -> 27.432 | V168: =Bodendaten!$AB$1150 -> 10.42505637 | AA168: zotino_daten.xls
A169: Moor1 | B169: Ahlenmoor | C169: Deutschland | D169: Niedersachsen | M169: 8.5 | N169: 926 | P169: Intensivgrünland auf Hochmoor | AA169: Hoeper-klimagase_in_abhaengigkeit_von_der_moornutzung_2010.pdf
A170: Monteruf | B170: Monte Rufeno | C170: Italien | D170: Latium | E170: Quercus cerris-Turkey oak | F170: 690 | G170: 42°49'16'' | H170: 42.81 | I170: 11°54'10'' | J170: 11.9 | K170: Dystric Cambisols | M170: 12 | N170: 1000 | P170: Level2 | R170: 63 | W170: Monteruf | X170: 1 | AA170: italy site_data_file_model.xls
A171: Colle | B171: Collelongo | C171: Italien | D171: Abruzzen | E171: Buche | F171: 1550 | G171: 41°50'58'' | H171: 41.83 | I171: 13°35'17'' | J171: 13.58 | M171: 7.4 | N171: 1140 | R171: 115 | S171: 700 | T171: =Bodendaten!Y1169 -> 154.5 | U171: =Bodendaten!$Z$1170 -> 260.562 | V171: =Bodendaten!$AB$1170 -> 12.22939802 | W171: Colle | X171: 5-10 | Y171: Süd | AA171: Cecchini et al., 2002
A172: Snezna | B172: Snezna jama | C172: Slowenien | E172: Buche | F172: 890 | G172: 45°39'21'' | H172: 45.65 | I172: 15°01'29'' | J172: 15.01 | K172: Eutric Cambisols - Rendzic Leptosols | R172: 40 | S172: 700 | X172: 30 | AA172: site_data_file_slo_model.xls
A173: ATP1 | C173: Österreich | D173: Waldviertel | E173: Kiefer | F173: 736 | H173: -99 | J173: -99 | K173: Semipodsol | L173: mo | R173: 80 | S173: 700 | X173: 12.5
A174: ATP2 | C174: Österreich | D174: Waldviertel | E174: Kiefer | F174: 547 | H174: -99 | J174: -99 | K174: Cambisol | L174: mo | R174: 80 | S174: 700 | X174: 2.1
A175: ATPSP | C175: Österreich | D175: Waldviertel | E175: Kiefer | F175: 354 | H175: -99 | J175: -99 | L175: mo | R175: 80 | S175: 700 | X175: 7.8 | AB175: in der Nähe von ATP2
A176: Hechtel | B176: Hechtel | C176: Belgien | F176: 20 | G176: 51°17' | H176: 51.28 | I176: 05°31' | J176: 5.51 | K176: loamy sand | R176: 80 | S176: 100
A177: Pijnven | B177: Pijnven | C177: Belgien | F177: 18 | G177: 51°17' | H177: 51.28 | I177: 05°31' | J177: 5.51 | K177: sandy | R177: 95 | S177: 115
A178: EST1 | C178: Estland | E178: Kiefer | G178: 57°51'12'' | H178: 57.85 | I178: 25°55'22'' | J178: 25.91 | K178: Gleyic Podzol | L178: Moder | R178: 100 | S178: 700
A179: EST2 | C179: Estland | E179: Kiefer | G179: 57°59'44'' | H179: 57.98 | I179: 25°38'30'' | J179: 25.63 | K179: Histic Podzol | L179: Histomoder | R179: 100 | S179: 700
A180: EST3 | C180: Estland | E180: Kiefer | G180: 57°35'00'' | H180: 57.58 | I180: 25°17'42'' | J180: 25.28 | K180: Albic Podzol | L180: Mor | R180: 100 | S180: 700
A181: BGoak | B181: Ardennes | C181: Belgien | D181: Ardennen | E181: Eiche | F181: 300 | G181: 50°01 | H181: 50.01 | I181: 04°24' | J181: 4.4 | K181: Dystrochrepts (USDA soil taxonomy) | M181: 8 | N181: 1044 | O181: 8 | R181: 155 | S181: 150 | AA181: D:\All_fs\Daten\Boden\Belgien
A182: BGmix | B182: Ardennes | C182: Belgien | D182: Ardennen | E182: Buche-Eiche | F182: 300 | G182: 50°01 | H182: 50.01 | I182: 04°24' | J182: 4.4 | K182: Dystrochrepts (USDA soil taxonomy) | M182: 8 | N182: 1044 | O182: 8 | R182: 155 | S182: 150 | AA182: D:\All_fs\Daten\Boden\Belgien
A183: BGbeech | B183: Ardennes | C183: Belgien | D183: Ardennen | E183: Buche | F183: 300 | G183: 50°01 | H183: 50.01 | I183: 04°24' | J183: 4.4 | K183: Dystrochrepts (USDA soil taxonomy) | M183: 8 | N183: 1044 | O183: 8 | R183: 135 | S183: 150 | AA183: D:\All_fs\Daten\Boden\Belgien
A184: Rehe18 | B184: Rehefeld | C184: Deutschland | D184: Osterzegbirge | E184: Fichte | F184: 733 | G184: 50°44' | H184: 50.74 | I184: 13°40' | J184: 13.68 | K184: Normbraunerde aus periglaziärem Grus führendem Sand über periglaziärem Grusssand (Gneis) | M184: 6.9 | N184: 943 | O184: 8 | Q184: 1951-2006 22109basz.dat 1901-2010 22102basz.dat | R184: 80 | S184: 700
A185: Rehe33 | B185: Rehefeld | C185: Deutschland | D185: Osterzegbirge | E185: Fichte | F185: 733 | G185: 50°44' | H185: 50.74 | I185: 13°40' | J185: 13.68 | K185: Normgley aus fluvilimnogenem Schluff (Hochflutlehm) über periglaziärem Lehmschutt | M185: 6.9 | N185: 943 | O185: 8 | Q185: 1951-2006 22109basz.dat 1901-2010 22102basz.dat | R185: 65 | S185: 50
A186: Rehe04 | B186: Rehefeld | C186: Deutschland | D186: Osterzegbirge | E186: Fichte | F186: 733 | G186: 50°44' | H186: 50.74 | I186: 13°40' | J186: 13.68 | K186: Normbraunerde aus periglaziärem Grus führendem Sand über periglaziärem Grusssand (Gneis, Granit oder Rhyolith) | M186: 6.9 | N186: 943 | O186: 8 | Q186: 1951-2006 22109basz.dat 1901-2010 22102basz.dat | R186: 80 | S186: 700
A187: OBB | B187: Oberbärenburg | C187: Deutschland | D187: Osterzegbirge | E187: Fichte | F187: 735 | G187: 50°58' | H187: 50.96 | I187: 13°34' | J187: 13.56 | R187: 80 | S187: 700
A188: SR122a | B188: Serbien | C188: Serbien | E188: Buche | F188: 750 | G188: 44°21' | H188: 44.360556 | I188: 19°16' | J188: 19.279056 | K188: sandiger Lehm | R188: 100 | S188: 700 | X188: 5-13.5 | Y188: NNW | AA188: Stand_122_soil_en.docx
A189: SR33a | B189: Serbien | C189: Serbien | E189: Buche | F189: 500 | G189: 44°24' | H189: 44.401389 | I189: 21°36' | J189: 21.609028 | R189: 100 | S189: 700 | X189: 5-30 | Y189: NNW | AA189: Table_soil_additional_8_stands.doc
A190: SR42a | B190: Serbien | C190: Serbien | E190: Buche | F190: 950 | G190: 44°07' | H190: 44.130639 | I190: 21°57' | J190: 21.962278 | R190: 60 | S190: 700 | X190: 5-20 | Y190: NW
A191: SR27a | B191: Serbien | C191: Serbien | E191: Buche | F191: 550 | G191: 44°22' | H191: 44.367525 | I191: 19°09' | J191: 19.156444 | R191: 90 | S191: 700 | X191: 5-40 | Y191: WSW
A192: SR31a | B192: Serbien | C192: Serbien | E192: Buche | F192: 970 | G192: 42°50' | H192: 42.836861 | I192: 22°12' | J192: 22.214667 | R192: 100 | S192: 700 | X192: 5-40 | Y192: WSW
A193: SR46a | B193: Serbien | C193: Serbien | E193: Buche | F193: 950 | G193: 42°48' | H193: 42.809361 | I193: 21°53' | J193: 21.895556 | R193: 100 | S193: 700 | X193: 15-45 | Y193: N
A194: SR8ab | B194: Serbien | C194: Serbien | E194: Buche | F194: 1330 | G194: 43°27' | H194: 43.451389 | I194: 20°04' | J194: 20.068 | R194: 80 | S194: 700 | X194: 5-20 | Y194: NW
A195: SR44a | B195: Serbien | C195: Serbien | E195: Buche | F195: 1090 | G195: 43°30' | H195: 43.500639 | I195: 20°46' | J195: 20.778972 | R195: 100 | S195: 700 | X195: 15-35 | Y195: NW
A196: SR116a | B196: Serbien | C196: Serbien | E196: Buche | F196: 600 | G196: 43°25' | H196: 43.424278 | I196: 21°22' | J196: 21.368444 | R196: 100 | S196: 700 | X196: 5-40 | Y196: ONO
A197: EU19 | B197: Belgien - EU-soil-DB | C197: Belgien | E197: Deciduous forest | F197: 270 | G197: 49°58' | H197: 49.9833 | I197: 4°15' | J197: 4.25 | K197: Dystric Cambisol | P197: EU-soil-DB | R197: 100 | S197: 125 | AA197: EU-soil-Datenbank, spadbe-soil-Profiles
A198: EU23 | B198: Belgien - EU-soil-DB | C198: Belgien | E198: Deciduous forest | F198: 603 | G198: 50°13' | H198: 50.2333 | I198: 5°40' | J198: 5.6833 | K198: Stagno-Gleyic Cambisol | P198: EU-soil-DB | R198: 100 | S198: 125 | AA198: EU-soil-Datenbank, spadbe-soil-Profiles
A199: EU26 | B199: Belgien - EU-soil-DB | C199: Belgien | E199: Deciduous forest | F199: 120 | H199: 50.7667 | J199: 4.4 | K199: Dystric Podzoluvisol | P199: EU-soil-DB | R199: 100 | S199: 700 | AA199: EU-soil-Datenbank, spadbe-soil-Profiles
A200: EU32 | B200: Belgien - EU-soil-DB | C200: Belgien | E200: Deciduous forest | F200: 378 | H200: 49.7167 | J200: 5.7 | K200: Stagno-Gleyic Luvisol | P200: EU-soil-DB | R200: 100 | S200: 700 | AA200: EU-soil-Datenbank, spadbe-soil-Profiles
... 46 more rows

Sheet Bodendaten
A1: ID | B1: Horizont | C1: Hori-zont-Nr. | D1: Tiefe obere Grenze | E1: Tiefe untere Grenze | F1: Boden-art | G1: Ton % | H1: Schluff % | I1: Sand % | J1: Skelett-anteil Vol% | K1: Poren-volumen Vol% | L1: Feld-kapazität Vol% (nur FB-Anteil) | M1: Welke-punkt Vol% (nur FB-Anteil) | N1: Trocken-rohdichte | O1: pH-Wert H2O | P1: pH-Wert KCl | Q1: l-Para-meter | R1: C/N | S1: C-Gehalt % | T1: N-Gehalt % | U1: C-Gehalt g/m² | V1: N-Gehalt g/m² | W1: Humus-gehalt % | X1: Trocken-masse g/m² | Y1: nutzbare Feldkapazität bisSchichttiefe mm | Z1: Auflage-C / Mineral-boden-C / C total t/ha | AA1: Auflage-N / Mineral-boden-N / N total t/ha | AB1: C/N total | AC1: Anteil Auflage C an C total / prozentuale Verteilung von Mineralboden-C | AD1: Anteil Auflage N an N total / prozentuale Verteilung von Mineralboden-N | AE1: Humus-menge g/m² | AF1: Wurzel-verteilung % | AG1: Durch-wurzelung | AH1: Feld-kapazität Feinboden Vol% | AI1: Welke-punkt Feinboden Vol% | AJ1: nutzbare Feld-kapazität Vol% | AK1: nFK korr. mit Skelettgehalt | AL1: C-Gehalt im Humus % | AM1: Trocken-masse g/cm² pro 1cm | AN1: Bemerkungen | AO1: spezifische Dichte organ. Substanz: ==> | AP1: 1.4 | AQ1: Kohlegehalt % | AR1: Gesamt-C M-% | AS1: Gesamt-C g/m² | AU1: Speicher-fähigkeit der Auflage pro KG TM ==> | AV1: 1.23 | AW1: Speicher (Feldkap.) Auflage mm | AX1: Feldkap. Auflage Vol% | AZ1: Dichte Of berechnet | BA1: Dichte Oh berechnet | BB1: nFK Of (vol%) berechnet | BC1: nFK Oh (vol%) berechnet | BE1: pH-Wert H2O | BF1: pH-Wert KCl | BG1: Berechnung von pH
A2: Natte | B2: Of/Oh | C2: 1 | D2: 8 | E2: 0 | F2: =Standorte!L2 -> ro | G2: 0 | H2: 0 | I2: 0 | J2: 0 | K2: =(1-N2/$AP$1)*100 -> 88.4074438 | L2: 40 | M2: 12 | N2: =X2/(ABS(D2-E2)*10000) -> 0.1622957868 | O2: -99.9 | P2: 3.25 | Q2: 3 | R2: 26.3 | S2: 34.89 | T2: =S2/R2 -> 1.32661597 | U2: 4530 | V2: 172.37 | W2: =100*2*U2/X2 -> 69.78 | X2: =U2/S2*100 -> 12983.66294 | Y2: =(L2-M2)*D2/10 -> 22.4 | Z2: =U2/100 -> 45.3 | AA2: =V2/100 -> 1.7237 | AC2: =Z2/Z15*100 -> 33.35787923 | AD2: =AA2/AA15*100 -> 30.1303857 | AE2: =(W2/100)*X2 -> 9060 | AM2: =X2/(ABS(E2-D2)*100*100) -> 0.1622957868 | AN2: D:\All_fs\Daten\Level2\Brandenburg\Excel\Parameter.xls | AW2: =X2*$AV$1/1000 -> 15.96990542 | AX2: =AW2*10/D2 -> 19.96238177 | BF2: 3.25
A3: Natte | B3: Ahe | C3: 2 | D3: 0 | E3: 5 | F3: Sl2 | G3: 5 | H3: 10 | I3: =100-G3-H3 -> 85 | J3: 0 | K3: =(53.8+55.7+62.9+58.2)/4 -> 57.65 | L3: 13.9 | M3: 7 | N3: =(1.188+1.142+0.956+1.076)/4 -> 1.0905 | O3: =0.0995*P3*P3 - 0.0701*P3 + 3.1666 -> 3.8413018 | P3: 2.98 | Q3: 0.6 | R3: 26.9 | S3: 2.64 | T3: =S3/$R3 -> 0.09814126394 | U3: 2740 | V3: =U3/$R3 -> 101.8587361 | W3: 10.05043558 | X3: =ABS(E3-D3)*N3*10000 -> 54525 | Y3: =(L3-M3)*(E3-D3)/10 -> 3.45 | Z3: =Z15-Z2 -> 90.5 | AA3: =AA15-AA2 -> 3.997102969 | AC3: =(U3/(Z3*100))*100 -> 30.27624309 | AD3: =(V3/(AA3*100))*100 -> 25.48314038 | AE3: 5480 | AM3: 1.0905 | BE3: =0.0995*BF3*BF3 - 0.0701*BF3 + 3.1666 -> 3.8413018 | BF3: 2.98 | BG3: Berechnung von pH-Kcl aus pH-H2O:
A4: Natte | B4: Ahe | C4: 3 | D4: 5 | E4: 10 | F4: Sl2 | G4: 5 | H4: 10 | I4: =100-G4-H4 -> 85 | J4: 0 | K4: =(53.8+55.7+62.9+58.2)/4 -> 57.65 | L4: 13.9 | M4: 7 | N4: =(1.188+1.142+0.956+1.076)/4 -> 1.0905 | O4: =0.0995*P4*P4 - 0.0701*P4 + 3.1666 -> 4.1028992 | P4: 3.44 | Q4: 0.6 | R4: 27.35294118 | S4: 1.86 | T4: =S4/R4 -> 0.068 | U4: 2010 | V4: =U4/$R4 -> 73.48387097 | W4: 7.372764787 | X4: 54525 | Y4: =Y3+(L4-M4)*(E4-D4)/10 -> 6.9 | AC4: =(U4/(Z3*100))*100 -> 22.20994475 | AD4: =(V4/(AA3*100))*100 -> 18.3842827 | AE4: 4020 | AM4: 1.0905 | BE4: =0.0995*BF4*BF4 - 0.0701*BF4 + 3.1666 -> 4.1028992 | BF4: 3.44 | BH4: y = 0.9671x - 0.3254; R² = 0.9711
A5: Natte | B5: Bvh | C5: 4 | D5: 10 | E5: 20 | F5: Sl2 | G5: 5 | H5: 10 | I5: 85 | J5: 0 | K5: =(48.5+47+52.5+50)/4 -> 49.5 | L5: 20 | M5: 7 | N5: =(1.329+1.369+1.228+1.291)/4 -> 1.30425 | O5: 4.44215375 | P5: 3.95 | Q5: 0.6 | R5: 27.01030928 | S5: 1.31 | T5: 0.0485 | U5: 1560 | V5: 57.75572519 | W5: 2.392179413 | X5: 130425 | Y5: 19.9 | AC5: =(U5/(Z3*100))*100 -> 17.23756906 | AD5: =(V5/(AA3*100))*100 -> 14.44939638 | AE5: 3120 | AM5: 1.30425 | BE5: 4.44215375 | BF5: 3.95
A6: Natte | B6: Bvh | C6: 5 | D6: 20 | E6: 40 | F6: mS | G6: 5 | H6: 8 | I6: 87 | J6: 0 | K6: =(48.5+47+52.5+50)/4 -> 49.5 | L6: 21.1 | M6: 7 | N6: =(1.329+1.369+1.228+1.291)/4 -> 1.30425 | O6: 4.6427138 | P6: 4.22 | Q6: 0.67 | R6: 20.1754386 | S6: 0.69 | T6: 0.0342 | U6: 900 | V6: 44.60869565 | W6: 0.6900517539 | X6: 260850 | Y6: 48.1 | AC6: =(U6/(Z3*100))*100 -> 9.944751381 | AD6: =(V6/(AA3*100))*100 -> 11.16025682 | AE6: 1800 | AM6: 1.30425 | BE6: 4.6427138 | BF6: 4.22 | BG6: Berechnung von pH-H2O aus pH-Kcl:
A7: Natte | B7: Bvh | C7: 6 | D7: 40 | E7: 50 | F7: mS | G7: 2 | H7: 8 | I7: 90 | J7: 0 | K7: =(48.5+47+52.5+50)/4 -> 49.5 | L7: 10.45 | M7: 7 | N7: =(1.329+1.369+1.228+1.291)/4 -> 1.30425 | O7: 4.74445375 | P7: 4.35 | Q7: 1.15 | R7: 16.42857143 | S7: 0.23 | T7: 0.014 | U7: 320 | V7: 19.47826087 | W7: 0.4907034694 | X7: 130425 | Y7: 51.55 | AC7: =(U7/(Z$3*100))*100 -> 3.535911602 | AD7: =(V7/(AA$3*100))*100 -> 4.873094594 | AE7: 640 | AM7: 1.30425 | BE7: 4.74445375 | BF7: 4.35 | BH7: y = 1.0041x + 0.3817; R² = 0.9711
A8: Natte | B8: Bv | C8: 7 | D8: 50 | E8: 60 | F8: mS | G8: 2 | H8: 8 | I8: 90 | J8: 0 | K8: =(51.1+50.3+50.4+49.8)/4 -> 50.4 | L8: 9 | M8: 3.2 | N8: =(1.265+1.285+1.283+1.298)/4 -> 1.28275 | O8: 4.74445375 | P8: 4.35 | Q8: 1.15 | R8: 16.42857143 | S8: 0.23 | T8: 0.014 | U8: 320 | V8: 19.47826087 | W8: 0.4989280842 | X8: 128275 | Y8: 57.35 | AC8: 3.535911602 | AD8: 4.873094594 | AE8: 640 | AM8: 1.28275 | BE8: 4.74445375 | BF8: 4.35
A9: Natte | B9: Bv | C9: 8 | D9: 60 | E9: 70 | F9: fS | G9: 2 | H9: 6 | I9: 92 | J9: 0 | K9: =(51.1+50.3+50.4+49.8)/4 -> 50.4 | L9: 9 | M9: 3.2 | N9: =(1.265+1.285+1.283+1.298)/4 -> 1.28275 | O9: 4.74445375 | P9: 4.35 | Q9: 1.15 | R9: 16.42857143 | S9: 0.23 | T9: 0.014 | U9: 320 | V9: 19.47826087 | W9: 0.4989280842 | X9: 128275 | Y9: 63.15 | AC9: 3.535911602 | AD9: 4.873094594 | AE9: 640 | AM9: 1.28275 | BE9: 4.74445375 | BF9: 4.35 | BG9: Berechnung angewendet ab EU19
A10: Natte | B10: Bv/C | C10: 9 | D10: 70 | E10: 80 | F10: fS | G10: 2 | H10: 6 | I10: 92 | J10: 0 | K10: =(43.7+44.7+42.7+41.4)/4 -> 43.125 | L10: 9.55 | M10: 3.7 | N10: =(1.492+1.464+1.517+1.553)/4 -> 1.5065 | O10: 4.74445375 | P10: 4.35 | Q10: 1.15 | R10: 16.42857143 | S10: 0.23 | T10: 0.014 | U10: 320 | V10: 19.47826087 | W10: 0.4248257551 | X10: 150650 | Y10: 69 | AC10: 3.535911602 | AD10: 4.873094594 | AE10: 640 | AM10: 1.5065 | BE10: 4.74445375 | BF10: 4.35
A11: Natte | B11: Bv/C | C11: 10 | D11: 80 | E11: 90 | F11: fS | G11: 1 | H11: 3 | I11: 96 | J11: 0 | K11: =(43.7+44.7+42.7+41.4)/4 -> 43.125 | L11: 9.55 | M11: 3.7 | N11: =(1.492+1.464+1.517+1.553)/4 -> 1.5065 | O11: 4.63502695 | P11: 4.21 | Q11: 1.15 | R11: 13.3 | S11: 0.12 | T11: 0.009022556391 | U11: 160 | V11: 12.03007519 | W11: 0.2124128775 | X11: 150650 | Y11: 74.85 | AC11: 1.767955801 | AD11: 3.009698594 | AE11: 320 | AM11: 1.5065 | BE11: 4.63502695 | BF11: 4.21
A12: Natte | B12: C | C12: 11 | D12: 90 | E12: 100 | F12: mfS | G12: 1 | H12: 3 | I12: 96 | J12: 0 | K12: =(39.8+39.1+47.8+44.8)/4 -> 42.875 | L12: 9.55 | M12: 3.7 | N12: =(1.595+1.614+1.382+1.464)/4 -> 1.51375 | O12: 4.63502695 | P12: 4.21 | Q12: 1.5 | R12: 13.3 | S12: 0.12 | T12: 0.009022556391 | U12: 160 | V12: 12.03007519 | W12: 0.2113955409 | X12: 151375 | Y12: 80.7 | AC12: 1.767955801 | AD12: 3.009698594 | AE12: 320 | AM12: 1.51375 | BE12: 4.63502695 | BF12: 4.21
A13: Natte | B13: C | C13: 12 | D13: 100 | E13: 140 | F13: mfS | G13: 1 | H13: 2 | I13: 97 | J13: 0 | K13: =(39.8+39.1+47.8+44.8)/4 -> 42.875 | L13: 9.55 | M13: 3.7 | N13: =(1.595+1.614+1.382+1.464)/4 -> 1.51375 | O13: 4.63502695 | P13: 4.21 | Q13: 1.5 | R13: 13.3 | S13: 0.12 | T13: 0.009022556391 | U13: 160 | V13: 12.03007519 | W13: 0.05284888522 | X13: 605500 | Y13: 104.1 | AC13: 1.767955801 | AD13: 3.009698594 | AE13: 320 | AM13: 1.51375 | BE13: 4.63502695 | BF13: 4.21
A14: Natte | B14: G | C14: 13 | D14: 140 | E14: 160 | F14: mfS | G14: 0 | H14: 2 | I14: 98 | J14: 0 | K14: 40 | L14: 6 | M14: 3.7 | N14: 1.5 | O14: 4.78448 | P14: 4.4 | Q14: 1.5 | R14: 10 | S14: 0.05 | T14: 0.005 | U14: 80 | V14: 8 | W14: 0.05333333333 | X14: 300000 | Y14: 108.7 | AC14: 0.8839779006 | AD14: 2.001449565 | AE14: 160 | AM14: 1.5 | BE14: 4.78448 | BF14: 4.4
A15: Natte | B15: G | C15: 14 | D15: 160 | E15: 300 | F15: mfS | G15: 0 | H15: 2 | I15: 98 | J15: 0 | K15: 40 | L15: 6 | M15: 3.7 | N15: 1.5 | O15: 4.78448 | P15: 4.4 | Q15: 1.5 | R15: 0 | S15: 0 | T15: 0 | U15: 0 | V15: 0 | W15: 0 | X15: 2100000 | Y15: 140.9 | Z15: =SUM(U2:U15)*10/1000 -> 135.8 | AA15: =SUM(V2:V15)*10/1000 -> 5.720802969 | AB15: =Z15/AA15 -> 23.73792643 | AC15: 0 | AD15: 0 | AE15: 0 | AM15: 1.5 | BE15: 4.78448 | BF15: 4.4
A16: Beerbu_orig | B16: Of/Oh | C16: 1 | D16: 5 | E16: 0 | F16: ro | G16: 0 | H16: 0 | I16: 0 | J16: 0 | K16: =(1-N16/$AP$1)*100 -> 80.41837124 | L16: 40 | M16: 12 | N16: =X16/(ABS(D16-E16)*10000) -> 0.2741428026 | O16: =0.0995*P16*P16 - 0.0701*P16 + 3.1666 -> 4.4782 | P16: 4 | Q16: 3 | R16: =S16/T16 -> 26.33484163 | S16: 26.19 | T16: 0.9945 | U16: 3589.9 | V16: =U16/R16 -> 136.3175086 | W16: =100*2*U16/X16 -> 52.38 | X16: =U16/S16*100 -> 13707.14013 | Y16: =(L16-M16)*D16/10 -> 14 | Z16: =U16/100 -> 35.899 | AA16: =V16/100 -> 1.363175086 | AC16: =Z16/Z27*100 -> 35.46876389 | AD16: =AA16/AA27*100 -> 29.57079159 | AE16: =(W16/100)*X16 -> 7179.8 | AM16: =X16/(ABS(E16-D16)*100*100) -> 0.2741428026 | AN16: D:\All_fs\Daten\Level2\Brandenburg\Excel\Parameter.xls | BE16: 4.4782 | BF16: 4
A17: Beerbu_orig | B17: Ahe | C17: 2 | D17: 0 | E17: 6 | F17: mSgs | G17: 4 | H17: 9 | I17: =100-G17-H17 -> 87 | J17: 0 | K17: 57 | L17: 16.15 | M17: 2.05 | N17: 1.1 | O17: 4.14639895 | P17: 3.51 | Q17: 1.5 | R17: =S17/T17 -> 23.7962963 | S17: 2.57 | T17: 0.108 | U17: 2869 | V17: =U17/R17 -> 120.5649805 | W17: 8.693939394 | X17: =ABS(E17-D17)*N17*10000 -> 66000 | Y17: =(L17-M17)*(E17-D17)/10 -> 8.46 | Z17: =Z27-Z16 -> 65.314 | AA17: =AA27-AA16 -> 3.246695035 | AC17: =(U17/(Z17*100))*100 -> 43.92626389 | AD17: =(V17/(AA17*100))*100 -> 37.1346798 | AE17: 5738 | AM17: 1.1 | BE17: 4.14639895 | BF17: 3.51
A18: Beerbu_orig | B18: Bhs | C18: 3 | D18: 6 | E18: 10 | F18: mSgs | G18: 4 | H18: 3 | I18: =100-G18-H18 -> 93 | J18: 0 | K18: 56.48 | L18: 16.15 | M18: 2.05 | N18: 1.1205 | O18: 4.4637218 | P18: 3.98 | Q18: 1.5 | R18: 22.37288136 | S18: 1.32 | T18: 0.059 | U18: 1620.5 | V18: =U18/R18 -> 72.43143939 | W18: 7.231146809 | X18: =ABS(E18-D18)*N18*10000 -> 44820 | Y18: =Y17+(L18-M18)*(E18-D18)/10 -> 14.1 | AC18: =(U18/(Z$41*100))*100 -> 24.81091343 | AD18: =(V18/(AA$41*100))*100 -> 22.30928332 | AE18: 3241 | AM18: 1.1205 | BE18: 4.4637218 | BF18: 3.98
A19: Beerbu_orig | B19: Bhs | C19: 4 | D19: 10 | E19: 20 | F19: mSgs | G19: 4 | H19: 3 | I19: 93 | J19: 0 | K19: 56.48 | L19: 9.35 | M19: 1.3 | N19: 1.1205 | O19: 4.7524192 | P19: 4.36 | Q19: 1.5 | R19: 20.75949367 | S19: 0.82 | T19: 0.0395 | U19: 1129 | V19: =U19/R19 -> 54.3847561 | W19: 2.015171798 | X19: =ABS(E19-D19)*N19*10000 -> 112050 | Y19: 22.15 | AC19: 17.28572741 | AD19: 16.75080521 | AE19: 2258 | AM19: 1.1205 | BE19: 4.7524192 | BF19: 4.36
A20: Beerbu_orig | B20: Bvs | C20: 5 | D20: 20 | E20: 40 | F20: fSmS | G20: 3 | H20: 4 | I20: 93 | J20: 0 | K20: 44.26666667 | L20: 9.35 | M20: 1.3 | N20: 1.465333333 | O20: 4.9159072 | P20: 4.56 | Q20: 1.15 | R20: 18.83408072 | S20: 0.42 | T20: 0.0223 | U20: 619.6 | V20: 32.89780952 | W20: 0.4228389445 | X20: 293066.6667 | Y20: 38.25 | AC20: 9.486480693 | AD20: 10.132707 | AE20: 1239.2 | AM20: 1.465333333 | BE20: 4.9159072 | BF20: 4.56
A21: Beerbu_orig | B21: Bvs | C21: 6 | D21: 40 | E21: 50 | F21: fSmS | G21: 3 | H21: 4 | I21: 93 | J21: 0 | K21: 44.26666667 | L21: 9.35 | M21: 1.3 | N21: 1.465333333 | O21: 7.99879255 | P21: 7.33 | Q21: 1.15 | R21: 6.103286385 | S21: 0.13 | T21: 0.0213 | U21: 50.3 | V21: 8.241461538 | W21: 0.0686533212 | X21: 146533.3333 | Y21: 46.3 | AC21: 0.7701258536 | AD21: 2.538415666 | AE21: 100.6 | AM21: 1.465333333 | BE21: 7.99879255 | BF21: 7.33
A22: Beerbu_orig | B22: C | C22: 7 | D22: 50 | E22: 80 | F22: fSmS | G22: 0 | H22: 1 | I22: 99 | J22: 0 | K22: 45.175 | L22: 9.35 | M22: 1.3 | N22: 1.452 | O22: 7.99879255 | P22: 7.33 | Q22: 1.15 | R22: 6.103286385 | S22: 0.13 | T22: 0.0213 | U22: 150 | V22: 24.57692308 | W22: 0.06887052342 | X22: 435600 | Y22: 70.45 | AC22: 2.296597973 | AD22: 7.569828029 | AE22: 300 | AM22: 1.452 | BE22: 7.99879255 | BF22: 7.33
A23: Beerbu_orig | B23: C | C23: 8 | D23: 80 | E23: 105 | F23: fSmS | G23: 0 | H23: 1 | I23: 99 | J23: 0 | K23: 45.175 | L23: 5.05 | M23: 0.5 | N23: 1.452 | O23: 6.4185488 | P23: 6.08 | Q23: 1.15 | R23: 9.554140127 | S23: 0.03 | T23: 0.00314 | U23: 28 | V23: 2.930666667 | W23: 0.01542699725 | X23: 363000 | Y23: 81.825 | AC23: 0.4286982883 | AD23: 0.9026615173 | AE23: 56 | AM23: 1.452 | BE23: 6.4185488 | BF23: 6.08
A24: Beerbu_orig | B24: Go | C24: 9 | D24: 105 | E24: 120 | F24: mSgs | G24: 1 | H24: 2 | I24: 97 | J24: 0 | K24: 43.075 | L24: 5.05 | M24: 0.5 | N24: 1.50875 | O24: 6.4185488 | P24: 6.08 | Q24: 1.5 | R24: 9.554140127 | S24: 0.03 | T24: 0.00314 | U24: 16.2 | V24: 1.6956 | W24: 0.01431648716 | X24: 226312.5 | Y24: 88.65 | AC24: 0.2480325811 | AD24: 0.5222541636 | AE24: 32.4 | AM24: 1.50875 | BE24: 6.4185488 | BF24: 6.08
A25: Beerbu_orig | B25: Go | C25: 10 | D25: 120 | E25: 160 | F25: mSgs | G25: 1 | H25: 2 | I25: 97 | J25: 0 | K25: 43.075 | L25: 14 | M25: 4 | N25: 1.50875 | O25: 6.68597095 | P25: 6.31 | Q25: 1.5 | R25: 7.025761124 | S25: 0.03 | T25: 0.00427 | U25: 48.8 | V25: 6.945866667 | W25: 0.01617232809 | X25: 603500 | Y25: 128.65 | AC25: 0.7471598738 | AD25: 2.13936529 | AE25: 97.6 | AM25: 1.50875 | BE25: 6.68597095 | BF25: 6.31
A26: Beerbu_orig | B26: Go | C26: 11 | D26: 160 | E26: 230 | F26: mSgs | G26: 1 | H26: 2 | I26: 97 | J26: 0 | K26: 43.075 | L26: 14 | M26: 4 | N26: 1.50875 | O26: 6.674125 | P26: 6.3 | Q26: 1.5 | X26: 1056125 | Y26: 198.65 | AC26: 0 | AD26: 0 | AE26: 0 | AM26: 1.50875 | BE26: 6.674125 | BF26: 6.3
A27: Beerbu_orig | B27: Gr | C27: 12 | D27: 230 | E27: 300 | F27: mSgs | G27: 1 | H27: 2 | I27: =100-G27-H27 -> 97 | J27: 0 | K27: 43 | L27: 14 | M27: 4 | N27: 1.5 | O27: 6.674125 | P27: 6.3 | Q27: 1.5 | X27: 1050000 | Y27: =Y26+(L27-M27)*(E27-D27)/10 -> 268.65 | Z27: =SUM(U16:U27)*10/1000 -> 101.213 | AA27: =SUM(V16:V27)*10/1000 -> 4.609870121 | AB27: =Z27/AA27 -> 21.95571618 | AC27: 0 | AD27: 0 | AE27: 0 | AM27: 1.5 | BE27: 6.674125 | BF27: 6.3
A28: Kienh_orig | B28: Of/Oh | C28: 1 | D28: 6 | E28: 0 | F28: =Standorte!L4 -> mor | G28: 0 | H28: 0 | I28: 0 | J28: 0 | K28: =(1-N28/$AP$1)*100 -> 76.57989295 | L28: 40 | M28: 12 | N28: =X28/(ABS(D28-E28)*10000) -> 0.3278814988 | O28: 4.4782 | P28: 4 | Q28: 3 | R28: =S28/T28 -> 24.14084507 | S28: 25.71 | T28: 1.065 | U28: 5057.9 | V28: =U28/R28 -> 209.5162777 | W28: =100*2*U28/X28 -> 51.42 | X28: =U28/S28*100 -> 19672.88993 | Y28: =(L28-M28)*D28/10 -> 16.8 | Z28: =U28/100 -> 50.579 | AA28: =V28/100 -> 2.095162777 | AC28: =Z28/Z39*100 -> 41.9812417 | AD28: =AA28/AA39*100 -> 38.72950789 | AE28: 10115.8 | AM28: 0.3278814988 | AN28: D:\All_fs\Daten\Level2\Brandenburg\Excel\Parameter.xls | BE28: =0.0995*BF28*BF28 - 0.0701*BF28 + 3.1666 -> 4.4782 | BF28: 4
A29: Kienh_orig | B29: Ahe | C29: 2 | D29: 0 | E29: 5 | F29: fSmS | G29: 3 | H29: 6 | I29: =100-G29-H29 -> 91 | J29: 0 | K29: 46.8 | L29: 14.95 | M29: 3.05 | N29: 1.39 | O29: 4.21023295 | P29: 3.61 | Q29: 1.15 | R29: 22.62135922 | S29: 2.33 | T29: 0.103 | U29: 2798.3 | V29: 123.7016738 | W29: 8.052661871 | X29: =ABS(E29-D29)*N29*10000 -> 69500 | Y29: =(L29-M29)*(E29-D29)/10 -> 5.95 | Z29: =Z39-Z28 -> 69.901 | AA29: =AA39-AA28 -> 3.314569727 | AC29: =(U29/(Z29*100))*100 -> 40.03233144 | AD29: =(V29/(AA29*100))*100 -> 37.32058276 | AE29: 5596.6 | AM29: =X29/(ABS(E29-D29)*100*100) -> 1.39 | BE29: 4.21023295 | BF29: 3.61
A30: Kienh_orig | B30: Ahe | C30: 3 | D30: 5 | E30: 10 | F30: fSmS | G30: 3 | H30: 6 | I30: 91 | J30: 0 | K30: 46.8 | L30: 14.95 | M30: 3.05 | N30: 1.39 | O30: 4.57424855 | P30: 4.13 | Q30: 1.15 | R30: 22.76402538 | S30: 1.83 | T30: 0.08039 | U30: 2247.2 | V30: 98.71716284 | W30: 6.46676259 | X30: 69500 | Y30: =Y29+(L30-M30)*(E30-D30)/10 -> 11.9 | AC30: =(U30/(Z$53*100))*100 -> 32.14832406 | AD30: =(V30/(AA$53*100))*100 -> 29.78279866 | AE30: 4494.4 | AM30: =X30/(ABS(E30-D30)*100*100) -> 1.39 | BE30: 4.57424855 | BF30: 4.13
A31: Kienh_orig | B31: Bs | C31: 4 | D31: 10 | E31: 20 | F31: fSmS | G31: 3 | H31: 4 | I31: 93 | J31: 0 | K31: 48.15 | L31: 13.85 | M31: 2.25 | N31: 1.37 | O31: 4.62736 | P31: 4.2 | Q31: 1.15 | R31: 20.36082474 | S31: 0.79 | T31: 0.0388 | U31: 1081.3 | V31: 53.10688608 | W31: 1.578540146 | X31: 137000 | Y31: 23.5 | AC31: =(U31/(Z$53*100))*100 -> 15.46902047 | AD31: =(V31/(AA$53*100))*100 -> 16.02225641 | AE31: 2162.6 | AM31: 1.37 | BE31: 4.62736 | BF31: 4.2
A32: Kienh_orig | B32: Bs | C32: 5 | D32: 20 | E32: 40 | F32: fSmS | G32: 2 | H32: 3 | I32: 95 | J32: 0 | K32: 48.15 | L32: 13.45 | M32: 1.35 | N32: 1.37 | O32: 4.79254495 | P32: 4.41 | Q32: 1.15 | R32: 16.90140845 | S32: 0.42 | T32: 0.02485 | U32: 600.3 | V32: 35.51775 | W32: 0.4381751825 | X32: 274000 | Y32: 47.7 | AC32: 8.587859973 | AD32: 10.71564424 | AE32: 1200.6 | AM32: 1.37 | BE32: 4.79254495 | BF32: 4.41
A33: Kienh_orig | B33: Bsv | C33: 6 | D33: 40 | E33: 55 | F33: fSmS | G33: 1 | H33: 1 | I33: 98 | J33: 0 | K33: 39.52 | L33: 13.45 | M33: 1.35 | N33: 1.6 | O33: 4.7206768 | P33: 4.32 | Q33: 1.15 | R33: 13.51351351 | S33: 0.1 | T33: 0.0074 | U33: 78 | V33: 5.772 | W33: 0.065 | X33: 240000 | Y33: 65.85 | AC33: 1.115863865 | AD33: 1.741402497 | AE33: 156 | AM33: 1.6 | BE33: 4.7206768 | BF33: 4.32
A34: Kienh_orig | B34: Bsv | C34: 7 | D34: 55 | E34: 80 | F34: fSmS | G34: 1 | H34: 1 | I34: 98 | J34: 0 | K34: 39.52 | L34: 10.1 | M34: 1.1 | N34: 1.6 | O34: 4.7206768 | P34: 4.32 | Q34: 1.15 | R34: 13.51351351 | S34: 0.1 | T34: 0.0074 | U34: 75 | V34: 5.55 | W34: 0.0375 | X34: 400000 | Y34: 88.35 | AC34: 1.072946024 | AD34: 1.674425478 | AE34: 150 | AM34: 1.6 | BE34: 4.7206768 | BF34: 4.32
A35: Kienh_orig | B35: C | C35: 8 | D35: 80 | E35: 90 | F35: fSmS | G35: 1 | H35: 2 | I35: 97 | J35: 0 | K35: 40.8 | L35: 10.1 | M35: 1.1 | N35: 1.57 | O35: 4.71279095 | P35: 4.31 | Q35: 1.15 | R35: 13.33333333 | S35: 0.04 | T35: 0.003 | U35: 28.9 | V35: 2.1675 | W35: 0.03681528662 | X35: 157000 | Y35: 97.35 | AC35: 0.4134418678 | AD35: 0.6539310313 | AE35: 57.8 | AM35: 1.57 | BE35: 4.71279095 | BF35: 4.31
A36: Kienh_orig | B36: C | C36: 9 | D36: 90 | E36: 120 | F36: fSmS | G36: 1 | H36: 2 | I36: 97 | J36: 0 | K36: 40.8 | L36: 21.65 | M36: 1.1 | N36: 1.57 | O36: 4.71279095 | P36: 4.31 | Q36: 1.15 | R36: 13.33333333 | S36: 0.04 | T36: 0.003 | U36: 25 | V36: 1.875 | W36: 0.01061571125 | X36: 471000 | Y36: 159 | AC36: 0.3576486746 | AD36: 0.5656842831 | AE36: 50 | AM36: 1.57 | BE36: 4.71279095 | BF36: 4.31
A37: Kienh_orig | B37: Go | C37: 10 | D37: 120 | E37: 160 | F37: mSfS | G37: 1 | H37: 2 | I37: 97 | J37: 0 | K37: 42.58 | L37: 20.9 | M37: 0.7 | N37: 1.52 | O37: 4.6736602 | P37: 4.26 | Q37: 1.5 | R37: 11.11111111 | S37: 0.04 | T37: 0.0036 | U37: 56.1 | V37: 5.049 | W37: 0.01845394737 | X37: 608000 | Y37: 239.8 | AC37: 0.8025636257 | AD37: 1.523274638 | AE37: 112.2 | AM37: 1.52 | BE37: 4.6736602 | BF37: 4.26
A38: Kienh_orig | B38: G | C38: 11 | D38: 160 | E38: 200 | F38: mSfS | G38: 1 | H38: 2 | I38: 97 | J38: 0 | K38: 43.68 | L38: 20 | M38: 1 | N38: 1.49 | O38: 4.62736 | P38: 4.2 | Q38: 1.5 | X38: 596000 | Y38: 315.8 | AC38: 0 | AD38: 0 | AE38: 0 | AM38: 1.49 | BE38: 4.62736 | BF38: 4.2
A39: Kienh_orig | B39: G | C39: 12 | D39: 200 | E39: 300 | F39: mSfS | G39: 1 | H39: 1 | I39: 98 | J39: 0 | K39: 43.68 | L39: 20 | M39: 1 | N39: 1.49 | O39: 4.62736 | P39: 4.2 | Q39: 1.5 | X39: 1490000 | Y39: 505.8 | Z39: =SUM(U28:U39)*10/1000 -> 120.48 | AA39: =SUM(V28:V39)*10/1000 -> 5.409732505 | AB39: =Z39/AA39 -> 22.27097179 | AC39: 0 | AD39: 0 | AE39: 0 | AM39: 1.49 | BE39: 4.62736 | BF39: 4.2
A40: Beerbu | B40: Of/Oh | C40: 1 | D40: 5 | E40: 0 | F40: ro | G40: 0 | H40: 0 | I40: 0 | J40: 0 | K40: =(1-N40/$AP$1)*100 -> 80.41837124 | L40: 30 | M40: 12 | N40: =X40/(ABS(D40-E40)*10000) -> 0.2741428026 | O40: 4.4782 | P40: 4 | Q40: 3 | R40: =S40/T40 -> 26.33484163 | S40: 26.19 | T40: 0.9945 | U40: 3589.9 | V40: =U40/R40 -> 136.3175086 | W40: =100*2*U40/X40 -> 52.38 | X40: =U40/S40*100 -> 13707.14013 | Y40: =(L40-M40)*D40/10 -> 9 | Z40: =U40/100 -> 35.899 | AA40: =V40/100 -> 1.363175086 | AC40: =Z40/Z51*100 -> 35.46876389 | AD40: =AA40/AA51*100 -> 29.57079159 | AE40: 7179.8 | AM40: 0.2741428026 | AN40: FK, WP usw. nach Anpassung an Messwerte korrigiert | BE40: 4.4782 | BF40: 4
A41: Beerbu | B41: Ahe | C41: 2 | D41: 0 | E41: 6 | F41: mSgs | G41: 4 | H41: 9 | I41: =100-G41-H41 -> 87 | J41: 0 | K41: 46.8 | L41: 16.15 | M41: 12.05 | N41: 1.1 | O41: 4.14639895 | P41: 3.51 | Q41: 1.5 | R41: =S41/T41 -> 23.7962963 | S41: 2.57 | T41: 0.108 | U41: 2869 | V41: =U41/R41 -> 120.5649805 | W41: =100*2*U41/X41 -> 8.693939394 | X41: =ABS(E41-D41)*N41*10000 -> 66000 | Y41: =(L41-M41)*(E41-D41)/10 -> 2.46 | Z41: =Z51-Z40 -> 65.314 | AA41: =AA51-AA40 -> 3.246695035 | AC41: =(U41/(Z41*100))*100 -> 43.92626389 | AD41: =(V41/(AA41*100))*100 -> 37.1346798 | AE41: 5738 | AM41: 1.1 | AN41: D:\All_fs\Daten\Level2\Brandenburg\Excel\Parameter.xls | BE41: 4.14639895 | BF41: 3.51
A42: Beerbu | B42: Bhs | C42: 3 | D42: 6 | E42: 10 | F42: mSgs | G42: 4 | H42: 3 | I42: =100-G42-H42 -> 93 | J42: 0 | K42: 56.48 | L42: 16.15 | M42: 12.05 | N42: 1.1205 | O42: 4.4637218 | P42: 3.98 | Q42: 1.5 | R42: 22.37288136 | S42: 1.32 | T42: 0.059 | U42: 1620.5 | V42: =U42/R42 -> 72.43143939 | W42: =100*2*U42/X42 -> 7.231146809 | X42: =ABS(E42-D42)*N42*10000 -> 44820 | Y42: =Y41+(L42-M42)*(E42-D42)/10 -> 4.1 | AC42: =(U42/(Z$41*100))*100 -> 24.81091343 | AD42: =(V42/(AA$41*100))*100 -> 22.30928332 | AE42: 3241 | AM42: =X42/(ABS(E42-D42)*100*100) -> 1.1205 | BE42: 4.4637218 | BF42: 3.98
A43: Beerbu | B43: Bhs | C43: 4 | D43: 10 | E43: 20 | F43: mSgs | G43: 4 | H43: 3 | I43: 93 | J43: 0 | K43: 56.48 | L43: 15 | M43: 7.5 | N43: 1.1205 | O43: 4.7524192 | P43: 4.36 | Q43: 1.5 | R43: 20.75949367 | S43: 0.82 | T43: 0.0395 | U43: 1129 | V43: =U43/R43 -> 54.3847561 | W43: =100*2*U43/X43 -> 2.015171798 | X43: =ABS(E43-D43)*N43*10000 -> 112050 | Y43: =Y42+(L43-M43)*(E43-D43)/10 -> 11.6 | AC43: =(U43/(Z$41*100))*100 -> 17.28572741 | AD43: =(V43/(AA$41*100))*100 -> 16.75080521 | AE43: 2258 | AM43: 1.1205 | BE43: 4.7524192 | BF43: 4.36
A44: Beerbu | B44: Bvs | C44: 5 | D44: 20 | E44: 40 | F44: fSmS | G44: 3 | H44: 4 | I44: 93 | J44: 0 | K44: 44.26666667 | L44: 9.35 | M44: 7.5 | N44: 1.465333333 | O44: 4.9159072 | P44: 4.56 | Q44: 1.15 | R44: 18.83408072 | S44: 0.42 | T44: 0.0223 | U44: 619.6 | V44: 32.89780952 | W44: 0.4228389445 | X44: 293066.6667 | Y44: 15.3 | AC44: 9.486480693 | AD44: 10.132707 | AE44: 1239.2 | AM44: =X44/(ABS(E44-D44)*100*100) -> 1.465333333 | BE44: 4.9159072 | BF44: 4.56
A45: Beerbu | B45: Bvs | C45: 6 | D45: 40 | E45: 50 | F45: fSmS | G45: 3 | H45: 4 | I45: 93 | J45: 0 | K45: 44.26666667 | L45: 9.35 | M45: 7.5 | N45: 1.465333333 | O45: 7.99879255 | P45: 7.33 | Q45: 1.15 | R45: 6.103286385 | S45: 0.13 | T45: 0.0213 | U45: 50.3 | V45: 8.241461538 | W45: 0.0686533212 | X45: 146533.3333 | Y45: 17.15 | AC45: 0.7701258536 | AD45: 2.538415666 | AE45: 100.6 | AM45: 1.465333333 | BE45: 7.99879255 | BF45: 7.33
A46: Beerbu | B46: C | C46: 7 | D46: 50 | E46: 80 | F46: fSmS | G46: 0 | H46: 1 | I46: 99 | J46: 0 | K46: 45.175 | L46: 9.35 | M46: 7.5 | N46: 1.452 | O46: 7.99879255 | P46: 7.33 | Q46: 1.15 | R46: 6.103286385 | S46: 0.13 | T46: 0.0213 | U46: 150 | V46: 24.57692308 | W46: 0.06887052342 | X46: 435600 | Y46: 22.7 | AC46: 2.296597973 | AD46: 7.569828029 | AE46: 300 | AM46: =X46/(ABS(E46-D46)*100*100) -> 1.452 | BE46: 7.99879255 | BF46: 7.33
A47: Beerbu | B47: C | C47: 8 | D47: 80 | E47: 105 | F47: fSmS | G47: 0 | H47: 1 | I47: 99 | J47: 0 | K47: 45.175 | L47: 5.05 | M47: 4.4 | N47: 1.452 | O47: 6.4185488 | P47: 6.08 | Q47: 1.15 | R47: 9.554140127 | S47: 0.03 | T47: 0.00314 | U47: 28 | V47: 2.930666667 | W47: 0.01542699725 | X47: 363000 | Y47: 24.325 | AC47: 0.4286982883 | AD47: 0.9026615173 | AE47: 56 | AM47: 1.452 | BE47: 6.4185488 | BF47: 6.08
A48: Beerbu | B48: Go | C48: 9 | D48: 105 | E48: 120 | F48: mSgs | G48: 1 | H48: 2 | I48: 97 | J48: 0 | K48: 43.075 | L48: 5.05 | M48: 2.5 | N48: 1.50875 | O48: 6.4185488 | P48: 6.08 | Q48: 1.5 | R48: 9.554140127 | S48: 0.03 | T48: 0.00314 | U48: 16.2 | V48: 1.6956 | W48: 0.01431648716 | X48: 226312.5 | Y48: 28.15 | AC48: 0.2480325811 | AD48: 0.5222541636 | AE48: 32.4 | AM48: =X48/(ABS(E48-D48)*100*100) -> 1.50875 | BE48: 6.4185488 | BF48: 6.08
A49: Beerbu | B49: Go | C49: 10 | D49: 120 | E49: 160 | F49: mSgs | G49: 1 | H49: 2 | I49: 97 | J49: 0 | K49: 43.075 | L49: 5.05 | M49: 0.5 | N49: 1.50875 | O49: 6.68597095 | P49: 6.31 | Q49: 1.5 | R49: 7.025761124 | S49: 0.03 | T49: 0.00427 | U49: 48.8 | V49: 6.945866667 | W49: 0.01617232809 | X49: 603500 | Y49: 46.35 | AC49: 0.7471598738 | AD49: 2.13936529 | AE49: 97.6 | AM49: =X49/(ABS(E49-D49)*100*100) -> 1.50875 | BE49: 6.68597095 | BF49: 6.31
A50: Beerbu | B50: Go | C50: 11 | D50: 160 | E50: 230 | F50: mSgs | G50: 1 | H50: 2 | I50: 97 | J50: 0 | K50: 43.075 | L50: 5.05 | M50: 0.5 | N50: 1.50875 | O50: 6.674125 | P50: 6.3 | Q50: 1.5 | X50: 1056125 | Y50: 78.2 | AC50: 0 | AD50: 0 | AE50: 0 | AM50: 1.50875 | BE50: 6.674125 | BF50: 6.3
A51: Beerbu | B51: Gr | C51: 12 | D51: 230 | E51: 300 | F51: mSgs | G51: 1 | H51: 2 | I51: =100-G51-H51 -> 97 | J51: 0 | K51: 43 | L51: 5.05 | M51: 0.5 | N51: 1.5 | O51: 6.674125 | P51: 6.3 | Q51: 1.5 | X51: 1050000 | Y51: 110.05 | Z51: =SUM(U40:U51)*10/1000 -> 101.213 | AA51: =SUM(V40:V51)*10/1000 -> 4.609870121 | AB51: =Z51/AA51 -> 21.95571618 | AC51: 0 | AD51: 0 | AE51: 0 | AM51: 1.5 | BE51: 6.674125 | BF51: 6.3
A52: Kienh | B52: Of/Oh | C52: 1 | D52: 6 | E52: 0 | F52: =Standorte!L4 -> mor | G52: 0 | H52: 0 | I52: 0 | J52: 0 | K52: =(1-N52/$AP$1)*100 -> 76.57989295 | L52: 43 | M52: 13 | N52: =X52/(ABS(D52-E52)*10000) -> 0.3278814988 | O52: 4.4782 | P52: 4 | Q52: 3 | R52: =S52/T52 -> 24.14084507 | S52: 25.71 | T52: 1.065 | U52: 5057.9 | V52: =U52/R52 -> 209.5162777 | W52: =100*2*U52/X52 -> 51.42 | X52: =U52/S52*100 -> 19672.88993 | Y52: =(L52-M52)*D52/10 -> 18 | Z52: =U52/100 -> 50.579 | AA52: =V52/100 -> 2.095162777 | AC52: =Z52/Z63*100 -> 41.9812417 | AD52: =AA52/AA63*100 -> 38.72950789 | AE52: =(W52/100)*X52 -> 10115.8 | AM52: 0.3278814988 | AN52: D:\All_fs\Daten\Level2\Brandenburg\Excel\Parameter.xls | BE52: 4.4782 | BF52: 4
A53: Kienh | B53: Ahe | C53: 2 | D53: 0 | E53: 5 | F53: fSmS | G53: 3 | H53: 6 | I53: =100-G53-H53 -> 91 | J53: 0 | K53: 46.8 | L53: 25 | M53: 9.5 | N53: 1.39 | O53: 4.21023295 | P53: 3.61 | Q53: 1.15 | R53: =S53/T53 -> 22.62135922 | S53: 2.33 | T53: 0.103 | U53: 2798.3 | V53: =U53/R53 -> 123.7016738 | W53: 8.052661871 | X53: =ABS(E53-D53)*N53*10000 -> 69500 | Y53: =(L53-M53)*(E53-D53)/10 -> 7.75 | Z53: =Z63-Z52 -> 69.901 | AA53: =AA63-AA52 -> 3.314569727 | AC53: =(U53/(Z53*100))*100 -> 40.03233144 | AD53: =(V53/(AA53*100))*100 -> 37.32058276 | AE53: 5596.6 | AM53: =X53/(ABS(E53-D53)*100*100) -> 1.39 | BE53: 4.21023295 | BF53: 3.61
A54: Kienh | B54: Ahe | C54: 3 | D54: 5 | E54: 10 | F54: fSmS | G54: 3 | H54: 6 | I54: =100-G54-H54 -> 91 | J54: 0 | K54: 46.8 | L54: 25 | M54: 9.5 | N54: 1.39 | O54: 4.57424855 | P54: 4.13 | Q54: 1.15 | R54: 22.76402538 | S54: 1.83 | T54: 0.08039 | U54: 2247.2 | V54: 98.71716284 | W54: 6.46676259 | X54: 69500 | Y54: =Y53+(L54-M54)*(E54-D54)/10 -> 15.5 | AC54: =(U54/(Z$53*100))*100 -> 32.14832406 | AD54: =(V54/(AA$53*100))*100 -> 29.78279866 | AE54: 4494.4 | AM54: 1.39 | BE54: 4.57424855 | BF54: 4.13
A55: Kienh | B55: Bs | C55: 4 | D55: 10 | E55: 20 | F55: fSmS | G55: 3 | H55: 4 | I55: =100-G55-H55 -> 93 | J55: 0 | K55: 48.15 | L55: 25 | M55: 5 | N55: 1.37 | O55: 4.62736 | P55: 4.2 | Q55: 1.15 | R55: 20.36082474 | S55: 0.79 | T55: 0.0388 | U55: 1081.3 | V55: 53.10688608 | W55: 1.578540146 | X55: 137000 | Y55: 35.5 | AC55: =(U55/(Z$53*100))*100 -> 15.46902047 | AD55: 16.02225641 | AE55: 2162.6 | AM55: 1.37 | BE55: 4.62736 | BF55: 4.2
A56: Kienh | B56: Bs | C56: 5 | D56: 20 | E56: 40 | F56: fSmS | G56: 2 | H56: 3 | I56: 95 | J56: 0 | K56: 48.15 | L56: 13.45 | M56: 5 | N56: 1.37 | O56: 4.79254495 | P56: 4.41 | Q56: 1.15 | R56: 16.90140845 | S56: 0.42 | T56: 0.02485 | U56: 600.3 | V56: 35.51775 | W56: 0.4381751825 | X56: 274000 | Y56: 52.4 | AC56: 8.587859973 | AD56: 10.71564424 | AE56: 1200.6 | AM56: 1.37 | BE56: 4.79254495 | BF56: 4.41
A57: Kienh | B57: Bsv | C57: 6 | D57: 40 | E57: 55 | F57: fSmS | G57: 1 | H57: 1 | I57: =100-G57-H57 -> 98 | J57: 0 | K57: 39.52 | L57: 13.45 | M57: 8.5 | N57: 1.6 | O57: 4.7206768 | P57: 4.32 | Q57: 1.15 | R57: =S57/T57 -> 13.51351351 | S57: 0.1 | T57: 0.0074 | U57: 78 | V57: =U57/R57 -> 5.772 | W57: =100*2*U57/X57 -> 0.065 | X57: =ABS(E57-D57)*N57*10000 -> 240000 | Y57: 59.825 | AC57: 1.115863865 | AD57: 1.741402497 | AE57: 156 | AM57: 1.6 | BE57: 4.7206768 | BF57: 4.32
A58: Kienh | B58: Bsv | C58: 7 | D58: 55 | E58: 80 | F58: fSmS | G58: 1 | H58: 1 | I58: 98 | J58: 0 | K58: 39.52 | L58: 10.1 | M58: 7.5 | N58: 1.6 | O58: 4.7206768 | P58: 4.32 | Q58: 1.15 | R58: 13.51351351 | S58: 0.1 | T58: 0.0074 | U58: 75 | V58: 5.55 | W58: 0.0375 | X58: 400000 | Y58: 66.325 | AC58: 1.072946024 | AD58: 1.674425478 | AE58: 150 | AM58: 1.6 | BE58: 4.7206768 | BF58: 4.32
A59: Kienh | B59: C | C59: 8 | D59: 80 | E59: 90 | F59: fSmS | G59: 1 | H59: 2 | I59: =100-G59-H59 -> 97 | J59: 0 | K59: 40.8 | L59: 10.1 | M59: 4 | N59: 1.57 | O59: 4.71279095 | P59: 4.31 | Q59: 1.15 | R59: =S59/T59 -> 13.33333333 | S59: 0.04 | T59: 0.003 | U59: 28.9 | V59: =U59/R59 -> 2.1675 | W59: =100*2*U59/X59 -> 0.03681528662 | X59: =ABS(E59-D59)*N59*10000 -> 157000 | Y59: 72.425 | AC59: 0.4134418678 | AD59: 0.6539310313 | AE59: 57.8 | AM59: 1.57 | BE59: 4.71279095 | BF59: 4.31
A60: Kienh | B60: C | C60: 9 | D60: 90 | E60: 120 | F60: fSmS | G60: 1 | H60: 2 | I60: 97 | J60: 0 | K60: 40.8 | L60: 11 | M60: 6 | N60: 1.57 | O60: 4.71279095 | P60: 4.31 | Q60: 1.15 | R60: 13.33333333 | S60: 0.04 | T60: 0.003 | U60: 25 | V60: 1.875 | W60: 0.01061571125 | X60: 471000 | Y60: 87.425 | AC60: 0.3576486746 | AD60: 0.5656842831 | AE60: 50 | AM60: 1.57 | BE60: 4.71279095 | BF60: 4.31
A61: Kienh | B61: Go | C61: 10 | D61: 120 | E61: 160 | F61: mSfS | G61: 1 | H61: 2 | I61: 97 | J61: 0 | K61: 42.58 | L61: 11 | M61: 3 | N61: 1.52 | O61: 4.6736602 | P61: 4.26 | Q61: 1.5 | R61: 11.11111111 | S61: 0.04 | T61: 0.0036 | U61: 56.1 | V61: 5.049 | W61: 0.01845394737 | X61: 608000 | Y61: 119.425 | AC61: 0.8025636257 | AD61: 1.523274638 | AE61: 112.2 | AM61: 1.52 | BE61: 4.6736602 | BF61: 4.26
A62: Kienh | B62: G | C62: 11 | D62: 160 | E62: 200 | F62: mSfS | G62: 1 | H62: 2 | I62: 97 | J62: 0 | K62: 43.68 | L62: 6.1 | M62: 3 | N62: 1.49 | O62: 4.62736 | P62: 4.2 | Q62: 1.5 | X62: 596000 | Y62: 131.825 | AC62: 0 | AD62: 0 | AE62: 0 | AM62: 1.49 | BE62: 4.62736 | BF62: 4.2
A63: Kienh | B63: G | C63: 12 | D63: 200 | E63: 300 | F63: mSfS | G63: 1 | H63: 1 | I63: 98 | J63: 0 | K63: 43.68 | L63: 8 | M63: 3 | N63: 1.49 | O63: 4.62736 | P63: 4.2 | Q63: 1.5 | X63: 1490000 | Y63: 181.825 | Z63: =SUM(U52:U63)*10/1000 -> 120.48 | AA63: =SUM(V52:V63)*10/1000 -> 5.409732505 | AB63: =Z63/AA63 -> 22.27097179 | AC63: 0 | AD63: 0 | AE63: 0 | AM63: 1.49 | BE63: 4.62736 | BF63: 4.2
A64: Luette | B64: Of/h | C64: 1 | D64: 5 | E64: 0 | F64: =Standorte!L5 -> mor | G64: 0 | H64: 0 | I64: 0 | J64: 0 | K64: =(1-N64/$AP$1)*100 -> 72.92967963 | L64: 40 | M64: 12 | N64: =X64/(ABS(D64-E64)*10000) -> 0.3789844852 | O64: 4.4782 | P64: 4 | Q64: 3 | R64: =S64/T64 -> 26.90702087 | S64: 28.36 | T64: 1.054 | U64: 5374 | V64: =U64/R64 -> 199.7248237 | W64: =100*2*U64/X64 -> 56.72 | X64: =U64/S64*100 -> 18949.22426 | Y64: =(L64-M64)*D64/10 -> 14 | Z64: =U64/100 -> 53.74 | AA64: =V64/100 -> 1.997248237 | AC64: =Z64/Z77*100 -> 54.80877104 | AD64: =AA64/AA77*100 -> 51.00554241 | AE64: 10748 | AM64: =X64/(ABS(E64-D64)*100*100) -> 0.3789844852 | AN64: D:\All_fs\Daten\Level2\Brandenburg\Excel\Parameter.xls | BE64: 4.4782 | BF64: 4
A65: Luette | B65: Ahe | C65: 2 | D65: 0 | E65: 5 | F65: St2 | G65: 8 | H65: 9 | I65: =100-G65-H65 -> 83 | J65: 0 | K65: 41.2 | L65: 14.8 | M65: 6.5 | N65: 1.28 | O65: 3.9839872 | P65: 3.24 | Q65: 0.67 | R65: =S65/T65 -> 27.14285714 | S65: 1.52 | T65: 0.056 | U65: 1939 | V65: =U65/R65 -> 71.43684211 | W65: 6.059375 | X65: =ABS(E65-D65)*N65*10000 -> 64000 | Y65: =(L65-M65)*(E65-D65)/10 -> 4.15 | Z65: =Z77-Z64 -> 44.31 | AA65: =AA77-AA64 -> 1.918499234 | AC65: =(U65/(Z65*100))*100 -> 43.75987362 | AD65: =(V65/(AA65*100))*100 -> 37.23579392 | AE65: 3878 | AM65: 1.28 | BE65: 3.9839872 | BF65: 3.24
A66: Luette | B66: Bvh | C66: 3 | D66: 5 | E66: 10 | F66: St2 | G66: 9 | H66: 9 | I66: =100-G66-H66 -> 82 | J66: 0 | K66: 41.15 | L66: 14.8 | M66: 6.5 | N66: 1.31 | O66: 4.337 | P66: 3.8 | Q66: 0.67 | R66: 22.15384615 | S66: 0.72 | T66: 0.0325 | U66: 942 | V66: 42.52083333 | W66: 2.876335878 | X66: 65500 | Y66: =Y65+(L66-M66)*(E66-D66)/10 -> 8.3 | AC66: =(U66/(Z$65*100))*100 -> 21.25930941 | AD66: =(V66/(AA$65*100))*100 -> 22.16359151 | AE66: 1884 | AM66: 1.31 | BE66: 4.337 | BF66: 3.8
A67: Luette | B67: Bsv | C67: 4 | D67: 10 | E67: 20 | F67: St2 | G67: 7 | H67: 11 | I67: =100-G67-H67 -> 82 | J67: 0 | K67: 41 | L67: 14.8 | M67: 3.1 | N67: 1.33 | O67: 4.66589375 | P67: 4.25 | Q67: 0.67 | R67: 21.31782946 | S67: 0.55 | T67: 0.0258 | U67: 719 | V67: 33.72763636 | W67: 1.081203008 | X67: 133000 | Y67: 20 | AC67: =(U67/(Z$65*100))*100 -> 16.22658542 | AD67: 17.58021883 | AE67: 1438 | AM67: 1.33 | BE67: 4.66589375 | BF67: 4.25
A68: Luette | B68: Bsv | C68: 5 | D68: 20 | E68: 30 | F68: St2 | G68: 7 | H68: 11 | I68: 82 | J68: 0 | K68: 41 | L68: 14.8 | M68: 6.5 | N68: 1.33 | O68: 4.69707895 | P68: 4.29 | Q68: 0.67 | R68: 21.10091743 | S68: 0.46 | T68: 0.0218 | U68: 312 | V68: 14.78608696 | W68: 0.4691729323 | X68: 133000 | Y68: 28.3 | AC68: 7.041299932 | AD68: 7.707111212 | AE68: 624 | AM68: =X68/(ABS(E68-D68)*100*100) -> 1.33 | BE68: 4.69707895 | BF68: 4.29
A69: Luette | B69: Bsv | C69: 6 | D69: 30 | E69: 40 | F69: St2 | G69: 6 | H69: 9 | I69: 85 | J69: 0 | K69: 41 | L69: 14.8 | M69: 6.5 | N69: 1.33 | O69: 4.69707895 | P69: 4.29 | Q69: 0.67 | R69: 21.10091743 | S69: 0.46 | T69: 0.0218 | U69: 300 | V69: 14.2173913 | W69: 0.4511278195 | X69: 133000 | Y69: 36.6 | AC69: 6.770480704 | AD69: 7.410683858 | AE69: 600 | AM69: 1.33 | BE69: 4.69707895 | BF69: 4.29
A70: Luette | B70: Cv | C70: 7 | D70: 40 | E70: 50 | F70: St2 | G70: 6 | H70: 9 | I70: 85 | J70: 0 | K70: 43 | L70: 9 | M70: 5.8 | N70: 1.46 | O70: 4.78448 | P70: 4.4 | Q70: 0.67 | R70: 13.73626374 | S70: 0.1 | T70: 0.00728 | U70: 35.5 | V70: 2.5844 | W70: 0.04863013699 | X70: 146000 | Y70: 39.8 | AC70: 0.80117355 | AD70: 1.347094622 | AE70: 71 | AM70: =X70/(ABS(E70-D70)*100*100) -> 1.46 | AN70: FK und WP unterhalb 40 cm an Messwerte angepasst | BE70: 4.78448 | BF70: 4.4
A71: Luette | B71: Cv | C71: 8 | D71: 50 | E71: 70 | F71: mS | G71: 1 | H71: 3 | I71: 96 | J71: 0 | K71: 43 | L71: 9 | M71: 5.8 | N71: 1.46 | O71: 4.78448 | P71: 4.4 | Q71: 1.5 | R71: 13.73626374 | S71: 0.1 | T71: 0.00728 | U71: 70.5 | V71: 5.1324 | W71: 0.04828767123 | X71: 292000 | Y71: 46.2 | AC71: 1.591062965 | AD71: 2.67521608 | AE71: 141 | AM71: 1.46 | BE71: 4.78448 | BF71: 4.4
A72: Luette | B72: C | C72: 9 | D72: 70 | E72: 80 | F72: mS | G72: 1 | H72: 1 | I72: =100-G72-H72 -> 98 | J72: 0 | K72: 43.55 | L72: 4.25 | M72: 0.75 | N72: 1.41 | O72: 4.78448 | P72: 4.4 | Q72: 1.5 | R72: 13.73626374 | S72: 0.1 | T72: 0.00728 | U72: 35 | V72: 2.548 | W72: 0.04964539007 | X72: 141000 | Y72: 49.7 | AC72: 0.7898894155 | AD72: 1.328121458 | AE72: 70 | AM72: =X72/(ABS(E72-D72)*100*100) -> 1.41 | BE72: 4.78448 | BF72: 4.4
A73: Luette | B73: C | C73: 10 | D73: 80 | E73: 90 | F73: mS | G73: 1 | H73: 1 | I73: 98 | J73: 0 | K73: 43.55 | L73: 9 | M73: 5.8 | N73: 1.41 | O73: 4.8825728 | P73: 4.52 | Q73: 1.5 | R73: 15.95744681 | S73: 0.03 | T73: 0.00188 | U73: 13.5 | V73: 0.846 | W73: 0.01914893617 | X73: 141000 | Y73: 52.9 | AC73: 0.3046716317 | AD73: 0.4409696835 | AE73: 27 | AM73: 1.41 | BE73: 4.8825728 | BF73: 4.52
A74: Luette | B74: C | C74: 11 | D74: 90 | E74: 120 | F74: mS | G74: 0 | H74: 1 | I74: 99 | J74: 0 | K74: 43 | L74: 9 | M74: 5.8 | N74: 1.41 | O74: 4.8825728 | P74: 4.52 | Q74: 1.5 | R74: 15.95744681 | S74: 0.03 | T74: 0.00188 | U74: 39.5 | V74: =U74/R74 -> 2.475333333 | W74: =100*2*U74/X74 -> 0.01867612293 | X74: =ABS(E74-D74)*N74*10000 -> 423000 | Y74: 62.5 | AC74: 0.891446626 | AD74: 1.29024463 | AE74: 79 | AM74: 1.41 | BE74: 4.8825728 | BF74: 4.52
A75: Luette | B75: C/Go | C75: 12 | D75: 120 | E75: 160 | F75: mS | G75: 0 | H75: 1 | I75: 99 | J75: 0 | K75: 43 | L75: 9 | M75: 5.8 | N75: 1.41 | O75: 4.78448 | P75: 4.4 | Q75: 1.5 | R75: 15.87301587 | S75: 0.02 | T75: 0.00126 | U75: 25 | V75: =U75/R75 -> 1.575 | W75: =100*2*U75/X75 -> 0.008865248227 | X75: =ABS(E75-D75)*N75*10000 -> 564000 | Y75: 75.3 | AC75: 0.5642067253 | AD75: 0.820954198 | AE75: 50 | AM75: 1.41 | BE75: 4.78448 | BF75: 4.4
A76: Luette | B76: C/Gr | C76: 13 | D76: 160 | E76: 200 | F76: mS | G76: 0 | H76: 1 | I76: 99 | J76: 0 | K76: 43 | L76: 7 | M76: 0.75 | N76: 1.4 | O76: 4.78448 | P76: 4.4 | Q76: 1.5 | X76: =ABS(E76-D76)*N76*10000 -> 560000 | Y76: 100.3 | AC76: 0 | AD76: 0 | AE76: 0 | AM76: 1.4 | BE76: 4.78448 | BF76: 4.4
A77: Luette | B77: C/Gr | C77: 14 | D77: 200 | E77: 300 | F77: mS | G77: 0 | H77: 1 | I77: 99 | J77: 0 | K77: 43 | L77: 7 | M77: 0.75 | N77: 1.4 | O77: 4.78448 | P77: 4.4 | Q77: 1.5 | X77: =ABS(E77-D77)*N77*10000 -> 1400000 | Y77: 162.8 | Z77: =SUM(U64:U77)*10/1000 -> 98.05 | AA77: =SUM(V64:V77)*10/1000 -> 3.915747471 | AB77: =Z77/AA77 -> 25.03991913 | AC77: 0 | AD77: 0 | AE77: 0 | AM77: 1.4 | BE77: 4.78448 | BF77: 4.4
A78: Neusgf | B78: Of/Oh | C78: 1 | D78: 6 | E78: 0 | F78: =Standorte!L5 -> mor | G78: 0 | H78: 0 | I78: 0 | J78: 0 | K78: =(1-N78/$AP$1)*100 -> 78.54641857 | L78: 40 | M78: 12 | N78: =X78/(ABS(D78-E78)*10000) -> 0.3003501401 | O78: 3.8413018 | P78: 2.98 | Q78: 3 | R78: =S78/T78 -> 27.21036585 | S78: 35.7 | T78: 1.312 | U78: 6433.5 | V78: =U78/R78 -> 236.4356303 | W78: =100*2*U78/X78 -> 71.4 | X78: =U78/S78*100 -> 18021.0084 | Y78: =(L78-M78)*D78/10 -> 16.8 | Z78: =U78/100 -> 64.335 | AA78: =V78/100 -> 2.364356303 | AC78: =Z78/Z88*100 -> 55.64204354 | AD78: =AA78/AA88*100 -> 52.4015753 | AE78: =(W78/100)*X78 -> 12867 | AM78: =X78/(ABS(E78-D78)*100*100) -> 0.3003501401 | AN78: D:\All_fs\Daten\Level2\Brandenburg\Excel\Parameter.xls | BE78: 3.8413018 | BF78: 2.98
A79: Neusgf | B79: Ahe | C79: 2 | D79: 0 | E79: 5 | F79: Su3 | G79: 7 | H79: 26 | I79: 67 | J79: 0 | K79: 46 | L79: 12 | M79: 2 | N79: 1.32 | O79: 4.1028992 | P79: 3.44 | Q79: 0.5 | R79: 28.06499261 | S79: 1.9 | T79: 0.0677 | U79: 2468 | V79: =U79/R79 -> 87.93873684 | W79: 7.478787879 | X79: =ABS(E79-D79)*N79*10000 -> 66000 | Y79: =(L79-M79)*(E79-D79)/10 -> 5 | Z79: =Z88-Z78 -> 51.288 | AA79: =AA88-AA78 -> 2.147638402 | AC79: =(U79/(Z79*100))*100 -> 48.12041803 | AD79: =(V79/(AA79*100))*100 -> 40.94671466 | AE79: 4936 | BE79: 4.1028992 | BF79: 3.44
A80: Neusgf | B80: Bsv | C80: 3 | D80: 5 | E80: 10 | F80: Su3 | G80: 7 | H80: 25 | I80: 68 | J80: 0 | K80: =(45.4+47.1+47.6+46)/4 -> 46.525 | L80: 12.45 | M80: 1.4 | N80: 1.29 | O80: 4.44215375 | P80: 3.95 | Q80: 0.5 | R80: 26.04166667 | S80: 0.75 | T80: 0.0288 | U80: 970.3 | V80: 37.25952 | W80: 3.008682171 | X80: 64500 | Y80: =Y79+(L80-M80)*(E80-D80)/10 -> 10.525 | AC80: =(U80/(Z$79*100))*100 -> 18.91865544 | AD80: =(V80/(AA$79*100))*100 -> 17.34906582 | AE80: 1940.6 | BE80: 4.44215375 | BF80: 3.95
A81: Neusgf | B81: Bv | C81: 4 | D81: 10 | E81: 20 | F81: Sl3 | G81: 9 | H81: 24 | I81: 67 | J81: 0 | K81: =(45.2+46.8+46.1)/3 -> 46.03333333 | L81: 10 | M81: 1 | N81: 1.38 | O81: 4.6427138 | P81: 4.22 | Q81: 0.38 | R81: 21.39917695 | S81: 0.52 | T81: 0.0243 | U81: 715 | V81: 33.4125 | W81: 1.036231884 | X81: 138000 | Y81: 19.525 | AC81: =(U81/(Z$53*100))*100 -> 10.22875209 | AD81: 10.08049392 | AE81: 1430 | BE81: 4.6427138 | BF81: 4.22
A82: Neusgf | B82: Bv | C82: 5 | D82: 20 | E82: 40 | F82: Sl3 | G82: 9 | H82: 22 | I82: 69 | J82: 0 | K82: =(45.2+46.8+46.1)/3 -> 46.03333333 | L82: 9.5 | M82: 1 | N82: 1.38 | O82: 4.74445375 | P82: 4.35 | Q82: 0.38 | R82: 20.21505376 | S82: 0.47 | T82: 0.02325 | U82: 646.7 | V82: 31.99101064 | W82: 0.4686231884 | X82: 276000 | Y82: 36.525 | AC82: 9.251655913 | AD82: 9.651633023 | AE82: 1293.4 | BE82: 4.74445375 | BF82: 4.35
A83: Neusgf | B83: C1 | C83: 6 | D83: 40 | E83: 60 | F83: Sl2 | G83: 8 | H83: 23 | I83: 69 | J83: 0 | K83: =(43.6+43+42.3+48.8)/4 -> 44.425 | L83: 4 | M83: 1 | N83: 1.55 | O83: 4.66589375 | P83: 4.25 | Q83: 0.6 | R83: 13.36573512 | S83: 0.11 | T83: 0.00823 | U83: 75 | V83: 5.611363636 | W83: 0.04838709677 | X83: 310000 | Y83: 42.525 | AC83: 1.072946024 | AD83: 1.692938782 | AE83: 150 | BE83: 4.66589375 | BF83: 4.25
A84: Neusgf | B84: C1 | C84: 7 | D84: 60 | E84: 80 | F84: Sl2 | G84: 8 | H84: 23 | I84: 69 | J84: 0 | K84: =(43.6+43+42.3+48.8)/4 -> 44.425 | L84: 3.85 | M84: 0.7 | N84: 1.55 | O84: 4.66589375 | P84: 4.25 | Q84: 0.6 | R84: 13.36573512 | S84: 0.11 | T84: 0.00823 | U84: 74.2 | V84: 5.551509091 | W84: 0.04787096774 | X84: 310000 | Y84: 48.825 | AC84: 1.061501266 | AD84: 1.674880768 | AE84: 148.4 | BE84: 4.66589375 | BF84: 4.25
A85: Neusgf | B85: C2 | C85: 8 | D85: 80 | E85: 130 | F85: mS | G85: 0 | H85: 1 | I85: 99 | J85: 0 | K85: =(43.9+45.3+42.7+44.7)/4 -> 44.15 | L85: 4.05 | M85: 0.6 | N85: 1.46 | O85: 4.63502695 | P85: 4.21 | Q85: 1.5 | R85: 12.79707495 | S85: 0.07 | T85: 0.00547 | U85: 106.4 | V85: 8.3144 | W85: =100*2*U85/X85 -> 0.02915068493 | X85: =ABS(E85-D85)*N85*10000 -> 730000 | Y85: 66.075 | AC85: 1.522152759 | AD85: 2.508440215 | AE85: 212.8 | BE85: 4.63502695 | BF85: 4.21
A86: Neusgf | B86: G | C86: 9 | D86: 130 | E86: 160 | F86: mSfS | G86: 0 | H86: 1 | I86: 99 | J86: 0 | K86: 45 | L86: 14 | M86: 4 | N86: 1.5 | O86: 4.78448 | P86: 4.4 | Q86: 1.15 | R86: 15.625 | S86: 0.05 | T86: 0.0032 | U86: 73.2 | V86: 4.6848 | W86: 0.03253333333 | X86: =ABS(E86-D86)*N86*10000 -> 450000 | Y86: 96.075 | AC86: 1.047195319 | AD86: 1.413396122 | AE86: 146.4 | BE86: 4.78448 | BF86: 4.4
A87: Neusgf | B87: G | C87: 10 | D87: 160 | E87: 180 | F87: mSfS | G87: 0 | H87: 1 | I87: 99 | J87: 0 | K87: 45 | L87: 14 | M87: 4 | N87: 1.5 | O87: 4.78448 | P87: 4.4 | Q87: 1.15 | W87: 0 | X87: =ABS(E87-D87)*N87*10000 -> 300000 | Y87: 116.075 | AC87: 0 | AD87: 0 | AE87: =(W87/100)*X87 -> 0 | BE87: 4.78448 | BF87: 4.4
A88: Neusgf | B88: G | C88: 11 | D88: 180 | E88: 300 | F88: mSfS | G88: 0 | H88: 1 | I88: 99 | J88: 0 | K88: 45 | L88: 14 | M88: 4 | N88: 1.5 | O88: 4.78448 | P88: 4.4 | Q88: 1.15 | W88: 0 | X88: =ABS(E88-D88)*N88*10000 -> 1800000 | Y88: 236.075 | Z88: =SUM(U78:U88)*10/1000 -> 115.623 | AA88: =SUM(V78:V88)*10/1000 -> 4.511994705 | AB88: =Z88/AA88 -> 25.62569497 | AC88: 0 | AD88: 0 | AE88: 0 | BE88: 4.78448 | BF88: 4.4
A89: Schwenow | B89: Of/h | C89: 1 | D89: 5 | E89: 0 | F89: =Standorte!L7 -> mor | G89: 0 | H89: 0 | I89: 0 | J89: 0 | K89: =(1-N89/$AP$1)*100 -> 84.34989521 | L89: 40 | M89: 12 | N89: =X89/(ABS(D89-E89)*10000) -> 0.219101467 | O89: 3.8413018 | P89: 2.98 | Q89: 3 | R89: =S89/T89 -> 26.1341853 | S89: 32.72 | T89: 1.252 | U89: 3584.5 | V89: =U89/R89 -> 137.1575183 | W89: 65.44 | X89: =U89/S89*100 -> 10955.07335 | Y89: =(L89-M89)*D89/10 -> 14 | Z89: =U89/100 -> 35.845 | AA89: =V89/100 -> 1.371575183 | AC89: =Z89/Z100*100 -> 43.50226947 | AD89: =AA89/AA100*100 -> 35.53046462 | AE89: 7169 | AM89: =X89/(ABS(E89-D89)*100*100) -> 0.219101467 | AN89: D:\All_fs\Daten\Level2\Brandenburg\Excel\Parameter.xls | BE89: 3.8413018 | BF89: 2.98
A90: Schwenow | B90: Aeh | C90: 2 | D90: 0 | E90: 4 | F90: St2 | G90: 8 | H90: 5 | I90: =100-G90-H90 -> 87 | J90: 0 | K90: =(53.8+55.7+62.9+58.2)/4 -> 57.65 | L90: 14 | M90: 2 | N90: 1.23 | O90: 4.1028992 | P90: 3.44 | Q90: 0.67 | R90: =S90/T90 -> 21.10552764 | S90: 2.1 | T90: 0.0995 | U90: 2432 | V90: =U90/R90 -> 115.2304762 | W90: 9.886178862 | X90: =ABS(E90-D90)*N90*10000 -> 49200 | Y90: =(L90-M90)*(E90-D90)/10 -> 4.8 | Z90: =Z100-Z89 -> 46.553 | AA90: =AA100-AA89 -> 2.488704151 | AC90: =(U90/(Z90*100))*100 -> 52.24153116 | AD90: =(V90/(AA90*100))*100 -> 46.3013959 | AE90: 4864 | BE90: 4.1028992 | BF90: 3.44
A91: Schwenow | B91: Bsv | C91: 3 | D91: 4 | E91: 9 | F91: St2 | G91: 8 | H91: 7 | I91: 85 | J91: 0 | K91: =(48.5+47+52.5+50)/4 -> 49.5 | L91: 14.05 | M91: 1.6 | N91: =(1.45+1.43+1.43+1.44)/4 -> 1.4375 | O91: 4.44215375 | P91: 3.95 | Q91: 0.67 | R91: 18.65168539 | S91: 0.83 | T91: 0.0445 | U91: 1084 | V91: 58.11807229 | W91: 3.016347826 | X91: =ABS(E91-D91)*N91*10000 -> 71875 | Y91: =Y90+(L91-M91)*(E91-D91)/10 -> 11.025 | AC91: =(U91/(Z$90*100))*100 -> 23.28528774 | AD91: =(V91/(AA$90*100))*100 -> 23.35274454 | AE91: 2168 | BE91: 4.44215375 | BF91: 3.95
A92: Schwenow | B92: Bv | C92: 4 | D92: 9 | E92: 20 | F92: St2 | G92: 6 | H92: 5 | I92: 89 | J92: 0 | K92: =(51.1+50.3+50.4+49.8)/4 -> 50.4 | L92: 14 | M92: 2 | N92: =(1.528+1.545+1.526+1.586)/4 -> 1.54625 | O92: =0.0995*P92*P92 - 0.0701*P92 + 3.1666 -> 4.6427138 | P92: 4.22 | Q92: 0.67 | R92: 16.66666667 | S92: 0.38 | T92: 0.0228 | U92: 526.2 | V92: 31.572 | W92: 0.6187403542 | X92: 170087.5 | Y92: 24.225 | AC92: =(U92/(Z$90*100))*100 -> 11.30324576 | AD92: 12.6861202 | AE92: 1052.4 | BE92: =0.0995*BF92*BF92 - 0.0701*BF92 + 3.1666 -> 4.6427138 | BF92: 4.22
A93: Schwenow | B93: Bv | C93: 5 | D93: 20 | E93: 40 | F93: mS | G93: 3 | H93: 3 | I93: 94 | J93: 0 | K93: =(51.1+50.3+50.4+49.8)/4 -> 50.4 | L93: 8.45 | M93: 2.05 | N93: =(1.528+1.545+1.526+1.586)/4 -> 1.54625 | O93: 4.74445375 | P93: 4.35 | Q93: 1.5 | R93: 15.54404145 | S93: 0.3 | T93: 0.0193 | U93: 423.2 | V93: 27.22586667 | W93: 0.273694422 | X93: 309250 | Y93: 37.025 | AC93: 9.09071381 | AD93: 10.93977629 | AE93: 846.4 | BE93: 4.74445375 | BF93: 4.35
A94: Schwenow | B94: Bv | C94: 6 | D94: 40 | E94: 50 | F94: mS | G94: 2 | H94: 2 | I94: 96 | J94: 0 | K94: =(51.1+50.3+50.4+49.8)/4 -> 50.4 | L94: 9 | M94: 2 | N94: =(1.528+1.545+1.526+1.586)/4 -> 1.54625 | O94: 4.66589375 | P94: 4.25 | Q94: 1.5 | R94: 14.63414634 | S94: 0.09 | T94: 0.00615 | U94: 31 | V94: 2.118333333 | W94: 0.04009700889 | X94: 154625 | Y94: 44.025 | AC94: 0.6659076751 | AD94: 0.8511792501 | AE94: 62 | BE94: 4.66589375 | BF94: 4.25
A95: Schwenow | B95: C | C95: 7 | D95: 50 | E95: 80 | F95: mS | G95: 2 | H95: 2 | I95: 96 | J95: 0 | K95: =(43.7+44.7+42.7+41.4)/4 -> 43.125 | L95: 4.8 | M95: 0.6 | N95: =(1.517+1.494+1.484+1.485)/4 -> 1.495 | O95: 4.66589375 | P95: 4.25 | Q95: 1.5 | R95: 14.63414634 | S95: 0.09 | T95: 0.00615 | U95: 91.7 | V95: 6.266166667 | W95: 0.04089186176 | X95: 448500 | Y95: 56.625 | AC95: 1.969797865 | AD95: 2.517843137 | AE95: 183.4 | BE95: 4.66589375 | BF95: 4.25
A96: Schwenow | B96: C | C96: 8 | D96: 80 | E96: 115 | F96: St2 | G96: 7 | H96: 7 | I96: 86 | J96: 0 | K96: =(43.7+44.7+42.7+41.4)/4 -> 43.125 | L96: 14 | M96: 2 | N96: =(1.517+1.494+1.484+1.485)/4 -> 1.495 | O96: 4.63502695 | P96: 4.21 | Q96: 0.67 | R96: 7.092198582 | S96: 0.02 | T96: 0.00282 | U96: 39.5 | V96: 5.5695 | W96: 0.01509794553 | X96: 523250 | Y96: 98.625 | AC96: 0.8484952635 | AD96: 2.237911644 | AE96: 79 | BE96: 4.63502695 | BF96: 4.21
A97: Schwenow | B97: Go | C97: 9 | D97: 115 | E97: 160 | F97: fSms | G97: 5 | H97: 8 | I97: 87 | J97: 0 | K97: =(39.8+39.1+47.8+44.8)/4 -> 42.875 | L97: 14 | M97: 4 | N97: 1.38 | O97: 4.78448 | P97: 4.4 | Q97: 1.15 | R97: 10 | S97: 0.02 | T97: 0.002 | U97: 27.7 | V97: 2.77 | W97: 0.008921095008 | X97: 621000 | Y97: 143.625 | AC97: 0.5950207291 | AD97: 1.113029043 | AE97: 55.4 | BE97: 4.78448 | BF97: 4.4
A98: Schwenow | B98: Gr | C98: 10 | D98: 160 | E98: 200 | F98: mS | G98: 1 | H98: 3 | I98: 96 | J98: 0 | K98: 41 | L98: 9 | M98: 2 | N98: 1.4 | O98: 4.78448 | P98: 4.4 | Q98: 1.5 | W98: 0 | X98: 560000 | Y98: 171.625 | AC98: 0 | AD98: 0 | AE98: 0 | BE98: 4.78448 | BF98: 4.4
A99: Schwenow | B99: Gr | C99: 11 | D99: 200 | E99: 250 | F99: mS | G99: 0 | H99: 1 | I99: 99 | J99: 0 | K99: 41 | L99: 9 | M99: 2 | N99: 1.4 | O99: 4.78448 | P99: 4.4 | Q99: 1.5 | W99: 0 | X99: 700000 | Y99: 206.625 | AC99: 0 | AD99: 0 | AE99: 0 | BE99: 4.78448 | BF99: 4.4
A100: Schwenow | B100: Gr | C100: 12 | D100: 250 | E100: 300 | F100: Sl2 | G100: 6 | H100: 12 | I100: 82 | J100: 0 | K100: 50 | L100: 27 | M100: 7 | N100: 1.4 | O100: 4.78448 | P100: 4.4 | Q100: 0.6 | W100: 0 | X100: 700000 | Y100: 306.625 | Z100: =SUM(U89:U100)*10/1000 -> 82.398 | AA100: =SUM(V89:V100)*10/1000 -> 3.860279335 | AB100: =Z100/AA100 -> 21.34508745 | AC100: 0 | AD100: 0 | AE100: 0 | BE100: 4.78448 | BF100: 4.4
A101: Bornh | B101: L/Ofh | C101: 1 | D101: 6 | E101: 0 | F101: mo | AM101: 0
A102: Bornh | B102: Ah1 | C102: 2 | D102: 0 | E102: 4 | F102: Sl2 | AM102: 0
A103: Bornh | B103: Ah2 | C103: 3 | D103: 4 | E103: 35 | F103: Su2 | AM103: 0
A104: Bornh | B104: AhBv | C104: 4 | D104: 35 | E104: 52 | F104: Su2 | AM104: 0
A105: Bornh | B105: Bv1 | C105: 5 | D105: 52 | E105: 70 | F105: Su2 | AM105: 0
A106: Bornh | B106: Bv2 | C106: 6 | D106: 70 | E106: 83 | F106: Su2 | AM106: 0
A107: Bornh | B107: IIBv | C107: 7 | D107: 83 | E107: 90 | F107: Sl3 | AM107: 0
A108: Bornh | B108: IIIrS | C108: 8 | D108: 90 | E108: 128 | F108: Ss | AM108: 0
A109: Bornh | B109: rSC1 | C109: 9 | D109: 128 | E109: 170 | F109: Ss | AM109: 0
A110: aust1 | B110: Ah | C110: 1 | D110: 0 | E110: 20 | F110: Sl4 | J110: 5 | K110: =[1]Bodenarten!$T$17 -> 52 | L110: 34 | M110: 12 | O110: 4.6 | P110: =-0.0401*O110*O110 + 1.4009*O110 - 1.4444 -> 4.151224 | Q110: =[1]Bodenarten!$Z$17 -> 0.3 | R110: 23 | AM110: 0 | AN110: nur nFK angegeben; FK, WP abgeleitet | BE110: 4.6 | BF110: =-0.0401*BE110*BE110 + 1.4009*BE110 - 1.4444 -> 4.151224
A111: aust1 | B111: Bv | C111: 2 | D111: 20 | E111: 80 | F111: Sl4 | J111: 10 | K111: =[1]Bodenarten!$T$17 -> 52 | L111: 34 | M111: 12 | O111: 4.6 | P111: =-0.0401*O111*O111 + 1.4009*O111 - 1.4444 -> 4.151224 | Q111: =[1]Bodenarten!$Z$17 -> 0.3 | R111: 23 | AM111: 0 | BE111: 4.6 | BF111: =-0.0401*BE111*BE111 + 1.4009*BE111 - 1.4444 -> 4.151224
A112: aust1 | B112: C | C112: 3 | D112: 80 | AM112: 0
A113: aust2 | B113: Ah | C113: 1 | D113: 0 | E113: 20 | F113: Sl4 | J113: 5 | K113: =[1]Bodenarten!$U$17 -> 42 | L113: 28 | M113: 11 | O113: 4 | P113: 3.5176 | Q113: =[1]Bodenarten!$Z$17 -> 0.3 | R113: 25 | Y113: =(L113-M113)*D113/10 -> 0 | AM113: 0 | AN113: nur nFK angegeben; FK, WP abgeleitet | BE113: 4 | BF113: =-0.0401*BE113*BE113 + 1.4009*BE113 - 1.4444 -> 3.5176
A114: aust2 | B114: Bv | C114: 2 | D114: 20 | E114: 80 | F114: Sl4 | J114: 15 | K114: =[1]Bodenarten!$U$17 -> 42 | L114: 28 | M114: 11 | O114: 4 | P114: 3.5176 | Q114: =[1]Bodenarten!$Z$17 -> 0.3 | R114: 25 | Y114: =(L114-M114)*(E114-D114)/10 -> 102 | AM114: 0 | BE114: 4 | BF114: =-0.0401*BE114*BE114 + 1.4009*BE114 - 1.4444 -> 3.5176
A115: aust2 | B115: C | C115: 3 | D115: 80 | Y115: =Y114+(L115-M115)*(E115-D115)/10 -> 102 | AM115: 0
A116: aust3 | B116: Ah | C116: 1 | D116: 0 | E116: 10 | F116: Sl4 | J116: 5 | K116: =[1]Bodenarten!$U$17 -> 42 | L116: 28 | M116: 11 | O116: 7 | P116: 6.397 | Q116: =[1]Bodenarten!$Z$17 -> 0.3 | R116: 20 | AM116: 0 | AN116: nur nFK angegeben; FK, WP abgeleitet | BE116: 7 | BF116: =-0.0401*BE116*BE116 + 1.4009*BE116 - 1.4444 -> 6.397
A117: aust3 | B117: Bv | C117: 2 | D117: 10 | E117: 40 | F117: Sl4 | J117: 15 | K117: =[1]Bodenarten!$U$17 -> 42 | L117: 28 | M117: 11 | O117: 7 | P117: 6.397 | Q117: =[1]Bodenarten!$Z$17 -> 0.3 | R117: 20 | AM117: 0 | BE117: 7 | BF117: =-0.0401*BE117*BE117 + 1.4009*BE117 - 1.4444 -> 6.397
A118: aust3 | B118: C | C118: 3 | D118: 40 | AM118: 0
A119: ausb1 | B119: Oh | C119: 1 | D119: =X119/(N119*10000) -> 4.174551 | E119: 0 | J119: 0 | K119: =(1-N119/$AP$1)*100 -> 85.71428571 | L119: 42 | M119: 12 | N119: 0.2 | O119: 4.1 | P119: 3.625209 | Q119: 5 | R119: =U119/V119 -> 24.87056678 | S119: 44.59989 | T119: 1.79328 | U119: =$X119*S119/100 -> 3723.690308 | V119: =$X119*T119/100 -> 149.7227763 | X119: 8349.102 | Y119: =(L119-M119)*D119/10 -> 12.523653 | AM119: 0.2 | AN119: nur C/N-Gehalt und pH-Wert angegeben | BE119: 4.1 | BF119: =-0.0401*BE119*BE119 + 1.4009*BE119 - 1.4444 -> 3.625209
A120: ausb1 | B120: Ah | C120: 2 | D120: 0 | E120: 20 | F120: Sl2 | J120: 5 | K120: 41 | L120: 23 | M120: 6 | N120: 0.999 | O120: 4.1 | P120: 3.625209 | Q120: 0.6 | R120: =U120/V120 -> 19.68378927 | S120: 3.1002 | T120: 0.1575 | U120: 5885.079 | V120: 298.981 | Y120: =(L120-M120)*(E120-D120)/10 -> 34 | AM120: 0 | AN120: nur nFK angegeben; FK, WP abgeleitet | BE120: 4.1 | BF120: =-0.0401*BE120*BE120 + 1.4009*BE120 - 1.4444 -> 3.625209
A121: ausb1 | B121: Bv | C121: 3 | D121: 20 | E121: 80 | F121: Sl2 | J121: 15 | K121: 41 | L121: 23 | M121: 6 | N121: 1.203 | O121: 4.2 | P121: 3.732016 | Q121: 0.6 | R121: =U121/V121 -> 12.58158933 | S121: 0.6014 | T121: 0.0478 | U121: 3689.463 | V121: 293.243 | Y121: =Y120+(L121-M121)*(E121-D121)/10 -> 136 | AM121: 0 | AN121: nur nFK angegeben; FK, WP abgeleitet | BE121: 4.2 | BF121: =-0.0401*BE121*BE121 + 1.4009*BE121 - 1.4444 -> 3.732016
A122: ausb1 | B122: C | C122: 4 | D122: 80 | Y122: =Y121+(L122-M122)*(E122-D122)/10 -> 136 | Z122: =SUM(U119:U122)*10/1000 -> 132.9823231 | AA122: =SUM(V119:V122)*10/1000 -> 7.419467763 | AB122: =Z122/AA122 -> 17.92343162 | AM122: 0
A123: ausb2 | B123: Oh | C123: 1 | D123: =X123/(N123*10000) -> 4.174701 | E123: 0 | J123: 0 | K123: =(1-N123/$AP$1)*100 -> 85.71428571 | L123: 42 | M123: 12 | N123: 0.2 | O123: 4.3 | P123: 3.838021 | Q123: 5 | R123: =U123/V123 -> 25.07952629 | S123: 49.95641 | T123: 1.99192 | U123: =$X123*S123/100 -> 4171.061496 | V123: =$X123*T123/100 -> 166.3134083 | X123: 8349.402 | AM123: 0.2 | AN123: nur C/N-Gehalt und pH-Wert angegeben | BE123: 4.3 | BF123: =-0.0401*BE123*BE123 + 1.4009*BE123 - 1.4444 -> 3.838021
A124: ausb2 | B124: Ah | C124: 2 | D124: 0 | E124: 20 | F124: Sl4 | J124: 5 | K124: 52 | L124: 34 | M124: 12 | N124: 0.904 | O124: 4.2 | P124: 3.732016 | Q124: 0.3 | R124: =U124/V124 -> 17.0537153 | S124: 2.3807 | T124: 0.1396 | U124: 4087.281 | V124: 239.671 | AM124: 0 | AN124: nur nFK angegeben; FK, WP abgeleitet | BE124: 4.2 | BF124: =-0.0401*BE124*BE124 + 1.4009*BE124 - 1.4444 -> 3.732016
A125: ausb2 | B125: Bv | C125: 3 | D125: 20 | E125: 80 | F125: Sl4 | J125: 10 | K125: 52 | L125: 34 | M125: 12 | N125: 1.268 | O125: 4.4 | P125: 3.943224 | Q125: 0.3 | R125: =U125/V125 -> 11.92657474 | S125: 0.6011 | T125: 0.0504 | U125: 4115.527 | V125: 345.072 | AM125: 0 | AN125: nur nFK angegeben; FK, WP abgeleitet | BE125: 4.4 | BF125: =-0.0401*BE125*BE125 + 1.4009*BE125 - 1.4444 -> 3.943224
A126: ausb2 | B126: C | C126: 4 | D126: 80 | Z126: =SUM(U123:U126)*10/1000 -> 123.738695 | AA126: =SUM(V123:V126)*10/1000 -> 7.510564083 | AB126: =Z126/AA126 -> 16.47528649 | AM126: 0
A127: ausb3 | B127: Oh | C127: 1 | D127: =X127/(N127*10000) -> 4.1871615 | E127: 0 | J127: 0 | K127: =(1-N127/$AP$1)*100 -> 85.71428571 | L127: 42 | M127: 12 | N127: 0.2 | O127: 4.1 | P127: 3.625209 | Q127: 5 | R127: =U127/V127 -> 24.67539377 | S127: 40.47949 | T127: 1.64048 | U127: 3389.88324 | V127: 137.379094 | X127: 8374.323 | Y127: =(L127-M127)*D127/10 -> 12.5614845 | AM127: 0.2 | AN127: nur C/N-Gehalt und pH-Wert angegeben | BE127: 4.1 | BF127: =-0.0401*BE127*BE127 + 1.4009*BE127 - 1.4444 -> 3.625209
A128: ausb3 | B128: Ah | C128: 2 | D128: 0 | E128: 20 | F128: Sl2 | J128: 5 | K128: 41 | L128: 23 | M128: 6 | N128: 0.999 | O128: 4.1 | P128: 3.625209 | Q128: 0.6 | R128: =U128/V128 -> 19.68378927 | S128: 3.1002 | T128: 0.1575 | U128: 5885.079 | V128: 298.981 | Y128: =(L128-M128)*(E128-D128)/10 -> 34 | AM128: 0 | AN128: nur nFK angegeben; FK, WP abgeleitet | BE128: 4.1 | BF128: =-0.0401*BE128*BE128 + 1.4009*BE128 - 1.4444 -> 3.625209
A129: ausb3 | B129: Bv | C129: 3 | D129: 20 | E129: 80 | F129: Sl2 | J129: 15 | K129: 41 | L129: 23 | M129: 6 | N129: 1.203 | O129: 4.2 | P129: 3.732016 | Q129: 0.6 | R129: =U129/V129 -> 12.58158933 | S129: 0.6014 | T129: 0.0478 | U129: 3689.463 | V129: 293.243 | Y129: =Y128+(L129-M129)*(E129-D129)/10 -> 136 | AM129: 0 | AN129: nur nFK angegeben; FK, WP abgeleitet | BE129: 4.2 | BF129: =-0.0401*BE129*BE129 + 1.4009*BE129 - 1.4444 -> 3.732016
A130: ausb3 | B130: C | C130: 4 | D130: 80 | Y130: =Y129+(L130-M130)*(E130-D130)/10 -> 136 | Z130: =SUM(U127:U130)*10/1000 -> 129.6442524 | AA130: =SUM(V127:V130)*10/1000 -> 7.29603094 | AB130: =Z130/AA130 -> 17.76914784 | AM130: 0
A131: ausb4 | B131: Oh | C131: 1 | D131: =X131/(N131*10000) -> 4.690314 | E131: 0 | J131: 0 | K131: =(1-N131/$AP$1)*100 -> 85.71428571 | L131: 42 | M131: 12 | N131: 0.2 | O131: 4.3 | P131: 3.838021 | Q131: 5 | R131: =U131/V131 -> 24.20628369 | S131: 32.95976 | T131: 1.36162 | U131: =$X131*S131/100 -> 3091.832475 | V131: =$X131*T131/100 -> 127.728507 | X131: 9380.628 | AM131: 0.2 | AN131: nur C/N-Gehalt und pH-Wert angegeben | BE131: 4.3 | BF131: =-0.0401*BE131*BE131 + 1.4009*BE131 - 1.4444 -> 3.838021
A132: ausb4 | B132: Ah | C132: 2 | D132: 0 | E132: 20 | F132: Sl4 | J132: 5 | K132: 52 | L132: 34 | M132: 12 | N132: 0.904 | O132: 4.2 | P132: 3.732016 | Q132: 0.3 | R132: =U132/V132 -> 17.0537153 | S132: 2.3807 | T132: 0.1396 | U132: 4087.281 | V132: 239.671 | AM132: 0 | AN132: nur nFK angegeben; FK, WP abgeleitet | BE132: 4.2 | BF132: =-0.0401*BE132*BE132 + 1.4009*BE132 - 1.4444 -> 3.732016
A133: ausb4 | B133: Bv | C133: 3 | D133: 20 | E133: 80 | F133: Sl4 | J133: 10 | K133: 52 | L133: 34 | M133: 12 | N133: 1.268 | O133: 4.4 | P133: 3.943224 | Q133: 0.3 | R133: =U133/V133 -> 11.92657474 | S133: 0.6011 | T133: 0.0504 | U133: 4115.527 | V133: 345.072 | AM133: 0 | AN133: nur nFK angegeben; FK, WP abgeleitet | BE133: 4.4 | BF133: =-0.0401*BE133*BE133 + 1.4009*BE133 - 1.4444 -> 3.943224
A134: ausb4 | B134: C | C134: 4 | D134: 80 | Z134: =SUM(U131:U134)*10/1000 -> 112.9464048 | AA134: =SUM(V131:V134)*10/1000 -> 7.12471507 | AB134: =Z134/AA134 -> 15.85276094 | AM134: 0
A135: ausb5 | B135: Oh | C135: 1 | D135: =X135/(N135*10000) -> 5.421906 | E135: 0 | J135: 0 | K135: =(1-N135/$AP$1)*100 -> 85.71428571 | L135: 42 | M135: 12 | N135: 0.2 | O135: 4.1 | P135: 3.625209 | Q135: 5 | R135: =U135/V135 -> 23.77682345 | S135: 28.01528 | T135: 1.17826 | U135: =$X135*S135/100 -> 3037.924294 | V135: =$X135*T135/100 -> 127.7682993 | X135: 10843.812 | Y135: =(L135-M135)*D135/10 -> 16.265718 | AM135: =X135/(ABS(E135-D135)*100*100) -> 0.2 | AN135: nur C/N-Gehalt und pH-Wert angegeben | BE135: 4.1 | BF135: =-0.0401*BE135*BE135 + 1.4009*BE135 - 1.4444 -> 3.625209
A136: ausb5 | B136: Ah | C136: 2 | D136: 0 | E136: 20 | F136: Sl2 | J136: 5 | K136: 41 | L136: 23 | M136: 6 | N136: 0.999 | O136: 4.1 | P136: 3.625209 | Q136: 0.6 | R136: =U136/V136 -> 19.68378927 | S136: 3.1002 | T136: 0.1575 | U136: 5885.079 | V136: 298.981 | Y136: =(L136-M136)*(E136-D136)/10 -> 34 | AM136: 0 | AN136: nur nFK angegeben; FK, WP abgeleitet | BE136: 4.1 | BF136: =-0.0401*BE136*BE136 + 1.4009*BE136 - 1.4444 -> 3.625209
A137: ausb5 | B137: Bv | C137: 3 | D137: 20 | E137: 80 | F137: Sl2 | J137: 15 | K137: 41 | L137: 23 | M137: 6 | N137: 1.203 | O137: 4.2 | P137: 3.732016 | Q137: 0.6 | R137: =U137/V137 -> 12.58158933 | S137: 0.6014 | T137: 0.0478 | U137: 3689.463 | V137: 293.243 | Y137: =Y136+(L137-M137)*(E137-D137)/10 -> 136 | AM137: 0 | AN137: nur nFK angegeben; FK, WP abgeleitet | BE137: 4.2 | BF137: =-0.0401*BE137*BE137 + 1.4009*BE137 - 1.4444 -> 3.732016
A138: ausb5 | B138: C | C138: 4 | D138: 80 | Y138: =Y137+(L138-M138)*(E138-D138)/10 -> 136 | Z138: =SUM(U135:U138)*10/1000 -> 126.1246629 | AA138: =SUM(V135:V138)*10/1000 -> 7.199922993 | AB138: =Z138/AA138 -> 17.51750166 | AM138: 0
A139: ausb6 | B139: Oh | C139: 1 | D139: =X139/(N139*10000) -> 5.047125 | E139: 0 | J139: 0 | K139: =(1-N139/$AP$1)*100 -> 85.71428571 | L139: 42 | M139: 12 | N139: 0.2 | O139: 4.3 | P139: 3.838021 | Q139: 5 | R139: =U139/V139 -> 23.97585115 | S139: 30.2815 | T139: 1.263 | U139: =$X139*S139/100 -> 3056.690314 | V139: =$X139*T139/100 -> 127.4903775 | X139: 10094.25 | AM139: 0.2 | AN139: nur C/N-Gehalt und pH-Wert angegeben | BE139: 4.3 | BF139: =-0.0401*BE139*BE139 + 1.4009*BE139 - 1.4444 -> 3.838021
A140: ausb6 | B140: Ah | C140: 2 | D140: 0 | E140: 20 | F140: Sl4 | J140: 5 | K140: 52 | L140: 34 | M140: 12 | N140: 0.904 | O140: 4.2 | P140: 3.732016 | Q140: 0.3 | R140: =U140/V140 -> 17.0537153 | S140: 2.3807 | T140: 0.1396 | U140: 4087.281 | V140: 239.671 | AM140: 0 | AN140: nur nFK angegeben; FK, WP abgeleitet | BE140: 4.2 | BF140: =-0.0401*BE140*BE140 + 1.4009*BE140 - 1.4444 -> 3.732016
A141: ausb6 | B141: Bv | C141: 3 | D141: 20 | E141: 80 | F141: Sl4 | J141: 10 | K141: 52 | L141: 34 | M141: 12 | N141: 1.268 | O141: 4.4 | P141: 3.943224 | Q141: 0.3 | R141: =U141/V141 -> 11.92657474 | S141: 0.6011 | T141: 0.0504 | U141: 4115.527 | V141: 345.072 | AM141: 0 | AN141: nur nFK angegeben; FK, WP abgeleitet | BE141: 4.4 | BF141: =-0.0401*BE141*BE141 + 1.4009*BE141 - 1.4444 -> 3.943224
A142: ausb6 | B142: C | C142: 4 | D142: 80 | Z142: =SUM(U139:U142)*10/1000 -> 112.5949831 | AA142: =SUM(V139:V142)*10/1000 -> 7.122333775 | AB142: =Z142/AA142 -> 15.80872038 | AM142: 0
A143: ausb7 | B143: Oh | C143: 1 | D143: =X143/(N143*10000) -> 7.3774485 | E143: 0 | J143: 0 | K143: =(1-N143/$AP$1)*100 -> 85.71428571 | L143: 42 | M143: 12 | N143: 0.2 | O143: 4.3 | P143: 3.838021 | Q143: 5 | R143: =U143/V143 -> 22.64107316 | S143: 19.67147 | T143: 0.86884 | U143: =$X143*S143/100 -> 2902.505137 | V143: =$X143*T143/100 -> 128.1964471 | X143: 14754.897 | Y143: =(L143-M143)*D143/10 -> 22.1323455 | AM143: 0.2 | AN143: nur C/N-Gehalt und pH-Wert angegeben | BE143: 4.3 | BF143: =-0.0401*BE143*BE143 + 1.4009*BE143 - 1.4444 -> 3.838021
A144: ausb7 | B144: Ah | C144: 2 | D144: 0 | E144: 20 | F144: Sl4 | J144: 5 | K144: 52 | L144: 34 | M144: 12 | N144: 0.904 | O144: 4.2 | P144: 3.732016 | Q144: 0.3 | R144: =U144/V144 -> 17.0537153 | S144: 2.3807 | T144: 0.1396 | U144: 4087.281 | V144: 239.671 | Y144: =(L144-M144)*(E144-D144)/10 -> 44 | AM144: 0 | AN144: nur nFK angegeben; FK, WP abgeleitet | BE144: 4.2 | BF144: =-0.0401*BE144*BE144 + 1.4009*BE144 - 1.4444 -> 3.732016
A145: ausb7 | B145: Bv | C145: 3 | D145: 20 | E145: 80 | F145: Sl4 | J145: 10 | K145: 52 | L145: 34 | M145: 12 | N145: 1.268 | O145: 4.4 | P145: 3.943224 | Q145: 0.3 | R145: =U145/V145 -> 11.92657474 | S145: 0.6011 | T145: 0.0504 | U145: 4115.527 | V145: 345.072 | Y145: =Y144+(L145-M145)*(E145-D145)/10 -> 176 | AM145: 0 | AN145: nur nFK angegeben; FK, WP abgeleitet | BE145: 4.4 | BF145: =-0.0401*BE145*BE145 + 1.4009*BE145 - 1.4444 -> 3.943224
A146: ausb7 | B146: C | C146: 4 | D146: 80 | Y146: =Y145+(L146-M146)*(E146-D146)/10 -> 176 | Z146: =SUM(U143:U146)*10/1000 -> 111.0531314 | AA146: =SUM(V143:V146)*10/1000 -> 7.129394471 | AB146: =Z146/AA146 -> 15.57679713 | AM146: 0
A147: ausb8 | B147: Oh | C147: 1 | D147: =X147/(N147*10000) -> 5.243271 | E147: 0 | J147: 0 | K147: =(1-N147/$AP$1)*100 -> 85.71428571 | L147: 42 | M147: 12 | N147: 0.2 | O147: 4.3 | P147: 3.838021 | Q147: 5 | R147: =U147/V147 -> 23.87697088 | S147: 29.04538 | T147: 1.21646 | U147: =$X147*S147/100 -> 3045.855973 | V147: =$X147*T147/100 -> 127.5645888 | X147: 10486.542 | AM147: 0.2 | AN147: nur C/N-Gehalt und pH-Wert angegeben | BE147: 4.3 | BF147: =-0.0401*BE147*BE147 + 1.4009*BE147 - 1.4444 -> 3.838021
A148: ausb8 | B148: Ah | C148: 2 | D148: 0 | E148: 20 | F148: Sl4 | J148: 5 | K148: 52 | L148: 34 | M148: 12 | N148: 0.904 | O148: 4.2 | P148: 3.732016 | Q148: 0.3 | R148: =U148/V148 -> 17.0537153 | S148: 2.3807 | T148: 0.1396 | U148: 4087.281 | V148: 239.671 | AM148: 0 | AN148: nur nFK angegeben; FK, WP abgeleitet | BE148: 4.2 | BF148: =-0.0401*BE148*BE148 + 1.4009*BE148 - 1.4444 -> 3.732016
A149: ausb8 | B149: Bv | C149: 3 | D149: 20 | E149: 80 | F149: Sl4 | J149: 10 | K149: 52 | L149: 34 | M149: 12 | N149: 1.268 | O149: 4.4 | P149: 3.943224 | Q149: 0.3 | R149: =U149/V149 -> 11.92657474 | S149: 0.6011 | T149: 0.0504 | U149: 4115.527 | V149: 345.072 | AM149: 0 | AN149: nur nFK angegeben; FK, WP abgeleitet | BE149: 4.4 | BF149: =-0.0401*BE149*BE149 + 1.4009*BE149 - 1.4444 -> 3.943224
A150: ausb8 | B150: C | C150: 4 | D150: 80 | Z150: =SUM(U147:U150)*10/1000 -> 112.4866397 | AA150: =SUM(V147:V150)*10/1000 -> 7.123075888 | AB150: =Z150/AA150 -> 15.79186316 | AM150: 0
A151: ausb9 | B151: Oh | C151: 1 | D151: =X151/(N151*10000) -> 4.174701 | E151: 0 | J151: 0 | K151: =(1-N151/$AP$1)*100 -> 85.71428571 | L151: 42 | M151: 12 | N151: 0.2 | O151: 4.1 | P151: 3.625209 | Q151: 5 | R151: =U151/V151 -> 25.00036617 | S151: 47.7932 | T151: 1.9117 | U151: =$X151*S151/100 -> 3990.446397 | V151: =$X151*T151/100 -> 159.615518 | X151: 8349.402 | Y151: =(L151-M151)*D151/10 -> 12.524103 | AM151: 0.2 | AN151: nur C/N-Gehalt und pH-Wert angegeben | BE151: 4.1 | BF151: =-0.0401*BE151*BE151 + 1.4009*BE151 - 1.4444 -> 3.625209
A152: ausb9 | B152: Ah | C152: 2 | D152: 0 | E152: 20 | F152: Sl2 | J152: 5 | K152: 41 | L152: 23 | M152: 6 | N152: 0.999 | O152: 4.1 | P152: 3.625209 | Q152: 0.6 | R152: =U152/V152 -> 19.68378927 | S152: 3.1002 | T152: 0.1575 | U152: 5885.079 | V152: 298.981 | Y152: =(L152-M152)*(E152-D152)/10 -> 34 | AM152: 0 | AN152: nur nFK angegeben; FK, WP abgeleitet | BE152: 4.1 | BF152: =-0.0401*BE152*BE152 + 1.4009*BE152 - 1.4444 -> 3.625209
A153: ausb9 | B153: Bv | C153: 3 | D153: 20 | E153: 80 | F153: Sl2 | J153: 15 | K153: 41 | L153: 23 | M153: 6 | N153: 1.203 | O153: 4.2 | P153: 3.732016 | Q153: 0.6 | R153: =U153/V153 -> 12.58158933 | S153: 0.6014 | T153: 0.0478 | U153: 3689.463 | V153: 293.243 | Y153: =Y152+(L153-M153)*(E153-D153)/10 -> 136 | AM153: 0 | AN153: nur nFK angegeben; FK, WP abgeleitet | BE153: 4.2 | BF153: =-0.0401*BE153*BE153 + 1.4009*BE153 - 1.4444 -> 3.732016
A154: ausb9 | B154: C | C154: 4 | D154: 80 | Y154: =Y153+(L154-M154)*(E154-D154)/10 -> 136 | Z154: =SUM(U151:U154)*10/1000 -> 135.649884 | AA154: =SUM(V151:V154)*10/1000 -> 7.51839518 | AB154: =Z154/AA154 -> 18.04239877 | AM154: 0
A155: ausb10 | B155: Oh | C155: 1 | D155: =X155/(N155*10000) -> 4.323534 | E155: 0 | J155: 0 | K155: =(1-N155/$AP$1)*100 -> 85.71428571 | L155: 42 | M155: 12 | N155: 0.2 | O155: 4.3 | P155: 3.838021 | Q155: 5 | R155: =U155/V155 -> 24.48472683 | S155: 37.08016 | T155: 1.51442 | U155: =$X155*S155/100 -> 3206.34665 | V155: =$X155*T155/100 -> 130.9529272 | X155: 8647.068 | AM155: 0.2 | AN155: nur C/N-Gehalt und pH-Wert angegeben | BE155: 4.3 | BF155: =-0.0401*BE155*BE155 + 1.4009*BE155 - 1.4444 -> 3.838021
A156: ausb10 | B156: Ah | C156: 2 | D156: 0 | E156: 20 | F156: Sl4 | J156: 5 | K156: 52 | L156: 34 | M156: 12 | N156: 0.904 | O156: 4.2 | P156: 3.732016 | Q156: 0.3 | R156: =U156/V156 -> 17.0537153 | S156: 2.3807 | T156: 0.1396 | U156: 4087.281 | V156: 239.671 | AM156: 0 | AN156: nur nFK angegeben; FK, WP abgeleitet | BE156: 4.2 | BF156: =-0.0401*BE156*BE156 + 1.4009*BE156 - 1.4444 -> 3.732016
A157: ausb10 | B157: Bv | C157: 3 | D157: 20 | E157: 80 | F157: Sl4 | J157: 10 | K157: 52 | L157: 34 | M157: 12 | N157: 1.268 | O157: 4.4 | P157: 3.943224 | Q157: 0.3 | R157: =U157/V157 -> 11.92657474 | S157: 0.6011 | T157: 0.0504 | U157: 4115.527 | V157: 345.072 | AM157: 0 | AN157: nur nFK angegeben; FK, WP abgeleitet | BE157: 4.4 | BF157: =-0.0401*BE157*BE157 + 1.4009*BE157 - 1.4444 -> 3.943224
A158: ausb10 | B158: C | C158: 4 | D158: 80 | Z158: =SUM(U155:U158)*10/1000 -> 114.0915465 | AA158: =SUM(V155:V158)*10/1000 -> 7.156959272 | AB158: =Z158/AA158 -> 15.94134355 | AM158: 0
A159: ausb11 | B159: Oh | C159: 1 | D159: =X159/(N159*10000) -> 5.0942985 | E159: 0 | J159: 0 | K159: =(1-N159/$AP$1)*100 -> 85.71428571 | L159: 42 | M159: 12 | N159: 0.2 | O159: 4.1 | P159: 3.625209 | Q159: 5 | R159: =U159/V159 -> 23.96187362 | S159: 29.97247 | T159: 1.25084 | U159: =$X159*S159/100 -> 3053.774179 | V159: =$X159*T159/100 -> 127.4430467 | X159: 10188.597 | Y159: =(L159-M159)*D159/10 -> 15.2828955 | AM159: 0.2 | AN159: nur C/N-Gehalt und pH-Wert angegeben | BE159: 4.1 | BF159: =-0.0401*BE159*BE159 + 1.4009*BE159 - 1.4444 -> 3.625209
A160: ausb11 | B160: Ah | C160: 2 | D160: 0 | E160: 20 | F160: Sl2 | J160: 5 | K160: 41 | L160: 23 | M160: 6 | N160: 0.999 | O160: 4.1 | P160: 3.625209 | Q160: 0.6 | R160: =U160/V160 -> 19.68378927 | S160: 3.1002 | T160: 0.1575 | U160: 5885.079 | V160: 298.981 | Y160: =(L160-M160)*(E160-D160)/10 -> 34 | AM160: 0 | AN160: nur nFK angegeben; FK, WP abgeleitet | BE160: 4.1 | BF160: =-0.0401*BE160*BE160 + 1.4009*BE160 - 1.4444 -> 3.625209
A161: ausb11 | B161: Bv | C161: 3 | D161: 20 | E161: 80 | F161: Sl2 | J161: 15 | K161: 41 | L161: 23 | M161: 6 | N161: 1.203 | O161: 4.2 | P161: 3.732016 | Q161: 0.6 | R161: =U161/V161 -> 12.58158933 | S161: 0.6014 | T161: 0.0478 | U161: 3689.463 | V161: 293.243 | Y161: =Y160+(L161-M161)*(E161-D161)/10 -> 136 | AM161: 0 | AN161: nur nFK angegeben; FK, WP abgeleitet | BE161: 4.2 | BF161: =-0.0401*BE161*BE161 + 1.4009*BE161 - 1.4444 -> 3.732016
A162: ausb11 | B162: C | C162: 4 | D162: 80 | Y162: =Y161+(L162-M162)*(E162-D162)/10 -> 136 | Z162: =SUM(U159:U162)*10/1000 -> 126.2831618 | AA162: =SUM(V159:V162)*10/1000 -> 7.196670467 | AB162: =Z162/AA162 -> 17.54744258 | AM162: 0
A163: ausb12 | B163: Oh | C163: 1 | D163: =X163/(N163*10000) -> 5.5944765 | E163: 0 | J163: 0 | K163: =(1-N163/$AP$1)*100 -> 85.71428571 | L163: 42 | M163: 12 | N163: 0.2 | O163: 4.1 | P163: 3.625209 | Q163: 5 | R163: =U163/V163 -> 23.68097178 | S163: 27.08819 | T163: 1.14388 | U163: =$X163*S163/100 -> 3030.884848 | V163: =$X163*T163/100 -> 127.9881956 | X163: 11188.953 | AM163: 0.2 | AN163: nur C/N-Gehalt und pH-Wert angegeben | BE163: 4.1 | BF163: =-0.0401*BE163*BE163 + 1.4009*BE163 - 1.4444 -> 3.625209
A164: ausb12 | B164: Ah | C164: 2 | D164: 0 | E164: 20 | F164: Sl2 | J164: 5 | K164: 41 | L164: 23 | M164: 6 | N164: 0.999 | O164: 4.1 | P164: 3.625209 | Q164: 0.6 | R164: =U164/V164 -> 19.68378927 | S164: 3.1002 | T164: 0.1575 | U164: 5885.079 | V164: 298.981 | AM164: 0 | AN164: nur nFK angegeben; FK, WP abgeleitet | BE164: 4.1 | BF164: =-0.0401*BE164*BE164 + 1.4009*BE164 - 1.4444 -> 3.625209
A165: ausb12 | B165: Bv | C165: 3 | D165: 20 | E165: 80 | F165: Sl2 | J165: 15 | K165: 41 | L165: 23 | M165: 6 | N165: 1.203 | O165: 4.2 | P165: 3.732016 | Q165: 0.6 | R165: =U165/V165 -> 12.58158933 | S165: 0.6014 | T165: 0.0478 | U165: 3689.463 | V165: 293.243 | AM165: 0 | AN165: nur nFK angegeben; FK, WP abgeleitet | BE165: 4.2 | BF165: =-0.0401*BE165*BE165 + 1.4009*BE165 - 1.4444 -> 3.732016
A166: ausb12 | B166: C | C166: 4 | D166: 80 | Z166: =SUM(U163:U166)*10/1000 -> 126.0542685 | AA166: =SUM(V163:V166)*10/1000 -> 7.202121956 | AB166: =Z166/AA166 -> 17.50237906 | AM166: 0
A167: ausb13 | B167: Oh | C167: 1 | D167: =X167/(N167*10000) -> 8.712429 | E167: 0 | J167: 0 | K167: =(1-N167/$AP$1)*100 -> 85.71428571 | L167: 42 | M167: 12 | N167: 0.2 | O167: 4.3 | P167: 3.838021 | Q167: 5 | R167: =U167/V167 -> 21.69001151 | S167: 15.44806 | T167: 0.71222 | U167: =$X167*S167/100 -> 2691.802519 | V167: =$X167*T167/100 -> 124.1033236 | X167: 17424.858 | Y167: =(L167-M167)*D167/10 -> 26.137287 | AM167: 0.2 | AN167: nur C/N-Gehalt und pH-Wert angegeben | BE167: 4.3 | BF167: =-0.0401*BE167*BE167 + 1.4009*BE167 - 1.4444 -> 3.838021
A168: ausb13 | B168: Ah | C168: 2 | D168: 0 | E168: 20 | F168: Sl4 | J168: 5 | K168: 52 | L168: 34 | M168: 12 | N168: 0.904 | O168: 4.2 | P168: 3.732016 | Q168: 0.3 | R168: =U168/V168 -> 17.0537153 | S168: 2.3807 | T168: 0.1396 | U168: 4087.281 | V168: 239.671 | Y168: =(L168-M168)*(E168-D168)/10 -> 44 | AM168: 0 | AN168: nur nFK angegeben; FK, WP abgeleitet | BE168: 4.2 | BF168: =-0.0401*BE168*BE168 + 1.4009*BE168 - 1.4444 -> 3.732016
A169: ausb13 | B169: Bv | C169: 3 | D169: 20 | E169: 80 | F169: Sl4 | J169: 10 | K169: 52 | L169: 34 | M169: 12 | N169: 1.268 | O169: 4.4 | P169: 3.943224 | Q169: 0.3 | R169: =U169/V169 -> 11.92657474 | S169: 0.6011 | T169: 0.0504 | U169: 4115.527 | V169: 345.072 | Y169: =Y168+(L169-M169)*(E169-D169)/10 -> 176 | AM169: 0 | AN169: nur nFK angegeben; FK, WP abgeleitet | BE169: 4.4 | BF169: =-0.0401*BE169*BE169 + 1.4009*BE169 - 1.4444 -> 3.943224
A170: ausb13 | B170: C | C170: 4 | D170: 80 | Y170: =Y169+(L170-M170)*(E170-D170)/10 -> 176 | Z170: =SUM(U167:U170)*10/1000 -> 108.9461052 | AA170: =SUM(V167:V170)*10/1000 -> 7.088463236 | AB170: =Z170/AA170 -> 15.36949569 | AM170: 0
A171: ausb14 | B171: Oh | C171: 1 | D171: =X171/(N171*10000) -> 4.174701 | E171: 0 | J171: 0 | K171: =(1-N171/$AP$1)*100 -> 85.71428571 | L171: 42 | M171: 12 | N171: 0.2 | O171: 4.1 | P171: 3.625209 | Q171: 5 | R171: =U171/V171 -> 24.74269587 | S171: 41.81862 | T171: 1.69014 | U171: =$X171*S171/100 -> 3491.604695 | V171: =$X171*T171/100 -> 141.116583 | X171: 8349.402 | AM171: 0.2 | AN171: nur C/N-Gehalt und pH-Wert angegeben | BE171: 4.1 | BF171: =-0.0401*BE171*BE171 + 1.4009*BE171 - 1.4444 -> 3.625209
A172: ausb14 | B172: Ah | C172: 2 | D172: 0 | E172: 20 | F172: Sl2 | J172: 5 | K172: 41 | L172: 23 | M172: 6 | N172: 0.999 | O172: 4.1 | P172: 3.625209 | Q172: 0.6 | R172: =U172/V172 -> 19.68378927 | S172: 3.1002 | T172: 0.1575 | U172: 5885.079 | V172: 298.981 | AM172: 0 | AN172: nur nFK angegeben; FK, WP abgeleitet | BE172: 4.1 | BF172: =-0.0401*BE172*BE172 + 1.4009*BE172 - 1.4444 -> 3.625209
A173: ausb14 | B173: Bv | C173: 3 | D173: 20 | E173: 80 | F173: Sl2 | J173: 15 | K173: 41 | L173: 23 | M173: 6 | N173: 1.203 | O173: 4.2 | P173: 3.732016 | Q173: 0.6 | R173: =U173/V173 -> 12.58158933 | S173: 0.6014 | T173: 0.0478 | U173: 3689.463 | V173: 293.243 | AM173: 0 | AN173: nur nFK angegeben; FK, WP abgeleitet | BE173: 4.2 | BF173: =-0.0401*BE173*BE173 + 1.4009*BE173 - 1.4444 -> 3.732016
A174: ausb14 | B174: C | C174: 4 | D174: 80 | Z174: =SUM(U171:U174)*10/1000 -> 130.6614669 | AA174: =SUM(V171:V174)*10/1000 -> 7.33340583 | AB174: =Z174/AA174 -> 17.81729663 | AM174: 0
A175: ausb15 | B175: Oh | C175: 1 | D175: =X175/(N175*10000) -> 9.371796 | E175: 0 | J175: 0 | K175: =(1-N175/$AP$1)*100 -> 85.71428571 | L175: 42 | M175: 12 | N175: 0.2 | O175: 4.3 | P175: =-0.0401*O175*O175 + 1.4009*O175 - 1.4444 -> 3.838021 | Q175: 5 | R175: =U175/V175 -> 21.12622385 | S175: 13.59388 | T175: 0.64346 | U175: =$X175*S175/100 -> 2547.981404 | V175: =$X175*T175/100 -> 120.6075171 | X175: 18743.592 | Y175: =(L175-M175)*D175/10 -> 28.115388 | AM175: 0.2 | AN175: nur C/N-Gehalt und pH-Wert angegeben | BE175: 4.3 | BF175: =-0.0401*BE175*BE175 + 1.4009*BE175 - 1.4444 -> 3.838021
A176: ausb15 | B176: Ah | C176: 2 | D176: 0 | E176: 20 | F176: Sl4 | J176: 5 | K176: 52 | L176: 34 | M176: 12 | N176: 0.904 | O176: 4.2 | P176: 3.732016 | Q176: 0.3 | R176: =U176/V176 -> 17.0537153 | S176: 2.3807 | T176: 0.1396 | U176: 4087.281 | V176: 239.671 | Y176: =(L176-M176)*(E176-D176)/10 -> 44 | AM176: 0 | AN176: nur nFK angegeben; FK, WP abgeleitet | BE176: 4.2 | BF176: =-0.0401*BE176*BE176 + 1.4009*BE176 - 1.4444 -> 3.732016
A177: ausb15 | B177: Bv | C177: 3 | D177: 20 | E177: 80 | F177: Sl4 | J177: 10 | K177: 52 | L177: 34 | M177: 12 | N177: 1.268 | O177: 4.4 | P177: 3.943224 | Q177: 0.3 | R177: =U177/V177 -> 11.92657474 | S177: 0.6011 | T177: 0.0504 | U177: 4115.527 | V177: 345.072 | Y177: =Y176+(L177-M177)*(E177-D177)/10 -> 176 | Z177: =SUM(U175:U177)*10/1000 -> 107.507894 | AA177: =SUM(V175:V177)*10/1000 -> 7.053505171 | AB177: =Z177/AA177 -> 15.24176866 | AM177: 0 | AN177: nur nFK angegeben; FK, WP abgeleitet | BE177: 4.4 | BF177: =-0.0401*BE177*BE177 + 1.4009*BE177 - 1.4444 -> 3.943224
A178: ausb15 | B178: C | C178: 4 | D178: 80 | AM178: 0
A179: ausb16 | B179: Oh | C179: 1 | D179: =X179/(N179*10000) -> 6.6510735 | E179: 0 | J179: 0 | K179: 73 | L179: 42 | M179: 12 | N179: 0.2 | O179: 4.1 | P179: 3.625209 | Q179: 5 | R179: =U179/V179 -> 23.08474839 | S179: 22.34973 | T179: 0.96816 | U179: =$X179*S179/100 -> 2972.993939 | V179: =$X179*T179/100 -> 128.7860664 | X179: 13302.147 | AM179: 0.2 | AN179: nur C/N-Gehalt und pH-Wert angegeben | BE179: 4.1 | BF179: =-0.0401*BE179*BE179 + 1.4009*BE179 - 1.4444 -> 3.625209
A180: ausb16 | B180: Ah | C180: 2 | D180: 0 | E180: 20 | F180: Sl2 | J180: 5 | K180: 41 | L180: 23 | M180: 6 | N180: 0.999 | O180: 4.1 | P180: 3.625209 | Q180: 0.6 | R180: =U180/V180 -> 19.68378927 | S180: 3.1002 | T180: 0.1575 | U180: 5885.079 | V180: 298.981 | AM180: 0 | AN180: nur nFK angegeben; FK, WP abgeleitet | BE180: 4.1 | BF180: =-0.0401*BE180*BE180 + 1.4009*BE180 - 1.4444 -> 3.625209
A181: ausb16 | B181: Bv | C181: 3 | D181: 20 | E181: 80 | F181: Sl2 | J181: 15 | K181: 41 | L181: 23 | M181: 6 | N181: 1.203 | O181: 4.2 | P181: 3.732016 | Q181: 0.6 | R181: =U181/V181 -> 12.58158933 | S181: 0.6014 | T181: 0.0478 | U181: 3689.463 | V181: 293.243 | AM181: 0 | AN181: nur nFK angegeben; FK, WP abgeleitet | BE181: 4.2 | BF181: =-0.0401*BE181*BE181 + 1.4009*BE181 - 1.4444 -> 3.732016
A182: ausb16 | B182: C | C182: 4 | D182: 80 | Z182: =SUM(U179:U182)*10/1000 -> 125.4753594 | AA182: =SUM(V179:V182)*10/1000 -> 7.210100664 | AB182: =Z182/AA182 -> 17.4027195 | AM182: 0
A183: ausb17 | B183: Oh | C183: 1 | D183: =X183/(N183*10000) -> 7.902825 | E183: 0 | J183: 0 | K183: =(1-N183/$AP$1)*100 -> 85.71428571 | L183: 42 | M183: 12 | N183: 0.2 | O183: 4.1 | P183: 3.625209 | Q183: 5 | R183: =U183/V183 -> 22.29170295 | S183: 17.9203 | T183: 0.8039 | U183: =$X183*S183/100 -> 2832.419897 | V183: =$X183*T183/100 -> 127.0616203 | X183: 15805.65 | Y183: =(L183-M183)*D183/10 -> 23.708475 | AM183: 0.2 | AN183: nur C/N-Gehalt und pH-Wert angegeben | BE183: 4.1 | BF183: =-0.0401*BE183*BE183 + 1.4009*BE183 - 1.4444 -> 3.625209
A184: ausb17 | B184: Ah | C184: 2 | D184: 0 | E184: 20 | F184: Sl2 | J184: 5 | K184: 41 | L184: 23 | M184: 6 | N184: 0.999 | O184: 4.1 | P184: 3.625209 | Q184: 0.6 | R184: =U184/V184 -> 19.68378927 | S184: 3.1002 | T184: 0.1575 | U184: 5885.079 | V184: 298.981 | Y184: =(L184-M184)*(E184-D184)/10 -> 34 | AM184: 0 | AN184: nur nFK angegeben; FK, WP abgeleitet | BE184: 4.1 | BF184: =-0.0401*BE184*BE184 + 1.4009*BE184 - 1.4444 -> 3.625209
A185: ausb17 | B185: Bv | C185: 3 | D185: 20 | E185: 80 | F185: Sl2 | J185: 15 | K185: 41 | L185: 23 | M185: 6 | N185: 1.203 | O185: 4.2 | P185: 3.732016 | Q185: 0.6 | R185: =U185/V185 -> 12.58158933 | S185: 0.6014 | T185: 0.0478 | U185: 3689.463 | V185: 293.243 | Y185: =Y184+(L185-M185)*(E185-D185)/10 -> 136 | AM185: 0 | AN185: nur nFK angegeben; FK, WP abgeleitet | BE185: 4.2 | BF185: =-0.0401*BE185*BE185 + 1.4009*BE185 - 1.4444 -> 3.732016
A186: ausb17 | B186: C | C186: 4 | D186: 80 | Y186: =Y185+(L186-M186)*(E186-D186)/10 -> 136 | Z186: =SUM(U183:U186)*10/1000 -> 124.069619 | AA186: =SUM(V183:V186)*10/1000 -> 7.192856204 | AB186: =Z186/AA186 -> 17.24900588 | AM186: 0
A187: ausb18 | B187: Oh | C187: 1 | D187: =X187/(N187*10000) -> 5.7157335 | E187: 0 | J187: 0 | K187: =(1-N187/$AP$1)*100 -> 85.71428571 | L187: 42 | M187: 12 | N187: 0.2 | O187: 4.1 | P187: 3.625209 | Q187: 5 | R187: =U187/V187 -> 23.61380424 | S187: 26.47013 | T187: 1.12096 | U187: =$X187*S187/100 -> 3025.924176 | V187: =$X187*T187/100 -> 128.1421725 | X187: 11431.467 | AM187: 0.2 | AN187: nur C/N-Gehalt und pH-Wert angegeben | BE187: 4.1 | BF187: =-0.0401*BE187*BE187 + 1.4009*BE187 - 1.4444 -> 3.625209
A188: ausb18 | B188: Ah | C188: 2 | D188: 0 | E188: 20 | F188: Sl2 | J188: 5 | K188: 41 | L188: 23 | M188: 6 | N188: 0.999 | O188: 4.1 | P188: 3.625209 | Q188: 0.6 | R188: =U188/V188 -> 19.68378927 | S188: 3.1002 | T188: 0.1575 | U188: 5885.079 | V188: 298.981 | AM188: 0 | AN188: nur nFK angegeben; FK, WP abgeleitet | BE188: 4.1 | BF188: =-0.0401*BE188*BE188 + 1.4009*BE188 - 1.4444 -> 3.625209
A189: ausb18 | B189: Bv | C189: 3 | D189: 20 | E189: 80 | F189: Sl2 | J189: 15 | K189: 41 | L189: 23 | M189: 6 | N189: 1.203 | O189: 4.2 | P189: 3.732016 | Q189: 0.6 | R189: =U189/V189 -> 12.58158933 | S189: 0.6014 | T189: 0.0478 | U189: 3689.463 | V189: 293.243 | AM189: 0 | AN189: nur nFK angegeben; FK, WP abgeleitet | BE189: 4.2 | BF189: =-0.0401*BE189*BE189 + 1.4009*BE189 - 1.4444 -> 3.732016
A190: ausb18 | B190: C | C190: 4 | D190: 80 | Z190: =SUM(U187:U190)*10/1000 -> 126.0046618 | AA190: =SUM(V187:V190)*10/1000 -> 7.203661725 | AB190: =Z190/AA190 -> 17.49175164 | AM190: 0
A191: ausb19 | B191: Oh | C191: 1 | D191: =X191/(N191*10000) -> 5.1591285 | E191: 0 | J191: 0 | K191: =(1-N191/$AP$1)*100 -> 85.71428571 | L191: 42 | M191: 12 | N191: 0.2 | O191: 4.3 | P191: 3.838021 | Q191: 5 | R191: =U191/V191 -> 23.92472239 | S191: 29.56043 | T191: 1.23556 | U191: =$X191*S191/100 -> 3050.121138 | V191: =$X191*T191/100 -> 127.4882562 | X191: 10318.257 | Y191: =(L191-M191)*D191/10 -> 15.4773855 | AM191: 0.2 | AN191: nur C/N-Gehalt und pH-Wert angegeben | BE191: 4.3 | BF191: =-0.0401*BE191*BE191 + 1.4009*BE191 - 1.4444 -> 3.838021
A192: ausb19 | B192: Ah | C192: 2 | D192: 0 | E192: 20 | F192: Sl4 | J192: 5 | K192: 52 | L192: 34 | M192: 12 | N192: 0.904 | O192: 4.2 | P192: 3.732016 | Q192: 0.3 | R192: =U192/V192 -> 17.0537153 | S192: 2.3807 | T192: 0.1396 | U192: 4087.281 | V192: 239.671 | Y192: =(L192-M192)*(E192-D192)/10 -> 44 | AM192: 0 | AN192: nur nFK angegeben; FK, WP abgeleitet | BE192: 4.2 | BF192: =-0.0401*BE192*BE192 + 1.4009*BE192 - 1.4444 -> 3.732016
A193: ausb19 | B193: Bv | C193: 3 | D193: 20 | E193: 80 | F193: Sl4 | J193: 10 | K193: 52 | L193: 34 | M193: 12 | N193: 1.268 | O193: 4.4 | P193: 3.943224 | Q193: 0.3 | R193: =U193/V193 -> 11.92657474 | S193: 0.6011 | T193: 0.0504 | U193: 4115.527 | V193: 345.072 | Y193: =Y192+(L193-M193)*(E193-D193)/10 -> 176 | AM193: 0 | AN193: nur nFK angegeben; FK, WP abgeleitet | BE193: 4.4 | BF193: =-0.0401*BE193*BE193 + 1.4009*BE193 - 1.4444 -> 3.943224
A194: ausb19 | B194: C | C194: 4 | D194: 80 | Y194: =Y193+(L194-M194)*(E194-D194)/10 -> 176 | Z194: =SUM(U191:U194)*10/1000 -> 112.5292914 | AA194: =SUM(V191:V194)*10/1000 -> 7.122312562 | AB194: =Z194/AA194 -> 15.79954409 | AM194: 0
A195: ausb20 | B195: Oh | C195: 1 | D195: =X195/(N195*10000) -> 4.4885625 | E195: 0 | J195: 0 | K195: =(1-N195/$AP$1)*100 -> 85.71428571 | L195: 42 | M195: 12 | N195: 0.2 | O195: 4.1 | P195: 3.625209 | Q195: 5 | R195: =U195/V195 -> 24.34594199 | S195: 34.91695 | T195: 1.4342 | U195: =$X195*S195/100 -> 3134.538248 | V195: =$X195*T195/100 -> 128.7499267 | X195: 8977.125 | AM195: 0.2 | AN195: nur C/N-Gehalt und pH-Wert angegeben | BE195: 4.1 | BF195: =-0.0401*BE195*BE195 + 1.4009*BE195 - 1.4444 -> 3.625209
A196: ausb20 | B196: Ah | C196: 2 | D196: 0 | E196: 20 | F196: Sl2 | J196: 5 | K196: 41 | L196: 23 | M196: 6 | N196: 0.999 | O196: 4.1 | P196: 3.625209 | Q196: 0.6 | R196: =U196/V196 -> 19.68378927 | S196: 3.1002 | T196: 0.1575 | U196: 5885.079 | V196: 298.981 | AM196: 0 | AN196: nur nFK angegeben; FK, WP abgeleitet | BE196: 4.1 | BF196: =-0.0401*BE196*BE196 + 1.4009*BE196 - 1.4444 -> 3.625209
A197: ausb20 | B197: Bv | C197: 3 | D197: 20 | E197: 80 | F197: Sl2 | J197: 15 | K197: 41 | L197: 23 | M197: 6 | N197: 1.203 | O197: 4.2 | P197: 3.732016 | Q197: 0.6 | R197: =U197/V197 -> 12.58158933 | S197: 0.6014 | T197: 0.0478 | U197: 3689.463 | V197: 293.243 | AM197: 0 | AN197: nur nFK angegeben; FK, WP abgeleitet | BE197: 4.2 | BF197: =-0.0401*BE197*BE197 + 1.4009*BE197 - 1.4444 -> 3.732016
A198: ausb20 | B198: C | C198: 4 | D198: 80 | Z198: =SUM(U195:U198)*10/1000 -> 127.0908025 | AA198: =SUM(V195:V198)*10/1000 -> 7.209739267 | AB198: =Z198/AA198 -> 17.62765584 | AM198: 0
A199: ausb21 | B199: Oh | C199: 1 | D199: =X199/(N199*10000) -> 9.1100625 | E199: 0 | J199: 0 | K199: =(1-N199/$AP$1)*100 -> 85.71428571 | L199: 42 | M199: 12 | N199: 0.2 | O199: 4.3 | P199: 3.838021 | Q199: 5 | R199: =U199/V199 -> 21.35922113 | S199: 14.31495 | T199: 0.6702 | U199: =$X199*S199/100 -> 2608.201784 | V199: =$X199*T199/100 -> 122.1112778 | X199: 18220.125 | Y199: =(L199-M199)*D199/10 -> 27.3301875 | AM199: =X199/(ABS(E199-D199)*100*100) -> 0.2 | AN199: nur C/N-Gehalt und pH-Wert angegeben | BE199: 4.3 | BF199: =-0.0401*BE199*BE199 + 1.4009*BE199 - 1.4444 -> 3.838021
A200: ausb21 | B200: Ah | C200: 2 | D200: 0 | E200: 20 | F200: Sl4 | J200: 5 | K200: 52 | L200: 34 | M200: 12 | N200: 0.904 | O200: 4.2 | P200: 3.732016 | Q200: 0.3 | R200: =U200/V200 -> 17.0537153 | S200: 2.3807 | T200: 0.1396 | U200: 4087.281 | V200: 239.671 | Y200: =(L200-M200)*(E200-D200)/10 -> 44 | AM200: 0 | AN200: nur nFK angegeben; FK, WP abgeleitet | BE200: 4.2 | BF200: =-0.0401*BE200*BE200 + 1.4009*BE200 - 1.4444 -> 3.732016
... 1470 more rows

Sheet Bodendaten (3)
A1: ID | B1: Horizont | C1: Hori-zont-Nr. | D1: Tiefe obere Grenze | E1: Tiefe untere Grenze | F1: Boden-art | G1: Ton % | H1: Schluff % | I1: Sand % | J1: Skelett-anteil Vol% | K1: Poren-volumen Vol% | L1: Feld-kapazität Vol% (nur FB-Anteil) | M1: Welke-punkt Vol% (nur FB-Anteil) | N1: Lagerungs-dichte | O1: pH-Wert H2O | P1: pH-Wert KCl | Q1: l-Para-meter | R1: C/N | S1: C-Gehalt % | T1: N-Gehalt % | U1: C-Gehalt g/m² | V1: N-Gehalt g/m² | W1: Humus-gehalt % | X1: Trocken-masse g/m² | Y1: nutzbare Feldkapazität bisSchichttiefe mm | Z1: Auflage-C / Mineral-boden-C / C total t/ha | AA1: Auflage-N / Mineral-boden-N / N total t/ha | AB1: C/N total | AC1: Anteil Auflage C an C total / prozentuale Verteilung von Mineralboden-C | AD1: Anteil Auflage N an N total / prozentuale Verteilung von Mineralboden-N | AE1: Humus-menge g/m² | AF1: Wurzel-verteilung % | AG1: Durch-wurzelung | AH1: Feld-kapazität Feinboden Vol% | AI1: Welke-punkt Feinboden Vol% | AJ1: nutzbare Feld-kapazität Vol% | AK1: nFK korr. mit Skelettgehalt | AL1: C-Gehalt im Humus % | AM1: Trocken-masse g/cm² pro 1cm | AN1: Bemerkungen | AO1: spezifische Dichte organ. Substanz: ==> | AP1: 1.4 | AQ1: Kohlegehalt % | AR1: Gesamt-C M-% | AS1: Gesamt-C g/m² | AU1: Speicher-fähigkeit der Auflage pro KG TM ==> | AV1: 1.23 | AW1: Speicher (Feldkap.) Auflage mm | AX1: Feldkap. Auflage Vol% | AZ1: Dichte Of berechnet | BA1: Dichte Oh berechnet | BB1: nFK Of (vol%) berechnet | BC1: nFK Oh (vol%) berechnet | BE1: pH-Wert H2O | BF1: pH-Wert KCl | BG1: Berechnung von pH
A2: Soll304_neu | B2: L | C2: 1 | D2: 3.5 | E2: 0 | F2: mota | G2: 0 | H2: 0 | I2: 0 | J2: 0 | K2: =(1-N2/$AP$1)*100 -> 88.92040816 | L2: 32 | M2: 12 | N2: =X2/(ABS(E2-D2)*10000) -> 0.1551142857 | O2: =0.0995*P2*P2 - 0.0701*P2 + 3.1666 -> 3.88917055 | P2: 3.07 | Q2: 3 | R2: =U2/V2 -> 20.73387097 | S2: =100*U2/$X2 -> 47.35678762 | T2: =100*V2/$X2 -> 2.284030208 | U2: 2571 | V2: 124 | W2: 100 | X2: =W2*AE2/100 -> 5429 | Y2: =(L2-M2)*D2/10 -> 7 | AE2: 5429 | AL2: =100*S2/W2 -> 47.35678762 | AM2: =X2/(ABS(E2-D2)*100*100) -> 0.1551142857 | AN2: Chem. Param., Humusgehalt aus Solling_Buche_304.xls von 2002; Aufnahme 2001 | BE2: =0.0995*BF2*BF2 - 0.0701*BF2 + 3.1666 -> 3.88917055 | BF2: 3.07
A3: Soll304_neu | B3: Of | C3: 1 | D3: 3.5 | E3: 0 | F3: mota | G3: 0 | H3: 0 | I3: 0 | J3: 0 | K3: =(1-N3/$AP$1)*100 -> 88.92040816 | L3: 32 | M3: 12 | N3: =X3/(ABS(E3-D3)*10000) -> 0.1551142857 | O3: =0.0995*P3*P3 - 0.0701*P3 + 3.1666 -> 3.88917055 | P3: 3.07 | Q3: 3 | R3: =U3/V3 -> 20.73387097 | S3: =100*U3/$X3 -> 47.35678762 | T3: =100*V3/$X3 -> 2.284030208 | U3: 2571 | V3: 124 | W3: 100 | X3: =W3*AE3/100 -> 5429 | Y3: =(L3-M3)*D3/10 -> 7 | AE3: 5429 | AL3: 47.35678762 | AM3: =X3/(ABS(E3-D3)*100*100) -> 0.1551142857 | AN3: Chem. Param., Humusgehalt aus Solling_Buche_304.xls von 2002; Aufnahme 2001 | BE3: =0.0995*BF3*BF3 - 0.0701*BF3 + 3.1666 -> 3.88917055 | BF3: 3.07
A4: Soll304_neu | B4: Oh | C4: 1 | D4: 3.5 | E4: 0 | F4: mota | G4: 0 | H4: 0 | I4: 0 | J4: 0 | K4: =(1-N4/$AP$1)*100 -> 88.92040816 | L4: 32 | M4: 12 | N4: =X4/(ABS(E4-D4)*10000) -> 0.1551142857 | O4: =0.0995*P4*P4 - 0.0701*P4 + 3.1666 -> 3.88917055 | P4: 3.07 | Q4: 3 | R4: =U4/V4 -> 20.73387097 | S4: =100*U4/$X4 -> 47.35678762 | T4: 2.284030208 | U4: 2571 | V4: 124 | W4: 100 | X4: =W4*AE4/100 -> 5429 | Y4: =(L4-M4)*D4/10 -> 7 | AE4: 5429 | AL4: 47.35678762 | AM4: =X4/(ABS(E4-D4)*100*100) -> 0.1551142857 | AN4: Chem. Param., Humusgehalt aus Solling_Buche_304.xls von 2002; Aufnahme 2001 | BE4: =0.0995*BF4*BF4 - 0.0701*BF4 + 3.1666 -> 3.88917055 | BF4: 3.07
A5: Soll304_neu | B5: IAh | C5: 2 | D5: 0 | E5: 1 | F5: Ut3 | G5: 15 | H5: 76 | I5: =100-G5-H5 -> 9 | J5: 6 | K5: 62 | L5: 38 | M5: =L5-AJ5 -> 12.5 | N5: 1.17 | O5: 3.84654095 | P5: 2.99 | Q5: 0.25 | R5: 19.69399201 | S5: 7.428703079 | T5: 0.3772065651 | U5: 869.1582602 | V5: 44.13316811 | W5: 7 | X5: =ABS(E5-D5)*N5*10000 -> 11700 | Y5: =(L5-M5)*(E5-D5)/10 -> 2.55 | AJ5: 25.5 | AL5: 106.1243297 | AM5: 1.17 | AN5: TRD statt Lagerungsdichte f.a. | BE5: 3.84654095 | BF5: 2.99
A6: Soll304_neu | B6: IAeh | C6: 3 | D6: 1 | E6: 8 | F6: Ut3 | G6: 15 | H6: 76 | I6: =100-G6-H6 -> 9 | J6: 6 | K6: 62 | L6: 38 | M6: 12.5 | N6: 1.17 | O6: 3.98974375 | P6: 3.25 | Q6: 0.25 | R6: 19.72049191 | S6: 5.61870511 | T6: 0.284917087 | U6: 4601.719485 | V6: 233.3470943 | W6: 7 | X6: 81900 | Y6: =Y5+(L6-M6)*(E6-D6)/10 -> 20.4 | AJ6: 25.5 | AL6: 80.26721586 | AM6: 1.17 | BE6: 3.98974375 | BF6: 3.25
A7: Soll304_neu | B7: ISw-Bv | C7: 4 | D7: 8 | E7: 60 | F7: Ut3 | G7: 15 | H7: 76 | I7: 9 | J7: 4 | K7: 56.5 | L7: 38 | M7: 12.5 | N7: 1.25 | O7: 4.20376 | P7: 3.6 | Q7: 0.25 | R7: 16.36375779 | S7: 1.368114143 | T7: 0.08360635501 | U7: 8892.741932 | V7: 543.4413076 | W7: 5.173076923 | X7: 650000 | Y7: 153 | AJ7: 25.5 | AL7: 26.44681615 | AM7: 1.25 | BE7: 4.20376 | BF7: 3.6
A8: Soll304_neu | B8: I;IIBtv | C8: 5 | D8: 60 | E8: 85 | F8: Uls | G8: 12 | H8: 57 | I8: 31 | J8: 18 | K8: 42 | L8: 33.5 | M8: 11 | N8: 1.54 | O8: 4.20376 | P8: 3.6 | Q8: 0.29 | R8: 9.421866388 | S8: 0.2519517183 | T8: 0.02674116867 | U8: 970.0141153 | V8: 102.9534994 | W8: 3 | X8: 385000 | Y8: 209.25 | AJ8: 22.5 | AL8: 8.398390609 | AM8: 1.54 | BE8: 4.20376 | BF8: 3.6
A9: Soll304_neu | B9: IIBtv | C9: 6 | D9: 85 | E9: 140 | F9: Uls | G9: 12 | H9: 57 | I9: 31 | J9: 38 | K9: 33 | L9: 31.5 | M9: 11 | N9: 1.78 | O9: 4.44215375 | P9: 3.95 | Q9: 0.29 | R9: 3.437260224 | S9: 0.0215432999 | T9: 0.006267578971 | U9: 210.908906 | V9: 61.35959812 | X9: 979000 | Y9: 322 | AJ9: 20.5 | AM9: 1.78 | BE9: 4.44215375 | BF9: 3.95
A10: Soll304_neu | B10: IIICv | C10: 7 | D10: 140 | E10: 150 | F10: Lt2 | G10: 30 | H10: 40 | I10: 30 | J10: 65 | K10: 43 | L10: 36.5 | M10: 23.5 | N10: 1.51 | O10: 4.4782 | P10: 4 | Q10: 0.23 | U10: 0 | V10: 0 | X10: 151000 | Y10: 335 | AJ10: 13 | AM10: 1.51 | BE10: 4.4782 | BF10: 4
A11: Soll304_neu | B11: II;IIICv | C11: 8 | D11: 150 | E11: 180 | F11: Ls3 | G11: 21 | H11: 35 | I11: 44 | J11: 90 | K11: 39 | L11: 32.5 | M11: 17.5 | N11: 1.62 | O11: 4.4782 | P11: 4 | Q11: 0.24 | U11: 0 | V11: 0 | X11: 486000 | Y11: 380 | Z11: =SUM(U4:U11)*10/1000 -> 181.155427 | AA11: =SUM(V4:V11)*10/1000 -> 11.09234667 | AB11: =Z11/AA11 -> 16.33156917 | AJ11: 15 | AM11: 1.62 | BE11: 4.4782 | BF11: 4
A12: Soll305_neu | B12: L | C12: 1 | D12: 12 | E12: 0 | F12: mrr | G12: 0 | H12: 0 | I12: 0 | J12: 0 | K12: =(1-N12/$AP$1)*100 -> 93.12684673 | L12: 70 | M12: 12 | N12: =X12/(ABS(E12-D12)*10000) -> 0.09622414582 | O12: 3.623194444 | P12: =0.9671*O12 - 0.3254 -> 3.178591347 | Q12: 3 | R12: =U12/V12 -> 25.97207857 | S12: 47.2507875 | T12: =S12/R12 -> 1.81929172 | U12: 5456 | V12: 210.0717501 | W12: =100*2*U12/X12 -> 94.501575 | X12: =U12*100/S12 -> 11546.8975 | Y12: =(L12-M12)*D12/10 -> 69.6 | Z12: =U12/100 -> 54.56 | AA12: 2.100717501 | AC12: =Z12/Z22*100 ->  | AL12: =100*S12/W12 -> 50 | AM12: 0.09622414582 | AN12: Daten aus \isimip\SollingF1_site_data_file5e_new.xls | BE12: 3.7700432 | BF12: 2.84
A13: Soll305_neu | B13: Of | C13: 1 | D13: 12 | E13: 0 | F13: mrr | G13: 0 | H13: 0 | I13: 0 | J13: 0 | K13: =(1-N13/$AP$1)*100 -> 93.12684673 | L13: 70 | M13: 12 | N13: =X13/(ABS(E13-D13)*10000) -> 0.09622414582 | O13: 3.623194444 | P13: =0.9671*O13 - 0.3254 -> 3.178591347 | Q13: 3 | R13: =U13/V13 -> 25.97207857 | S13: 47.2507875 | T13: =S13/R13 -> 1.81929172 | U13: 5456 | V13: 210.0717501 | W13: =100*2*U13/X13 -> 94.501575 | X13: =U13*100/S13 -> 11546.8975 | Y13: =(L13-M13)*D13/10 -> 69.6 | Z13: 54.56 | AA13: 2.100717501 | AL13: =100*S13/W13 -> 50 | AM13: =X13/(ABS(E13-D13)*100*100) -> 0.09622414582 | AN13: Daten aus \isimip\SollingF1_site_data_file5e_new.xls | BE13: =0.0995*BF13*BF13 - 0.0701*BF13 + 3.1666 -> 3.7700432 | BF13: 2.84
A14: Soll305_neu | B14: Oh | C14: 1 | D14: 12 | E14: 0 | F14: mrr | G14: 0 | H14: 0 | I14: 0 | J14: 0 | K14: =(1-N14/$AP$1)*100 -> 93.12684673 | L14: 70 | M14: 12 | N14: =X14/(ABS(E14-D14)*10000) -> 0.09622414582 | O14: 3.623194444 | P14: =0.9671*O14 - 0.3254 -> 3.178591347 | Q14: 3 | R14: =U14/V14 -> 25.97207857 | S14: 47.2507875 | T14: =S14/R14 -> 1.81929172 | U14: 5456 | V14: 210.0717501 | W14: =100*2*U14/X14 -> 94.501575 | X14: =U14*100/S14 -> 11546.8975 | Y14: =(L14-M14)*D14/10 -> 69.6 | Z14: 54.56 | AA14: 2.100717501 | AC14: 36.28089719 | AD14: 6.130751429 | AL14: =100*S14/W14 -> 50 | AM14: 0.09622414582 | AN14: Daten aus \isimip\SollingF1_site_data_file5e_new.xls | BE14: 3.7700432 | BF14: 2.84
A15: Soll305_neu | B15: IAhe | C15: 2 | D15: 0 | E15: 10 | F15: Ut4 | G15: 19.5 | H15: 71.62 | I15: =100-G15-H15 -> 8.88 | J15: 5 | K15: 57 | L15: 42.2 | M15: 20 | N15: 0.86 | O15: 3.51 | P15: 3.069121 | Q15: 0.25 | R15: =U15/V15 -> 20.29397827 | S15: 4.862501667 | T15: =S15/R15 -> 0.2396031769 | U15: 3769.324122 | V15: 185.7360874 | W15: 8.76587005 | X15: =ABS(E15-D15)*N15*10000 -> 86000 | Y15: =(L15-M15)*(E15-D15)/10 -> 22.2 | Z15: =Z24-U14/100 -> 95.82216864 | AA15: =AA24-V14/100 -> 32.16453571 | AC15: =(U15/(Z$442*100))*100 ->  | AJ15: =L15-M15 -> 22.2 | AL15: 55.47083905 | AM15: 0.86 | BE15: 3.905485 | BF15: 3.1
A16: Soll305_neu | B16: IBsv | C16: 3 | D16: 10 | E16: 15 | F16: Ut4 | G16: 18.8 | H16: 72.4 | I16: =100-G16-H16 -> 8.8 | J16: 15 | K16: 57 | L16: 40.8 | M16: 20 | N16: 0.8360873834 | O16: 4.01 | P16: 3.552671 | Q16: 0.25 | R16: 17.06169499 | S16: 2.303331667 | T16: 0.1350001667 | U16: 847.8651703 | V16: 49.69407617 | W16: 4.056347158 | X16: 41804.36917 | Y16: =Y15+(L16-M16)*(E16-D16)/10 -> 32.6 | AJ16: =L16-M16 -> 20.8 | AL16: 56.78339593 | AM16: 0.8360873834 | BE16: 4.27605695 | BF16: 3.71
A17: Soll305_neu | B17: IAl-Bv | C17: 4 | D17: 15 | E17: 60 | F17: Ut3 | G17: 15.15555556 | H17: 73.62222222 | I17: =100-G17-H17 -> 11.22222222 | J17: 10 | K17: 52 | L17: 39.2 | M17: 20 | N17: 1.21 | O17: 4.22 | P17: 3.755762 | Q17: 0.25 | R17: 11.89637685 | S17: 0.9290368148 | T17: 0.07809409763 | U17: 4088.704328 | V17: 343.6932422 | W17: 1.501819772 | X17: 544500 | Y17: 119 | AJ17: 19.2 | AL17: 61.86073938 | AM17: 1.21 | BE17: 4.4782 | BF17: 4
A18: Soll305_neu | B18: I;IIBtv | C18: 5 | D18: 60 | E18: 75 | F18: Lu | G18: 18.5 | H18: 62.6 | I18: =100-G18-H18 -> 18.9 | J18: 33 | K18: 35.5 | L18: 32.9 | M18: 26.5 | N18: 1.5 | O18: 4.2 | P18: 3.73642 | Q18: 0.27 | R18: 8.235048693 | S18: 0.2464445 | T18: 0.02992629542 | U18: 489.5944703 | V18: 59.45252889 | W18: 0.4351950847 | X18: 225000 | Y18: 128.6 | AJ18: 6.4 | AL18: 56.62851182 | AM18: 1.5 | BE18: 4.45651255 | BF18: 3.97
A19: Soll305_neu | B19: IIBtv | C19: 6 | D19: 75 | E19: 95 | F19: Ls2 | G19: 22.7 | H19: 49 | I19: 28.3 | J19: 66 | K19: 35.5 | L19: 32.9 | M19: 26.5 | N19: 1.63 | O19: 4.19 | P19: 3.726749 | Q19: 0.3 | R19: 3.605802381 | S19: 0.1135000417 | T19: 0.0314770555 | U19: 317.047143 | V19: 87.92693261 | W19: 0.1945074497 | X19: 326000 | Y19: 141.4 | AJ19: 6.4 | AL19: 58.35254221 | AM19: 1.63 | BE19: 4.4782 | BF19: 4
A20: Soll305_neu | B20: IIIBv-Cv | C20: 7 | D20: 95 | E20: 135 | F20: Ls3 | G20: 19.5 | H20: 37 | I20: 43.5 | J20: 57 | K20: 37.5 | L20: 32.2 | M20: 26.5 | N20: 1.77 | O20: 4.14 | P20: 3.678394 | Q20: 0.24 | R20: 0.02798514479 | S20: 1.110125 | T20: 39.66836721 | U20: 69.68163098 | V20: 2489.950704 | W20: 0.01968407655 | X20: 708000 | Y20: 164.2 | AJ20: 5.7 | AM20: 1.77 | BE20: 4.4782 | BF20: 4
A21: Soll305_neu | B21: IIICv | C21: 8 | D21: 135 | E21: 235 | F21: Sl4 | G21: 15.55 | H21: 31.6 | I21: 52.85 | J21: 90 | K21: 35.5 | L21: 30.6 | M21: 26.5 | N21: 1.7 | O21: 4.21 | P21: 3.746091 | Q21: 0.3 | X21: 1700000 | Y21: 205.2 | AJ21: 4.1 | AM21: 1.7 | BE21: 4.4782 | BF21: 4
A22: Soll305_neu | B22: IIICv | C22: 9 | D22: 235 | E22: 280 | F22: Sl4 | G22: 16 | H22: 30.4 | I22: 53.6 | J22: 96 | K22: 35.5 | L22: 30.6 | M22: 26.5 | N22: 1.7 | O22: 4.5 | P22: 4.02655 | Q22: 0.3 | X22: 765000 | Y22: 223.65 | AJ22: 4.1 | AM22: 1.7 | BE22: 4.4782 | BF22: 4
A23: Soll305_neu | B23: IVCv | C23: 10 | D23: 280 | E23: 295 | F23: Lts | G23: 30 | H23: 22 | I23: 48 | J23: 96 | K23: 35.5 | L23: 30.6 | M23: 26.5 | N23: 2.1 | O23: 4.5 | P23: 4.02655 | Q23: 0.22 | X23: 315000 | Y23: 229.8 | AJ23: 4.1 | AM23: 2.1 | BE23: 4.4782 | BF23: 4
A24: Soll305_neu | B24: VCv | C24: 11 | D24: 295 | E24: 360 | F24: Ls4 | G24: 20 | H24: 22 | I24: 58 | J24: 96 | K24: 35.5 | L24: 30.6 | M24: 26.5 | N24: 2.1 | O24: 4.5 | P24: 4.02655 | Q24: 0.23 | X24: 1365000 | Y24: 256.45 | Z24: =SUM(U14:U24)*10/1000 -> 150.3821686 | AA24: =SUM(V14:V24)*10/1000 -> 34.26525321 | AB24: =Z24/AA24 -> 4.388765718 | AJ24: 4.1 | AM24: 2.1 | BE24: 4.4782 | BF24: 4
A25: Bily | B25: L | D25: 9 | E25: 3 | U25: 473 | V25: 14.02647531
A26: Bily | B26: F | D26: 3 | E26: 1 | U26: 928 | V26: 43.4999024
A27: Bily | B27: H | D27: 1 | E27: 0 | U27: 1914 | V27: 77.99625815
A28: Bily | B28: Ae | D28: 0 | E28: 4 | N28: 0.92 | U28: 872 | V28: 41.02087529
A29: Bily | B29: E | N29: 1.09 | U29: 3285 | V29: 89.6094376
A30: Bily | B30: Bhs | N30: 1.32 | U30: 3336 | V30: 133.9547091
A31: Bily | B31: Bs | N31: 0.83
A32: Bily | B32: C

Sheet Bodendaten (2)
A1: ID | B1: Horizont | C1: Hori-zont-Nr. | D1: Tiefe obere Grenze | E1: Tiefe untere Grenze | F1: Boden-art | G1: Ton % | H1: Schluff % | I1: Sand % | J1: Skelett-anteil Vol% | K1: Poren-volumen Vol% | L1: Feld-kapazität Vol% (nur FB-Anteil) | M1: Welke-punkt Vol% (nur FB-Anteil) | N1: Lagerungs-dichte | O1: pH-Wert H2O | P1: pH-Wert KCl | Q1: l-Para-meter | R1: C/N | S1: C-Gehalt % | T1: N-Gehalt % | U1: C-Gehalt g/m² | V1: N-Gehalt g/m² | W1: Humus-gehalt % | X1: Trocken-masse g/m² | Y1: nutzbare Feldkapazität bisSchichttiefe mm | Z1: Auflage-C / Mineral-boden-C / C total t/ha | AA1: Auflage-N / Mineral-boden-N / N total t/ha | AB1: C/N total | AC1: Anteil Auflage C an C total / prozentuale Verteilung von Mineralboden-C | AD1: Anteil Auflage N an N total / prozentuale Verteilung von Mineralboden-N | AE1: Humus-menge g/m² | AF1: Wurzel-verteilung % | AG1: Durch-wurzelung | AH1: Feld-kapazität Feinboden Vol% | AI1: Welke-punkt Feinboden Vol% | AJ1: nutzbare Feld-kapazität Vol% | AK1: nFK korr. mit Skelettgehalt | AL1: C-Gehalt im Humus % | AM1: Trocken-masse g/cm² pro 1cm | AN1: Bemerkungen | AO1: spezifische Dichte organ. Substanz: ==> | AP1: 1.4 | AQ1: Kohlegehalt % | AR1: Gesamt-C M-% | AS1: Gesamt-C g/m² | AU1: Speicher-fähigkeit der Auflage pro KG TM ==> | AV1: 1.23 | AW1: Speicher (Feldkap.) Auflage mm | AX1: Feldkap. Auflage Vol% | AZ1: Dichte Of berechnet | BA1: Dichte Oh berechnet | BB1: nFK Of (vol%) berechnet | BC1: nFK Oh (vol%) berechnet | BE1: pH-Wert H2O | BF1: pH-Wert KCl | BG1: Berechnung von pH
A2: Natte | B2: Of/Oh | C2: 1 | D2: 8 | E2: 0 | F2: =Standorte!L2 -> ro | G2: 0 | H2: 0 | I2: 0 | J2: 0 | K2: =(1-N2/$AP$1)*100 -> 88.4074438 | L2: 40 | M2: 12 | N2: =X2/(ABS(D2-E2)*10000) -> 0.1622957868 | O2: -99.9 | P2: 3.25 | Q2: 3 | R2: 26.3 | S2: 34.89 | T2: =S2/R2 -> 1.32661597 | U2: 4530 | V2: 172.37 | W2: =100*2*U2/X2 -> 69.78 | X2: =U2/S2*100 -> 12983.66294 | Y2: =(L2-M2)*D2/10 -> 22.4 | Z2: =U2/100 -> 45.3 | AA2: =V2/100 -> 1.7237 | AC2: =Z2/Z15*100 -> 33.35787923 | AD2: =AA2/AA15*100 -> 30.1303857 | AE2: =(W2/100)*X2 -> 9060 | AM2: =X2/(ABS(E2-D2)*100*100) -> 0.1622957868 | AN2: D:\All_fs\Daten\Level2\Brandenburg\Excel\Parameter.xls | AW2: =X2*$AV$1/1000 -> 15.96990542 | AX2: =AW2*10/D2 -> 19.96238177 | BF2: 3.25
A3: Natte | B3: Ahe | C3: 2 | D3: 0 | E3: 5 | F3: Sl2 | G3: 5 | H3: 10 | I3: =100-G3-H3 -> 85 | J3: 0 | K3: =(53.8+55.7+62.9+58.2)/4 -> 57.65 | L3: 13.9 | M3: 7 | N3: =(1.188+1.142+0.956+1.076)/4 -> 1.0905 | O3: =0.0995*P3*P3 - 0.0701*P3 + 3.1666 -> 3.8413018 | P3: 2.98 | Q3: 0.6 | R3: 26.9 | S3: 2.64 | T3: =S3/$R3 -> 0.09814126394 | U3: 2740 | V3: =U3/$R3 -> 101.8587361 | W3: 10.05043558 | X3: =ABS(E3-D3)*N3*10000 -> 54525 | Y3: =(L3-M3)*(E3-D3)/10 -> 3.45 | Z3: =Z15-Z2 -> 90.5 | AA3: =AA15-AA2 -> 3.997102969 | AC3: =(U3/(Z3*100))*100 -> 30.27624309 | AD3: =(V3/(AA3*100))*100 -> 25.48314038 | AE3: 5480 | AM3: 1.0905 | BE3: =0.0995*BF3*BF3 - 0.0701*BF3 + 3.1666 -> 3.8413018 | BF3: 2.98 | BG3: Berechnung von pH-Kcl aus pH-H2O:
A4: Natte | B4: Ahe | C4: 3 | D4: 5 | E4: 10 | F4: Sl2 | G4: 5 | H4: 10 | I4: =100-G4-H4 -> 85 | J4: 0 | K4: =(53.8+55.7+62.9+58.2)/4 -> 57.65 | L4: 13.9 | M4: 7 | N4: =(1.188+1.142+0.956+1.076)/4 -> 1.0905 | O4: =0.0995*P4*P4 - 0.0701*P4 + 3.1666 -> 4.1028992 | P4: 3.44 | Q4: 0.6 | R4: 27.35294118 | S4: 1.86 | T4: =S4/R4 -> 0.068 | U4: 2010 | V4: =U4/$R4 -> 73.48387097 | W4: 7.372764787 | X4: 54525 | Y4: =Y3+(L4-M4)*(E4-D4)/10 -> 6.9 | AC4: =(U4/(Z3*100))*100 -> 22.20994475 | AD4: =(V4/(AA3*100))*100 -> 18.3842827 | AE4: 4020 | AM4: 1.0905 | BE4: =0.0995*BF4*BF4 - 0.0701*BF4 + 3.1666 -> 4.1028992 | BF4: 3.44 | BH4: y = 0.9671x - 0.3254; R² = 0.9711
A5: Natte | B5: Bvh | C5: 4 | D5: 10 | E5: 20 | F5: Sl2 | G5: 5 | H5: 10 | I5: 85 | J5: 0 | K5: =(48.5+47+52.5+50)/4 -> 49.5 | L5: 20 | M5: 7 | N5: =(1.329+1.369+1.228+1.291)/4 -> 1.30425 | O5: 4.44215375 | P5: 3.95 | Q5: 0.6 | R5: 27.01030928 | S5: 1.31 | T5: 0.0485 | U5: 1560 | V5: 57.75572519 | W5: 2.392179413 | X5: 130425 | Y5: 19.9 | AC5: =(U5/(Z3*100))*100 -> 17.23756906 | AD5: =(V5/(AA3*100))*100 -> 14.44939638 | AE5: 3120 | AM5: 1.30425 | BE5: 4.44215375 | BF5: 3.95
A6: Natte | B6: Bvh | C6: 5 | D6: 20 | E6: 40 | F6: Sl | G6: 5 | H6: 8 | I6: 87 | J6: 0 | K6: =(48.5+47+52.5+50)/4 -> 49.5 | L6: 21.1 | M6: 7 | N6: =(1.329+1.369+1.228+1.291)/4 -> 1.30425 | O6: 4.6427138 | P6: 4.22 | Q6: 0.67 | R6: 20.1754386 | S6: 0.69 | T6: 0.0342 | U6: 900 | V6: 44.60869565 | W6: 0.6900517539 | X6: 260850 | Y6: 48.1 | AC6: =(U6/(Z3*100))*100 -> 9.944751381 | AD6: =(V6/(AA3*100))*100 -> 11.16025682 | AE6: 1800 | AM6: 1.30425 | BE6: 4.6427138 | BF6: 4.22 | BG6: Berechnung von pH-H2O aus pH-Kcl:
A7: Natte | B7: Bvh | C7: 6 | D7: 40 | E7: 50 | F7: Sl | G7: 2 | H7: 8 | I7: 90 | J7: 0 | K7: =(48.5+47+52.5+50)/4 -> 49.5 | L7: 10.45 | M7: 7 | N7: =(1.329+1.369+1.228+1.291)/4 -> 1.30425 | O7: 4.74445375 | P7: 4.35 | Q7: 1.15 | R7: 16.42857143 | S7: 0.23 | T7: 0.014 | U7: 320 | V7: 19.47826087 | W7: 0.4907034694 | X7: 130425 | Y7: 51.55 | AC7: =(U7/(Z$3*100))*100 -> 3.535911602 | AD7: 4.873094594 | AE7: 640 | AM7: 1.30425 | BE7: 4.74445375 | BF7: 4.35 | BH7: y = 1.0041x + 0.3817; R² = 0.9711
A8: Natte | B8: Bv | C8: 7 | D8: 50 | E8: 60 | F8: Sl | G8: 2 | H8: 8 | I8: 90 | J8: 0 | K8: =(51.1+50.3+50.4+49.8)/4 -> 50.4 | L8: 9 | M8: 3.2 | N8: =(1.265+1.285+1.283+1.298)/4 -> 1.28275 | O8: 4.74445375 | P8: 4.35 | Q8: 1.15 | R8: 16.42857143 | S8: 0.23 | T8: 0.014 | U8: 320 | V8: 19.47826087 | W8: 0.4989280842 | X8: 128275 | Y8: 57.35 | AC8: 3.535911602 | AD8: 4.873094594 | AE8: 640 | AM8: 1.28275 | BE8: 4.74445375 | BF8: 4.35
A9: Natte | B9: Bv | C9: 8 | D9: 60 | E9: 70 | F9: Sl | G9: 2 | H9: 6 | I9: 92 | J9: 0 | K9: =(51.1+50.3+50.4+49.8)/4 -> 50.4 | L9: 9 | M9: 3.2 | N9: =(1.265+1.285+1.283+1.298)/4 -> 1.28275 | O9: 4.74445375 | P9: 4.35 | Q9: 1.15 | R9: 16.42857143 | S9: 0.23 | T9: 0.014 | U9: 320 | V9: 19.47826087 | W9: 0.4989280842 | X9: 128275 | Y9: 63.15 | AC9: 3.535911602 | AD9: 4.873094594 | AE9: 640 | AM9: 1.28275 | BE9: 4.74445375 | BF9: 4.35 | BG9: Berechnung angewendet ab EU19
A10: Natte | B10: Bv/C | C10: 9 | D10: 70 | E10: 80 | F10: fS | G10: 2 | H10: 6 | I10: 92 | J10: 0 | K10: =(43.7+44.7+42.7+41.4)/4 -> 43.125 | L10: 9.55 | M10: 3.7 | N10: =(1.492+1.464+1.517+1.553)/4 -> 1.5065 | O10: 4.74445375 | P10: 4.35 | Q10: 1.15 | R10: 16.42857143 | S10: 0.23 | T10: 0.014 | U10: 320 | V10: 19.47826087 | W10: 0.4248257551 | X10: 150650 | Y10: 69 | AC10: 3.535911602 | AD10: 4.873094594 | AE10: 640 | AM10: 1.5065 | BE10: 4.74445375 | BF10: 4.35
A11: Natte | B11: Bv/C | C11: 10 | D11: 80 | E11: 90 | F11: fS | G11: 1 | H11: 3 | I11: 96 | J11: 0 | K11: =(43.7+44.7+42.7+41.4)/4 -> 43.125 | L11: 9.55 | M11: 3.7 | N11: =(1.492+1.464+1.517+1.553)/4 -> 1.5065 | O11: 4.63502695 | P11: 4.21 | Q11: 1.15 | R11: 13.3 | S11: 0.12 | T11: 0.009022556391 | U11: 160 | V11: 12.03007519 | W11: 0.2124128775 | X11: 150650 | Y11: 74.85 | AC11: 1.767955801 | AD11: 3.009698594 | AE11: 320 | AM11: 1.5065 | BE11: 4.63502695 | BF11: 4.21
A12: Natte | B12: C | C12: 11 | D12: 90 | E12: 100 | F12: mfS | G12: 1 | H12: 3 | I12: 96 | J12: 0 | K12: =(39.8+39.1+47.8+44.8)/4 -> 42.875 | L12: 9.55 | M12: 3.7 | N12: =(1.595+1.614+1.382+1.464)/4 -> 1.51375 | O12: 4.63502695 | P12: 4.21 | Q12: 1.5 | R12: 13.3 | S12: 0.12 | T12: 0.009022556391 | U12: 160 | V12: 12.03007519 | W12: 0.2113955409 | X12: 151375 | Y12: 80.7 | AC12: 1.767955801 | AD12: 3.009698594 | AE12: 320 | AM12: 1.51375 | BE12: 4.63502695 | BF12: 4.21
A13: Natte | B13: C | C13: 12 | D13: 100 | E13: 140 | F13: mfS | G13: 1 | H13: 2 | I13: 97 | J13: 0 | K13: =(39.8+39.1+47.8+44.8)/4 -> 42.875 | L13: 9.55 | M13: 3.7 | N13: =(1.595+1.614+1.382+1.464)/4 -> 1.51375 | O13: 4.63502695 | P13: 4.21 | Q13: 1.5 | R13: 13.3 | S13: 0.12 | T13: 0.009022556391 | U13: 160 | V13: 12.03007519 | W13: 0.05284888522 | X13: 605500 | Y13: 104.1 | AC13: 1.767955801 | AD13: 3.009698594 | AE13: 320 | AM13: 1.51375 | BE13: 4.63502695 | BF13: 4.21
A14: Natte | B14: G | C14: 13 | D14: 140 | E14: 160 | F14: mfS | G14: 0 | H14: 2 | I14: =100-G14-H14 -> 98 | J14: 0 | K14: 40 | L14: 6 | M14: 3.7 | N14: 1.5 | O14: 4.78448 | P14: 4.4 | Q14: 1.5 | R14: 10 | S14: 0.05 | T14: 0.005 | U14: 80 | V14: 8 | W14: 0.05333333333 | X14: 300000 | Y14: 108.7 | AC14: 0.8839779006 | AD14: 2.001449565 | AE14: 160 | AM14: 1.5 | BE14: 4.78448 | BF14: 4.4
A15: Natte | B15: G | C15: 14 | D15: 160 | E15: 300 | F15: mfS | G15: 0 | H15: 2 | I15: 98 | J15: 0 | K15: 40 | L15: 6 | M15: 3.7 | N15: 1.5 | O15: 4.78448 | P15: 4.4 | Q15: 1.5 | R15: 0 | S15: 0 | T15: 0 | U15: 0 | V15: 0 | W15: 0 | X15: 2100000 | Y15: 140.9 | Z15: =SUM(U2:U15)*10/1000 -> 135.8 | AA15: =SUM(V2:V15)*10/1000 -> 5.720802969 | AB15: =Z15/AA15 -> 23.73792643 | AC15: 0 | AD15: 0 | AE15: 0 | AM15: 1.5 | BE15: 4.78448 | BF15: 4.4
A16: Beerbu_orig | B16: Of/Oh | C16: 1 | D16: 5 | E16: 0 | F16: ro | G16: 0 | H16: 0 | I16: 0 | J16: 0 | K16: =(1-N16/$AP$1)*100 -> 80.41837124 | L16: 40 | M16: 12 | N16: =X16/(ABS(D16-E16)*10000) -> 0.2741428026 | O16: 4.4782 | P16: 4 | Q16: 3 | R16: =S16/T16 -> 26.33484163 | S16: 26.19 | T16: 0.9945 | U16: 3589.9 | V16: =U16/R16 -> 136.3175086 | W16: 52.38 | X16: =U16/S16*100 -> 13707.14013 | Y16: =(L16-M16)*D16/10 -> 14 | Z16: =U16/100 -> 35.899 | AA16: =V16/100 -> 1.363175086 | AC16: =Z16/Z27*100 -> 35.46876389 | AD16: =AA16/AA27*100 -> 29.57079159 | AE16: 7179.8 | AM16: 0.2741428026 | AN16: D:\All_fs\Daten\Level2\Brandenburg\Excel\Parameter.xls | BE16: 4.4782 | BF16: 4
A17: Beerbu_orig | B17: Ahe | C17: 2 | D17: 0 | E17: 6 | F17: mSgs | G17: 4 | H17: 9 | I17: =100-G17-H17 -> 87 | J17: 0 | K17: 57 | L17: 16.15 | M17: 2.05 | N17: 1.1 | O17: 4.14639895 | P17: 3.51 | Q17: 1.5 | R17: =S17/T17 -> 23.7962963 | S17: 2.57 | T17: 0.108 | U17: 2869 | V17: =U17/R17 -> 120.5649805 | W17: 8.693939394 | X17: =ABS(E17-D17)*N17*10000 -> 66000 | Y17: =(L17-M17)*(E17-D17)/10 -> 8.46 | Z17: =Z27-Z16 -> 65.314 | AA17: =AA27-AA16 -> 3.246695035 | AC17: =(U17/(Z17*100))*100 -> 43.92626389 | AD17: =(V17/(AA17*100))*100 -> 37.1346798 | AE17: 5738 | AM17: 1.1 | BE17: 4.14639895 | BF17: 3.51
A18: Beerbu_orig | B18: Bhs | C18: 3 | D18: 6 | E18: 10 | F18: mSgs | G18: 4 | H18: 3 | I18: =100-G18-H18 -> 93 | J18: 0 | K18: 56.48 | L18: 16.15 | M18: 2.05 | N18: 1.1205 | O18: 4.4637218 | P18: 3.98 | Q18: 1.5 | R18: 22.37288136 | S18: 1.32 | T18: 0.059 | U18: 1620.5 | V18: =U18/R18 -> 72.43143939 | W18: 7.231146809 | X18: =ABS(E18-D18)*N18*10000 -> 44820 | Y18: =Y17+(L18-M18)*(E18-D18)/10 -> 14.1 | AC18: =(U18/(Z$41*100))*100 -> 24.81091343 | AD18: 22.30928332 | AE18: 3241 | AM18: 1.1205 | BE18: 4.4637218 | BF18: 3.98
A19: Beerbu_orig | B19: Bhs | C19: 4 | D19: 10 | E19: 20 | F19: mSgs | G19: 4 | H19: 3 | I19: 93 | J19: 0 | K19: 56.48 | L19: 9.35 | M19: 1.3 | N19: 1.1205 | O19: 4.7524192 | P19: 4.36 | Q19: 1.5 | R19: 20.75949367 | S19: 0.82 | T19: 0.0395 | U19: 1129 | V19: =U19/R19 -> 54.3847561 | W19: 2.015171798 | X19: =ABS(E19-D19)*N19*10000 -> 112050 | Y19: 22.15 | AC19: 17.28572741 | AD19: 16.75080521 | AE19: 2258 | AM19: 1.1205 | BE19: 4.7524192 | BF19: 4.36
A20: Beerbu_orig | B20: Bvs | C20: 5 | D20: 20 | E20: 40 | F20: fSmS | G20: 3 | H20: 4 | I20: 93 | J20: 0 | K20: 44.26666667 | L20: 9.35 | M20: 1.3 | N20: 1.465333333 | O20: 4.9159072 | P20: 4.56 | Q20: 1.15 | R20: 18.83408072 | S20: 0.42 | T20: 0.0223 | U20: 619.6 | V20: 32.89780952 | W20: 0.4228389445 | X20: 293066.6667 | Y20: 38.25 | AC20: 9.486480693 | AD20: 10.132707 | AE20: 1239.2 | AM20: 1.465333333 | BE20: 4.9159072 | BF20: 4.56
A21: Beerbu_orig | B21: Bvs | C21: 6 | D21: 40 | E21: 50 | F21: fSmS | G21: 3 | H21: 4 | I21: 93 | J21: 0 | K21: 44.26666667 | L21: 9.35 | M21: 1.3 | N21: 1.465333333 | O21: 7.99879255 | P21: 7.33 | Q21: 1.15 | R21: 6.103286385 | S21: 0.13 | T21: 0.0213 | U21: 50.3 | V21: 8.241461538 | W21: 0.0686533212 | X21: 146533.3333 | Y21: 46.3 | AC21: 0.7701258536 | AD21: 2.538415666 | AE21: 100.6 | AM21: 1.465333333 | BE21: 7.99879255 | BF21: 7.33
A22: Beerbu_orig | B22: C | C22: 7 | D22: 50 | E22: 80 | F22: fSmS | G22: 0 | H22: 1 | I22: 99 | J22: 0 | K22: 45.175 | L22: 9.35 | M22: 1.3 | N22: 1.452 | O22: 7.99879255 | P22: 7.33 | Q22: 1.15 | R22: 6.103286385 | S22: 0.13 | T22: 0.0213 | U22: 150 | V22: 24.57692308 | W22: 0.06887052342 | X22: 435600 | Y22: 70.45 | AC22: 2.296597973 | AD22: 7.569828029 | AE22: 300 | AM22: 1.452 | BE22: 7.99879255 | BF22: 7.33
A23: Beerbu_orig | B23: C | C23: 8 | D23: 80 | E23: 105 | F23: fSmS | G23: 0 | H23: 1 | I23: 99 | J23: 0 | K23: 45.175 | L23: 5.05 | M23: 0.5 | N23: 1.452 | O23: 6.4185488 | P23: 6.08 | Q23: 1.15 | R23: 9.554140127 | S23: 0.03 | T23: 0.00314 | U23: 28 | V23: 2.930666667 | W23: 0.01542699725 | X23: 363000 | Y23: 81.825 | AC23: 0.4286982883 | AD23: 0.9026615173 | AE23: 56 | AM23: 1.452 | BE23: 6.4185488 | BF23: 6.08
A24: Beerbu_orig | B24: Go | C24: 9 | D24: 105 | E24: 120 | F24: mSgs | G24: 1 | H24: 2 | I24: 97 | J24: 0 | K24: 43.075 | L24: 5.05 | M24: 0.5 | N24: 1.50875 | O24: 6.4185488 | P24: 6.08 | Q24: 1.5 | R24: 9.554140127 | S24: 0.03 | T24: 0.00314 | U24: 16.2 | V24: 1.6956 | W24: 0.01431648716 | X24: 226312.5 | Y24: 88.65 | AC24: 0.2480325811 | AD24: 0.5222541636 | AE24: 32.4 | AM24: 1.50875 | BE24: 6.4185488 | BF24: 6.08
A25: Beerbu_orig | B25: Go | C25: 10 | D25: 120 | E25: 160 | F25: mSgs | G25: 1 | H25: 2 | I25: 97 | J25: 0 | K25: 43.075 | L25: 14 | M25: 4 | N25: 1.50875 | O25: 6.68597095 | P25: 6.31 | Q25: 1.5 | R25: 7.025761124 | S25: 0.03 | T25: 0.00427 | U25: 48.8 | V25: 6.945866667 | W25: 0.01617232809 | X25: 603500 | Y25: 128.65 | AC25: 0.7471598738 | AD25: 2.13936529 | AE25: 97.6 | AM25: 1.50875 | BE25: 6.68597095 | BF25: 6.31
A26: Beerbu_orig | B26: Go | C26: 11 | D26: 160 | E26: 230 | F26: mSgs | G26: 1 | H26: 2 | I26: 97 | J26: 0 | K26: 43.075 | L26: 14 | M26: 4 | N26: 1.50875 | O26: 6.674125 | P26: 6.3 | Q26: 1.5 | X26: 1056125 | Y26: 198.65 | AC26: 0 | AD26: 0 | AE26: 0 | AM26: 1.50875 | BE26: 6.674125 | BF26: 6.3
A27: Beerbu_orig | B27: Gr | C27: 12 | D27: 230 | E27: 300 | F27: mSgs | G27: 1 | H27: 2 | I27: =100-G27-H27 -> 97 | J27: 0 | K27: 43 | L27: 14 | M27: 4 | N27: 1.5 | O27: 6.674125 | P27: 6.3 | Q27: 1.5 | X27: 1050000 | Y27: =Y26+(L27-M27)*(E27-D27)/10 -> 268.65 | Z27: =SUM(U16:U27)*10/1000 -> 101.213 | AA27: =SUM(V16:V27)*10/1000 -> 4.609870121 | AB27: =Z27/AA27 -> 21.95571618 | AC27: 0 | AD27: 0 | AE27: 0 | AM27: 1.5 | BE27: 6.674125 | BF27: 6.3
A28: Kienh_orig | B28: Of/Oh | C28: 1 | D28: 6 | E28: 0 | F28: =Standorte!#REF! ->  | G28: 0 | H28: 0 | I28: 0 | J28: 0 | K28: =(1-N28/$AP$1)*100 -> 76.57989295 | L28: 40 | M28: 12 | N28: =X28/(ABS(D28-E28)*10000) -> 0.3278814988 | O28: 4.4782 | P28: 4 | Q28: 3 | R28: =S28/T28 -> 24.14084507 | S28: 25.71 | T28: 1.065 | U28: 5057.9 | V28: =U28/R28 -> 209.5162777 | W28: =100*2*U28/X28 -> 51.42 | X28: =U28/S28*100 -> 19672.88993 | Y28: =(L28-M28)*D28/10 -> 16.8 | Z28: =U28/100 -> 50.579 | AA28: =V28/100 -> 2.095162777 | AC28: =Z28/Z39*100 -> 41.9812417 | AD28: =AA28/AA39*100 -> 38.72950789 | AE28: 10115.8 | AM28: 0.3278814988 | AN28: D:\All_fs\Daten\Level2\Brandenburg\Excel\Parameter.xls | BE28: 4.4782 | BF28: 4
A29: Kienh_orig | B29: Ahe | C29: 2 | D29: 0 | E29: 5 | F29: fSmS | G29: 3 | H29: 6 | I29: =100-G29-H29 -> 91 | J29: 0 | K29: 46.8 | L29: 14.95 | M29: 3.05 | N29: 1.39 | O29: 4.21023295 | P29: 3.61 | Q29: 1.15 | R29: 22.62135922 | S29: 2.33 | T29: 0.103 | U29: 2798.3 | V29: 123.7016738 | W29: 8.052661871 | X29: =ABS(E29-D29)*N29*10000 -> 69500 | Y29: =(L29-M29)*(E29-D29)/10 -> 5.95 | Z29: =Z39-Z28 -> 69.901 | AA29: =AA39-AA28 -> 3.314569727 | AC29: =(U29/(Z29*100))*100 -> 40.03233144 | AD29: =(V29/(AA29*100))*100 -> 37.32058276 | AE29: 5596.6 | AM29: =X29/(ABS(E29-D29)*100*100) -> 1.39 | BE29: 4.21023295 | BF29: 3.61
A30: Kienh_orig | B30: Ahe | C30: 3 | D30: 5 | E30: 10 | F30: fSmS | G30: 3 | H30: 6 | I30: 91 | J30: 0 | K30: 46.8 | L30: 14.95 | M30: 3.05 | N30: 1.39 | O30: 4.57424855 | P30: 4.13 | Q30: 1.15 | R30: 22.76402538 | S30: 1.83 | T30: 0.08039 | U30: 2247.2 | V30: 98.71716284 | W30: 6.46676259 | X30: 69500 | Y30: =Y29+(L30-M30)*(E30-D30)/10 -> 11.9 | AC30: =(U30/(Z$53*100))*100 -> 32.14832406 | AD30: =(V30/(AA$53*100))*100 -> 29.78279866 | AE30: 4494.4 | AM30: =X30/(ABS(E30-D30)*100*100) -> 1.39 | BE30: 4.57424855 | BF30: 4.13
A31: Kienh_orig | B31: Bs | C31: 4 | D31: 10 | E31: 20 | F31: fSmS | G31: 3 | H31: 4 | I31: 93 | J31: 0 | K31: 48.15 | L31: 13.85 | M31: 2.25 | N31: 1.37 | O31: 4.62736 | P31: 4.2 | Q31: 1.15 | R31: 20.36082474 | S31: 0.79 | T31: 0.0388 | U31: 1081.3 | V31: 53.10688608 | W31: 1.578540146 | X31: 137000 | Y31: 23.5 | AC31: =(U31/(Z$53*100))*100 -> 15.46902047 | AD31: 16.02225641 | AE31: 2162.6 | AM31: 1.37 | BE31: 4.62736 | BF31: 4.2
A32: Kienh_orig | B32: Bs | C32: 5 | D32: 20 | E32: 40 | F32: fSmS | G32: 2 | H32: 3 | I32: 95 | J32: 0 | K32: 48.15 | L32: 13.45 | M32: 1.35 | N32: 1.37 | O32: 4.79254495 | P32: 4.41 | Q32: 1.15 | R32: 16.90140845 | S32: 0.42 | T32: 0.02485 | U32: 600.3 | V32: 35.51775 | W32: 0.4381751825 | X32: 274000 | Y32: 47.7 | AC32: 8.587859973 | AD32: 10.71564424 | AE32: 1200.6 | AM32: 1.37 | BE32: 4.79254495 | BF32: 4.41
A33: Kienh_orig | B33: Bsv | C33: 6 | D33: 40 | E33: 55 | F33: fSmS | G33: 1 | H33: 1 | I33: 98 | J33: 0 | K33: 39.52 | L33: 13.45 | M33: 1.35 | N33: 1.6 | O33: 4.7206768 | P33: 4.32 | Q33: 1.15 | R33: 13.51351351 | S33: 0.1 | T33: 0.0074 | U33: 78 | V33: 5.772 | W33: 0.065 | X33: 240000 | Y33: 65.85 | AC33: 1.115863865 | AD33: 1.741402497 | AE33: 156 | AM33: 1.6 | BE33: 4.7206768 | BF33: 4.32
A34: Kienh_orig | B34: Bsv | C34: 7 | D34: 55 | E34: 80 | F34: fSmS | G34: 1 | H34: 1 | I34: 98 | J34: 0 | K34: 39.52 | L34: 10.1 | M34: 1.1 | N34: 1.6 | O34: 4.7206768 | P34: 4.32 | Q34: 1.15 | R34: 13.51351351 | S34: 0.1 | T34: 0.0074 | U34: 75 | V34: 5.55 | W34: 0.0375 | X34: 400000 | Y34: 88.35 | AC34: 1.072946024 | AD34: 1.674425478 | AE34: 150 | AM34: 1.6 | BE34: 4.7206768 | BF34: 4.32
A35: Kienh_orig | B35: C | C35: 8 | D35: 80 | E35: 90 | F35: fSmS | G35: 1 | H35: 2 | I35: 97 | J35: 0 | K35: 40.8 | L35: 10.1 | M35: 1.1 | N35: 1.57 | O35: 4.71279095 | P35: 4.31 | Q35: 1.15 | R35: 13.33333333 | S35: 0.04 | T35: 0.003 | U35: 28.9 | V35: 2.1675 | W35: 0.03681528662 | X35: 157000 | Y35: 97.35 | AC35: 0.4134418678 | AD35: 0.6539310313 | AE35: 57.8 | AM35: 1.57 | BE35: 4.71279095 | BF35: 4.31
A36: Kienh_orig | B36: C | C36: 9 | D36: 90 | E36: 120 | F36: fSmS | G36: 1 | H36: 2 | I36: 97 | J36: 0 | K36: 40.8 | L36: 21.65 | M36: 1.1 | N36: 1.57 | O36: 4.71279095 | P36: 4.31 | Q36: 1.15 | R36: 13.33333333 | S36: 0.04 | T36: 0.003 | U36: 25 | V36: 1.875 | W36: 0.01061571125 | X36: 471000 | Y36: 159 | AC36: 0.3576486746 | AD36: 0.5656842831 | AE36: 50 | AM36: 1.57 | BE36: 4.71279095 | BF36: 4.31
A37: Kienh_orig | B37: Go | C37: 10 | D37: 120 | E37: 160 | F37: mSfS | G37: 1 | H37: 2 | I37: 97 | J37: 0 | K37: 42.58 | L37: 20.9 | M37: 0.7 | N37: 1.52 | O37: 4.6736602 | P37: 4.26 | Q37: 1.5 | R37: 11.11111111 | S37: 0.04 | T37: 0.0036 | U37: 56.1 | V37: 5.049 | W37: 0.01845394737 | X37: 608000 | Y37: 239.8 | AC37: 0.8025636257 | AD37: 1.523274638 | AE37: 112.2 | AM37: 1.52 | BE37: 4.6736602 | BF37: 4.26
A38: Kienh_orig | B38: G | C38: 11 | D38: 160 | E38: 200 | F38: mSfS | G38: 1 | H38: 2 | I38: 97 | J38: 0 | K38: 43.68 | L38: 20 | M38: 1 | N38: 1.49 | O38: 4.62736 | P38: 4.2 | Q38: 1.5 | X38: 596000 | Y38: 315.8 | AC38: 0 | AD38: 0 | AE38: 0 | AM38: 1.49 | BE38: 4.62736 | BF38: 4.2
A39: Kienh_orig | B39: G | C39: 12 | D39: 200 | E39: 300 | F39: mSfS | G39: 1 | H39: 1 | I39: 98 | J39: 0 | K39: 43.68 | L39: 20 | M39: 1 | N39: 1.49 | O39: 4.62736 | P39: 4.2 | Q39: 1.5 | X39: 1490000 | Y39: 505.8 | Z39: =SUM(U28:U39)*10/1000 -> 120.48 | AA39: =SUM(V28:V39)*10/1000 -> 5.409732505 | AB39: =Z39/AA39 -> 22.27097179 | AC39: 0 | AD39: 0 | AE39: 0 | AM39: 1.49 | BE39: 4.62736 | BF39: 4.2
A40: Beerbu | B40: Of/Oh | C40: 1 | D40: 5 | E40: 0 | F40: ro | G40: 0 | H40: 0 | I40: 0 | J40: 0 | K40: =(1-N40/$AP$1)*100 -> 80.41837124 | L40: 30 | M40: 12 | N40: =X40/(ABS(D40-E40)*10000) -> 0.2741428026 | O40: 4.4782 | P40: 4 | Q40: 3 | R40: =S40/T40 -> 26.33484163 | S40: 26.19 | T40: 0.9945 | U40: 3589.9 | V40: =U40/R40 -> 136.3175086 | W40: =100*2*U40/X40 -> 52.38 | X40: =U40/S40*100 -> 13707.14013 | Y40: =(L40-M40)*D40/10 -> 9 | Z40: =U40/100 -> 35.899 | AA40: =V40/100 -> 1.363175086 | AC40: =Z40/Z51*100 -> 35.46876389 | AD40: =AA40/AA51*100 -> 29.57079159 | AE40: 7179.8 | AM40: 0.2741428026 | AN40: FK, WP usw. nach Anpassung an Messwerte korrigiert | BE40: 4.4782 | BF40: 4
A41: Beerbu | B41: Ahe | C41: 2 | D41: 0 | E41: 6 | F41: mSgs | G41: 4 | H41: 9 | I41: =100-G41-H41 -> 87 | J41: 0 | K41: 46.8 | L41: 16.15 | M41: 12.05 | N41: 1.1 | O41: 4.14639895 | P41: 3.51 | Q41: 1.5 | R41: =S41/T41 -> 23.7962963 | S41: 2.57 | T41: 0.108 | U41: 2869 | V41: =U41/R41 -> 120.5649805 | W41: =100*2*U41/X41 -> 8.693939394 | X41: =ABS(E41-D41)*N41*10000 -> 66000 | Y41: =(L41-M41)*(E41-D41)/10 -> 2.46 | Z41: =Z51-Z40 -> 65.314 | AA41: =AA51-AA40 -> 3.246695035 | AC41: =(U41/(Z41*100))*100 -> 43.92626389 | AD41: =(V41/(AA41*100))*100 -> 37.1346798 | AE41: 5738 | AM41: 1.1 | AN41: D:\All_fs\Daten\Level2\Brandenburg\Excel\Parameter.xls | BE41: 4.14639895 | BF41: 3.51
A42: Beerbu | B42: Bhs | C42: 3 | D42: 6 | E42: 10 | F42: mSgs | G42: 4 | H42: 3 | I42: =100-G42-H42 -> 93 | J42: 0 | K42: 56.48 | L42: 16.15 | M42: 12.05 | N42: 1.1205 | O42: 4.4637218 | P42: 3.98 | Q42: 1.5 | R42: 22.37288136 | S42: 1.32 | T42: 0.059 | U42: 1620.5 | V42: =U42/R42 -> 72.43143939 | W42: =100*2*U42/X42 -> 7.231146809 | X42: =ABS(E42-D42)*N42*10000 -> 44820 | Y42: =Y41+(L42-M42)*(E42-D42)/10 -> 4.1 | AC42: =(U42/(Z$41*100))*100 -> 24.81091343 | AD42: =(V42/(AA$41*100))*100 -> 22.30928332 | AE42: 3241 | AM42: =X42/(ABS(E42-D42)*100*100) -> 1.1205 | BE42: 4.4637218 | BF42: 3.98
A43: Beerbu | B43: Bhs | C43: 4 | D43: 10 | E43: 20 | F43: mSgs | G43: 4 | H43: 3 | I43: 93 | J43: 0 | K43: 56.48 | L43: 15 | M43: 7.5 | N43: 1.1205 | O43: 4.7524192 | P43: 4.36 | Q43: 1.5 | R43: 20.75949367 | S43: 0.82 | T43: 0.0395 | U43: 1129 | V43: =U43/R43 -> 54.3847561 | W43: =100*2*U43/X43 -> 2.015171798 | X43: =ABS(E43-D43)*N43*10000 -> 112050 | Y43: =Y42+(L43-M43)*(E43-D43)/10 -> 11.6 | AC43: =(U43/(Z$41*100))*100 -> 17.28572741 | AD43: 16.75080521 | AE43: 2258 | AM43: 1.1205 | BE43: 4.7524192 | BF43: 4.36
A44: Beerbu | B44: Bvs | C44: 5 | D44: 20 | E44: 40 | F44: fSmS | G44: 3 | H44: 4 | I44: 93 | J44: 0 | K44: 44.26666667 | L44: 9.35 | M44: 7.5 | N44: 1.465333333 | O44: 4.9159072 | P44: 4.56 | Q44: 1.15 | R44: 18.83408072 | S44: 0.42 | T44: 0.0223 | U44: 619.6 | V44: 32.89780952 | W44: 0.4228389445 | X44: 293066.6667 | Y44: 15.3 | AC44: 9.486480693 | AD44: 10.132707 | AE44: 1239.2 | AM44: =X44/(ABS(E44-D44)*100*100) -> 1.465333333 | BE44: 4.9159072 | BF44: 4.56
A45: Beerbu | B45: Bvs | C45: 6 | D45: 40 | E45: 50 | F45: fSmS | G45: 3 | H45: 4 | I45: 93 | J45: 0 | K45: 44.26666667 | L45: 9.35 | M45: 7.5 | N45: 1.465333333 | O45: 7.99879255 | P45: 7.33 | Q45: 1.15 | R45: 6.103286385 | S45: 0.13 | T45: 0.0213 | U45: 50.3 | V45: 8.241461538 | W45: 0.0686533212 | X45: 146533.3333 | Y45: 17.15 | AC45: 0.7701258536 | AD45: 2.538415666 | AE45: 100.6 | AM45: 1.465333333 | BE45: 7.99879255 | BF45: 7.33
A46: Beerbu | B46: C | C46: 7 | D46: 50 | E46: 80 | F46: fSmS | G46: 0 | H46: 1 | I46: 99 | J46: 0 | K46: 45.175 | L46: 9.35 | M46: 7.5 | N46: 1.452 | O46: 7.99879255 | P46: 7.33 | Q46: 1.15 | R46: 6.103286385 | S46: 0.13 | T46: 0.0213 | U46: 150 | V46: 24.57692308 | W46: 0.06887052342 | X46: 435600 | Y46: 22.7 | AC46: 2.296597973 | AD46: 7.569828029 | AE46: 300 | AM46: =X46/(ABS(E46-D46)*100*100) -> 1.452 | BE46: 7.99879255 | BF46: 7.33
A47: Beerbu | B47: C | C47: 8 | D47: 80 | E47: 105 | F47: fSmS | G47: 0 | H47: 1 | I47: 99 | J47: 0 | K47: 45.175 | L47: 5.05 | M47: 4.4 | N47: 1.452 | O47: 6.4185488 | P47: 6.08 | Q47: 1.15 | R47: 9.554140127 | S47: 0.03 | T47: 0.00314 | U47: 28 | V47: 2.930666667 | W47: 0.01542699725 | X47: 363000 | Y47: 24.325 | AC47: 0.4286982883 | AD47: 0.9026615173 | AE47: 56 | AM47: 1.452 | BE47: 6.4185488 | BF47: 6.08
A48: Beerbu | B48: Go | C48: 9 | D48: 105 | E48: 120 | F48: mSgs | G48: 1 | H48: 2 | I48: 97 | J48: 0 | K48: 43.075 | L48: 5.05 | M48: 2.5 | N48: 1.50875 | O48: 6.4185488 | P48: 6.08 | Q48: 1.5 | R48: 9.554140127 | S48: 0.03 | T48: 0.00314 | U48: 16.2 | V48: 1.6956 | W48: 0.01431648716 | X48: 226312.5 | Y48: 28.15 | AC48: 0.2480325811 | AD48: 0.5222541636 | AE48: 32.4 | AM48: =X48/(ABS(E48-D48)*100*100) -> 1.50875 | BE48: 6.4185488 | BF48: 6.08
A49: Beerbu | B49: Go | C49: 10 | D49: 120 | E49: 160 | F49: mSgs | G49: 1 | H49: 2 | I49: 97 | J49: 0 | K49: 43.075 | L49: 5.05 | M49: 0.5 | N49: 1.50875 | O49: 6.68597095 | P49: 6.31 | Q49: 1.5 | R49: 7.025761124 | S49: 0.03 | T49: 0.00427 | U49: 48.8 | V49: 6.945866667 | W49: 0.01617232809 | X49: 603500 | Y49: 46.35 | AC49: 0.7471598738 | AD49: 2.13936529 | AE49: 97.6 | AM49: =X49/(ABS(E49-D49)*100*100) -> 1.50875 | BE49: 6.68597095 | BF49: 6.31
A50: Beerbu | B50: Go | C50: 11 | D50: 160 | E50: 230 | F50: mSgs | G50: 1 | H50: 2 | I50: 97 | J50: 0 | K50: 43.075 | L50: 5.05 | M50: 0.5 | N50: 1.50875 | O50: 6.674125 | P50: 6.3 | Q50: 1.5 | X50: 1056125 | Y50: 78.2 | AC50: 0 | AD50: 0 | AE50: 0 | AM50: 1.50875 | BE50: 6.674125 | BF50: 6.3
A51: Beerbu | B51: Gr | C51: 12 | D51: 230 | E51: 300 | F51: mSgs | G51: 1 | H51: 2 | I51: =100-G51-H51 -> 97 | J51: 0 | K51: 43 | L51: 5.05 | M51: 0.5 | N51: 1.5 | O51: 6.674125 | P51: 6.3 | Q51: 1.5 | X51: 1050000 | Y51: 110.05 | Z51: =SUM(U40:U51)*10/1000 -> 101.213 | AA51: =SUM(V40:V51)*10/1000 -> 4.609870121 | AB51: =Z51/AA51 -> 21.95571618 | AC51: 0 | AD51: 0 | AE51: 0 | AM51: 1.5 | BE51: 6.674125 | BF51: 6.3
A52: Kienh | B52: Of/Oh | C52: 1 | D52: 6 | E52: 0 | F52: =Standorte!L4 -> mor | G52: 0 | H52: 0 | I52: 0 | J52: 0 | K52: =(1-N52/$AP$1)*100 -> 76.57989295 | L52: 43 | M52: 13 | N52: =X52/(ABS(D52-E52)*10000) -> 0.3278814988 | O52: 4.4782 | P52: 4 | Q52: 3 | R52: =S52/T52 -> 24.14084507 | S52: 25.71 | T52: 1.065 | U52: 5057.9 | V52: =U52/R52 -> 209.5162777 | W52: =100*2*U52/X52 -> 51.42 | X52: =U52/S52*100 -> 19672.88993 | Y52: =(L52-M52)*D52/10 -> 18 | Z52: =U52/100 -> 50.579 | AA52: =V52/100 -> 2.095162777 | AC52: =Z52/Z63*100 -> 41.9812417 | AD52: =AA52/AA63*100 -> 38.72950789 | AE52: 10115.8 | AM52: 0.3278814988 | AN52: D:\All_fs\Daten\Level2\Brandenburg\Excel\Parameter.xls | BE52: 4.4782 | BF52: 4
A53: Kienh | B53: Ahe | C53: 2 | D53: 0 | E53: 5 | F53: fSmS | G53: 3 | H53: 6 | I53: =100-G53-H53 -> 91 | J53: 0 | K53: 46.8 | L53: 25 | M53: 9.5 | N53: 1.39 | O53: 4.21023295 | P53: 3.61 | Q53: 1.15 | R53: =S53/T53 -> 22.62135922 | S53: 2.33 | T53: 0.103 | U53: 2798.3 | V53: =U53/R53 -> 123.7016738 | W53: 8.052661871 | X53: =ABS(E53-D53)*N53*10000 -> 69500 | Y53: =(L53-M53)*(E53-D53)/10 -> 7.75 | Z53: =Z63-Z52 -> 69.901 | AA53: =AA63-AA52 -> 3.314569727 | AC53: =(U53/(Z53*100))*100 -> 40.03233144 | AD53: =(V53/(AA53*100))*100 -> 37.32058276 | AE53: 5596.6 | AM53: =X53/(ABS(E53-D53)*100*100) -> 1.39 | BE53: 4.21023295 | BF53: 3.61
A54: Kienh | B54: Ahe | C54: 3 | D54: 5 | E54: 10 | F54: fSmS | G54: 3 | H54: 6 | I54: =100-G54-H54 -> 91 | J54: 0 | K54: 46.8 | L54: 25 | M54: 9.5 | N54: 1.39 | O54: 4.57424855 | P54: 4.13 | Q54: 1.15 | R54: 22.76402538 | S54: 1.83 | T54: 0.08039 | U54: 2247.2 | V54: 98.71716284 | W54: 6.46676259 | X54: 69500 | Y54: =Y53+(L54-M54)*(E54-D54)/10 -> 15.5 | AC54: =(U54/(Z$53*100))*100 -> 32.14832406 | AD54: =(V54/(AA$53*100))*100 -> 29.78279866 | AE54: 4494.4 | AM54: 1.39 | BE54: 4.57424855 | BF54: 4.13
A55: Kienh | B55: Bs | C55: 4 | D55: 10 | E55: 20 | F55: fSmS | G55: 3 | H55: 4 | I55: =100-G55-H55 -> 93 | J55: 0 | K55: 48.15 | L55: 25 | M55: 5 | N55: 1.37 | O55: 4.62736 | P55: 4.2 | Q55: 1.15 | R55: 20.36082474 | S55: 0.79 | T55: 0.0388 | U55: 1081.3 | V55: 53.10688608 | W55: 1.578540146 | X55: 137000 | Y55: 35.5 | AC55: =(U55/(Z$53*100))*100 -> 15.46902047 | AD55: 16.02225641 | AE55: 2162.6 | AM55: 1.37 | BE55: 4.62736 | BF55: 4.2
A56: Kienh | B56: Bs | C56: 5 | D56: 20 | E56: 40 | F56: fSmS | G56: 2 | H56: 3 | I56: 95 | J56: 0 | K56: 48.15 | L56: 13.45 | M56: 5 | N56: 1.37 | O56: 4.79254495 | P56: 4.41 | Q56: 1.15 | R56: 16.90140845 | S56: 0.42 | T56: 0.02485 | U56: 600.3 | V56: 35.51775 | W56: 0.4381751825 | X56: 274000 | Y56: 52.4 | AC56: 8.587859973 | AD56: 10.71564424 | AE56: 1200.6 | AM56: 1.37 | BE56: 4.79254495 | BF56: 4.41
A57: Kienh | B57: Bsv | C57: 6 | D57: 40 | E57: 55 | F57: fSmS | G57: 1 | H57: 1 | I57: =100-G57-H57 -> 98 | J57: 0 | K57: 39.52 | L57: 13.45 | M57: 8.5 | N57: 1.6 | O57: 4.7206768 | P57: 4.32 | Q57: 1.15 | R57: =S57/T57 -> 13.51351351 | S57: 0.1 | T57: 0.0074 | U57: 78 | V57: =U57/R57 -> 5.772 | W57: =100*2*U57/X57 -> 0.065 | X57: =ABS(E57-D57)*N57*10000 -> 240000 | Y57: 59.825 | AC57: 1.115863865 | AD57: 1.741402497 | AE57: 156 | AM57: 1.6 | BE57: 4.7206768 | BF57: 4.32
A58: Kienh | B58: Bsv | C58: 7 | D58: 55 | E58: 80 | F58: fSmS | G58: 1 | H58: 1 | I58: 98 | J58: 0 | K58: 39.52 | L58: 10.1 | M58: 7.5 | N58: 1.6 | O58: 4.7206768 | P58: 4.32 | Q58: 1.15 | R58: 13.51351351 | S58: 0.1 | T58: 0.0074 | U58: 75 | V58: 5.55 | W58: 0.0375 | X58: 400000 | Y58: 66.325 | AC58: 1.072946024 | AD58: 1.674425478 | AE58: 150 | AM58: 1.6 | BE58: 4.7206768 | BF58: 4.32
A59: Kienh | B59: C | C59: 8 | D59: 80 | E59: 90 | F59: fSmS | G59: 1 | H59: 2 | I59: =100-G59-H59 -> 97 | J59: 0 | K59: 40.8 | L59: 10.1 | M59: 4 | N59: 1.57 | O59: 4.71279095 | P59: 4.31 | Q59: 1.15 | R59: =S59/T59 -> 13.33333333 | S59: 0.04 | T59: 0.003 | U59: 28.9 | V59: =U59/R59 -> 2.1675 | W59: =100*2*U59/X59 -> 0.03681528662 | X59: =ABS(E59-D59)*N59*10000 -> 157000 | Y59: 72.425 | AC59: 0.4134418678 | AD59: 0.6539310313 | AE59: 57.8 | AM59: 1.57 | BE59: 4.71279095 | BF59: 4.31
A60: Kienh | B60: C | C60: 9 | D60: 90 | E60: 120 | F60: fSmS | G60: 1 | H60: 2 | I60: 97 | J60: 0 | K60: 40.8 | L60: 11 | M60: 6 | N60: 1.57 | O60: 4.71279095 | P60: 4.31 | Q60: 1.15 | R60: 13.33333333 | S60: 0.04 | T60: 0.003 | U60: 25 | V60: 1.875 | W60: 0.01061571125 | X60: 471000 | Y60: 87.425 | AC60: 0.3576486746 | AD60: 0.5656842831 | AE60: 50 | AM60: 1.57 | BE60: 4.71279095 | BF60: 4.31
A61: Kienh | B61: Go | C61: 10 | D61: 120 | E61: 160 | F61: mSfS | G61: 1 | H61: 2 | I61: 97 | J61: 0 | K61: 42.58 | L61: 11 | M61: 3 | N61: 1.52 | O61: 4.6736602 | P61: 4.26 | Q61: 1.5 | R61: 11.11111111 | S61: 0.04 | T61: 0.0036 | U61: 56.1 | V61: 5.049 | W61: 0.01845394737 | X61: 608000 | Y61: 119.425 | AC61: 0.8025636257 | AD61: 1.523274638 | AE61: 112.2 | AM61: 1.52 | BE61: 4.6736602 | BF61: 4.26
A62: Kienh | B62: G | C62: 11 | D62: 160 | E62: 200 | F62: mSfS | G62: 1 | H62: 2 | I62: 97 | J62: 0 | K62: 43.68 | L62: 6.1 | M62: 3 | N62: 1.49 | O62: 4.62736 | P62: 4.2 | Q62: 1.5 | X62: 596000 | Y62: 131.825 | AC62: 0 | AD62: 0 | AE62: 0 | AM62: 1.49 | BE62: 4.62736 | BF62: 4.2
A63: Kienh | B63: G | C63: 12 | D63: 200 | E63: 300 | F63: mSfS | G63: 1 | H63: 1 | I63: 98 | J63: 0 | K63: 43.68 | L63: 8 | M63: 3 | N63: 1.49 | O63: 4.62736 | P63: 4.2 | Q63: 1.5 | X63: 1490000 | Y63: 181.825 | Z63: =SUM(U52:U63)*10/1000 -> 120.48 | AA63: =SUM(V52:V63)*10/1000 -> 5.409732505 | AB63: =Z63/AA63 -> 22.27097179 | AC63: 0 | AD63: 0 | AE63: 0 | AM63: 1.49 | BE63: 4.62736 | BF63: 4.2
A64: Luette | B64: Of/h | C64: 1 | D64: 5 | E64: 0 | F64: =Standorte!L5 -> mor | G64: 0 | H64: 0 | I64: 0 | J64: 0 | K64: =(1-N64/$AP$1)*100 -> 72.92967963 | L64: 40 | M64: 12 | N64: =X64/(ABS(D64-E64)*10000) -> 0.3789844852 | O64: 4.4782 | P64: 4 | Q64: 3 | R64: =S64/T64 -> 26.90702087 | S64: 28.36 | T64: 1.054 | U64: 5374 | V64: =U64/R64 -> 199.7248237 | W64: =100*2*U64/X64 -> 56.72 | X64: =U64/S64*100 -> 18949.22426 | Y64: =(L64-M64)*D64/10 -> 14 | Z64: =U64/100 -> 53.74 | AA64: =V64/100 -> 1.997248237 | AC64: =Z64/Z77*100 -> 54.80877104 | AD64: =AA64/AA77*100 -> 51.00554241 | AE64: 10748 | AM64: 0.3789844852 | AN64: D:\All_fs\Daten\Level2\Brandenburg\Excel\Parameter.xls | BE64: 4.4782 | BF64: 4
A65: Luette | B65: Ahe | C65: 2 | D65: 0 | E65: 5 | F65: St2 | G65: 8 | H65: 9 | I65: =100-G65-H65 -> 83 | J65: 0 | K65: 41.2 | L65: 14.8 | M65: 6.5 | N65: 1.28 | O65: 3.9839872 | P65: 3.24 | Q65: 0.67 | R65: =S65/T65 -> 27.14285714 | S65: 1.52 | T65: 0.056 | U65: 1939 | V65: =U65/R65 -> 71.43684211 | W65: 6.059375 | X65: =ABS(E65-D65)*N65*10000 -> 64000 | Y65: =(L65-M65)*(E65-D65)/10 -> 4.15 | Z65: =Z77-Z64 -> 44.31 | AA65: =AA77-AA64 -> 1.918499234 | AC65: =(U65/(Z65*100))*100 -> 43.75987362 | AD65: =(V65/(AA65*100))*100 -> 37.23579392 | AE65: 3878 | AM65: 1.28 | BE65: 3.9839872 | BF65: 3.24
A66: Luette | B66: Bvh | C66: 3 | D66: 5 | E66: 10 | F66: St2 | G66: 9 | H66: 9 | I66: =100-G66-H66 -> 82 | J66: 0 | K66: 41.15 | L66: 14.8 | M66: 6.5 | N66: 1.31 | O66: 4.337 | P66: 3.8 | Q66: 0.67 | R66: 22.15384615 | S66: 0.72 | T66: 0.0325 | U66: 942 | V66: 42.52083333 | W66: 2.876335878 | X66: 65500 | Y66: =Y65+(L66-M66)*(E66-D66)/10 -> 8.3 | AC66: =(U66/(Z$65*100))*100 -> 21.25930941 | AD66: =(V66/(AA$65*100))*100 -> 22.16359151 | AE66: =(W66/100)*X66 -> 1884 | AM66: 1.31 | BE66: 4.337 | BF66: 3.8
A67: Luette | B67: Bsv | C67: 4 | D67: 10 | E67: 20 | F67: St2 | G67: 7 | H67: 11 | I67: =100-G67-H67 -> 82 | J67: 0 | K67: 41 | L67: 14.8 | M67: 3.1 | N67: 1.33 | O67: 4.66589375 | P67: 4.25 | Q67: 0.67 | R67: 21.31782946 | S67: 0.55 | T67: 0.0258 | U67: 719 | V67: 33.72763636 | W67: 1.081203008 | X67: 133000 | Y67: 20 | AC67: =(U67/(Z$65*100))*100 -> 16.22658542 | AD67: 17.58021883 | AE67: 1438 | AM67: 1.33 | BE67: 4.66589375 | BF67: 4.25
A68: Luette | B68: Bsv | C68: 5 | D68: 20 | E68: 30 | F68: St2 | G68: 7 | H68: 11 | I68: 82 | J68: 0 | K68: 41 | L68: 14.8 | M68: 6.5 | N68: 1.33 | O68: 4.69707895 | P68: 4.29 | Q68: 0.67 | R68: 21.10091743 | S68: 0.46 | T68: 0.0218 | U68: 312 | V68: 14.78608696 | W68: 0.4691729323 | X68: 133000 | Y68: 28.3 | AC68: 7.041299932 | AD68: 7.707111212 | AE68: 624 | AM68: =X68/(ABS(E68-D68)*100*100) -> 1.33 | BE68: 4.69707895 | BF68: 4.29
A69: Luette | B69: Bsv | C69: 6 | D69: 30 | E69: 40 | F69: St2 | G69: 6 | H69: 9 | I69: 85 | J69: 0 | K69: 41 | L69: 14.8 | M69: 6.5 | N69: 1.33 | O69: 4.69707895 | P69: 4.29 | Q69: 0.67 | R69: 21.10091743 | S69: 0.46 | T69: 0.0218 | U69: 300 | V69: 14.2173913 | W69: 0.4511278195 | X69: 133000 | Y69: 36.6 | AC69: 6.770480704 | AD69: 7.410683858 | AE69: 600 | AM69: 1.33 | BE69: 4.69707895 | BF69: 4.29
A70: Luette | B70: Cv | C70: 7 | D70: 40 | E70: 50 | F70: St2 | G70: 6 | H70: 9 | I70: 85 | J70: 0 | K70: 43 | L70: 9 | M70: 5.8 | N70: 1.46 | O70: 4.78448 | P70: 4.4 | Q70: 0.67 | R70: 13.73626374 | S70: 0.1 | T70: 0.00728 | U70: 35.5 | V70: 2.5844 | W70: 0.04863013699 | X70: 146000 | Y70: 39.8 | AC70: 0.80117355 | AD70: 1.347094622 | AE70: 71 | AM70: =X70/(ABS(E70-D70)*100*100) -> 1.46 | AN70: FK und WP unterhalb 40 cm an Messwerte angepasst | BE70: 4.78448 | BF70: 4.4
A71: Luette | B71: Cv | C71: 8 | D71: 50 | E71: 70 | F71: mS | G71: 1 | H71: 3 | I71: 96 | J71: 0 | K71: 43 | L71: 9 | M71: 5.8 | N71: 1.46 | O71: 4.78448 | P71: 4.4 | Q71: 1.5 | R71: 13.73626374 | S71: 0.1 | T71: 0.00728 | U71: 70.5 | V71: 5.1324 | W71: 0.04828767123 | X71: 292000 | Y71: 46.2 | AC71: 1.591062965 | AD71: 2.67521608 | AE71: 141 | AM71: 1.46 | BE71: 4.78448 | BF71: 4.4
A72: Luette | B72: C | C72: 9 | D72: 70 | E72: 80 | F72: mS | G72: 1 | H72: 1 | I72: =100-G72-H72 -> 98 | J72: 0 | K72: 43.55 | L72: 4.25 | M72: 0.75 | N72: 1.41 | O72: 4.78448 | P72: 4.4 | Q72: 1.5 | R72: 13.73626374 | S72: 0.1 | T72: 0.00728 | U72: 35 | V72: 2.548 | W72: 0.04964539007 | X72: 141000 | Y72: 49.7 | AC72: 0.7898894155 | AD72: 1.328121458 | AE72: 70 | AM72: =X72/(ABS(E72-D72)*100*100) -> 1.41 | BE72: 4.78448 | BF72: 4.4
A73: Luette | B73: C | C73: 10 | D73: 80 | E73: 90 | F73: mS | G73: 1 | H73: 1 | I73: 98 | J73: 0 | K73: 43.55 | L73: 9 | M73: 5.8 | N73: 1.41 | O73: 4.8825728 | P73: 4.52 | Q73: 1.5 | R73: 15.95744681 | S73: 0.03 | T73: 0.00188 | U73: 13.5 | V73: 0.846 | W73: 0.01914893617 | X73: 141000 | Y73: 52.9 | AC73: 0.3046716317 | AD73: 0.4409696835 | AE73: 27 | AM73: 1.41 | BE73: 4.8825728 | BF73: 4.52
A74: Luette | B74: C | C74: 11 | D74: 90 | E74: 120 | F74: mS | G74: 0 | H74: 1 | I74: 99 | J74: 0 | K74: 43 | L74: 9 | M74: 5.8 | N74: 1.41 | O74: 4.8825728 | P74: 4.52 | Q74: 1.5 | R74: 15.95744681 | S74: 0.03 | T74: 0.00188 | U74: 39.5 | V74: =U74/R74 -> 2.475333333 | W74: =100*2*U74/X74 -> 0.01867612293 | X74: =ABS(E74-D74)*N74*10000 -> 423000 | Y74: 62.5 | AC74: 0.891446626 | AD74: 1.29024463 | AE74: 79 | AM74: 1.41 | BE74: 4.8825728 | BF74: 4.52
A75: Luette | B75: C/Go | C75: 12 | D75: 120 | E75: 160 | F75: mS | G75: 0 | H75: 1 | I75: 99 | J75: 0 | K75: 43 | L75: 9 | M75: 5.8 | N75: 1.41 | O75: 4.78448 | P75: 4.4 | Q75: 1.5 | R75: 15.87301587 | S75: 0.02 | T75: 0.00126 | U75: 25 | V75: =U75/R75 -> 1.575 | W75: =100*2*U75/X75 -> 0.008865248227 | X75: =ABS(E75-D75)*N75*10000 -> 564000 | Y75: 75.3 | AC75: 0.5642067253 | AD75: 0.820954198 | AE75: 50 | AM75: 1.41 | BE75: 4.78448 | BF75: 4.4
A76: Luette | B76: C/Gr | C76: 13 | D76: 160 | E76: 200 | F76: mS | G76: 0 | H76: 1 | I76: 99 | J76: 0 | K76: 43 | L76: 7 | M76: 0.75 | N76: 1.4 | O76: 4.78448 | P76: 4.4 | Q76: 1.5 | X76: =ABS(E76-D76)*N76*10000 -> 560000 | Y76: 100.3 | AC76: 0 | AD76: 0 | AE76: 0 | AM76: 1.4 | BE76: 4.78448 | BF76: 4.4
A77: Luette | B77: C/Gr | C77: 14 | D77: 200 | E77: 300 | F77: mS | G77: 0 | H77: 1 | I77: 99 | J77: 0 | K77: 43 | L77: 7 | M77: 0.75 | N77: 1.4 | O77: 4.78448 | P77: 4.4 | Q77: 1.5 | X77: =ABS(E77-D77)*N77*10000 -> 1400000 | Y77: 162.8 | Z77: =SUM(U64:U77)*10/1000 -> 98.05 | AA77: =SUM(V64:V77)*10/1000 -> 3.915747471 | AB77: =Z77/AA77 -> 25.03991913 | AC77: 0 | AD77: 0 | AE77: 0 | AM77: 1.4 | BE77: 4.78448 | BF77: 4.4
A78: Neusgf | B78: Of/Oh | C78: 1 | D78: 6 | E78: 0 | F78: =Standorte!L5 -> mor | G78: 0 | H78: 0 | I78: 0 | J78: 0 | K78: =(1-N78/$AP$1)*100 -> 78.54641857 | L78: 40 | M78: 12 | N78: =X78/(ABS(D78-E78)*10000) -> 0.3003501401 | O78: 3.8413018 | P78: 2.98 | Q78: 3 | R78: =S78/T78 -> 27.21036585 | S78: 35.7 | T78: 1.312 | U78: 6433.5 | V78: =U78/R78 -> 236.4356303 | W78: =100*2*U78/X78 -> 71.4 | X78: =U78/S78*100 -> 18021.0084 | Y78: =(L78-M78)*D78/10 -> 16.8 | Z78: =U78/100 -> 64.335 | AA78: =V78/100 -> 2.364356303 | AC78: =Z78/Z88*100 -> 55.64204354 | AD78: =AA78/AA88*100 -> 52.4015753 | AE78: 12867 | AM78: =X78/(ABS(E78-D78)*100*100) -> 0.3003501401 | AN78: D:\All_fs\Daten\Level2\Brandenburg\Excel\Parameter.xls | BE78: 3.8413018 | BF78: 2.98
A79: Neusgf | B79: Ahe | C79: 2 | D79: 0 | E79: 5 | F79: Su3 | G79: 7 | H79: 26 | I79: 67 | J79: 0 | K79: 46 | L79: 12 | M79: 2 | N79: 1.32 | O79: 4.1028992 | P79: 3.44 | Q79: 0.5 | R79: 28.06499261 | S79: 1.9 | T79: 0.0677 | U79: 2468 | V79: =U79/R79 -> 87.93873684 | W79: 7.478787879 | X79: =ABS(E79-D79)*N79*10000 -> 66000 | Y79: =(L79-M79)*(E79-D79)/10 -> 5 | Z79: =Z88-Z78 -> 51.288 | AA79: =AA88-AA78 -> 2.147638402 | AC79: =(U79/(Z79*100))*100 -> 48.12041803 | AD79: =(V79/(AA79*100))*100 -> 40.94671466 | AE79: 4936 | BE79: 4.1028992 | BF79: 3.44
A80: Neusgf | B80: Bsv | C80: 3 | D80: 5 | E80: 10 | F80: Su3 | G80: 7 | H80: 25 | I80: 68 | J80: 0 | K80: =(45.4+47.1+47.6+46)/4 -> 46.525 | L80: 12.45 | M80: 1.4 | N80: 1.29 | O80: 4.44215375 | P80: 3.95 | Q80: 0.5 | R80: 26.04166667 | S80: 0.75 | T80: 0.0288 | U80: 970.3 | V80: 37.25952 | W80: 3.008682171 | X80: 64500 | Y80: =Y79+(L80-M80)*(E80-D80)/10 -> 10.525 | AC80: =(U80/(Z$79*100))*100 -> 18.91865544 | AD80: =(V80/(AA$79*100))*100 -> 17.34906582 | AE80: 1940.6 | BE80: 4.44215375 | BF80: 3.95
A81: Neusgf | B81: Bv | C81: 4 | D81: 10 | E81: 20 | F81: Sl3 | G81: 9 | H81: 24 | I81: 67 | J81: 0 | K81: =(45.2+46.8+46.1)/3 -> 46.03333333 | L81: 10 | M81: 1 | N81: 1.38 | O81: 4.6427138 | P81: 4.22 | Q81: 0.38 | R81: 21.39917695 | S81: 0.52 | T81: 0.0243 | U81: 715 | V81: 33.4125 | W81: 1.036231884 | X81: 138000 | Y81: 19.525 | AC81: =(U81/(Z$53*100))*100 -> 10.22875209 | AD81: 10.08049392 | AE81: 1430 | BE81: 4.6427138 | BF81: 4.22
A82: Neusgf | B82: Bv | C82: 5 | D82: 20 | E82: 40 | F82: Sl3 | G82: 9 | H82: 22 | I82: 69 | J82: 0 | K82: =(45.2+46.8+46.1)/3 -> 46.03333333 | L82: 9.5 | M82: 1 | N82: 1.38 | O82: 4.74445375 | P82: 4.35 | Q82: 0.38 | R82: 20.21505376 | S82: 0.47 | T82: 0.02325 | U82: 646.7 | V82: 31.99101064 | W82: 0.4686231884 | X82: 276000 | Y82: 36.525 | AC82: 9.251655913 | AD82: 9.651633023 | AE82: 1293.4 | BE82: 4.74445375 | BF82: 4.35
A83: Neusgf | B83: C1 | C83: 6 | D83: 40 | E83: 60 | F83: Sl2 | G83: 8 | H83: 23 | I83: 69 | J83: 0 | K83: =(43.6+43+42.3+48.8)/4 -> 44.425 | L83: 4 | M83: 1 | N83: 1.55 | O83: 4.66589375 | P83: 4.25 | Q83: 0.6 | R83: 13.36573512 | S83: 0.11 | T83: 0.00823 | U83: 75 | V83: 5.611363636 | W83: 0.04838709677 | X83: 310000 | Y83: 42.525 | AC83: 1.072946024 | AD83: 1.692938782 | AE83: 150 | BE83: 4.66589375 | BF83: 4.25
A84: Neusgf | B84: C1 | C84: 7 | D84: 60 | E84: 80 | F84: Sl2 | G84: 8 | H84: 23 | I84: 69 | J84: 0 | K84: =(43.6+43+42.3+48.8)/4 -> 44.425 | L84: 3.85 | M84: 0.7 | N84: 1.55 | O84: 4.66589375 | P84: 4.25 | Q84: 0.6 | R84: 13.36573512 | S84: 0.11 | T84: 0.00823 | U84: 74.2 | V84: 5.551509091 | W84: 0.04787096774 | X84: 310000 | Y84: 48.825 | AC84: 1.061501266 | AD84: 1.674880768 | AE84: 148.4 | BE84: 4.66589375 | BF84: 4.25
A85: Neusgf | B85: C2 | C85: 8 | D85: 80 | E85: 130 | F85: mS | G85: 0 | H85: 1 | I85: 99 | J85: 0 | K85: =(43.9+45.3+42.7+44.7)/4 -> 44.15 | L85: 4.05 | M85: 0.6 | N85: 1.46 | O85: 4.63502695 | P85: 4.21 | Q85: 1.5 | R85: 12.79707495 | S85: 0.07 | T85: 0.00547 | U85: 106.4 | V85: 8.3144 | W85: 0.02915068493 | X85: =ABS(E85-D85)*N85*10000 -> 730000 | Y85: 66.075 | AC85: 1.522152759 | AD85: 2.508440215 | AE85: 212.8 | BE85: 4.63502695 | BF85: 4.21
A86: Neusgf | B86: G | C86: 9 | D86: 130 | E86: 160 | F86: mSfS | G86: 0 | H86: 1 | I86: 99 | J86: 0 | K86: 45 | L86: 14 | M86: 4 | N86: 1.5 | O86: 4.78448 | P86: 4.4 | Q86: 1.15 | R86: 15.625 | S86: 0.05 | T86: 0.0032 | U86: 73.2 | V86: 4.6848 | W86: 0.03253333333 | X86: =ABS(E86-D86)*N86*10000 -> 450000 | Y86: 96.075 | AC86: 1.047195319 | AD86: 1.413396122 | AE86: 146.4 | BE86: 4.78448 | BF86: 4.4
A87: Neusgf | B87: G | C87: 10 | D87: 160 | E87: 180 | F87: mSfS | G87: 0 | H87: 1 | I87: 99 | J87: 0 | K87: 45 | L87: 14 | M87: 4 | N87: 1.5 | O87: 4.78448 | P87: 4.4 | Q87: 1.15 | W87: 0 | X87: =ABS(E87-D87)*N87*10000 -> 300000 | Y87: 116.075 | AC87: 0 | AD87: 0 | AE87: =(W87/100)*X87 -> 0 | BE87: 4.78448 | BF87: 4.4
A88: Neusgf | B88: G | C88: 11 | D88: 180 | E88: 300 | F88: mSfS | G88: 0 | H88: 1 | I88: 99 | J88: 0 | K88: 45 | L88: 14 | M88: 4 | N88: 1.5 | O88: 4.78448 | P88: 4.4 | Q88: 1.15 | W88: 0 | X88: =ABS(E88-D88)*N88*10000 -> 1800000 | Y88: 236.075 | Z88: =SUM(U78:U88)*10/1000 -> 115.623 | AA88: =SUM(V78:V88)*10/1000 -> 4.511994705 | AB88: =Z88/AA88 -> 25.62569497 | AC88: 0 | AD88: 0 | AE88: 0 | BE88: 4.78448 | BF88: 4.4
A89: Schwenow | B89: Of/h | C89: 1 | D89: 5 | E89: 0 | F89: =Standorte!L7 -> mor | G89: 0 | H89: 0 | I89: 0 | J89: 0 | K89: =(1-N89/$AP$1)*100 -> 84.34989521 | L89: 40 | M89: 12 | N89: =X89/(ABS(D89-E89)*10000) -> 0.219101467 | O89: 3.8413018 | P89: 2.98 | Q89: 3 | R89: =S89/T89 -> 26.1341853 | S89: 32.72 | T89: 1.252 | U89: 3584.5 | V89: =U89/R89 -> 137.1575183 | W89: 65.44 | X89: =U89/S89*100 -> 10955.07335 | Y89: =(L89-M89)*D89/10 -> 14 | Z89: =U89/100 -> 35.845 | AA89: =V89/100 -> 1.371575183 | AC89: =Z89/Z100*100 -> 43.50226947 | AD89: =AA89/AA100*100 -> 35.53046462 | AE89: 7169 | AM89: =X89/(ABS(E89-D89)*100*100) -> 0.219101467 | AN89: D:\All_fs\Daten\Level2\Brandenburg\Excel\Parameter.xls | BE89: 3.8413018 | BF89: 2.98
A90: Schwenow | B90: Aeh | C90: 2 | D90: 0 | E90: 4 | F90: St2 | G90: 8 | H90: 5 | I90: =100-G90-H90 -> 87 | J90: 0 | K90: =(53.8+55.7+62.9+58.2)/4 -> 57.65 | L90: 14 | M90: 2 | N90: 1.23 | O90: 4.1028992 | P90: 3.44 | Q90: 0.67 | R90: =S90/T90 -> 21.10552764 | S90: 2.1 | T90: 0.0995 | U90: 2432 | V90: =U90/R90 -> 115.2304762 | W90: 9.886178862 | X90: =ABS(E90-D90)*N90*10000 -> 49200 | Y90: =(L90-M90)*(E90-D90)/10 -> 4.8 | Z90: =Z100-Z89 -> 46.553 | AA90: =AA100-AA89 -> 2.488704151 | AC90: =(U90/(Z90*100))*100 -> 52.24153116 | AD90: =(V90/(AA90*100))*100 -> 46.3013959 | AE90: 4864 | BE90: 4.1028992 | BF90: 3.44
A91: Schwenow | B91: Bsv | C91: 3 | D91: 4 | E91: 9 | F91: St2 | G91: 8 | H91: 7 | I91: 85 | J91: 0 | K91: =(48.5+47+52.5+50)/4 -> 49.5 | L91: 14.05 | M91: 1.6 | N91: =(1.45+1.43+1.43+1.44)/4 -> 1.4375 | O91: 4.44215375 | P91: 3.95 | Q91: 0.67 | R91: 18.65168539 | S91: 0.83 | T91: 0.0445 | U91: 1084 | V91: 58.11807229 | W91: 3.016347826 | X91: =ABS(E91-D91)*N91*10000 -> 71875 | Y91: =Y90+(L91-M91)*(E91-D91)/10 -> 11.025 | AC91: =(U91/(Z$90*100))*100 -> 23.28528774 | AD91: =(V91/(AA$90*100))*100 -> 23.35274454 | AE91: 2168 | BE91: 4.44215375 | BF91: 3.95
A92: Schwenow | B92: Bv | C92: 4 | D92: 9 | E92: 20 | F92: St2 | G92: 6 | H92: 5 | I92: 89 | J92: 0 | K92: =(51.1+50.3+50.4+49.8)/4 -> 50.4 | L92: 14 | M92: 2 | N92: =(1.528+1.545+1.526+1.586)/4 -> 1.54625 | O92: =0.0995*P92*P92 - 0.0701*P92 + 3.1666 -> 4.6427138 | P92: 4.22 | Q92: 0.67 | R92: 16.66666667 | S92: 0.38 | T92: 0.0228 | U92: 526.2 | V92: 31.572 | W92: 0.6187403542 | X92: 170087.5 | Y92: 24.225 | AC92: =(U92/(Z$90*100))*100 -> 11.30324576 | AD92: 12.6861202 | AE92: 1052.4 | BE92: =0.0995*BF92*BF92 - 0.0701*BF92 + 3.1666 -> 4.6427138 | BF92: 4.22
A93: Schwenow | B93: Bv | C93: 5 | D93: 20 | E93: 40 | F93: mS | G93: 3 | H93: 3 | I93: 94 | J93: 0 | K93: =(51.1+50.3+50.4+49.8)/4 -> 50.4 | L93: 8.45 | M93: 2.05 | N93: =(1.528+1.545+1.526+1.586)/4 -> 1.54625 | O93: 4.74445375 | P93: 4.35 | Q93: 1.5 | R93: 15.54404145 | S93: 0.3 | T93: 0.0193 | U93: 423.2 | V93: 27.22586667 | W93: 0.273694422 | X93: 309250 | Y93: 37.025 | AC93: 9.09071381 | AD93: 10.93977629 | AE93: 846.4 | BE93: 4.74445375 | BF93: 4.35
A94: Schwenow | B94: Bv | C94: 6 | D94: 40 | E94: 50 | F94: mS | G94: 2 | H94: 2 | I94: 96 | J94: 0 | K94: =(51.1+50.3+50.4+49.8)/4 -> 50.4 | L94: 9 | M94: 2 | N94: =(1.528+1.545+1.526+1.586)/4 -> 1.54625 | O94: 4.66589375 | P94: 4.25 | Q94: 1.5 | R94: 14.63414634 | S94: 0.09 | T94: 0.00615 | U94: 31 | V94: 2.118333333 | W94: 0.04009700889 | X94: 154625 | Y94: 44.025 | AC94: 0.6659076751 | AD94: 0.8511792501 | AE94: 62 | BE94: 4.66589375 | BF94: 4.25
A95: Schwenow | B95: C | C95: 7 | D95: 50 | E95: 80 | F95: mS | G95: 2 | H95: 2 | I95: 96 | J95: 0 | K95: =(43.7+44.7+42.7+41.4)/4 -> 43.125 | L95: 4.8 | M95: 0.6 | N95: =(1.517+1.494+1.484+1.485)/4 -> 1.495 | O95: 4.66589375 | P95: 4.25 | Q95: 1.5 | R95: 14.63414634 | S95: 0.09 | T95: 0.00615 | U95: 91.7 | V95: 6.266166667 | W95: 0.04089186176 | X95: 448500 | Y95: 56.625 | AC95: 1.969797865 | AD95: 2.517843137 | AE95: 183.4 | BE95: 4.66589375 | BF95: 4.25
A96: Schwenow | B96: C | C96: 8 | D96: 80 | E96: 115 | F96: St2 | G96: 7 | H96: 7 | I96: 86 | J96: 0 | K96: =(43.7+44.7+42.7+41.4)/4 -> 43.125 | L96: 14 | M96: 2 | N96: =(1.517+1.494+1.484+1.485)/4 -> 1.495 | O96: 4.63502695 | P96: 4.21 | Q96: 0.67 | R96: 7.092198582 | S96: 0.02 | T96: 0.00282 | U96: 39.5 | V96: 5.5695 | W96: 0.01509794553 | X96: 523250 | Y96: 98.625 | AC96: 0.8484952635 | AD96: 2.237911644 | AE96: 79 | BE96: 4.63502695 | BF96: 4.21
A97: Schwenow | B97: Go | C97: 9 | D97: 115 | E97: 160 | F97: fSms | G97: 5 | H97: 8 | I97: 87 | J97: 0 | K97: =(39.8+39.1+47.8+44.8)/4 -> 42.875 | L97: 14 | M97: 4 | N97: 1.38 | O97: 4.78448 | P97: 4.4 | Q97: 1.15 | R97: 10 | S97: 0.02 | T97: 0.002 | U97: 27.7 | V97: 2.77 | W97: 0.008921095008 | X97: 621000 | Y97: 143.625 | AC97: 0.5950207291 | AD97: 1.113029043 | AE97: 55.4 | BE97: 4.78448 | BF97: 4.4
A98: Schwenow | B98: Gr | C98: 10 | D98: 160 | E98: 200 | F98: mS | G98: 1 | H98: 3 | I98: 96 | J98: 0 | K98: 41 | L98: 9 | M98: 2 | N98: 1.4 | O98: 4.78448 | P98: 4.4 | Q98: 1.5 | W98: 0 | X98: 560000 | Y98: 171.625 | AC98: 0 | AD98: 0 | AE98: 0 | BE98: 4.78448 | BF98: 4.4
A99: Schwenow | B99: Gr | C99: 11 | D99: 200 | E99: 250 | F99: mS | G99: 0 | H99: 1 | I99: 99 | J99: 0 | K99: 41 | L99: 9 | M99: 2 | N99: 1.4 | O99: 4.78448 | P99: 4.4 | Q99: 1.5 | W99: 0 | X99: 700000 | Y99: 206.625 | AC99: 0 | AD99: 0 | AE99: 0 | BE99: 4.78448 | BF99: 4.4
A100: Schwenow | B100: Gr | C100: 12 | D100: 250 | E100: 300 | F100: Sl2 | G100: 6 | H100: 12 | I100: 82 | J100: 0 | K100: 50 | L100: 27 | M100: 7 | N100: 1.4 | O100: 4.78448 | P100: 4.4 | Q100: 0.6 | W100: 0 | X100: 700000 | Y100: 306.625 | Z100: =SUM(U89:U100)*10/1000 -> 82.398 | AA100: =SUM(V89:V100)*10/1000 -> 3.860279335 | AB100: =Z100/AA100 -> 21.34508745 | AC100: 0 | AD100: 0 | AE100: 0 | BE100: 4.78448 | BF100: 4.4
A101: Bornh | B101: L/Ofh | C101: 1 | D101: 6 | E101: 0 | F101: mo | AM101: 0
A102: Bornh | B102: Ah1 | C102: 2 | D102: 0 | E102: 4 | F102: Sl2 | AM102: 0
A103: Bornh | B103: Ah2 | C103: 3 | D103: 4 | E103: 35 | F103: Su2 | AM103: 0
A104: Bornh | B104: AhBv | C104: 4 | D104: 35 | E104: 52 | F104: Su2 | AM104: 0
A105: Bornh | B105: Bv1 | C105: 5 | D105: 52 | E105: 70 | F105: Su2 | AM105: 0
A106: Bornh | B106: Bv2 | C106: 6 | D106: 70 | E106: 83 | F106: Su2 | AM106: 0
A107: Bornh | B107: IIBv | C107: 7 | D107: 83 | E107: 90 | F107: Sl3 | AM107: 0
A108: Bornh | B108: IIIrS | C108: 8 | D108: 90 | E108: 128 | F108: Ss | AM108: 0
A109: Bornh | B109: rSC1 | C109: 9 | D109: 128 | E109: 170 | F109: Ss | AM109: 0
A110: aust1 | B110: Ah | C110: 1 | D110: 0 | E110: 20 | F110: Sl4 | J110: 5 | K110: =[1]Bodenarten!$T$17 -> 52 | L110: 34 | M110: 12 | O110: 4.6 | P110: =-0.0401*O110*O110 + 1.4009*O110 - 1.4444 -> 4.151224 | Q110: =[1]Bodenarten!$Z$17 -> 0.3 | R110: 23 | AM110: 0 | AN110: nur nFK angegeben; FK, WP abgeleitet | BE110: 4.6 | BF110: =-0.0401*BE110*BE110 + 1.4009*BE110 - 1.4444 -> 4.151224
A111: aust1 | B111: Bv | C111: 2 | D111: 20 | E111: 80 | F111: Sl4 | J111: 10 | K111: =[1]Bodenarten!$T$17 -> 52 | L111: 34 | M111: 12 | O111: 4.6 | P111: =-0.0401*O111*O111 + 1.4009*O111 - 1.4444 -> 4.151224 | Q111: =[1]Bodenarten!$Z$17 -> 0.3 | R111: 23 | AM111: 0 | BE111: 4.6 | BF111: =-0.0401*BE111*BE111 + 1.4009*BE111 - 1.4444 -> 4.151224
A112: aust1 | B112: C | C112: 3 | D112: 80 | AM112: 0
A113: aust2 | B113: Ah | C113: 1 | D113: 0 | E113: 20 | F113: Sl4 | J113: 5 | K113: =[1]Bodenarten!$U$17 -> 42 | L113: 28 | M113: 11 | O113: 4 | P113: 3.5176 | Q113: =[1]Bodenarten!$Z$17 -> 0.3 | R113: 25 | Y113: =(L113-M113)*D113/10 -> 0 | AM113: 0 | AN113: nur nFK angegeben; FK, WP abgeleitet | BE113: 4 | BF113: =-0.0401*BE113*BE113 + 1.4009*BE113 - 1.4444 -> 3.5176
A114: aust2 | B114: Bv | C114: 2 | D114: 20 | E114: 80 | F114: Sl4 | J114: 15 | K114: =[1]Bodenarten!$U$17 -> 42 | L114: 28 | M114: 11 | O114: 4 | P114: 3.5176 | Q114: =[1]Bodenarten!$Z$17 -> 0.3 | R114: 25 | Y114: =(L114-M114)*(E114-D114)/10 -> 102 | AM114: 0 | BE114: 4 | BF114: =-0.0401*BE114*BE114 + 1.4009*BE114 - 1.4444 -> 3.5176
A115: aust2 | B115: C | C115: 3 | D115: 80 | Y115: =Y114+(L115-M115)*(E115-D115)/10 -> 102 | AM115: 0
A116: aust3 | B116: Ah | C116: 1 | D116: 0 | E116: 10 | F116: Sl4 | J116: 5 | K116: =[1]Bodenarten!$U$17 -> 42 | L116: 28 | M116: 11 | O116: 7 | P116: 6.397 | Q116: =[1]Bodenarten!$Z$17 -> 0.3 | R116: 20 | AM116: 0 | AN116: nur nFK angegeben; FK, WP abgeleitet | BE116: 7 | BF116: =-0.0401*BE116*BE116 + 1.4009*BE116 - 1.4444 -> 6.397
A117: aust3 | B117: Bv | C117: 2 | D117: 10 | E117: 40 | F117: Sl4 | J117: 15 | K117: =[1]Bodenarten!$U$17 -> 42 | L117: 28 | M117: 11 | O117: 7 | P117: 6.397 | Q117: =[1]Bodenarten!$Z$17 -> 0.3 | R117: 20 | AM117: 0 | BE117: 7 | BF117: =-0.0401*BE117*BE117 + 1.4009*BE117 - 1.4444 -> 6.397
A118: aust3 | B118: C | C118: 3 | D118: 40 | AM118: 0
A119: ausb1 | B119: Oh | C119: 1 | D119: =X119/(N119*10000) -> 4.174551 | E119: 0 | J119: 0 | K119: =(1-N119/$AP$1)*100 -> 85.71428571 | L119: 42 | M119: 12 | N119: 0.2 | O119: 4.1 | P119: 3.625209 | Q119: 5 | R119: =U119/V119 -> 24.87056678 | S119: 44.59989 | T119: 1.79328 | U119: =$X119*S119/100 -> 3723.690308 | V119: =$X119*T119/100 -> 149.7227763 | X119: 8349.102 | Y119: =(L119-M119)*D119/10 -> 12.523653 | AM119: 0.2 | AN119: nur C/N-Gehalt und pH-Wert angegeben | BE119: 4.1 | BF119: =-0.0401*BE119*BE119 + 1.4009*BE119 - 1.4444 -> 3.625209
A120: ausb1 | B120: Ah | C120: 2 | D120: 0 | E120: 20 | F120: Sl2 | J120: 5 | K120: 41 | L120: 23 | M120: 6 | N120: 0.999 | O120: 4.1 | P120: 3.625209 | Q120: 0.6 | R120: =U120/V120 -> 19.68378927 | S120: 3.1002 | T120: 0.1575 | U120: 5885.079 | V120: 298.981 | Y120: =(L120-M120)*(E120-D120)/10 -> 34 | AM120: 0 | AN120: nur nFK angegeben; FK, WP abgeleitet | BE120: 4.1 | BF120: =-0.0401*BE120*BE120 + 1.4009*BE120 - 1.4444 -> 3.625209
A121: ausb1 | B121: Bv | C121: 3 | D121: 20 | E121: 80 | F121: Sl2 | J121: 15 | K121: 41 | L121: 23 | M121: 6 | N121: 1.203 | O121: 4.2 | P121: 3.732016 | Q121: 0.6 | R121: =U121/V121 -> 12.58158933 | S121: 0.6014 | T121: 0.0478 | U121: 3689.463 | V121: 293.243 | Y121: =Y120+(L121-M121)*(E121-D121)/10 -> 136 | AM121: 0 | AN121: nur nFK angegeben; FK, WP abgeleitet | BE121: 4.2 | BF121: =-0.0401*BE121*BE121 + 1.4009*BE121 - 1.4444 -> 3.732016
A122: ausb1 | B122: C | C122: 4 | D122: 80 | Y122: =Y121+(L122-M122)*(E122-D122)/10 -> 136 | Z122: =SUM(U119:U122)*10/1000 -> 132.9823231 | AA122: =SUM(V119:V122)*10/1000 -> 7.419467763 | AB122: =Z122/AA122 -> 17.92343162 | AM122: 0
A123: ausb2 | B123: Oh | C123: 1 | D123: =X123/(N123*10000) -> 4.174701 | E123: 0 | J123: 0 | K123: =(1-N123/$AP$1)*100 -> 85.71428571 | L123: 42 | M123: 12 | N123: 0.2 | O123: 4.3 | P123: 3.838021 | Q123: 5 | R123: =U123/V123 -> 25.07952629 | S123: 49.95641 | T123: 1.99192 | U123: =$X123*S123/100 -> 4171.061496 | V123: =$X123*T123/100 -> 166.3134083 | X123: 8349.402 | AM123: 0.2 | AN123: nur C/N-Gehalt und pH-Wert angegeben | BE123: 4.3 | BF123: =-0.0401*BE123*BE123 + 1.4009*BE123 - 1.4444 -> 3.838021
A124: ausb2 | B124: Ah | C124: 2 | D124: 0 | E124: 20 | F124: Sl4 | J124: 5 | K124: 52 | L124: 34 | M124: 12 | N124: 0.904 | O124: 4.2 | P124: 3.732016 | Q124: 0.3 | R124: =U124/V124 -> 17.0537153 | S124: 2.3807 | T124: 0.1396 | U124: 4087.281 | V124: 239.671 | AM124: 0 | AN124: nur nFK angegeben; FK, WP abgeleitet | BE124: 4.2 | BF124: =-0.0401*BE124*BE124 + 1.4009*BE124 - 1.4444 -> 3.732016
A125: ausb2 | B125: Bv | C125: 3 | D125: 20 | E125: 80 | F125: Sl4 | J125: 10 | K125: 52 | L125: 34 | M125: 12 | N125: 1.268 | O125: 4.4 | P125: 3.943224 | Q125: 0.3 | R125: =U125/V125 -> 11.92657474 | S125: 0.6011 | T125: 0.0504 | U125: 4115.527 | V125: 345.072 | AM125: 0 | AN125: nur nFK angegeben; FK, WP abgeleitet | BE125: 4.4 | BF125: =-0.0401*BE125*BE125 + 1.4009*BE125 - 1.4444 -> 3.943224
A126: ausb2 | B126: C | C126: 4 | D126: 80 | Z126: =SUM(U123:U126)*10/1000 -> 123.738695 | AA126: =SUM(V123:V126)*10/1000 -> 7.510564083 | AB126: =Z126/AA126 -> 16.47528649 | AM126: 0
A127: ausb3 | B127: Oh | C127: 1 | D127: =X127/(N127*10000) -> 4.1871615 | E127: 0 | J127: 0 | K127: =(1-N127/$AP$1)*100 -> 85.71428571 | L127: 42 | M127: 12 | N127: 0.2 | O127: 4.1 | P127: 3.625209 | Q127: 5 | R127: =U127/V127 -> 24.67539377 | S127: 40.47949 | T127: 1.64048 | U127: 3389.88324 | V127: 137.379094 | X127: 8374.323 | Y127: =(L127-M127)*D127/10 -> 12.5614845 | AM127: 0.2 | AN127: nur C/N-Gehalt und pH-Wert angegeben | BE127: 4.1 | BF127: =-0.0401*BE127*BE127 + 1.4009*BE127 - 1.4444 -> 3.625209
A128: ausb3 | B128: Ah | C128: 2 | D128: 0 | E128: 20 | F128: Sl2 | J128: 5 | K128: 41 | L128: 23 | M128: 6 | N128: 0.999 | O128: 4.1 | P128: 3.625209 | Q128: 0.6 | R128: =U128/V128 -> 19.68378927 | S128: 3.1002 | T128: 0.1575 | U128: 5885.079 | V128: 298.981 | Y128: =(L128-M128)*(E128-D128)/10 -> 34 | AM128: 0 | AN128: nur nFK angegeben; FK, WP abgeleitet | BE128: 4.1 | BF128: =-0.0401*BE128*BE128 + 1.4009*BE128 - 1.4444 -> 3.625209
A129: ausb3 | B129: Bv | C129: 3 | D129: 20 | E129: 80 | F129: Sl2 | J129: 15 | K129: 41 | L129: 23 | M129: 6 | N129: 1.203 | O129: 4.2 | P129: 3.732016 | Q129: 0.6 | R129: =U129/V129 -> 12.58158933 | S129: 0.6014 | T129: 0.0478 | U129: 3689.463 | V129: 293.243 | Y129: =Y128+(L129-M129)*(E129-D129)/10 -> 136 | AM129: 0 | AN129: nur nFK angegeben; FK, WP abgeleitet | BE129: 4.2 | BF129: =-0.0401*BE129*BE129 + 1.4009*BE129 - 1.4444 -> 3.732016
A130: ausb3 | B130: C | C130: 4 | D130: 80 | Y130: =Y129+(L130-M130)*(E130-D130)/10 -> 136 | Z130: =SUM(U127:U130)*10/1000 -> 129.6442524 | AA130: =SUM(V127:V130)*10/1000 -> 7.29603094 | AB130: =Z130/AA130 -> 17.76914784 | AM130: 0
A131: ausb4 | B131: Oh | C131: 1 | D131: =X131/(N131*10000) -> 4.690314 | E131: 0 | J131: 0 | K131: =(1-N131/$AP$1)*100 -> 85.71428571 | L131: 42 | M131: 12 | N131: 0.2 | O131: 4.3 | P131: 3.838021 | Q131: 5 | R131: =U131/V131 -> 24.20628369 | S131: 32.95976 | T131: 1.36162 | U131: =$X131*S131/100 -> 3091.832475 | V131: =$X131*T131/100 -> 127.728507 | X131: 9380.628 | AM131: 0.2 | AN131: nur C/N-Gehalt und pH-Wert angegeben | BE131: 4.3 | BF131: =-0.0401*BE131*BE131 + 1.4009*BE131 - 1.4444 -> 3.838021
A132: ausb4 | B132: Ah | C132: 2 | D132: 0 | E132: 20 | F132: Sl4 | J132: 5 | K132: 52 | L132: 34 | M132: 12 | N132: 0.904 | O132: 4.2 | P132: 3.732016 | Q132: 0.3 | R132: =U132/V132 -> 17.0537153 | S132: 2.3807 | T132: 0.1396 | U132: 4087.281 | V132: 239.671 | AM132: 0 | AN132: nur nFK angegeben; FK, WP abgeleitet | BE132: 4.2 | BF132: =-0.0401*BE132*BE132 + 1.4009*BE132 - 1.4444 -> 3.732016
A133: ausb4 | B133: Bv | C133: 3 | D133: 20 | E133: 80 | F133: Sl4 | J133: 10 | K133: 52 | L133: 34 | M133: 12 | N133: 1.268 | O133: 4.4 | P133: 3.943224 | Q133: 0.3 | R133: =U133/V133 -> 11.92657474 | S133: 0.6011 | T133: 0.0504 | U133: 4115.527 | V133: 345.072 | AM133: 0 | AN133: nur nFK angegeben; FK, WP abgeleitet | BE133: 4.4 | BF133: =-0.0401*BE133*BE133 + 1.4009*BE133 - 1.4444 -> 3.943224
A134: ausb4 | B134: C | C134: 4 | D134: 80 | Z134: =SUM(U131:U134)*10/1000 -> 112.9464048 | AA134: =SUM(V131:V134)*10/1000 -> 7.12471507 | AB134: =Z134/AA134 -> 15.85276094 | AM134: 0
A135: ausb5 | B135: Oh | C135: 1 | D135: =X135/(N135*10000) -> 5.421906 | E135: 0 | J135: 0 | K135: =(1-N135/$AP$1)*100 -> 85.71428571 | L135: 42 | M135: 12 | N135: 0.2 | O135: 4.1 | P135: 3.625209 | Q135: 5 | R135: =U135/V135 -> 23.77682345 | S135: 28.01528 | T135: 1.17826 | U135: =$X135*S135/100 -> 3037.924294 | V135: =$X135*T135/100 -> 127.7682993 | X135: 10843.812 | Y135: =(L135-M135)*D135/10 -> 16.265718 | AM135: =X135/(ABS(E135-D135)*100*100) -> 0.2 | AN135: nur C/N-Gehalt und pH-Wert angegeben | BE135: 4.1 | BF135: =-0.0401*BE135*BE135 + 1.4009*BE135 - 1.4444 -> 3.625209
A136: ausb5 | B136: Ah | C136: 2 | D136: 0 | E136: 20 | F136: Sl2 | J136: 5 | K136: 41 | L136: 23 | M136: 6 | N136: 0.999 | O136: 4.1 | P136: 3.625209 | Q136: 0.6 | R136: =U136/V136 -> 19.68378927 | S136: 3.1002 | T136: 0.1575 | U136: 5885.079 | V136: 298.981 | Y136: =(L136-M136)*(E136-D136)/10 -> 34 | AM136: 0 | AN136: nur nFK angegeben; FK, WP abgeleitet | BE136: 4.1 | BF136: =-0.0401*BE136*BE136 + 1.4009*BE136 - 1.4444 -> 3.625209
A137: ausb5 | B137: Bv | C137: 3 | D137: 20 | E137: 80 | F137: Sl2 | J137: 15 | K137: 41 | L137: 23 | M137: 6 | N137: 1.203 | O137: 4.2 | P137: 3.732016 | Q137: 0.6 | R137: =U137/V137 -> 12.58158933 | S137: 0.6014 | T137: 0.0478 | U137: 3689.463 | V137: 293.243 | Y137: =Y136+(L137-M137)*(E137-D137)/10 -> 136 | AM137: 0 | AN137: nur nFK angegeben; FK, WP abgeleitet | BE137: 4.2 | BF137: =-0.0401*BE137*BE137 + 1.4009*BE137 - 1.4444 -> 3.732016
A138: ausb5 | B138: C | C138: 4 | D138: 80 | Y138: =Y137+(L138-M138)*(E138-D138)/10 -> 136 | Z138: =SUM(U135:U138)*10/1000 -> 126.1246629 | AA138: =SUM(V135:V138)*10/1000 -> 7.199922993 | AB138: =Z138/AA138 -> 17.51750166 | AM138: 0
A139: ausb6 | B139: Oh | C139: 1 | D139: =X139/(N139*10000) -> 5.047125 | E139: 0 | J139: 0 | K139: =(1-N139/$AP$1)*100 -> 85.71428571 | L139: 42 | M139: 12 | N139: 0.2 | O139: 4.3 | P139: 3.838021 | Q139: 5 | R139: =U139/V139 -> 23.97585115 | S139: 30.2815 | T139: 1.263 | U139: =$X139*S139/100 -> 3056.690314 | V139: =$X139*T139/100 -> 127.4903775 | X139: 10094.25 | AM139: 0.2 | AN139: nur C/N-Gehalt und pH-Wert angegeben | BE139: 4.3 | BF139: =-0.0401*BE139*BE139 + 1.4009*BE139 - 1.4444 -> 3.838021
A140: ausb6 | B140: Ah | C140: 2 | D140: 0 | E140: 20 | F140: Sl4 | J140: 5 | K140: 52 | L140: 34 | M140: 12 | N140: 0.904 | O140: 4.2 | P140: 3.732016 | Q140: 0.3 | R140: =U140/V140 -> 17.0537153 | S140: 2.3807 | T140: 0.1396 | U140: 4087.281 | V140: 239.671 | AM140: 0 | AN140: nur nFK angegeben; FK, WP abgeleitet | BE140: 4.2 | BF140: =-0.0401*BE140*BE140 + 1.4009*BE140 - 1.4444 -> 3.732016
A141: ausb6 | B141: Bv | C141: 3 | D141: 20 | E141: 80 | F141: Sl4 | J141: 10 | K141: 52 | L141: 34 | M141: 12 | N141: 1.268 | O141: 4.4 | P141: 3.943224 | Q141: 0.3 | R141: =U141/V141 -> 11.92657474 | S141: 0.6011 | T141: 0.0504 | U141: 4115.527 | V141: 345.072 | AM141: 0 | AN141: nur nFK angegeben; FK, WP abgeleitet | BE141: 4.4 | BF141: =-0.0401*BE141*BE141 + 1.4009*BE141 - 1.4444 -> 3.943224
A142: ausb6 | B142: C | C142: 4 | D142: 80 | Z142: =SUM(U139:U142)*10/1000 -> 112.5949831 | AA142: =SUM(V139:V142)*10/1000 -> 7.122333775 | AB142: =Z142/AA142 -> 15.80872038 | AM142: 0
A143: ausb7 | B143: Oh | C143: 1 | D143: =X143/(N143*10000) -> 7.3774485 | E143: 0 | J143: 0 | K143: =(1-N143/$AP$1)*100 -> 85.71428571 | L143: 42 | M143: 12 | N143: 0.2 | O143: 4.3 | P143: 3.838021 | Q143: 5 | R143: =U143/V143 -> 22.64107316 | S143: 19.67147 | T143: 0.86884 | U143: =$X143*S143/100 -> 2902.505137 | V143: =$X143*T143/100 -> 128.1964471 | X143: 14754.897 | Y143: =(L143-M143)*D143/10 -> 22.1323455 | AM143: 0.2 | AN143: nur C/N-Gehalt und pH-Wert angegeben | BE143: 4.3 | BF143: =-0.0401*BE143*BE143 + 1.4009*BE143 - 1.4444 -> 3.838021
A144: ausb7 | B144: Ah | C144: 2 | D144: 0 | E144: 20 | F144: Sl4 | J144: 5 | K144: 52 | L144: 34 | M144: 12 | N144: 0.904 | O144: 4.2 | P144: 3.732016 | Q144: 0.3 | R144: =U144/V144 -> 17.0537153 | S144: 2.3807 | T144: 0.1396 | U144: 4087.281 | V144: 239.671 | Y144: =(L144-M144)*(E144-D144)/10 -> 44 | AM144: 0 | AN144: nur nFK angegeben; FK, WP abgeleitet | BE144: 4.2 | BF144: =-0.0401*BE144*BE144 + 1.4009*BE144 - 1.4444 -> 3.732016
A145: ausb7 | B145: Bv | C145: 3 | D145: 20 | E145: 80 | F145: Sl4 | J145: 10 | K145: 52 | L145: 34 | M145: 12 | N145: 1.268 | O145: 4.4 | P145: 3.943224 | Q145: 0.3 | R145: =U145/V145 -> 11.92657474 | S145: 0.6011 | T145: 0.0504 | U145: 4115.527 | V145: 345.072 | Y145: =Y144+(L145-M145)*(E145-D145)/10 -> 176 | AM145: 0 | AN145: nur nFK angegeben; FK, WP abgeleitet | BE145: 4.4 | BF145: =-0.0401*BE145*BE145 + 1.4009*BE145 - 1.4444 -> 3.943224
A146: ausb7 | B146: C | C146: 4 | D146: 80 | Y146: =Y145+(L146-M146)*(E146-D146)/10 -> 176 | Z146: =SUM(U143:U146)*10/1000 -> 111.0531314 | AA146: =SUM(V143:V146)*10/1000 -> 7.129394471 | AB146: =Z146/AA146 -> 15.57679713 | AM146: 0
A147: ausb8 | B147: Oh | C147: 1 | D147: =X147/(N147*10000) -> 5.243271 | E147: 0 | J147: 0 | K147: =(1-N147/$AP$1)*100 -> 85.71428571 | L147: 42 | M147: 12 | N147: 0.2 | O147: 4.3 | P147: 3.838021 | Q147: 5 | R147: =U147/V147 -> 23.87697088 | S147: 29.04538 | T147: 1.21646 | U147: =$X147*S147/100 -> 3045.855973 | V147: =$X147*T147/100 -> 127.5645888 | X147: 10486.542 | AM147: 0.2 | AN147: nur C/N-Gehalt und pH-Wert angegeben | BE147: 4.3 | BF147: =-0.0401*BE147*BE147 + 1.4009*BE147 - 1.4444 -> 3.838021
A148: ausb8 | B148: Ah | C148: 2 | D148: 0 | E148: 20 | F148: Sl4 | J148: 5 | K148: 52 | L148: 34 | M148: 12 | N148: 0.904 | O148: 4.2 | P148: 3.732016 | Q148: 0.3 | R148: =U148/V148 -> 17.0537153 | S148: 2.3807 | T148: 0.1396 | U148: 4087.281 | V148: 239.671 | AM148: 0 | AN148: nur nFK angegeben; FK, WP abgeleitet | BE148: 4.2 | BF148: =-0.0401*BE148*BE148 + 1.4009*BE148 - 1.4444 -> 3.732016
A149: ausb8 | B149: Bv | C149: 3 | D149: 20 | E149: 80 | F149: Sl4 | J149: 10 | K149: 52 | L149: 34 | M149: 12 | N149: 1.268 | O149: 4.4 | P149: 3.943224 | Q149: 0.3 | R149: =U149/V149 -> 11.92657474 | S149: 0.6011 | T149: 0.0504 | U149: 4115.527 | V149: 345.072 | AM149: 0 | AN149: nur nFK angegeben; FK, WP abgeleitet | BE149: 4.4 | BF149: =-0.0401*BE149*BE149 + 1.4009*BE149 - 1.4444 -> 3.943224
A150: ausb8 | B150: C | C150: 4 | D150: 80 | Z150: =SUM(U147:U150)*10/1000 -> 112.4866397 | AA150: =SUM(V147:V150)*10/1000 -> 7.123075888 | AB150: =Z150/AA150 -> 15.79186316 | AM150: 0
A151: ausb9 | B151: Oh | C151: 1 | D151: =X151/(N151*10000) -> 4.174701 | E151: 0 | J151: 0 | K151: =(1-N151/$AP$1)*100 -> 85.71428571 | L151: 42 | M151: 12 | N151: 0.2 | O151: 4.1 | P151: 3.625209 | Q151: 5 | R151: =U151/V151 -> 25.00036617 | S151: 47.7932 | T151: 1.9117 | U151: =$X151*S151/100 -> 3990.446397 | V151: =$X151*T151/100 -> 159.615518 | X151: 8349.402 | Y151: =(L151-M151)*D151/10 -> 12.524103 | AM151: 0.2 | AN151: nur C/N-Gehalt und pH-Wert angegeben | BE151: 4.1 | BF151: =-0.0401*BE151*BE151 + 1.4009*BE151 - 1.4444 -> 3.625209
A152: ausb9 | B152: Ah | C152: 2 | D152: 0 | E152: 20 | F152: Sl2 | J152: 5 | K152: 41 | L152: 23 | M152: 6 | N152: 0.999 | O152: 4.1 | P152: 3.625209 | Q152: 0.6 | R152: =U152/V152 -> 19.68378927 | S152: 3.1002 | T152: 0.1575 | U152: 5885.079 | V152: 298.981 | Y152: =(L152-M152)*(E152-D152)/10 -> 34 | AM152: 0 | AN152: nur nFK angegeben; FK, WP abgeleitet | BE152: 4.1 | BF152: =-0.0401*BE152*BE152 + 1.4009*BE152 - 1.4444 -> 3.625209
A153: ausb9 | B153: Bv | C153: 3 | D153: 20 | E153: 80 | F153: Sl2 | J153: 15 | K153: 41 | L153: 23 | M153: 6 | N153: 1.203 | O153: 4.2 | P153: 3.732016 | Q153: 0.6 | R153: =U153/V153 -> 12.58158933 | S153: 0.6014 | T153: 0.0478 | U153: 3689.463 | V153: 293.243 | Y153: =Y152+(L153-M153)*(E153-D153)/10 -> 136 | AM153: 0 | AN153: nur nFK angegeben; FK, WP abgeleitet | BE153: 4.2 | BF153: =-0.0401*BE153*BE153 + 1.4009*BE153 - 1.4444 -> 3.732016
A154: ausb9 | B154: C | C154: 4 | D154: 80 | Y154: =Y153+(L154-M154)*(E154-D154)/10 -> 136 | Z154: =SUM(U151:U154)*10/1000 -> 135.649884 | AA154: =SUM(V151:V154)*10/1000 -> 7.51839518 | AB154: =Z154/AA154 -> 18.04239877 | AM154: 0
A155: ausb10 | B155: Oh | C155: 1 | D155: =X155/(N155*10000) -> 4.323534 | E155: 0 | J155: 0 | K155: =(1-N155/$AP$1)*100 -> 85.71428571 | L155: 42 | M155: 12 | N155: 0.2 | O155: 4.3 | P155: 3.838021 | Q155: 5 | R155: =U155/V155 -> 24.48472683 | S155: 37.08016 | T155: 1.51442 | U155: =$X155*S155/100 -> 3206.34665 | V155: =$X155*T155/100 -> 130.9529272 | X155: 8647.068 | AM155: 0.2 | AN155: nur C/N-Gehalt und pH-Wert angegeben | BE155: 4.3 | BF155: =-0.0401*BE155*BE155 + 1.4009*BE155 - 1.4444 -> 3.838021
A156: ausb10 | B156: Ah | C156: 2 | D156: 0 | E156: 20 | F156: Sl4 | J156: 5 | K156: 52 | L156: 34 | M156: 12 | N156: 0.904 | O156: 4.2 | P156: 3.732016 | Q156: 0.3 | R156: =U156/V156 -> 17.0537153 | S156: 2.3807 | T156: 0.1396 | U156: 4087.281 | V156: 239.671 | AM156: 0 | AN156: nur nFK angegeben; FK, WP abgeleitet | BE156: 4.2 | BF156: =-0.0401*BE156*BE156 + 1.4009*BE156 - 1.4444 -> 3.732016
A157: ausb10 | B157: Bv | C157: 3 | D157: 20 | E157: 80 | F157: Sl4 | J157: 10 | K157: 52 | L157: 34 | M157: 12 | N157: 1.268 | O157: 4.4 | P157: 3.943224 | Q157: 0.3 | R157: =U157/V157 -> 11.92657474 | S157: 0.6011 | T157: 0.0504 | U157: 4115.527 | V157: 345.072 | AM157: 0 | AN157: nur nFK angegeben; FK, WP abgeleitet | BE157: 4.4 | BF157: =-0.0401*BE157*BE157 + 1.4009*BE157 - 1.4444 -> 3.943224
A158: ausb10 | B158: C | C158: 4 | D158: 80 | Z158: =SUM(U155:U158)*10/1000 -> 114.0915465 | AA158: =SUM(V155:V158)*10/1000 -> 7.156959272 | AB158: =Z158/AA158 -> 15.94134355 | AM158: 0
A159: ausb11 | B159: Oh | C159: 1 | D159: =X159/(N159*10000) -> 5.0942985 | E159: 0 | J159: 0 | K159: =(1-N159/$AP$1)*100 -> 85.71428571 | L159: 42 | M159: 12 | N159: 0.2 | O159: 4.1 | P159: 3.625209 | Q159: 5 | R159: =U159/V159 -> 23.96187362 | S159: 29.97247 | T159: 1.25084 | U159: =$X159*S159/100 -> 3053.774179 | V159: =$X159*T159/100 -> 127.4430467 | X159: 10188.597 | Y159: =(L159-M159)*D159/10 -> 15.2828955 | AM159: 0.2 | AN159: nur C/N-Gehalt und pH-Wert angegeben | BE159: 4.1 | BF159: =-0.0401*BE159*BE159 + 1.4009*BE159 - 1.4444 -> 3.625209
A160: ausb11 | B160: Ah | C160: 2 | D160: 0 | E160: 20 | F160: Sl2 | J160: 5 | K160: 41 | L160: 23 | M160: 6 | N160: 0.999 | O160: 4.1 | P160: 3.625209 | Q160: 0.6 | R160: =U160/V160 -> 19.68378927 | S160: 3.1002 | T160: 0.1575 | U160: 5885.079 | V160: 298.981 | Y160: =(L160-M160)*(E160-D160)/10 -> 34 | AM160: 0 | AN160: nur nFK angegeben; FK, WP abgeleitet | BE160: 4.1 | BF160: =-0.0401*BE160*BE160 + 1.4009*BE160 - 1.4444 -> 3.625209
A161: ausb11 | B161: Bv | C161: 3 | D161: 20 | E161: 80 | F161: Sl2 | J161: 15 | K161: 41 | L161: 23 | M161: 6 | N161: 1.203 | O161: 4.2 | P161: 3.732016 | Q161: 0.6 | R161: =U161/V161 -> 12.58158933 | S161: 0.6014 | T161: 0.0478 | U161: 3689.463 | V161: 293.243 | Y161: =Y160+(L161-M161)*(E161-D161)/10 -> 136 | AM161: 0 | AN161: nur nFK angegeben; FK, WP abgeleitet | BE161: 4.2 | BF161: =-0.0401*BE161*BE161 + 1.4009*BE161 - 1.4444 -> 3.732016
A162: ausb11 | B162: C | C162: 4 | D162: 80 | Y162: =Y161+(L162-M162)*(E162-D162)/10 -> 136 | Z162: =SUM(U159:U162)*10/1000 -> 126.2831618 | AA162: =SUM(V159:V162)*10/1000 -> 7.196670467 | AB162: =Z162/AA162 -> 17.54744258 | AM162: 0
A163: ausb12 | B163: Oh | C163: 1 | D163: =X163/(N163*10000) -> 5.5944765 | E163: 0 | J163: 0 | K163: =(1-N163/$AP$1)*100 -> 85.71428571 | L163: 42 | M163: 12 | N163: 0.2 | O163: 4.1 | P163: 3.625209 | Q163: 5 | R163: =U163/V163 -> 23.68097178 | S163: 27.08819 | T163: 1.14388 | U163: =$X163*S163/100 -> 3030.884848 | V163: =$X163*T163/100 -> 127.9881956 | X163: 11188.953 | AM163: 0.2 | AN163: nur C/N-Gehalt und pH-Wert angegeben | BE163: 4.1 | BF163: =-0.0401*BE163*BE163 + 1.4009*BE163 - 1.4444 -> 3.625209
A164: ausb12 | B164: Ah | C164: 2 | D164: 0 | E164: 20 | F164: Sl2 | J164: 5 | K164: 41 | L164: 23 | M164: 6 | N164: 0.999 | O164: 4.1 | P164: 3.625209 | Q164: 0.6 | R164: =U164/V164 -> 19.68378927 | S164: 3.1002 | T164: 0.1575 | U164: 5885.079 | V164: 298.981 | AM164: 0 | AN164: nur nFK angegeben; FK, WP abgeleitet | BE164: 4.1 | BF164: =-0.0401*BE164*BE164 + 1.4009*BE164 - 1.4444 -> 3.625209
A165: ausb12 | B165: Bv | C165: 3 | D165: 20 | E165: 80 | F165: Sl2 | J165: 15 | K165: 41 | L165: 23 | M165: 6 | N165: 1.203 | O165: 4.2 | P165: 3.732016 | Q165: 0.6 | R165: =U165/V165 -> 12.58158933 | S165: 0.6014 | T165: 0.0478 | U165: 3689.463 | V165: 293.243 | AM165: 0 | AN165: nur nFK angegeben; FK, WP abgeleitet | BE165: 4.2 | BF165: =-0.0401*BE165*BE165 + 1.4009*BE165 - 1.4444 -> 3.732016
A166: ausb12 | B166: C | C166: 4 | D166: 80 | Z166: =SUM(U163:U166)*10/1000 -> 126.0542685 | AA166: =SUM(V163:V166)*10/1000 -> 7.202121956 | AB166: =Z166/AA166 -> 17.50237906 | AM166: 0
A167: ausb13 | B167: Oh | C167: 1 | D167: =X167/(N167*10000) -> 8.712429 | E167: 0 | J167: 0 | K167: =(1-N167/$AP$1)*100 -> 85.71428571 | L167: 42 | M167: 12 | N167: 0.2 | O167: 4.3 | P167: 3.838021 | Q167: 5 | R167: =U167/V167 -> 21.69001151 | S167: 15.44806 | T167: 0.71222 | U167: =$X167*S167/100 -> 2691.802519 | V167: =$X167*T167/100 -> 124.1033236 | X167: 17424.858 | Y167: =(L167-M167)*D167/10 -> 26.137287 | AM167: 0.2 | AN167: nur C/N-Gehalt und pH-Wert angegeben | BE167: 4.3 | BF167: =-0.0401*BE167*BE167 + 1.4009*BE167 - 1.4444 -> 3.838021
A168: ausb13 | B168: Ah | C168: 2 | D168: 0 | E168: 20 | F168: Sl4 | J168: 5 | K168: 52 | L168: 34 | M168: 12 | N168: 0.904 | O168: 4.2 | P168: 3.732016 | Q168: 0.3 | R168: =U168/V168 -> 17.0537153 | S168: 2.3807 | T168: 0.1396 | U168: 4087.281 | V168: 239.671 | Y168: =(L168-M168)*(E168-D168)/10 -> 44 | AM168: 0 | AN168: nur nFK angegeben; FK, WP abgeleitet | BE168: 4.2 | BF168: =-0.0401*BE168*BE168 + 1.4009*BE168 - 1.4444 -> 3.732016
A169: ausb13 | B169: Bv | C169: 3 | D169: 20 | E169: 80 | F169: Sl4 | J169: 10 | K169: 52 | L169: 34 | M169: 12 | N169: 1.268 | O169: 4.4 | P169: 3.943224 | Q169: 0.3 | R169: =U169/V169 -> 11.92657474 | S169: 0.6011 | T169: 0.0504 | U169: 4115.527 | V169: 345.072 | Y169: =Y168+(L169-M169)*(E169-D169)/10 -> 176 | AM169: 0 | AN169: nur nFK angegeben; FK, WP abgeleitet | BE169: 4.4 | BF169: =-0.0401*BE169*BE169 + 1.4009*BE169 - 1.4444 -> 3.943224
A170: ausb13 | B170: C | C170: 4 | D170: 80 | Y170: =Y169+(L170-M170)*(E170-D170)/10 -> 176 | Z170: =SUM(U167:U170)*10/1000 -> 108.9461052 | AA170: =SUM(V167:V170)*10/1000 -> 7.088463236 | AB170: =Z170/AA170 -> 15.36949569 | AM170: 0
A171: ausb14 | B171: Oh | C171: 1 | D171: =X171/(N171*10000) -> 4.174701 | E171: 0 | J171: 0 | K171: =(1-N171/$AP$1)*100 -> 85.71428571 | L171: 42 | M171: 12 | N171: 0.2 | O171: 4.1 | P171: 3.625209 | Q171: 5 | R171: =U171/V171 -> 24.74269587 | S171: 41.81862 | T171: 1.69014 | U171: =$X171*S171/100 -> 3491.604695 | V171: =$X171*T171/100 -> 141.116583 | X171: 8349.402 | AM171: 0.2 | AN171: nur C/N-Gehalt und pH-Wert angegeben | BE171: 4.1 | BF171: =-0.0401*BE171*BE171 + 1.4009*BE171 - 1.4444 -> 3.625209
A172: ausb14 | B172: Ah | C172: 2 | D172: 0 | E172: 20 | F172: Sl2 | J172: 5 | K172: 41 | L172: 23 | M172: 6 | N172: 0.999 | O172: 4.1 | P172: 3.625209 | Q172: 0.6 | R172: =U172/V172 -> 19.68378927 | S172: 3.1002 | T172: 0.1575 | U172: 5885.079 | V172: 298.981 | AM172: 0 | AN172: nur nFK angegeben; FK, WP abgeleitet | BE172: 4.1 | BF172: =-0.0401*BE172*BE172 + 1.4009*BE172 - 1.4444 -> 3.625209
